Workbook

Sheet Sample Report (hidden)
A2: Date
A3: Hen
A4: Program
A5: Start at 999999
A6: Sequence component 1 | B6: Time 1 | C6: Seqeunce Component 2 | D6: Time 2 | E6: Seqeunce Component 3 | F6: Time 3 | G6: Correct 0 = No 1=Yes | J6: Seqeunce | K6: Time
A7: 12 | B7: 7 | C7: 12 | D7: 42 | E7: 13 | F7: 18 | G7: if 77 new line, if 31 or 41 = yes new line on 77, | J7: =string of Seqeunce compponent 1, 2 & 3 | K7: =time 3
A8: This continues until ther is a 1 on its own to indicate start of summary data
J9: 10-19 =1
A10: Summary Data | J10: 20-29 =2
A11: Correct | B11: Incorrect | C11: Rft | D11: total | E11: Av Correct | F11: Av Incorrect | G11: Percent correct | H11: Time | J11: in this example the seqeunce would be 111
A12: 40 | B12: 33 | C12: 40 | D12: 73 | E12: 23.95 | F12: 15 | G12: 54 | H12: 806

Sheet Summary
A2: Day | B2: Date | C2: Average Response Rate | D2: Target % | E2: RF for non correct sequence | F2: U Value | K2: Block 1 | L2: Block 2 | M2: Block 3 | N2: Block 4 | O2: Block 5 | P2: Block 6
A3: 1 | B3: ='!N328740.000'!B2:C2 -> <date> | C3: =('!N328740.000'!J180/60)/'!N328740.000'!Q3 -> 2.291283525 | D3: ='!N328740.000'!N44/'!N328740.000'!Q3 -> 0 | E3: =SUM('!N328740.000'!L44:Q44)/'!N328740.000'!Q3 -> 64.82183908 | F3: ='!N328740.000'!Q40 -> 0.5776429404 | J3: Average Response Rate | K3: =AVERAGE(C3:C7) -> 2.428230787 | L3: =AVERAGE(C8:C12) -> 2.414599417 | M3: =AVERAGE(C13:C17) -> 1.840136669 | N3: =AVERAGE(C18:C22) -> 2.277679711 | O3: =AVERAGE(C23:C27) -> 3.015165526 | P3: =AVERAGE(C28:C32) -> 1.876322642
A4: 2 | B4: ='!N329A50.000'!B2:C2 -> <date> | C4: =('!N329A50.000'!J177/60)/'!N329A50.000'!Q3 -> 2.328070175 | D4: ='!N329A50.000'!N44/'!N329A50.000'!Q3 -> 0.0350877193 | E4: =SUM('!N329A50.000'!L44:Q44)/'!N329A50.000'!Q3 -> 65.35087719 | F4: ='!N329A50.000'!Q40 -> 0.529572548 | J4: Target % | K4: =AVERAGE(D3:D7) -> 0.01540850415 | L4: =AVERAGE(D8:D12) -> 0.004912745367 | M4: =AVERAGE(D13:D17) -> 0.001242236025 | N4: =AVERAGE(D18:D22) -> 0 | O4: =AVERAGE(D23:D27) -> 0 | P4: =AVERAGE(D28:D32) -> 0
A5: 3 | B5: ='!N330920.000'!B2:C2 -> <date> | C5: =('!N330920.000'!J151/60)/'!N330920.000'!Q3 -> 2.757011494 | D5: ='!N330920.000'!N44/'!N330920.000'!Q3 -> 0 | E5: =SUM('!N330920.000'!L44:Q44)/'!N330920.000'!Q3 -> 152.8206897 | F5: ='!N330920.000'!Q40 -> 0.5736420421 | J5: CCRF | K5: =AVERAGE(E3:E7) -> 96.64896279 | L5: =AVERAGE(E8:E12) -> 132.2742312 | M5: =AVERAGE(E13:E17) -> 117.1388157 | N5: =AVERAGE(E18:E22) -> 77.62107257 | O5: =AVERAGE(E23:E27) -> 145.0205025 | P5: =AVERAGE(E28:E32) -> 65.72644393
A6: 4 | B6: ='!N331910.000'!B2:C2 -> <date> | C6: =('!N331910.000'!J175/60)/'!N331910.000'!Q3 -> 2.359467456 | D6: ='!N331910.000'!N44/'!N331910.000'!Q3 -> 0.01183431953 | E6: =SUM('!N331910.000'!L44:Q44)/'!N331910.000'!Q3 -> 66.0887574 | F6: ='!N331910.000'!Q40 -> 0.5783829921 | J6: U Value | K6: =AVERAGE(F3:F7) -> 0.5639027099 | L6: =AVERAGE(F8:F12) -> 0.4880890986 | M6: =AVERAGE(F13:F17) -> 0.4428133236 | N6: =AVERAGE(F18:F22) -> 0.4479458105 | O6: =AVERAGE(F23:F27) -> 0.1921642972 | P6: =AVERAGE(F28:F32) -> 0.2378465047
A7: 5 | B7: ='!N401A30.000'!B2:C2 -> <date> | C7: =('!N401A30.000'!J172/60)/'!N401A30.000'!Q3 -> 2.405321285 | D7: ='!N401A30.000'!N44/'!N401A30.000'!Q3 -> 0.03012048193 | E7: =SUM('!N401A30.000'!L44:Q44)/'!N401A30.000'!Q3 -> 134.1626506 | F7: ='!N401A30.000'!Q40 -> 0.560273027
A8: 6 | B8: ='!N402950.000'!B2:C2 -> <date> | C8: =('!N402950.000'!J168/60)/'!N402950.000'!Q3 -> 2.459053498 | D8: ='!N402950.000'!N44/'!N402950.000'!Q3 -> 0.006172839506 | E8: =SUM('!N402950.000'!L44:Q44)/'!N402950.000'!Q3 -> 130.7160494 | F8: ='!N402950.000'!Q40 -> 0.4826762919
A9: 7 | B9: ='!N403930.000'!B2:C2 -> <date> | C9: =('!N403930.000'!J157/60)/'!N403930.000'!Q3 -> 2.637196468 | D9: ='!N403930.000'!N44/'!N403930.000'!Q3 -> 0.006622516556 | E9: =SUM('!N403930.000'!L44:Q44)/'!N403930.000'!Q3 -> 147.4966887 | F9: ='!N403930.000'!Q40 -> 0.4900200337 | G9: =K3 -> 2.428230787 | H9: 2.414599417 | I9: 1.840136669 | J9: 2.277679711 | K9: 3.015165526 | L9: 1.876322642 | M9: =K4 -> 0.01540850415 | N9: 0.004912745367 | O9: 0.001242236025 | P9: 0 | Q9: 0 | R9: 0 | S9: =K6 -> 0.5639027099 | T9: 0.4880890986 | U9: 0.4428133236 | V9: 0.4479458105 | W9: 0.1921642972 | X9: 0.2378465047
A10: 8 | B10: ='!N404810.096'!B2:C2 -> <date> | C10: =('!N404810.096'!J172/60)/'!N404810.096'!Q3 -> 2.383932136 | D10: ='!N404810.096'!N44/'!N404810.096'!Q3 -> 0.005988023952 | E10: =SUM('!N404810.096'!L44:Q44)/'!N404810.096'!Q3 -> 132.8023952 | F10: ='!N404810.096'!Q40 -> 0.490862283
A11: 9 | B11: ='!N405A20.096'!B2:C2 -> <date> | C11: =('!N405A20.096'!J178/60)/'!N405A20.096'!Q3 -> 2.299807322 | D11: ='!N405A20.096'!N44/'!N405A20.096'!Q3 -> 0.005780346821 | E11: =SUM('!N405A20.096'!L44:Q44)/'!N405A20.096'!Q3 -> 122.9479769 | F11: ='!N405A20.096'!Q40 -> 0.4789872544
A12: 10 | B12: ='!N406A00.096'!B2:C2 -> <date> | C12: =('!N406A00.096'!J180/60)/'!N406A00.096'!Q3 -> 2.293007663 | D12: ='!N406A00.096'!N44/'!N406A00.096'!Q3 -> 0 | E12: =SUM('!N406A00.096'!L44:Q44)/'!N406A00.096'!Q3 -> 127.408046 | F12: ='!N406A00.096'!Q40 -> 0.4978996297
A13: 11 | B13: ='!N407B40.096'!B2:C2 -> <date> | C13: =('!N407B40.096'!J181/60)/'!N407B40.096'!Q3 -> 2.28447619 | D13: ='!N407B40.096'!N44/'!N407B40.096'!Q3 -> 0 | E13: =SUM('!N407B40.096'!L44:Q44)/'!N407B40.096'!Q3 -> 69.59428571 | F13: ='!N407B40.096'!Q40 -> 0.4253833123
A14: 12 | B14: ='!N408B00.096'!B2:C2 -> <date> | C14: =('!N408B00.096'!J186/60)/'!N408B00.096'!Q3 -> 2.221296296 | D14: ='!N408B00.096'!N44/'!N408B00.096'!Q3 -> 0 | E14: =SUM('!N408B00.096'!L44:Q44)/'!N408B00.096'!Q3 -> 123.7277778 | F14: ='!N408B00.096'!Q40 -> 0.4080929323
A15: 13 | B15: ='!N409A50.096'!B2:C2 -> <date> | C15: =('!N409A50.096'!J186/60)/'!N409A50.096'!Q3 -> 2.217685185 | D15: ='!N409A50.096'!N44/'!N409A50.096'!Q3 -> 0 | E15: =SUM('!N409A50.096'!L44:Q44)/'!N409A50.096'!Q3 -> 123.7833333 | F15: ='!N409A50.096'!Q40 -> 0.4164754152
A16: 14 | B16: ='!N410A00.096'!B2:C2 -> <date> | C16: =('!N410A00.096'!J167/60)/'!N410A00.096'!Q3 -> 2.477225673 | D16: ='!N410A00.096'!N44/'!N410A00.096'!Q3 -> 0.006211180124 | E16: =SUM('!N410A00.096'!L44:Q44)/'!N410A00.096'!Q3 -> 138.3664596 | F16: ='!N410A00.096'!Q40 -> 0.4752511202
A17: 15 | B17: ='!N411B20.096'!B2:C2 -> <date> | C17: =('!N411B20.096'!J177/60)/'!N411B20.096'!Q3 -> 0 | D17: ='!N411B20.096'!N44/'!N411B20.096'!Q3 -> 0 | E17: =SUM('!N411B20.096'!L44:Q44)/'!N411B20.096'!Q3 -> 130.2222222 | F17: ='!N411B20.096'!Q40 -> 0.488863838
A18: 16 | B18: ='!N412B50.096'!B2:C2 -> <date> | C18: =('!N412B50.096'!J186/60)/'!N412B50.096'!Q3 -> 2.221111111 | D18: ='!N412B50.096'!N44/'!N412B50.096'!Q3 -> 0 | E18: =SUM('!N412B50.096'!L44:Q44)/'!N412B50.096'!Q3 -> 62.06111111 | F18: ='!N412B50.096'!Q40 -> 0.4376069847
A19: 17 | B19: ='!N413A50.096'!B2:C2 -> <date> | C19: =('!N413A50.096'!J181/60)/'!N413A50.096'!Q3 -> 2.277809524 | D19: ='!N413A50.096'!N44/'!N413A50.096'!Q3 -> 0 | E19: =SUM('!N413A50.096'!L44:Q44)/'!N413A50.096'!Q3 -> 63.82285714 | F19: ='!N413A50.096'!Q40 -> 0.4456247001
A20: 18 | B20: ='!N414950.096'!B2:C2 -> <date> | C20: =('!N414950.096'!J180/60)/'!N414950.096'!Q3 -> 2.276190476 | D20: ='!N414950.096'!N44/'!N414950.096'!Q3 -> 0 | E20: =SUM('!N414950.096'!L44:Q44)/'!N414950.096'!Q3 -> 120.9657143 | F20: ='!N414950.096'!Q40 -> 0.4376010002
A21: 19 | B21: ='!N415B30.096'!B2:C2 -> <date> | C21: =('!N415B30.096'!J180/60)/'!N415B30.096'!Q3 -> 2.290613027 | D21: ='!N415B30.096'!N44/'!N415B30.096'!Q3 -> 0 | E21: =SUM('!N415B30.096'!L44:Q44)/'!N415B30.096'!Q3 -> 70.51149425 | F21: ='!N415B30.096'!Q40 -> 0.4607342516
A22: 20 | B22: ='!N416A00.096'!B2:C2 -> <date> | C22: =('!N416A00.096'!J178/60)/'!N416A00.096'!Q3 -> 2.322674419 | D22: ='!N416A00.096'!N44/'!N416A00.096'!Q3 -> 0 | E22: =SUM('!N416A00.096'!L44:Q44)/'!N416A00.096'!Q3 -> 70.74418605 | F22: ='!N416A00.096'!Q40 -> 0.458162116
A23: 21 | B23: ='!N417A20.096'!B2:C2 -> <date> | C23: =('!N417A20.096'!J175/60)/'!N417A20.096'!Q3 -> 2.359072978 | D23: ='!N417A20.096'!N44/'!N417A20.096'!Q3 -> 0 | E23: =SUM('!N417A20.096'!L44:Q44)/'!N417A20.096'!Q3 -> 72.64497041 | F23: ='!N417A20.096'!Q40 -> 0.4711608934
A24: 22 | B24: ='!N418C10.096'!B2:C2 -> <date> | C24: =('!N418C10.096'!J179/60)/'!N418C10.096'!Q3 -> 2.287643678 | D24: ='!N418C10.096'!N44/'!N418C10.096'!Q3 -> 0 | E24: =SUM('!N418C10.096'!L44:Q44)/'!N418C10.096'!Q3 -> 70.51149425 | F24: ='!N418C10.096'!Q40 -> 0.4149720242
A25: 23 | B25: ='!N419B40.096'!B2:C2 -> <date> | C25: =('!N419B40.096'!J149/60)/'!N419B40.096'!Q3 -> 2.797319347 | D25: ='!N419B40.096'!N44/'!N419B40.096'!Q3 -> 0 | E25: =SUM('!N419B40.096'!L44:Q44)/'!N419B40.096'!Q3 -> 155.7342657 | F25: ='!N419B40.096'!Q40 -> 0.008397140961
A26: 24 | B26: ='!N420B10.096'!B2:C2 -> <date> | C26: =('!N420B10.096'!J163/60)/'!N420B10.096'!Q3 -> 2.511919831 | D26: ='!N420B10.096'!N44/'!N420B10.096'!Q3 -> 0 | E26: =SUM('!N420B10.096'!L44:Q44)/'!N420B10.096'!Q3 -> 140.9810127 | F26: ='!N420B10.096'!Q40 -> 0.007625120994
A27: 25 | B27: ='!N421D20.096'!B2:C2 -> <date> | C27: =('!N421D20.096'!J84/60)/'!N421D20.096'!Q3 -> 5.119871795 | D27: ='!N421D20.096'!N44/'!N421D20.096'!Q3 -> 0 | E27: =SUM('!N421D20.096'!L44:Q44)/'!N421D20.096'!Q3 -> 285.2307692 | F27: ='!N421D20.096'!Q40 -> 0.05866630658
A28: 26 | B28: ='!N422A30.096'!B2:C2 -> <date> | C28: =('!N422A30.096'!J181/60)/'!N422A30.096'!Q3 -> 2.285619048 | D28: ='!N422A30.096'!N44/'!N422A30.096'!Q3 -> 0 | E28: =SUM('!N422A30.096'!L44:Q44)/'!N422A30.096'!Q3 -> 64.39428571 | F28: ='!N422A30.096'!Q40 -> 0.2206660116
A29: 27 | B29: ='!N423B00.096'!B2:C2 -> <date> | C29: =('!N423B00.096'!J177/60)/'!N423B00.096'!Q3 -> 2.313856589 | D29: ='!N423B00.096'!N44/'!N423B00.096'!Q3 -> 0 | E29: =SUM('!N423B00.096'!L44:Q44)/'!N423B00.096'!Q3 -> 65.5755814 | F29: ='!N423B00.096'!Q40 -> 0.2987420933
A30: 28 | B30: ='!N424A20.096'!B2:C2 -> <date> | C30: =('!N424A20.096'!J184/60)/'!N424A20.096'!Q3 -> 2.241479401 | D30: ='!N424A20.096'!N44/'!N424A20.096'!Q3 -> 0 | E30: =SUM('!N424A20.096'!L44:Q44)/'!N424A20.096'!Q3 -> 63.37078652 | F30: ='!N424A20.096'!Q40 -> 0.2126258873
A31: 29 | B31: ='!N425B00.096'!B2:C2 -> <date> | C31: =('!N425B00.096'!J180/60)/'!N425B00.096'!Q3 -> 0 | D31: ='!N425B00.096'!N44/'!N425B00.096'!Q3 -> 0 | E31: =SUM('!N425B00.096'!L44:Q44)/'!N425B00.096'!Q3 -> 64.18965517 | F31: ='!N425B00.096'!Q40 -> 0.1762127344
A32: 30 | B32: ='!N426B10.096'!B2:C2 -> <date> | C32: =('!N426B10.096'!J163/60)/'!N426B10.096'!Q3 -> 2.540658174 | D32: ='!N426B10.096'!N44/'!N426B10.096'!Q3 -> 0 | E32: =SUM('!N426B10.096'!L44:Q44)/'!N426B10.096'!Q3 -> 71.10191083 | F32: ='!N426B10.096'!Q40 -> 0.2809857966
B33: ='!N427B40.096'!B2:C2 -> <date> | C33: =('!N427B40.096'!J136/60)/'!N427B40.096'!Q3 -> 3.05025641 | D33: ='!N427B40.096'!N44/'!N427B40.096'!Q3 -> 0.02307692308 | E33: =SUM('!N427B40.096'!L44:Q44)/'!N427B40.096'!Q3 -> 162.7461538 | F33: ='!N427B40.096'!Q40 -> 0.4377727583

Sheet Start
F1: Use Folder 51 | H1: Auto Clean Up | J1: Correct sequence
F2: FALSE | H2: TRUE | J2: 21121
A4: Working with Folder | G4: Process All/Or Pick A number: ALL or an integer
A5: E:\Hen Data\Raw Data\96_176\phase 5 any\ | G5: ALL
A6: Filenames:
A7: !N420B10.096 | G7: Paint Cells
A8: !N421D20.096 | G8: FALSE
A9: !N422A30.096
A10: !N423B00.096
A11: !N424A20.096
A12: !N425B00.096
A13: !N426B10.096
A14: !N427B40.096
A15: !N405A20.096
A16: !N406A00.096
A17: !N407B40.096
A18: !N408B00.096
A19: !N409A50.096
A20: !N410A00.096
A21: !N411B20.096
A22: !N412B50.096
A23: !N413A50.096
A24: !N415B30.096
A25: !N416A00.096
A26: !N417A20.096
A27: !N418C10.096
A28: !N419B40.096
A29: !N404810.096
A30: !N414950.096
A31: !N329A50.000
A32: !N328740.000
A33: !N330920.000
A34: !N331910.000
A35: !N401A30.000
A36: !N402950.000
A37: !N403930.000

Sheet !N328740.000
A1: Report for:!N328740.000
A2: Date: | B2: <date>
A3: Hen: | B3: <hen> | F3: Correct Sequence | G3: =Start!J2 -> 21121 | P3: Total Sequences in Data | Q3: =4994-COUNTBLANK(L7:L5000) -> 174 | V3: Total Sequences in Block Data | W3: =COUNTA(L7:L35) -> 29 | AA3: Total Sequences in Block Data | AB3: =COUNTA(L36:L64) -> 29 | AF3: Total Sequences in Block Data | AG3: =COUNTA(L65:L93) -> 29 | AK3: Total Sequences in Block Data | AL3: =COUNTA(L94:L122) -> 29 | AP3: Total Sequences in Block Data | AQ3: =COUNTA(L123:L151) -> 29 | AU3: Total Sequences in Block Data | AV3: =COUNTA(L152:L180) -> 29
P4: Total Sequences in Summary | Q4: =SUM(O7:O38) -> 174 | V4: Total Sequences in Block Summary | W4: =SUM(U7:U38) -> 29 | AA4: Total Sequences in Block Summary | AB4: =SUM(Z7:Z38) -> 29 | AF4: Total Sequences in Block Summary | AG4: =SUM(AE7:AE38) -> 29 | AK4: Total Sequences in Block Summary | AL4: =SUM(AJ7:AJ38) -> 29 | AP4: Total Sequences in Block Summary | AQ4: =SUM(AO7:AO38) -> 29 | AU4: Total Sequences in Block Summary | AV4: =SUM(AT7:AT38) -> 29
T5: Block 1 | Y5: Block 2 | AD5: Block 3 | AI5: Block 4 | AN5: Block 5 | AS5: Block 6
A6: Sequence Component 1 | B6: Time 1 | C6: Sequence Component 2 | D6: Time 2 | E6: Sequence Component 3 | F6: Time 3 | G6: Sequence Component 4 | H6: Time 4 | I6: Sequence Component 5 | J6: Time 5 | K6: Correct? 0=No 1=Yes | L6: Sequence | N6: Frequency | P6: Relative Frequency | Q6: Variability | T6: Frequency | V6: Relative Frequency | W6: Variability | Y6: Frequency | AA6: Relative Frequency | AB6: Variability | AD6: Frequency | AF6: Relative Frequency | AG6: Variability | AI6: Frequency | AK6: Relative Frequency | AL6: Variability | AN6: Frequency | AP6: Relative Frequency | AQ6: Variability | AS6: Frequency | AU6: Relative Frequency | AV6: Variability
A7: 12 | B7: 9 | C7: 24 | D7: 17 | E7: 24 | F7: 28 | G7: 23 | H7: 38 | I7: 24 | J7: 48 | K7: 0 | L7: 12222 | N7: 11111 | O7: =COUNTIF($L$7:$L$500,N7) -> 14 | P7: =O7/$Q$4 -> 0.08045977011 | Q7: =IF(P7=0,0,(P7*((LOG(P7))/LOG(2)))) -> -0.2925186209 | T7: =N7 -> 11111 | U7: =COUNTIF(L7:L35,T7) -> 0 | V7: =U7/(W4-U25) -> 0 | W7: =IF(V7=0,0,(V7*((LOG(V7))/LOG(2)))) -> 0 | Y7: =N7 -> 11111 | Z7: =COUNTIF(L36:L64,Y7) -> 0 | AA7: =Z7/(AB4-Z25) -> 0 | AB7: =IF(AA7=0,0,(AA7*((LOG(AA7))/LOG(2)))) -> 0 | AD7: =N7 -> 11111 | AE7: =COUNTIF(L65:L93,AD7) -> 1 | AF7: =AE7/(AG4-AE25) -> 0.03448275862 | AG7: =IF(AF7=0,0,(AF7*((LOG(AF7))/LOG(2)))) -> -0.167516586 | AI7: =N7 -> 11111 | AJ7: =COUNTIF(L94:L122,AI7) -> 10 | AK7: =AJ7/(AL4-AJ25) -> 0.3448275862 | AL7: =IF(AK7=0,0,(AK7*((LOG(AK7))/LOG(2)))) -> -0.5296734139 | AN7: =N7 -> 11111 | AO7: =COUNTIF(L123:L151,AN7) -> 1 | AP7: =AO7/(AQ4-AO25) -> 0.03448275862 | AQ7: =IF(AP7=0,0,(AP7*((LOG(AP7))/LOG(2)))) -> -0.167516586 | AS7: =N7 -> 11111 | AT7: =COUNTIF(L152:L180,AS7) -> 2 | AU7: =AT7/(AV4-AT25) -> 0.06896551724 | AV7: =IF(AU7=0,0,(AU7*((LOG(AU7))/LOG(2)))) -> -0.2660676548
A8: 12 | B8: 145 | C8: 24 | D8: 153 | E8: 24 | F8: 162 | G8: 23 | H8: 169 | I8: 24 | J8: 177 | K8: 0 | L8: 12222 | N8: 11112 | O8: =COUNTIF($L$7:$L$500,N8) -> 12 | P8: =O8/$Q$4 -> 0.06896551724 | Q8: =IF(P8=0,0,(P8*((LOG(P8))/LOG(2)))) -> -0.2660676548 | T8: =N8 -> 11112 | U8: =COUNTIF(L7:L35,T8) -> 0 | V8: =U8/(W4-U25) -> 0 | W8: =IF(V8=0,0,(V8*((LOG(V8))/LOG(2)))) -> 0 | Y8: =N8 -> 11112 | Z8: =COUNTIF(L36:L64,Y8) -> 0 | AA8: =Z8/(AB4-Z25) -> 0 | AB8: =IF(AA8=0,0,(AA8*((LOG(AA8))/LOG(2)))) -> 0 | AD8: =N8 -> 11112 | AE8: =COUNTIF(L65:L93,AD8) -> 9 | AF8: =AE8/(AG4-AE25) -> 0.3103448276 | AG8: =IF(AF8=0,0,(AF8*((LOG(AF8))/LOG(2)))) -> -0.5238794463 | AI8: =N8 -> 11112 | AJ8: =COUNTIF(L94:L122,AI8) -> 3 | AK8: =AJ8/(AL4-AJ25) -> 0.1034482759 | AL8: =IF(AK8=0,0,(AK8*((LOG(AK8))/LOG(2)))) -> -0.3385881201 | AN8: =N8 -> 11112 | AO8: =COUNTIF(L123:L151,AN8) -> 0 | AP8: =AO8/(AQ4-AO25) -> 0 | AQ8: =IF(AP8=0,0,(AP8*((LOG(AP8))/LOG(2)))) -> 0 | AS8: =N8 -> 11112 | AT8: =COUNTIF(L152:L180,AS8) -> 0 | AU8: =AT8/(AV4-AT25) -> 0 | AV8: =IF(AU8=0,0,(AU8*((LOG(AU8))/LOG(2)))) -> 0
A9: 12 | B9: 275 | C9: 24 | D9: 283 | E9: 24 | F9: 295 | G9: 23 | H9: 303 | I9: 13 | J9: 312 | K9: 0 | L9: 12221 | N9: 11121 | O9: =COUNTIF($L$7:$L$500,N9) -> 6 | P9: =O9/$Q$4 -> 0.03448275862 | Q9: =IF(P9=0,0,(P9*((LOG(P9))/LOG(2)))) -> -0.167516586 | T9: =N9 -> 11121 | U9: =COUNTIF(L7:L35,T9) -> 0 | V9: =U9/(W4-U25) -> 0 | W9: =IF(V9=0,0,(V9*((LOG(V9))/LOG(2)))) -> 0 | Y9: =N9 -> 11121 | Z9: =COUNTIF(L36:L64,Y9) -> 3 | AA9: =Z9/(AB4-Z25) -> 0.1034482759 | AB9: =IF(AA9=0,0,(AA9*((LOG(AA9))/LOG(2)))) -> -0.3385881201 | AD9: =N9 -> 11121 | AE9: =COUNTIF(L65:L93,AD9) -> 1 | AF9: =AE9/(AG4-AE25) -> 0.03448275862 | AG9: =IF(AF9=0,0,(AF9*((LOG(AF9))/LOG(2)))) -> -0.167516586 | AI9: =N9 -> 11121 | AJ9: =COUNTIF(L94:L122,AI9) -> 1 | AK9: =AJ9/(AL4-AJ25) -> 0.03448275862 | AL9: =IF(AK9=0,0,(AK9*((LOG(AK9))/LOG(2)))) -> -0.167516586 | AN9: =N9 -> 11121 | AO9: =COUNTIF(L123:L151,AN9) -> 1 | AP9: =AO9/(AQ4-AO25) -> 0.03448275862 | AQ9: =IF(AP9=0,0,(AP9*((LOG(AP9))/LOG(2)))) -> -0.167516586 | AS9: =N9 -> 11121 | AT9: =COUNTIF(L152:L180,AS9) -> 0 | AU9: =AT9/(AV4-AT25) -> 0 | AV9: =IF(AU9=0,0,(AU9*((LOG(AU9))/LOG(2)))) -> 0
A10: 12 | B10: 409 | C10: 24 | D10: 417 | E10: 24 | F10: 426 | G10: 14 | H10: 441 | I10: 13 | J10: 450 | K10: 0 | L10: 12211 | N10: 11122 | O10: =COUNTIF($L$7:$L$500,N10) -> 26 | P10: =O10/$Q$4 -> 0.1494252874 | Q10: =IF(P10=0,0,(P10*((LOG(P10))/LOG(2)))) -> -0.4097994151 | T10: =N10 -> 11122 | U10: =COUNTIF(L7:L35,T10) -> 1 | V10: =U10/(W4-U25) -> 0.03448275862 | W10: =IF(V10=0,0,(V10*((LOG(V10))/LOG(2)))) -> -0.167516586 | Y10: =N10 -> 11122 | Z10: =COUNTIF(L36:L64,Y10) -> 9 | AA10: =Z10/(AB4-Z25) -> 0.3103448276 | AB10: =IF(AA10=0,0,(AA10*((LOG(AA10))/LOG(2)))) -> -0.5238794463 | AD10: =N10 -> 11122 | AE10: =COUNTIF(L65:L93,AD10) -> 14 | AF10: =AE10/(AG4-AE25) -> 0.4827586207 | AG10: =IF(AF10=0,0,(AF10*((LOG(AF10))/LOG(2)))) -> -0.5071987939 | AI10: =N10 -> 11122 | AJ10: =COUNTIF(L94:L122,AI10) -> 1 | AK10: =AJ10/(AL4-AJ25) -> 0.03448275862 | AL10: =IF(AK10=0,0,(AK10*((LOG(AK10))/LOG(2)))) -> -0.167516586 | AN10: =N10 -> 11122 | AO10: =COUNTIF(L123:L151,AN10) -> 1 | AP10: =AO10/(AQ4-AO25) -> 0.03448275862 | AQ10: =IF(AP10=0,0,(AP10*((LOG(AP10))/LOG(2)))) -> -0.167516586 | AS10: =N10 -> 11122 | AT10: =COUNTIF(L152:L180,AS10) -> 0 | AU10: =AT10/(AV4-AT25) -> 0 | AV10: =IF(AU10=0,0,(AU10*((LOG(AU10))/LOG(2)))) -> 0
A11: 12 | B11: 547 | C11: 24 | D11: 555 | E11: 24 | F11: 562 | G11: 14 | H11: 575 | I11: 24 | J11: 587 | K11: 1 | L11: 12212 | N11: 11211 | O11: =COUNTIF($L$7:$L$500,N11) -> 1 | P11: =O11/$Q$4 -> 0.005747126437 | Q11: =IF(P11=0,0,(P11*((LOG(P11))/LOG(2)))) -> -0.04277553733 | T11: =N11 -> 11211 | U11: =COUNTIF(L7:L35,T11) -> 0 | V11: =U11/(W4-U25) -> 0 | W11: =IF(V11=0,0,(V11*((LOG(V11))/LOG(2)))) -> 0 | Y11: =N11 -> 11211 | Z11: =COUNTIF(L36:L64,Y11) -> 0 | AA11: =Z11/(AB4-Z25) -> 0 | AB11: =IF(AA11=0,0,(AA11*((LOG(AA11))/LOG(2)))) -> 0 | AD11: =N11 -> 11211 | AE11: =COUNTIF(L65:L93,AD11) -> 0 | AF11: =AE11/(AG4-AE25) -> 0 | AG11: =IF(AF11=0,0,(AF11*((LOG(AF11))/LOG(2)))) -> 0 | AI11: =N11 -> 11211 | AJ11: =COUNTIF(L94:L122,AI11) -> 1 | AK11: =AJ11/(AL4-AJ25) -> 0.03448275862 | AL11: =IF(AK11=0,0,(AK11*((LOG(AK11))/LOG(2)))) -> -0.167516586 | AN11: =N11 -> 11211 | AO11: =COUNTIF(L123:L151,AN11) -> 0 | AP11: =AO11/(AQ4-AO25) -> 0 | AQ11: =IF(AP11=0,0,(AP11*((LOG(AP11))/LOG(2)))) -> 0 | AS11: =N11 -> 11211 | AT11: =COUNTIF(L152:L180,AS11) -> 0 | AU11: =AT11/(AV4-AT25) -> 0 | AV11: =IF(AU11=0,0,(AU11*((LOG(AU11))/LOG(2)))) -> 0
A12: 12 | B12: 681 | C12: 24 | D12: 690 | E12: 24 | F12: 702 | G12: 14 | H12: 710 | I12: 13 | J12: 718 | K12: 0 | L12: 12211 | N12: 11212 | O12: =COUNTIF($L$7:$L$500,N12) -> 9 | P12: =O12/$Q$4 -> 0.05172413793 | Q12: =IF(P12=0,0,(P12*((LOG(P12))/LOG(2)))) -> -0.221018198 | T12: =N12 -> 11212 | U12: =COUNTIF(L7:L35,T12) -> 5 | V12: =U12/(W4-U25) -> 0.1724137931 | W12: =IF(V12=0,0,(V12*((LOG(V12))/LOG(2)))) -> -0.4372505 | Y12: =N12 -> 11212 | Z12: =COUNTIF(L36:L64,Y12) -> 4 | AA12: =Z12/(AB4-Z25) -> 0.1379310345 | AB12: =IF(AA12=0,0,(AA12*((LOG(AA12))/LOG(2)))) -> -0.3942042752 | AD12: =N12 -> 11212 | AE12: =COUNTIF(L65:L93,AD12) -> 0 | AF12: =AE12/(AG4-AE25) -> 0 | AG12: =IF(AF12=0,0,(AF12*((LOG(AF12))/LOG(2)))) -> 0 | AI12: =N12 -> 11212 | AJ12: =COUNTIF(L94:L122,AI12) -> 0 | AK12: =AJ12/(AL4-AJ25) -> 0 | AL12: =IF(AK12=0,0,(AK12*((LOG(AK12))/LOG(2)))) -> 0 | AN12: =N12 -> 11212 | AO12: =COUNTIF(L123:L151,AN12) -> 0 | AP12: =AO12/(AQ4-AO25) -> 0 | AQ12: =IF(AP12=0,0,(AP12*((LOG(AP12))/LOG(2)))) -> 0 | AS12: =N12 -> 11212 | AT12: =COUNTIF(L152:L180,AS12) -> 0 | AU12: =AT12/(AV4-AT25) -> 0 | AV12: =IF(AU12=0,0,(AU12*((LOG(AU12))/LOG(2)))) -> 0
A13: 12 | B13: 814 | C13: 24 | D13: 824 | E13: 24 | F13: 835 | G13: 14 | H13: 845 | I13: 24 | J13: 856 | K13: 0 | L13: 12212 | N13: 11221 | O13: =COUNTIF($L$7:$L$500,N13) -> 20 | P13: =O13/$Q$4 -> 0.1149425287 | Q13: =IF(P13=0,0,(P13*((LOG(P13))/LOG(2)))) -> -0.3587374024 | T13: =N13 -> 11221 | U13: =COUNTIF(L7:L35,T13) -> 6 | V13: =U13/(W4-U25) -> 0.2068965517 | W13: =IF(V13=0,0,(V13*((LOG(V13))/LOG(2)))) -> -0.4702796885 | Y13: =N13 -> 11221 | Z13: =COUNTIF(L36:L64,Y13) -> 11 | AA13: =Z13/(AB4-Z25) -> 0.3793103448 | AB13: =IF(AA13=0,0,(AA13*((LOG(AA13))/LOG(2)))) -> -0.5304842463 | AD13: =N13 -> 11221 | AE13: =COUNTIF(L65:L93,AD13) -> 1 | AF13: =AE13/(AG4-AE25) -> 0.03448275862 | AG13: =IF(AF13=0,0,(AF13*((LOG(AF13))/LOG(2)))) -> -0.167516586 | AI13: =N13 -> 11221 | AJ13: =COUNTIF(L94:L122,AI13) -> 2 | AK13: =AJ13/(AL4-AJ25) -> 0.06896551724 | AL13: =IF(AK13=0,0,(AK13*((LOG(AK13))/LOG(2)))) -> -0.2660676548 | AN13: =N13 -> 11221 | AO13: =COUNTIF(L123:L151,AN13) -> 0 | AP13: =AO13/(AQ4-AO25) -> 0 | AQ13: =IF(AP13=0,0,(AP13*((LOG(AP13))/LOG(2)))) -> 0 | AS13: =N13 -> 11221 | AT13: =COUNTIF(L152:L180,AS13) -> 0 | AU13: =AT13/(AV4-AT25) -> 0 | AV13: =IF(AU13=0,0,(AU13*((LOG(AU13))/LOG(2)))) -> 0
A14: 12 | B14: 954 | C14: 24 | D14: 963 | E14: 24 | F14: 970 | G14: 23 | H14: 978 | I14: 13 | J14: 995 | K14: 0 | L14: 12221 | N14: 11222 | O14: =COUNTIF($L$7:$L$500,N14) -> 7 | P14: =O14/$Q$4 -> 0.04022988506 | Q14: =IF(P14=0,0,(P14*((LOG(P14))/LOG(2)))) -> -0.1864891955 | T14: =N14 -> 11222 | U14: =COUNTIF(L7:L35,T14) -> 3 | V14: =U14/(W4-U25) -> 0.1034482759 | W14: =IF(V14=0,0,(V14*((LOG(V14))/LOG(2)))) -> -0.3385881201 | Y14: =N14 -> 11222 | Z14: =COUNTIF(L36:L64,Y14) -> 1 | AA14: =Z14/(AB4-Z25) -> 0.03448275862 | AB14: =IF(AA14=0,0,(AA14*((LOG(AA14))/LOG(2)))) -> -0.167516586 | AD14: =N14 -> 11222 | AE14: =COUNTIF(L65:L93,AD14) -> 1 | AF14: =AE14/(AG4-AE25) -> 0.03448275862 | AG14: =IF(AF14=0,0,(AF14*((LOG(AF14))/LOG(2)))) -> -0.167516586 | AI14: =N14 -> 11222 | AJ14: =COUNTIF(L94:L122,AI14) -> 2 | AK14: =AJ14/(AL4-AJ25) -> 0.06896551724 | AL14: =IF(AK14=0,0,(AK14*((LOG(AK14))/LOG(2)))) -> -0.2660676548 | AN14: =N14 -> 11222 | AO14: =COUNTIF(L123:L151,AN14) -> 0 | AP14: =AO14/(AQ4-AO25) -> 0 | AQ14: =IF(AP14=0,0,(AP14*((LOG(AP14))/LOG(2)))) -> 0 | AS14: =N14 -> 11222 | AT14: =COUNTIF(L152:L180,AS14) -> 0 | AU14: =AT14/(AV4-AT25) -> 0 | AV14: =IF(AU14=0,0,(AU14*((LOG(AU14))/LOG(2)))) -> 0
A15: 12 | B15: 1093 | C15: 24 | D15: 1102 | E15: 13 | F15: 1112 | G15: 23 | H15: 1124 | I15: 24 | J15: 1132 | K15: 0 | L15: 12122 | N15: 12111 | O15: =COUNTIF($L$7:$L$500,N15) -> 2 | P15: =O15/$Q$4 -> 0.01149425287 | Q15: =IF(P15=0,0,(P15*((LOG(P15))/LOG(2)))) -> -0.07405682179 | T15: =N15 -> 12111 | U15: =COUNTIF(L7:L35,T15) -> 1 | V15: =U15/(W4-U25) -> 0.03448275862 | W15: =IF(V15=0,0,(V15*((LOG(V15))/LOG(2)))) -> -0.167516586 | Y15: =N15 -> 12111 | Z15: =COUNTIF(L36:L64,Y15) -> 0 | AA15: =Z15/(AB4-Z25) -> 0 | AB15: =IF(AA15=0,0,(AA15*((LOG(AA15))/LOG(2)))) -> 0 | AD15: =N15 -> 12111 | AE15: =COUNTIF(L65:L93,AD15) -> 0 | AF15: =AE15/(AG4-AE25) -> 0 | AG15: =IF(AF15=0,0,(AF15*((LOG(AF15))/LOG(2)))) -> 0 | AI15: =N15 -> 12111 | AJ15: =COUNTIF(L94:L122,AI15) -> 0 | AK15: =AJ15/(AL4-AJ25) -> 0 | AL15: =IF(AK15=0,0,(AK15*((LOG(AK15))/LOG(2)))) -> 0 | AN15: =N15 -> 12111 | AO15: =COUNTIF(L123:L151,AN15) -> 1 | AP15: =AO15/(AQ4-AO25) -> 0.03448275862 | AQ15: =IF(AP15=0,0,(AP15*((LOG(AP15))/LOG(2)))) -> -0.167516586 | AS15: =N15 -> 12111 | AT15: =COUNTIF(L152:L180,AS15) -> 0 | AU15: =AT15/(AV4-AT25) -> 0 | AV15: =IF(AU15=0,0,(AU15*((LOG(AU15))/LOG(2)))) -> 0
A16: 12 | B16: 1230 | C16: 24 | D16: 1238 | E16: 13 | F16: 1247 | G16: 23 | H16: 1255 | I16: 24 | J16: 1267 | K16: 0 | L16: 12122 | N16: 12112 | O16: =COUNTIF($L$7:$L$500,N16) -> 0 | P16: =O16/$Q$4 -> 0 | Q16: =IF(P16=0,0,(P16*((LOG(P16))/LOG(2)))) -> 0 | T16: =N16 -> 12112 | U16: =COUNTIF(L7:L35,T16) -> 0 | V16: =U16/(W4-U25) -> 0 | W16: =IF(V16=0,0,(V16*((LOG(V16))/LOG(2)))) -> 0 | Y16: =N16 -> 12112 | Z16: =COUNTIF(L36:L64,Y16) -> 0 | AA16: =Z16/(AB4-Z25) -> 0 | AB16: =IF(AA16=0,0,(AA16*((LOG(AA16))/LOG(2)))) -> 0 | AD16: =N16 -> 12112 | AE16: =COUNTIF(L65:L93,AD16) -> 0 | AF16: =AE16/(AG4-AE25) -> 0 | AG16: =IF(AF16=0,0,(AF16*((LOG(AF16))/LOG(2)))) -> 0 | AI16: =N16 -> 12112 | AJ16: =COUNTIF(L94:L122,AI16) -> 0 | AK16: =AJ16/(AL4-AJ25) -> 0 | AL16: =IF(AK16=0,0,(AK16*((LOG(AK16))/LOG(2)))) -> 0 | AN16: =N16 -> 12112 | AO16: =COUNTIF(L123:L151,AN16) -> 0 | AP16: =AO16/(AQ4-AO25) -> 0 | AQ16: =IF(AP16=0,0,(AP16*((LOG(AP16))/LOG(2)))) -> 0 | AS16: =N16 -> 12112 | AT16: =COUNTIF(L152:L180,AS16) -> 0 | AU16: =AT16/(AV4-AT25) -> 0 | AV16: =IF(AU16=0,0,(AU16*((LOG(AU16))/LOG(2)))) -> 0
A17: 12 | B17: 1364 | C17: 24 | D17: 1374 | E17: 24 | F17: 1380 | G17: 14 | H17: 1388 | I17: 24 | J17: 1396 | K17: 1 | L17: 12212 | N17: 12121 | O17: =COUNTIF($L$7:$L$500,N17) -> 2 | P17: =O17/$Q$4 -> 0.01149425287 | Q17: =IF(P17=0,0,(P17*((LOG(P17))/LOG(2)))) -> -0.07405682179 | T17: =N17 -> 12121 | U17: =COUNTIF(L7:L35,T17) -> 0 | V17: =U17/(W4-U25) -> 0 | W17: =IF(V17=0,0,(V17*((LOG(V17))/LOG(2)))) -> 0 | Y17: =N17 -> 12121 | Z17: =COUNTIF(L36:L64,Y17) -> 0 | AA17: =Z17/(AB4-Z25) -> 0 | AB17: =IF(AA17=0,0,(AA17*((LOG(AA17))/LOG(2)))) -> 0 | AD17: =N17 -> 12121 | AE17: =COUNTIF(L65:L93,AD17) -> 0 | AF17: =AE17/(AG4-AE25) -> 0 | AG17: =IF(AF17=0,0,(AF17*((LOG(AF17))/LOG(2)))) -> 0 | AI17: =N17 -> 12121 | AJ17: =COUNTIF(L94:L122,AI17) -> 0 | AK17: =AJ17/(AL4-AJ25) -> 0 | AL17: =IF(AK17=0,0,(AK17*((LOG(AK17))/LOG(2)))) -> 0 | AN17: =N17 -> 12121 | AO17: =COUNTIF(L123:L151,AN17) -> 0 | AP17: =AO17/(AQ4-AO25) -> 0 | AQ17: =IF(AP17=0,0,(AP17*((LOG(AP17))/LOG(2)))) -> 0 | AS17: =N17 -> 12121 | AT17: =COUNTIF(L152:L180,AS17) -> 2 | AU17: =AT17/(AV4-AT25) -> 0.06896551724 | AV17: =IF(AU17=0,0,(AU17*((LOG(AU17))/LOG(2)))) -> -0.2660676548
A18: 12 | B18: 1492 | C18: 24 | D18: 1501 | E18: 13 | F18: 1510 | G18: 14 | H18: 1536 | I18: 13 | J18: 1568 | K18: 0 | L18: 12111 | N18: 12122 | O18: =COUNTIF($L$7:$L$500,N18) -> 4 | P18: =O18/$Q$4 -> 0.02298850575 | Q18: =IF(P18=0,0,(P18*((LOG(P18))/LOG(2)))) -> -0.1251251378 | T18: =N18 -> 12122 | U18: =COUNTIF(L7:L35,T18) -> 3 | V18: =U18/(W4-U25) -> 0.1034482759 | W18: =IF(V18=0,0,(V18*((LOG(V18))/LOG(2)))) -> -0.3385881201 | Y18: =N18 -> 12122 | Z18: =COUNTIF(L36:L64,Y18) -> 0 | AA18: =Z18/(AB4-Z25) -> 0 | AB18: =IF(AA18=0,0,(AA18*((LOG(AA18))/LOG(2)))) -> 0 | AD18: =N18 -> 12122 | AE18: =COUNTIF(L65:L93,AD18) -> 0 | AF18: =AE18/(AG4-AE25) -> 0 | AG18: =IF(AF18=0,0,(AF18*((LOG(AF18))/LOG(2)))) -> 0 | AI18: =N18 -> 12122 | AJ18: =COUNTIF(L94:L122,AI18) -> 0 | AK18: =AJ18/(AL4-AJ25) -> 0 | AL18: =IF(AK18=0,0,(AK18*((LOG(AK18))/LOG(2)))) -> 0 | AN18: =N18 -> 12122 | AO18: =COUNTIF(L123:L151,AN18) -> 0 | AP18: =AO18/(AQ4-AO25) -> 0 | AQ18: =IF(AP18=0,0,(AP18*((LOG(AP18))/LOG(2)))) -> 0 | AS18: =N18 -> 12122 | AT18: =COUNTIF(L152:L180,AS18) -> 1 | AU18: =AT18/(AV4-AT25) -> 0.03448275862 | AV18: =IF(AU18=0,0,(AU18*((LOG(AU18))/LOG(2)))) -> -0.167516586
A19: 12 | B19: 1664 | C19: 13 | D19: 1681 | E19: 24 | F19: 1689 | G19: 14 | H19: 1700 | I19: 24 | J19: 1708 | K19: 1 | L19: 11212 | N19: 12211 | O19: =COUNTIF($L$7:$L$500,N19) -> 2 | P19: =O19/$Q$4 -> 0.01149425287 | Q19: =IF(P19=0,0,(P19*((LOG(P19))/LOG(2)))) -> -0.07405682179 | T19: =N19 -> 12211 | U19: =COUNTIF(L7:L35,T19) -> 2 | V19: =U19/(W4-U25) -> 0.06896551724 | W19: =IF(V19=0,0,(V19*((LOG(V19))/LOG(2)))) -> -0.2660676548 | Y19: =N19 -> 12211 | Z19: =COUNTIF(L36:L64,Y19) -> 0 | AA19: =Z19/(AB4-Z25) -> 0 | AB19: =IF(AA19=0,0,(AA19*((LOG(AA19))/LOG(2)))) -> 0 | AD19: =N19 -> 12211 | AE19: =COUNTIF(L65:L93,AD19) -> 0 | AF19: =AE19/(AG4-AE25) -> 0 | AG19: =IF(AF19=0,0,(AF19*((LOG(AF19))/LOG(2)))) -> 0 | AI19: =N19 -> 12211 | AJ19: =COUNTIF(L94:L122,AI19) -> 0 | AK19: =AJ19/(AL4-AJ25) -> 0 | AL19: =IF(AK19=0,0,(AK19*((LOG(AK19))/LOG(2)))) -> 0 | AN19: =N19 -> 12211 | AO19: =COUNTIF(L123:L151,AN19) -> 0 | AP19: =AO19/(AQ4-AO25) -> 0 | AQ19: =IF(AP19=0,0,(AP19*((LOG(AP19))/LOG(2)))) -> 0 | AS19: =N19 -> 12211 | AT19: =COUNTIF(L152:L180,AS19) -> 0 | AU19: =AT19/(AV4-AT25) -> 0 | AV19: =IF(AU19=0,0,(AU19*((LOG(AU19))/LOG(2)))) -> 0
A20: 12 | B20: 1802 | C20: 24 | D20: 1810 | E20: 24 | F20: 1816 | G20: 14 | H20: 1824 | I20: 24 | J20: 1836 | K20: 0 | L20: 12212 | N20: 12212 | O20: =COUNTIF($L$7:$L$500,N20) -> 6 | P20: =O20/$Q$4 -> 0.03448275862 | Q20: =IF(P20=0,0,(P20*((LOG(P20))/LOG(2)))) -> -0.167516586 | T20: =N20 -> 12212 | U20: =COUNTIF(L7:L35,T20) -> 4 | V20: =U20/(W4-U25) -> 0.1379310345 | W20: =IF(V20=0,0,(V20*((LOG(V20))/LOG(2)))) -> -0.3942042752 | Y20: =N20 -> 12212 | Z20: =COUNTIF(L36:L64,Y20) -> 1 | AA20: =Z20/(AB4-Z25) -> 0.03448275862 | AB20: =IF(AA20=0,0,(AA20*((LOG(AA20))/LOG(2)))) -> -0.167516586 | AD20: =N20 -> 12212 | AE20: =COUNTIF(L65:L93,AD20) -> 0 | AF20: =AE20/(AG4-AE25) -> 0 | AG20: =IF(AF20=0,0,(AF20*((LOG(AF20))/LOG(2)))) -> 0 | AI20: =N20 -> 12212 | AJ20: =COUNTIF(L94:L122,AI20) -> 0 | AK20: =AJ20/(AL4-AJ25) -> 0 | AL20: =IF(AK20=0,0,(AK20*((LOG(AK20))/LOG(2)))) -> 0 | AN20: =N20 -> 12212 | AO20: =COUNTIF(L123:L151,AN20) -> 1 | AP20: =AO20/(AQ4-AO25) -> 0.03448275862 | AQ20: =IF(AP20=0,0,(AP20*((LOG(AP20))/LOG(2)))) -> -0.167516586 | AS20: =N20 -> 12212 | AT20: =COUNTIF(L152:L180,AS20) -> 0 | AU20: =AT20/(AV4-AT25) -> 0 | AV20: =IF(AU20=0,0,(AU20*((LOG(AU20))/LOG(2)))) -> 0
A21: 12 | B21: 1936 | C21: 13 | D21: 1946 | E21: 24 | F21: 1954 | G21: 14 | H21: 1962 | I21: 24 | J21: 1970 | K21: 0 | L21: 11212 | N21: 12221 | O21: =COUNTIF($L$7:$L$500,N21) -> 3 | P21: =O21/$Q$4 -> 0.01724137931 | Q21: =IF(P21=0,0,(P21*((LOG(P21))/LOG(2)))) -> -0.1009996723 | T21: =N21 -> 12221 | U21: =COUNTIF(L7:L35,T21) -> 2 | V21: =U21/(W4-U25) -> 0.06896551724 | W21: =IF(V21=0,0,(V21*((LOG(V21))/LOG(2)))) -> -0.2660676548 | Y21: =N21 -> 12221 | Z21: =COUNTIF(L36:L64,Y21) -> 0 | AA21: =Z21/(AB4-Z25) -> 0 | AB21: =IF(AA21=0,0,(AA21*((LOG(AA21))/LOG(2)))) -> 0 | AD21: =N21 -> 12221 | AE21: =COUNTIF(L65:L93,AD21) -> 0 | AF21: =AE21/(AG4-AE25) -> 0 | AG21: =IF(AF21=0,0,(AF21*((LOG(AF21))/LOG(2)))) -> 0 | AI21: =N21 -> 12221 | AJ21: =COUNTIF(L94:L122,AI21) -> 0 | AK21: =AJ21/(AL4-AJ25) -> 0 | AL21: =IF(AK21=0,0,(AK21*((LOG(AK21))/LOG(2)))) -> 0 | AN21: =N21 -> 12221 | AO21: =COUNTIF(L123:L151,AN21) -> 0 | AP21: =AO21/(AQ4-AO25) -> 0 | AQ21: =IF(AP21=0,0,(AP21*((LOG(AP21))/LOG(2)))) -> 0 | AS21: =N21 -> 12221 | AT21: =COUNTIF(L152:L180,AS21) -> 1 | AU21: =AT21/(AV4-AT25) -> 0.03448275862 | AV21: =IF(AU21=0,0,(AU21*((LOG(AU21))/LOG(2)))) -> -0.167516586
A22: 12 | B22: 2069 | C22: 24 | D22: 2079 | E22: 13 | F22: 2088 | G22: 23 | H22: 2096 | I22: 24 | J22: 2105 | K22: 1 | L22: 12122 | N22: 12222 | O22: =COUNTIF($L$7:$L$500,N22) -> 2 | P22: =O22/$Q$4 -> 0.01149425287 | Q22: =IF(P22=0,0,(P22*((LOG(P22))/LOG(2)))) -> -0.07405682179 | T22: =N22 -> 12222 | U22: =COUNTIF(L7:L35,T22) -> 2 | V22: =U22/(W4-U25) -> 0.06896551724 | W22: =IF(V22=0,0,(V22*((LOG(V22))/LOG(2)))) -> -0.2660676548 | Y22: =N22 -> 12222 | Z22: =COUNTIF(L36:L64,Y22) -> 0 | AA22: =Z22/(AB4-Z25) -> 0 | AB22: =IF(AA22=0,0,(AA22*((LOG(AA22))/LOG(2)))) -> 0 | AD22: =N22 -> 12222 | AE22: =COUNTIF(L65:L93,AD22) -> 0 | AF22: =AE22/(AG4-AE25) -> 0 | AG22: =IF(AF22=0,0,(AF22*((LOG(AF22))/LOG(2)))) -> 0 | AI22: =N22 -> 12222 | AJ22: =COUNTIF(L94:L122,AI22) -> 0 | AK22: =AJ22/(AL4-AJ25) -> 0 | AL22: =IF(AK22=0,0,(AK22*((LOG(AK22))/LOG(2)))) -> 0 | AN22: =N22 -> 12222 | AO22: =COUNTIF(L123:L151,AN22) -> 0 | AP22: =AO22/(AQ4-AO25) -> 0 | AQ22: =IF(AP22=0,0,(AP22*((LOG(AP22))/LOG(2)))) -> 0 | AS22: =N22 -> 12222 | AT22: =COUNTIF(L152:L180,AS22) -> 0 | AU22: =AT22/(AV4-AT25) -> 0 | AV22: =IF(AU22=0,0,(AU22*((LOG(AU22))/LOG(2)))) -> 0
A23: 12 | B23: 2197 | C23: 13 | D23: 2211 | E23: 24 | F23: 2219 | G23: 23 | H23: 2226 | I23: 13 | J23: 2237 | K23: 0 | L23: 11221 | N23: 21111 | O23: =COUNTIF($L$7:$L$500,N23) -> 6 | P23: =O23/$Q$4 -> 0.03448275862 | Q23: =IF(P23=0,0,(P23*((LOG(P23))/LOG(2)))) -> -0.167516586 | T23: =N23 -> 21111 | U23: =COUNTIF(L7:L35,T23) -> 0 | V23: =U23/(W4-U25) -> 0 | W23: =IF(V23=0,0,(V23*((LOG(V23))/LOG(2)))) -> 0 | Y23: =N23 -> 21111 | Z23: =COUNTIF(L36:L64,Y23) -> 0 | AA23: =Z23/(AB4-Z25) -> 0 | AB23: =IF(AA23=0,0,(AA23*((LOG(AA23))/LOG(2)))) -> 0 | AD23: =N23 -> 21111 | AE23: =COUNTIF(L65:L93,AD23) -> 0 | AF23: =AE23/(AG4-AE25) -> 0 | AG23: =IF(AF23=0,0,(AF23*((LOG(AF23))/LOG(2)))) -> 0 | AI23: =N23 -> 21111 | AJ23: =COUNTIF(L94:L122,AI23) -> 3 | AK23: =AJ23/(AL4-AJ25) -> 0.1034482759 | AL23: =IF(AK23=0,0,(AK23*((LOG(AK23))/LOG(2)))) -> -0.3385881201 | AN23: =N23 -> 21111 | AO23: =COUNTIF(L123:L151,AN23) -> 3 | AP23: =AO23/(AQ4-AO25) -> 0.1034482759 | AQ23: =IF(AP23=0,0,(AP23*((LOG(AP23))/LOG(2)))) -> -0.3385881201 | AS23: =N23 -> 21111 | AT23: =COUNTIF(L152:L180,AS23) -> 0 | AU23: =AT23/(AV4-AT25) -> 0 | AV23: =IF(AU23=0,0,(AU23*((LOG(AU23))/LOG(2)))) -> 0
A24: 12 | B24: 2333 | C24: 13 | D24: 2341 | E24: 24 | F24: 2350 | G24: 14 | H24: 2358 | I24: 24 | J24: 2367 | K24: 0 | L24: 11212 | N24: 21112 | O24: =COUNTIF($L$7:$L$500,N24) -> 3 | P24: =O24/$Q$4 -> 0.01724137931 | Q24: =IF(P24=0,0,(P24*((LOG(P24))/LOG(2)))) -> -0.1009996723 | T24: =N24 -> 21112 | U24: =COUNTIF(L7:L35,T24) -> 0 | V24: =U24/(W4-U25) -> 0 | W24: =IF(V24=0,0,(V24*((LOG(V24))/LOG(2)))) -> 0 | Y24: =N24 -> 21112 | Z24: =COUNTIF(L36:L64,Y24) -> 0 | AA24: =Z24/(AB4-Z25) -> 0 | AB24: =IF(AA24=0,0,(AA24*((LOG(AA24))/LOG(2)))) -> 0 | AD24: =N24 -> 21112 | AE24: =COUNTIF(L65:L93,AD24) -> 0 | AF24: =AE24/(AG4-AE25) -> 0 | AG24: =IF(AF24=0,0,(AF24*((LOG(AF24))/LOG(2)))) -> 0 | AI24: =N24 -> 21112 | AJ24: =COUNTIF(L94:L122,AI24) -> 2 | AK24: =AJ24/(AL4-AJ25) -> 0.06896551724 | AL24: =IF(AK24=0,0,(AK24*((LOG(AK24))/LOG(2)))) -> -0.2660676548 | AN24: =N24 -> 21112 | AO24: =COUNTIF(L123:L151,AN24) -> 1 | AP24: =AO24/(AQ4-AO25) -> 0.03448275862 | AQ24: =IF(AP24=0,0,(AP24*((LOG(AP24))/LOG(2)))) -> -0.167516586 | AS24: =N24 -> 21112 | AT24: =COUNTIF(L152:L180,AS24) -> 0 | AU24: =AT24/(AV4-AT25) -> 0 | AV24: =IF(AU24=0,0,(AU24*((LOG(AU24))/LOG(2)))) -> 0
A25: 12 | B25: 2465 | C25: 13 | D25: 2475 | E25: 24 | F25: 2488 | G25: 14 | H25: 2498 | I25: 24 | J25: 2505 | K25: 0 | L25: 11212 | N25: 21121 | O25: =COUNTIF($L$7:$L$500,N25) -> 0 | P25: =O25/$Q$4 -> 0 | Q25: =IF(P25=0,0,(P25*((LOG(P25))/LOG(2)))) -> 0 | T25: =N25 -> 21121 | U25: =COUNTIF(L7:L35,T25) -> 0 | Y25: =N25 -> 21121 | Z25: =COUNTIF(L36:L64,Y25) -> 0 | AD25: =N25 -> 21121 | AE25: =COUNTIF(L65:L93,AD25) -> 0 | AI25: =N25 -> 21121 | AJ25: =COUNTIF(L94:L122,AI25) -> 0 | AN25: =N25 -> 21121 | AO25: =COUNTIF(L123:L151,AN25) -> 0 | AS25: =N25 -> 21121 | AT25: =COUNTIF(L152:L180,AS25) -> 0
A26: 12 | B26: 2603 | C26: 13 | D26: 2612 | E26: 24 | F26: 2620 | G26: 23 | H26: 2627 | I26: 24 | J26: 2634 | K26: 1 | L26: 11222 | N26: 21122 | O26: =COUNTIF($L$7:$L$500,N26) -> 3 | P26: =O26/$Q$4 -> 0.01724137931 | Q26: =IF(P26=0,0,(P26*((LOG(P26))/LOG(2)))) -> -0.1009996723 | T26: =N26 -> 21122 | U26: =COUNTIF(L7:L35,T26) -> 0 | V26: =U26/(W4-U25) -> 0 | W26: =IF(V26=0,0,(V26*((LOG(V26))/LOG(2)))) -> 0 | Y26: =N26 -> 21122 | Z26: =COUNTIF(L36:L64,Y26) -> 0 | AA26: =Z26/(AB4-Z25) -> 0 | AB26: =IF(AA26=0,0,(AA26*((LOG(AA26))/LOG(2)))) -> 0 | AD26: =N26 -> 21122 | AE26: =COUNTIF(L65:L93,AD26) -> 1 | AF26: =AE26/(AG4-AE25) -> 0.03448275862 | AG26: =IF(AF26=0,0,(AF26*((LOG(AF26))/LOG(2)))) -> -0.167516586 | AI26: =N26 -> 21122 | AJ26: =COUNTIF(L94:L122,AI26) -> 1 | AK26: =AJ26/(AL4-AJ25) -> 0.03448275862 | AL26: =IF(AK26=0,0,(AK26*((LOG(AK26))/LOG(2)))) -> -0.167516586 | AN26: =N26 -> 21122 | AO26: =COUNTIF(L123:L151,AN26) -> 0 | AP26: =AO26/(AQ4-AO25) -> 0 | AQ26: =IF(AP26=0,0,(AP26*((LOG(AP26))/LOG(2)))) -> 0 | AS26: =N26 -> 21122 | AT26: =COUNTIF(L152:L180,AS26) -> 1 | AU26: =AT26/(AV4-AT25) -> 0.03448275862 | AV26: =IF(AU26=0,0,(AU26*((LOG(AU26))/LOG(2)))) -> -0.167516586
A27: 12 | B27: 2727 | C27: 13 | D27: 2732 | E27: 13 | F27: 2744 | G27: 23 | H27: 2752 | I27: 24 | J27: 2759 | K27: 0 | L27: 11122 | N27: 21211 | O27: =COUNTIF($L$7:$L$500,N27) -> 2 | P27: =O27/$Q$4 -> 0.01149425287 | Q27: =IF(P27=0,0,(P27*((LOG(P27))/LOG(2)))) -> -0.07405682179 | T27: =N27 -> 21211 | U27: =COUNTIF(L7:L35,T27) -> 0 | V27: =U27/(W4-U25) -> 0 | W27: =IF(V27=0,0,(V27*((LOG(V27))/LOG(2)))) -> 0 | Y27: =N27 -> 21211 | Z27: =COUNTIF(L36:L64,Y27) -> 0 | AA27: =Z27/(AB4-Z25) -> 0 | AB27: =IF(AA27=0,0,(AA27*((LOG(AA27))/LOG(2)))) -> 0 | AD27: =N27 -> 21211 | AE27: =COUNTIF(L65:L93,AD27) -> 0 | AF27: =AE27/(AG4-AE25) -> 0 | AG27: =IF(AF27=0,0,(AF27*((LOG(AF27))/LOG(2)))) -> 0 | AI27: =N27 -> 21211 | AJ27: =COUNTIF(L94:L122,AI27) -> 1 | AK27: =AJ27/(AL4-AJ25) -> 0.03448275862 | AL27: =IF(AK27=0,0,(AK27*((LOG(AK27))/LOG(2)))) -> -0.167516586 | AN27: =N27 -> 21211 | AO27: =COUNTIF(L123:L151,AN27) -> 0 | AP27: =AO27/(AQ4-AO25) -> 0 | AQ27: =IF(AP27=0,0,(AP27*((LOG(AP27))/LOG(2)))) -> 0 | AS27: =N27 -> 21211 | AT27: =COUNTIF(L152:L180,AS27) -> 1 | AU27: =AT27/(AV4-AT25) -> 0.03448275862 | AV27: =IF(AU27=0,0,(AU27*((LOG(AU27))/LOG(2)))) -> -0.167516586
A28: 12 | B28: 2859 | C28: 13 | D28: 2866 | E28: 24 | F28: 2874 | G28: 23 | H28: 2880 | I28: 13 | J28: 2888 | K28: 0 | L28: 11221 | N28: 21212 | O28: =COUNTIF($L$7:$L$500,N28) -> 12 | P28: =O28/$Q$4 -> 0.06896551724 | Q28: =IF(P28=0,0,(P28*((LOG(P28))/LOG(2)))) -> -0.2660676548 | T28: =N28 -> 21212 | U28: =COUNTIF(L7:L35,T28) -> 0 | V28: =U28/(W4-U25) -> 0 | W28: =IF(V28=0,0,(V28*((LOG(V28))/LOG(2)))) -> 0 | Y28: =N28 -> 21212 | Z28: =COUNTIF(L36:L64,Y28) -> 0 | AA28: =Z28/(AB4-Z25) -> 0 | AB28: =IF(AA28=0,0,(AA28*((LOG(AA28))/LOG(2)))) -> 0 | AD28: =N28 -> 21212 | AE28: =COUNTIF(L65:L93,AD28) -> 0 | AF28: =AE28/(AG4-AE25) -> 0 | AG28: =IF(AF28=0,0,(AF28*((LOG(AF28))/LOG(2)))) -> 0 | AI28: =N28 -> 21212 | AJ28: =COUNTIF(L94:L122,AI28) -> 0 | AK28: =AJ28/(AL4-AJ25) -> 0 | AL28: =IF(AK28=0,0,(AK28*((LOG(AK28))/LOG(2)))) -> 0 | AN28: =N28 -> 21212 | AO28: =COUNTIF(L123:L151,AN28) -> 5 | AP28: =AO28/(AQ4-AO25) -> 0.1724137931 | AQ28: =IF(AP28=0,0,(AP28*((LOG(AP28))/LOG(2)))) -> -0.4372505 | AS28: =N28 -> 21212 | AT28: =COUNTIF(L152:L180,AS28) -> 7 | AU28: =AT28/(AV4-AT25) -> 0.2413793103 | AV28: =IF(AU28=0,0,(AU28*((LOG(AU28))/LOG(2)))) -> -0.4949787073
A29: 12 | B29: 2988 | C29: 13 | D29: 2996 | E29: 24 | F29: 3005 | G29: 23 | H29: 3012 | I29: 13 | J29: 3022 | K29: 0 | L29: 11221 | N29: 21221 | O29: =COUNTIF($L$7:$L$500,N29) -> 8 | P29: =O29/$Q$4 -> 0.04597701149 | Q29: =IF(P29=0,0,(P29*((LOG(P29))/LOG(2)))) -> -0.2042732642 | T29: =N29 -> 21221 | U29: =COUNTIF(L7:L35,T29) -> 0 | V29: =U29/(W4-U25) -> 0 | W29: =IF(V29=0,0,(V29*((LOG(V29))/LOG(2)))) -> 0 | Y29: =N29 -> 21221 | Z29: =COUNTIF(L36:L64,Y29) -> 0 | AA29: =Z29/(AB4-Z25) -> 0 | AB29: =IF(AA29=0,0,(AA29*((LOG(AA29))/LOG(2)))) -> 0 | AD29: =N29 -> 21221 | AE29: =COUNTIF(L65:L93,AD29) -> 0 | AF29: =AE29/(AG4-AE25) -> 0 | AG29: =IF(AF29=0,0,(AF29*((LOG(AF29))/LOG(2)))) -> 0 | AI29: =N29 -> 21221 | AJ29: =COUNTIF(L94:L122,AI29) -> 1 | AK29: =AJ29/(AL4-AJ25) -> 0.03448275862 | AL29: =IF(AK29=0,0,(AK29*((LOG(AK29))/LOG(2)))) -> -0.167516586 | AN29: =N29 -> 21221 | AO29: =COUNTIF(L123:L151,AN29) -> 2 | AP29: =AO29/(AQ4-AO25) -> 0.06896551724 | AQ29: =IF(AP29=0,0,(AP29*((LOG(AP29))/LOG(2)))) -> -0.2660676548 | AS29: =N29 -> 21221 | AT29: =COUNTIF(L152:L180,AS29) -> 5 | AU29: =AT29/(AV4-AT25) -> 0.1724137931 | AV29: =IF(AU29=0,0,(AU29*((LOG(AU29))/LOG(2)))) -> -0.4372505
A30: 12 | B30: 3123 | C30: 13 | D30: 3132 | E30: 24 | F30: 3141 | G30: 23 | H30: 3151 | I30: 24 | J30: 3159 | K30: 0 | L30: 11222 | N30: 21222 | O30: =COUNTIF($L$7:$L$500,N30) -> 5 | P30: =O30/$Q$4 -> 0.02873563218 | Q30: =IF(P30=0,0,(P30*((LOG(P30))/LOG(2)))) -> -0.147155615 | T30: =N30 -> 21222 | U30: =COUNTIF(L7:L35,T30) -> 0 | V30: =U30/(W4-U25) -> 0 | W30: =IF(V30=0,0,(V30*((LOG(V30))/LOG(2)))) -> 0 | Y30: =N30 -> 21222 | Z30: =COUNTIF(L36:L64,Y30) -> 0 | AA30: =Z30/(AB4-Z25) -> 0 | AB30: =IF(AA30=0,0,(AA30*((LOG(AA30))/LOG(2)))) -> 0 | AD30: =N30 -> 21222 | AE30: =COUNTIF(L65:L93,AD30) -> 0 | AF30: =AE30/(AG4-AE25) -> 0 | AG30: =IF(AF30=0,0,(AF30*((LOG(AF30))/LOG(2)))) -> 0 | AI30: =N30 -> 21222 | AJ30: =COUNTIF(L94:L122,AI30) -> 0 | AK30: =AJ30/(AL4-AJ25) -> 0 | AL30: =IF(AK30=0,0,(AK30*((LOG(AK30))/LOG(2)))) -> 0 | AN30: =N30 -> 21222 | AO30: =COUNTIF(L123:L151,AN30) -> 3 | AP30: =AO30/(AQ4-AO25) -> 0.1034482759 | AQ30: =IF(AP30=0,0,(AP30*((LOG(AP30))/LOG(2)))) -> -0.3385881201 | AS30: =N30 -> 21222 | AT30: =COUNTIF(L152:L180,AS30) -> 2 | AU30: =AT30/(AV4-AT25) -> 0.06896551724 | AV30: =IF(AU30=0,0,(AU30*((LOG(AU30))/LOG(2)))) -> -0.2660676548
A31: 12 | B31: 3258 | C31: 13 | D31: 3266 | E31: 24 | F31: 3274 | G31: 23 | H31: 3280 | I31: 13 | J31: 3289 | K31: 1 | L31: 11221 | N31: 22111 | O31: =COUNTIF($L$7:$L$500,N31) -> 3 | P31: =O31/$Q$4 -> 0.01724137931 | Q31: =IF(P31=0,0,(P31*((LOG(P31))/LOG(2)))) -> -0.1009996723 | T31: =N31 -> 22111 | U31: =COUNTIF(L7:L35,T31) -> 0 | V31: =U31/(W4-U25) -> 0 | W31: =IF(V31=0,0,(V31*((LOG(V31))/LOG(2)))) -> 0 | Y31: =N31 -> 22111 | Z31: =COUNTIF(L36:L64,Y31) -> 0 | AA31: =Z31/(AB4-Z25) -> 0 | AB31: =IF(AA31=0,0,(AA31*((LOG(AA31))/LOG(2)))) -> 0 | AD31: =N31 -> 22111 | AE31: =COUNTIF(L65:L93,AD31) -> 0 | AF31: =AE31/(AG4-AE25) -> 0 | AG31: =IF(AF31=0,0,(AF31*((LOG(AF31))/LOG(2)))) -> 0 | AI31: =N31 -> 22111 | AJ31: =COUNTIF(L94:L122,AI31) -> 1 | AK31: =AJ31/(AL4-AJ25) -> 0.03448275862 | AL31: =IF(AK31=0,0,(AK31*((LOG(AK31))/LOG(2)))) -> -0.167516586 | AN31: =N31 -> 22111 | AO31: =COUNTIF(L123:L151,AN31) -> 2 | AP31: =AO31/(AQ4-AO25) -> 0.06896551724 | AQ31: =IF(AP31=0,0,(AP31*((LOG(AP31))/LOG(2)))) -> -0.2660676548 | AS31: =N31 -> 22111 | AT31: =COUNTIF(L152:L180,AS31) -> 0 | AU31: =AT31/(AV4-AT25) -> 0 | AV31: =IF(AU31=0,0,(AU31*((LOG(AU31))/LOG(2)))) -> 0
A32: 12 | B32: 3382 | C32: 13 | D32: 3390 | E32: 24 | F32: 3400 | G32: 23 | H32: 3405 | I32: 13 | J32: 3413 | K32: 1 | L32: 11221 | N32: 22112 | O32: =COUNTIF($L$7:$L$500,N32) -> 2 | P32: =O32/$Q$4 -> 0.01149425287 | Q32: =IF(P32=0,0,(P32*((LOG(P32))/LOG(2)))) -> -0.07405682179 | T32: =N32 -> 22112 | U32: =COUNTIF(L7:L35,T32) -> 0 | V32: =U32/(W4-U25) -> 0 | W32: =IF(V32=0,0,(V32*((LOG(V32))/LOG(2)))) -> 0 | Y32: =N32 -> 22112 | Z32: =COUNTIF(L36:L64,Y32) -> 0 | AA32: =Z32/(AB4-Z25) -> 0 | AB32: =IF(AA32=0,0,(AA32*((LOG(AA32))/LOG(2)))) -> 0 | AD32: =N32 -> 22112 | AE32: =COUNTIF(L65:L93,AD32) -> 1 | AF32: =AE32/(AG4-AE25) -> 0.03448275862 | AG32: =IF(AF32=0,0,(AF32*((LOG(AF32))/LOG(2)))) -> -0.167516586 | AI32: =N32 -> 22112 | AJ32: =COUNTIF(L94:L122,AI32) -> 0 | AK32: =AJ32/(AL4-AJ25) -> 0 | AL32: =IF(AK32=0,0,(AK32*((LOG(AK32))/LOG(2)))) -> 0 | AN32: =N32 -> 22112 | AO32: =COUNTIF(L123:L151,AN32) -> 1 | AP32: =AO32/(AQ4-AO25) -> 0.03448275862 | AQ32: =IF(AP32=0,0,(AP32*((LOG(AP32))/LOG(2)))) -> -0.167516586 | AS32: =N32 -> 22112 | AT32: =COUNTIF(L152:L180,AS32) -> 0 | AU32: =AT32/(AV4-AT25) -> 0 | AV32: =IF(AU32=0,0,(AU32*((LOG(AU32))/LOG(2)))) -> 0
A33: 12 | B33: 3505 | C33: 13 | D33: 3513 | E33: 24 | F33: 3525 | G33: 14 | H33: 3533 | I33: 24 | J33: 3542 | K33: 0 | L33: 11212 | N33: 22121 | O33: =COUNTIF($L$7:$L$500,N33) -> 7 | P33: =O33/$Q$4 -> 0.04022988506 | Q33: =IF(P33=0,0,(P33*((LOG(P33))/LOG(2)))) -> -0.1864891955 | T33: =N33 -> 22121 | U33: =COUNTIF(L7:L35,T33) -> 0 | V33: =U33/(W4-U25) -> 0 | W33: =IF(V33=0,0,(V33*((LOG(V33))/LOG(2)))) -> 0 | Y33: =N33 -> 22121 | Z33: =COUNTIF(L36:L64,Y33) -> 0 | AA33: =Z33/(AB4-Z25) -> 0 | AB33: =IF(AA33=0,0,(AA33*((LOG(AA33))/LOG(2)))) -> 0 | AD33: =N33 -> 22121 | AE33: =COUNTIF(L65:L93,AD33) -> 0 | AF33: =AE33/(AG4-AE25) -> 0 | AG33: =IF(AF33=0,0,(AF33*((LOG(AF33))/LOG(2)))) -> 0 | AI33: =N33 -> 22121 | AJ33: =COUNTIF(L94:L122,AI33) -> 0 | AK33: =AJ33/(AL4-AJ25) -> 0 | AL33: =IF(AK33=0,0,(AK33*((LOG(AK33))/LOG(2)))) -> 0 | AN33: =N33 -> 22121 | AO33: =COUNTIF(L123:L151,AN33) -> 2 | AP33: =AO33/(AQ4-AO25) -> 0.06896551724 | AQ33: =IF(AP33=0,0,(AP33*((LOG(AP33))/LOG(2)))) -> -0.2660676548 | AS33: =N33 -> 22121 | AT33: =COUNTIF(L152:L180,AS33) -> 5 | AU33: =AT33/(AV4-AT25) -> 0.1724137931 | AV33: =IF(AU33=0,0,(AU33*((LOG(AU33))/LOG(2)))) -> -0.4372505
A34: 12 | B34: 3640 | C34: 13 | D34: 3647 | E34: 24 | F34: 3655 | G34: 23 | H34: 3663 | I34: 13 | J34: 3671 | K34: 0 | L34: 11221 | N34: 22122 | O34: =COUNTIF($L$7:$L$500,N34) -> 4 | P34: =O34/$Q$4 -> 0.02298850575 | Q34: =IF(P34=0,0,(P34*((LOG(P34))/LOG(2)))) -> -0.1251251378 | T34: =N34 -> 22122 | U34: =COUNTIF(L7:L35,T34) -> 0 | V34: =U34/(W4-U25) -> 0 | W34: =IF(V34=0,0,(V34*((LOG(V34))/LOG(2)))) -> 0 | Y34: =N34 -> 22122 | Z34: =COUNTIF(L36:L64,Y34) -> 0 | AA34: =Z34/(AB4-Z25) -> 0 | AB34: =IF(AA34=0,0,(AA34*((LOG(AA34))/LOG(2)))) -> 0 | AD34: =N34 -> 22122 | AE34: =COUNTIF(L65:L93,AD34) -> 0 | AF34: =AE34/(AG4-AE25) -> 0 | AG34: =IF(AF34=0,0,(AF34*((LOG(AF34))/LOG(2)))) -> 0 | AI34: =N34 -> 22122 | AJ34: =COUNTIF(L94:L122,AI34) -> 0 | AK34: =AJ34/(AL4-AJ25) -> 0 | AL34: =IF(AK34=0,0,(AK34*((LOG(AK34))/LOG(2)))) -> 0 | AN34: =N34 -> 22122 | AO34: =COUNTIF(L123:L151,AN34) -> 4 | AP34: =AO34/(AQ4-AO25) -> 0.1379310345 | AQ34: =IF(AP34=0,0,(AP34*((LOG(AP34))/LOG(2)))) -> -0.3942042752 | AS34: =N34 -> 22122 | AT34: =COUNTIF(L152:L180,AS34) -> 0 | AU34: =AT34/(AV4-AT25) -> 0 | AV34: =IF(AU34=0,0,(AU34*((LOG(AU34))/LOG(2)))) -> 0
A35: 12 | B35: 3773 | C35: 13 | D35: 3782 | E35: 24 | F35: 3790 | G35: 23 | H35: 3797 | I35: 24 | J35: 3803 | K35: 0 | L35: 11222 | N35: 22211 | O35: =COUNTIF($L$7:$L$500,N35) -> 0 | P35: =O35/$Q$4 -> 0 | Q35: =IF(P35=0,0,(P35*((LOG(P35))/LOG(2)))) -> 0 | T35: =N35 -> 22211 | U35: =COUNTIF(L7:L35,T35) -> 0 | V35: =U35/(W4-U25) -> 0 | W35: =IF(V35=0,0,(V35*((LOG(V35))/LOG(2)))) -> 0 | Y35: =N35 -> 22211 | Z35: =COUNTIF(L36:L64,Y35) -> 0 | AA35: =Z35/(AB4-Z25) -> 0 | AB35: =IF(AA35=0,0,(AA35*((LOG(AA35))/LOG(2)))) -> 0 | AD35: =N35 -> 22211 | AE35: =COUNTIF(L65:L93,AD35) -> 0 | AF35: =AE35/(AG4-AE25) -> 0 | AG35: =IF(AF35=0,0,(AF35*((LOG(AF35))/LOG(2)))) -> 0 | AI35: =N35 -> 22211 | AJ35: =COUNTIF(L94:L122,AI35) -> 0 | AK35: =AJ35/(AL4-AJ25) -> 0 | AL35: =IF(AK35=0,0,(AK35*((LOG(AK35))/LOG(2)))) -> 0 | AN35: =N35 -> 22211 | AO35: =COUNTIF(L123:L151,AN35) -> 0 | AP35: =AO35/(AQ4-AO25) -> 0 | AQ35: =IF(AP35=0,0,(AP35*((LOG(AP35))/LOG(2)))) -> 0 | AS35: =N35 -> 22211 | AT35: =COUNTIF(L152:L180,AS35) -> 0 | AU35: =AT35/(AV4-AT25) -> 0 | AV35: =IF(AU35=0,0,(AU35*((LOG(AU35))/LOG(2)))) -> 0
A36: 12 | B36: 3901 | C36: 13 | D36: 3909 | E36: 24 | F36: 3917 | G36: 23 | H36: 3926 | I36: 13 | J36: 3935 | K36: 0 | L36: 11221 | N36: 22212 | O36: =COUNTIF($L$7:$L$500,N36) -> 2 | P36: =O36/$Q$4 -> 0.01149425287 | Q36: =IF(P36=0,0,(P36*((LOG(P36))/LOG(2)))) -> -0.07405682179 | T36: =N36 -> 22212 | U36: =COUNTIF(L7:L35,T36) -> 0 | V36: =U36/(W4-U25) -> 0 | W36: =IF(V36=0,0,(V36*((LOG(V36))/LOG(2)))) -> 0 | Y36: =N36 -> 22212 | Z36: =COUNTIF(L36:L64,Y36) -> 0 | AA36: =Z36/(AB4-Z25) -> 0 | AB36: =IF(AA36=0,0,(AA36*((LOG(AA36))/LOG(2)))) -> 0 | AD36: =N36 -> 22212 | AE36: =COUNTIF(L65:L93,AD36) -> 0 | AF36: =AE36/(AG4-AE25) -> 0 | AG36: =IF(AF36=0,0,(AF36*((LOG(AF36))/LOG(2)))) -> 0 | AI36: =N36 -> 22212 | AJ36: =COUNTIF(L94:L122,AI36) -> 0 | AK36: =AJ36/(AL4-AJ25) -> 0 | AL36: =IF(AK36=0,0,(AK36*((LOG(AK36))/LOG(2)))) -> 0 | AN36: =N36 -> 22212 | AO36: =COUNTIF(L123:L151,AN36) -> 0 | AP36: =AO36/(AQ4-AO25) -> 0 | AQ36: =IF(AP36=0,0,(AP36*((LOG(AP36))/LOG(2)))) -> 0 | AS36: =N36 -> 22212 | AT36: =COUNTIF(L152:L180,AS36) -> 2 | AU36: =AT36/(AV4-AT25) -> 0.06896551724 | AV36: =IF(AU36=0,0,(AU36*((LOG(AU36))/LOG(2)))) -> -0.2660676548
A37: 12 | B37: 4037 | C37: 13 | D37: 4046 | E37: 24 | F37: 4054 | G37: 23 | H37: 4060 | I37: 13 | J37: 4070 | K37: 0 | L37: 11221 | N37: 22221 | O37: =COUNTIF($L$7:$L$500,N37) -> 1 | P37: =O37/$Q$4 -> 0.005747126437 | Q37: =IF(P37=0,0,(P37*((LOG(P37))/LOG(2)))) -> -0.04277553733 | T37: =N37 -> 22221 | U37: =COUNTIF(L7:L35,T37) -> 0 | V37: =U37/(W4-U25) -> 0 | W37: =IF(V37=0,0,(V37*((LOG(V37))/LOG(2)))) -> 0 | Y37: =N37 -> 22221 | Z37: =COUNTIF(L36:L64,Y37) -> 0 | AA37: =Z37/(AB4-Z25) -> 0 | AB37: =IF(AA37=0,0,(AA37*((LOG(AA37))/LOG(2)))) -> 0 | AD37: =N37 -> 22221 | AE37: =COUNTIF(L65:L93,AD37) -> 0 | AF37: =AE37/(AG4-AE25) -> 0 | AG37: =IF(AF37=0,0,(AF37*((LOG(AF37))/LOG(2)))) -> 0 | AI37: =N37 -> 22221 | AJ37: =COUNTIF(L94:L122,AI37) -> 0 | AK37: =AJ37/(AL4-AJ25) -> 0 | AL37: =IF(AK37=0,0,(AK37*((LOG(AK37))/LOG(2)))) -> 0 | AN37: =N37 -> 22221 | AO37: =COUNTIF(L123:L151,AN37) -> 1 | AP37: =AO37/(AQ4-AO25) -> 0.03448275862 | AQ37: =IF(AP37=0,0,(AP37*((LOG(AP37))/LOG(2)))) -> -0.167516586 | AS37: =N37 -> 22221 | AT37: =COUNTIF(L152:L180,AS37) -> 0 | AU37: =AT37/(AV4-AT25) -> 0 | AV37: =IF(AU37=0,0,(AU37*((LOG(AU37))/LOG(2)))) -> 0
A38: 12 | B38: 4170 | C38: 13 | D38: 4177 | E38: 24 | F38: 4185 | G38: 23 | H38: 4191 | I38: 13 | J38: 4201 | K38: 0 | L38: 11221 | N38: 22222 | O38: =COUNTIF($L$7:$L$500,N38) -> 0 | P38: =O38/$Q$4 -> 0 | Q38: =IF(P38=0,0,(P38*((LOG(P38))/LOG(2)))) -> 0 | T38: =N38 -> 22222 | U38: =COUNTIF(L7:L35,T38) -> 0 | V38: =U38/(W4-U25) -> 0 | W38: =IF(V38=0,0,(V38*((LOG(V38))/LOG(2)))) -> 0 | Y38: =N38 -> 22222 | Z38: =COUNTIF(L36:L64,Y38) -> 0 | AA38: =Z38/(AB4-Z25) -> 0 | AB38: =IF(AA38=0,0,(AA38*((LOG(AA38))/LOG(2)))) -> 0 | AD38: =N38 -> 22222 | AE38: =COUNTIF(L65:L93,AD38) -> 0 | AF38: =AE38/(AG4-AE25) -> 0 | AG38: =IF(AF38=0,0,(AF38*((LOG(AF38))/LOG(2)))) -> 0 | AI38: =N38 -> 22222 | AJ38: =COUNTIF(L94:L122,AI38) -> 0 | AK38: =AJ38/(AL4-AJ25) -> 0 | AL38: =IF(AK38=0,0,(AK38*((LOG(AK38))/LOG(2)))) -> 0 | AN38: =N38 -> 22222 | AO38: =COUNTIF(L123:L151,AN38) -> 0 | AP38: =AO38/(AQ4-AO25) -> 0 | AQ38: =IF(AP38=0,0,(AP38*((LOG(AP38))/LOG(2)))) -> 0 | AS38: =N38 -> 22222 | AT38: =COUNTIF(L152:L180,AS38) -> 0 | AU38: =AT38/(AV4-AT25) -> 0 | AV38: =IF(AU38=0,0,(AU38*((LOG(AU38))/LOG(2)))) -> 0
A39: 12 | B39: 4302 | C39: 13 | D39: 4309 | E39: 24 | F39: 4317 | G39: 23 | H39: 4323 | I39: 13 | J39: 4333 | K39: 1 | L39: 11221 | P39: =SUM(P7:P38) -> 1 | Q39: =-SUM(Q7:Q38) -> 4.299363766 | V39: =SUM(V7:V38) -> 1 | W39: =-SUM(W7:W38) -> 3.112146841 | AA39: =SUM(AA7:AA38) -> 1 | AB39: =-SUM(AB7:AB38) -> 2.12218926 | AF39: =SUM(AF7:AF38) -> 1 | AG39: =-SUM(AG7:AG38) -> 2.036177756 | AK39: =SUM(AK7:AK38) -> 1 | AL39: =-SUM(AL7:AL38) -> 3.177668721 | AP39: =SUM(AP7:AP38) -> 1 | AQ39: =-SUM(AQ7:AQ38) -> 3.646966668 | AU39: =SUM(AU7:AU38) -> 1 | AV39: =-SUM(AV7:AV38) -> 3.103816671
A40: 12 | B40: 4426 | C40: 13 | D40: 4430 | E40: 13 | F40: 4437 | G40: 23 | H40: 4447 | I40: 24 | J40: 4455 | K40: 0 | L40: 11122 | P40: U= | Q40: =Q39/(LOG(Q4)/LOG(2)) -> 0.5776429404 | V40: U1= | W40: =W39/(LOG(W4)/LOG(2)) -> 0.6406255693 | AA40: U2= | AB40: =AB39/(LOG(AB4)/LOG(2)) -> 0.436845937 | AF40: U3= | AG40: =AG39/(LOG(AG4)/LOG(2)) -> 0.4191407415 | AK40: U4= | AL40: =AL39/(LOG(AL4)/LOG(2)) -> 0.6541130408 | AP40: U5= | AQ40: =AQ39/(LOG(AQ4)/LOG(2)) -> 0.7507165368 | AU40: U6= | AV40: =AV39/(LOG(AV4)/LOG(2)) -> 0.6389108302
A41: 12 | B41: 4556 | C41: 13 | D41: 4561 | E41: 24 | F41: 4569 | G41: 14 | H41: 4578 | I41: 24 | J41: 4587 | K41: 0 | L41: 11212
A42: 12 | B42: 4689 | C42: 13 | D42: 4696 | E42: 24 | F42: 4705 | G42: 23 | H42: 4712 | I42: 13 | J42: 4720 | K42: 0 | L42: 11221
A43: 12 | B43: 4821 | C43: 13 | D43: 4828 | E43: 24 | F43: 4836 | G43: 23 | H43: 4842 | I43: 13 | J43: 4850 | K43: 0 | L43: 11221 | N43: Total Target Seq
A44: 12 | B44: 4954 | C44: 13 | D44: 4962 | E44: 24 | F44: 4969 | G44: 23 | H44: 4976 | I44: 13 | J44: 4984 | K44: 0 | L44: 11221 | N44: =COUNTIF(L7:L180,G3) -> 0 | P44: 29 | Q44: 29 | R44: 29 | S44: 29 | T44: 29 | U44: 29
A45: 12 | B45: 5085 | C45: 13 | D45: 5092 | E45: 24 | F45: 5100 | G45: 23 | H45: 5106 | I45: 13 | J45: 5114 | K45: 0 | L45: 11221 | P45: % of reinforcement given in 6 equal intervals based on number of trials
A46: 12 | B46: 5212 | C46: 13 | D46: 5220 | E46: 24 | F46: 5228 | G46: 14 | H46: 5238 | I46: 24 | J46: 5245 | K46: 0 | L46: 11212 | P46: %_1 | Q46: %_2 | R46: %_3 | S46: %_4 | T46: %_5 | U46: %_6
A47: 12 | B47: 5343 | C47: 13 | D47: 5351 | E47: 24 | F47: 5359 | G47: 14 | H47: 5366 | I47: 24 | J47: 5374 | K47: 0 | L47: 11212 | O47: target sequence | P47: =$G$3 -> 21121 | Q47: =$G$3 -> 21121 | R47: =$G$3 -> 21121 | S47: =$G$3 -> 21121 | T47: =$G$3 -> 21121 | U47: =$G$3 -> 21121
A48: 12 | B48: 5471 | C48: 13 | D48: 5476 | E48: 13 | F48: 5486 | G48: 23 | H48: 5493 | I48: 13 | J48: 5501 | K48: 0 | L48: 11121 | O48: total reinforcement | P48: =U25 -> 0 | Q48: =Z25 -> 0 | R48: =AE25 -> 0 | S48: =AJ25 -> 0 | T48: =AO25 -> 0 | U48: =AT25 -> 0
A49: 12 | B49: 5600 | C49: 13 | D49: 5608 | E49: 24 | F49: 5616 | G49: 14 | H49: 5624 | I49: 24 | J49: 5631 | K49: 0 | L49: 11212 | O49: % target
A50: 12 | B50: 5735 | C50: 13 | D50: 5743 | E50: 24 | F50: 5751 | G50: 23 | H50: 5759 | I50: 13 | J50: 5768 | K50: 1 | L50: 11221 | O50: CCRF
A51: 12 | B51: 5862 | C51: 13 | D51: 5869 | E51: 24 | F51: 5880 | G51: 23 | H51: 5885 | I51: 13 | J51: 5894 | K51: 1 | L51: 11221 | O51: % CCRf
A52: 12 | B52: 5990 | C52: 13 | D52: 5995 | E52: 13 | F52: 6003 | G52: 23 | H52: 6011 | I52: 24 | J52: 6019 | K52: 0 | L52: 11122 | O52: average response rate | P52: =J35/P44 -> 131.137931 | Q52: =(J64-J35)/Q44 -> 129.5862069 | R52: =(J93-J64)/R44 -> 128.5517241 | S52: =(J122-J93)/S44 -> 130.1034483 | T52: =(J151-J122)/T44 -> 149.8965517 | U52: =(J180-J151)/U44 -> 155.5862069
A53: 12 | B53: 6116 | C53: 13 | D53: 6121 | E53: 13 | F53: 6128 | G53: 23 | H53: 6136 | I53: 24 | J53: 6147 | K53: 0 | L53: 11122
A54: 12 | B54: 6248 | C54: 13 | D54: 6254 | E54: 24 | F54: 6263 | G54: 23 | H54: 6268 | I54: 13 | J54: 6276 | K54: 0 | L54: 11221
A55: 12 | B55: 6374 | C55: 13 | D55: 6378 | E55: 13 | F55: 6387 | G55: 23 | H55: 6395 | I55: 13 | J55: 6403 | K55: 1 | L55: 11121
A56: 12 | B56: 6499 | C56: 13 | D56: 6503 | E56: 13 | F56: 6510 | G56: 23 | H56: 6518 | I56: 24 | J56: 6522 | K56: 0 | L56: 11122
A57: 12 | B57: 6621 | C57: 13 | D57: 6625 | E57: 13 | F57: 6633 | G57: 23 | H57: 6641 | I57: 24 | J57: 6646 | K57: 0 | L57: 11122
A58: 12 | B58: 6743 | C58: 13 | D58: 6747 | E58: 13 | F58: 6756 | G58: 23 | H58: 6764 | I58: 24 | J58: 6771 | K58: 0 | L58: 11122
A59: 12 | B59: 6872 | C59: 13 | D59: 6879 | E59: 24 | F59: 6887 | G59: 23 | H59: 6894 | I59: 24 | J59: 6901 | K59: 0 | L59: 11222
A60: 12 | B60: 6998 | C60: 13 | D60: 7005 | E60: 13 | F60: 7012 | G60: 23 | H60: 7020 | I60: 13 | J60: 7033 | K60: 0 | L60: 11121
A61: 12 | B61: 7132 | C61: 24 | D61: 7154 | E61: 24 | F61: 7158 | G61: 14 | H61: 7166 | I61: 24 | J61: 7174 | K61: 0 | L61: 12212
A62: 12 | B62: 7277 | C62: 13 | D62: 7282 | E62: 13 | F62: 7297 | G62: 23 | H62: 7305 | I62: 24 | J62: 7312 | K62: 0 | L62: 11122
A63: 12 | B63: 7412 | C63: 13 | D63: 7417 | E63: 13 | F63: 7425 | G63: 23 | H63: 7432 | I63: 24 | J63: 7440 | K63: 1 | L63: 11122
A64: 12 | B64: 7533 | C64: 13 | D64: 7538 | E64: 13 | F64: 7545 | G64: 23 | H64: 7554 | I64: 24 | J64: 7561 | K64: 1 | L64: 11122
A65: 12 | B65: 7657 | C65: 13 | D65: 7661 | E65: 13 | F65: 7669 | G65: 23 | H65: 7677 | I65: 24 | J65: 7683 | K65: 0 | L65: 11122
A66: 12 | B66: 7780 | C66: 13 | D66: 7785 | E66: 13 | F66: 7792 | G66: 14 | H66: 7803 | I66: 24 | J66: 7811 | K66: 1 | L66: 11112
A67: 12 | B67: 7910 | C67: 13 | D67: 7916 | E67: 13 | F67: 7931 | G67: 23 | H67: 7938 | I67: 24 | J67: 7945 | K67: 0 | L67: 11122
A68: 12 | B68: 8042 | C68: 13 | D68: 8046 | E68: 13 | F68: 8053 | G68: 23 | H68: 8062 | I68: 24 | J68: 8070 | K68: 0 | L68: 11122
A69: 12 | B69: 8167 | C69: 13 | D69: 8171 | E69: 13 | F69: 8178 | G69: 23 | H69: 8185 | I69: 24 | J69: 8192 | K69: 0 | L69: 11122
A70: 12 | B70: 8289 | C70: 13 | D70: 8293 | E70: 13 | F70: 8301 | G70: 23 | H70: 8308 | I70: 24 | J70: 8313 | K70: 0 | L70: 11122
A71: 12 | B71: 8414 | C71: 13 | D71: 8418 | E71: 13 | F71: 8427 | G71: 23 | H71: 8435 | I71: 24 | J71: 8441 | K71: 0 | L71: 11122
A72: 12 | B72: 8538 | C72: 13 | D72: 8542 | E72: 13 | F72: 8546 | G72: 14 | H72: 8555 | I72: 24 | J72: 8563 | K72: 1 | L72: 11112
A73: 12 | B73: 8657 | C73: 13 | D73: 8661 | E73: 13 | F73: 8665 | G73: 23 | H73: 8676 | I73: 24 | J73: 8683 | K73: 0 | L73: 11122
A74: 12 | B74: 8780 | C74: 13 | D74: 8784 | E74: 13 | F74: 8791 | G74: 23 | H74: 8799 | I74: 24 | J74: 8804 | K74: 0 | L74: 11122
A75: 12 | B75: 8901 | C75: 13 | D75: 8905 | E75: 13 | F75: 8909 | G75: 14 | H75: 8921 | I75: 24 | J75: 8930 | K75: 0 | L75: 11112
A76: 12 | B76: 9030 | C76: 13 | D76: 9036 | E76: 13 | F76: 9041 | G76: 14 | H76: 9049 | I76: 24 | J76: 9057 | K76: 0 | L76: 11112
A77: 12 | B77: 9156 | C77: 13 | D77: 9160 | E77: 13 | F77: 9170 | G77: 23 | H77: 9181 | I77: 24 | J77: 9188 | K77: 0 | L77: 11122
A78: 12 | B78: 9287 | C78: 13 | D78: 9291 | E78: 13 | F78: 9295 | G78: 14 | H78: 9304 | I78: 24 | J78: 9312 | K78: 0 | L78: 11112
A79: 12 | B79: 9408 | C79: 13 | D79: 9412 | E79: 13 | F79: 9420 | G79: 14 | H79: 9431 | I79: 24 | J79: 9439 | K79: 0 | L79: 11112
A80: 12 | B80: 9543 | C80: 13 | D80: 9547 | E80: 24 | F80: 9563 | G80: 23 | H80: 9571 | I80: 13 | J80: 9582 | K80: 1 | L80: 11221
A81: 12 | B81: 9678 | C81: 13 | D81: 9682 | E81: 13 | F81: 9687 | G81: 14 | H81: 9691 | I81: 24 | J81: 9703 | K81: 0 | L81: 11112
A82: 12 | B82: 9803 | C82: 13 | D82: 9811 | E82: 13 | F82: 9825 | G82: 23 | H82: 9835 | I82: 24 | J82: 9841 | K82: 0 | L82: 11122
A83: 21 | B83: 9943 | C83: 22 | D83: 9948 | E83: 13 | F83: 9956 | G83: 14 | H83: 9964 | I83: 24 | J83: 9973 | K83: 0 | L83: 22112
A84: 12 | B84: 10071 | C84: 13 | D84: 10074 | E84: 13 | F84: 10078 | G84: 14 | H84: 10082 | I84: 13 | J84: 10088 | K84: 0 | L84: 11111
A85: 12 | B85: 10191 | C85: 13 | D85: 10194 | E85: 13 | F85: 10199 | G85: 23 | H85: 10207 | I85: 24 | J85: 10214 | K85: 0 | L85: 11122
A86: 12 | B86: 10324 | C86: 13 | D86: 10328 | E86: 13 | F86: 10332 | G86: 23 | H86: 10344 | I86: 24 | J86: 10349 | K86: 1 | L86: 11122
A87: 12 | B87: 10452 | C87: 13 | D87: 10458 | E87: 24 | F87: 10477 | G87: 23 | H87: 10483 | I87: 24 | J87: 10490 | K87: 0 | L87: 11222
A88: 12 | B88: 10588 | C88: 13 | D88: 10608 | E88: 13 | F88: 10615 | G88: 23 | H88: 10626 | I88: 13 | J88: 10635 | K88: 0 | L88: 11121
A89: 12 | B89: 10737 | C89: 13 | D89: 10741 | E89: 13 | F89: 10746 | G89: 23 | H89: 10756 | I89: 24 | J89: 10760 | K89: 0 | L89: 11122
A90: 12 | B90: 10858 | C90: 13 | D90: 10869 | E90: 13 | F90: 10873 | G90: 14 | H90: 10884 | I90: 24 | J90: 10895 | K90: 0 | L90: 11112
A91: 12 | B91: 10996 | C91: 13 | D91: 10999 | E91: 13 | F91: 11004 | G91: 14 | H91: 11009 | I91: 24 | J91: 11019 | K91: 0 | L91: 11112
A92: 12 | B92: 11126 | C92: 13 | D92: 11135 | E92: 13 | F92: 11140 | G92: 23 | H92: 11152 | I92: 24 | J92: 11157 | K92: 0 | L92: 11122
A93: 21 | B93: 11258 | C93: 11 | D93: 11266 | E93: 11 | F93: 11274 | G93: 21 | H93: 11282 | I93: 22 | J93: 11289 | K93: 0 | L93: 21122
A94: 12 | B94: 11384 | C94: 13 | D94: 11388 | E94: 13 | F94: 11394 | G94: 14 | H94: 11399 | I94: 24 | J94: 11408 | K94: 0 | L94: 11112
A95: 12 | B95: 11507 | C95: 13 | D95: 11521 | E95: 24 | F95: 11533 | G95: 14 | H95: 11543 | I95: 13 | J95: 11552 | K95: 1 | L95: 11211
A96: 12 | B96: 11644 | C96: 13 | D96: 11652 | E96: 13 | F96: 11655 | G96: 14 | H96: 11663 | I96: 13 | J96: 11670 | K96: 0 | L96: 11111
A97: 12 | B97: 11767 | C97: 13 | D97: 11771 | E97: 13 | F97: 11775 | G97: 14 | H97: 11779 | I97: 13 | J97: 11783 | K97: 0 | L97: 11111
A98: 12 | B98: 11886 | C98: 13 | D98: 11890 | E98: 13 | F98: 11894 | G98: 14 | H98: 11898 | I98: 24 | J98: 11906 | K98: 0 | L98: 11112
A99: 12 | B99: 12005 | C99: 13 | D99: 12012 | E99: 24 | F99: 12025 | G99: 23 | H99: 12031 | I99: 13 | J99: 12041 | K99: 0 | L99: 11221
A100: 12 | B100: 12143 | C100: 13 | D100: 12148 | E100: 13 | F100: 12154 | G100: 14 | H100: 12160 | I100: 24 | J100: 12169 | K100: 0 | L100: 11112
A101: 21 | B101: 12269 | C101: 11 | D101: 12279 | E101: 22 | F101: 12287 | G101: 14 | H101: 12296 | I101: 13 | J101: 12304 | K101: 0 | L101: 21211
A102: 12 | B102: 12412 | C102: 13 | D102: 12417 | E102: 13 | F102: 12425 | G102: 23 | H102: 12437 | I102: 13 | J102: 12445 | K102: 0 | L102: 11121
A103: 21 | B103: 12546 | C103: 11 | D103: 12554 | E103: 11 | F103: 12561 | G103: 12 | H103: 12568 | I103: 24 | J103: 12576 | K103: 0 | L103: 21112
A104: 12 | B104: 12674 | C104: 13 | D104: 12678 | E104: 13 | F104: 12687 | G104: 14 | H104: 12692 | I104: 13 | J104: 12701 | K104: 0 | L104: 11111
A105: 21 | B105: 12798 | C105: 11 | D105: 12808 | E105: 11 | F105: 12813 | G105: 21 | H105: 12821 | I105: 22 | J105: 12826 | K105: 0 | L105: 21122
A106: 12 | B106: 12919 | C106: 13 | D106: 12928 | E106: 24 | F106: 12936 | G106: 23 | H106: 12940 | I106: 24 | J106: 12947 | K106: 0 | L106: 11222
A107: 21 | B107: 13048 | C107: 11 | D107: 13057 | E107: 11 | F107: 13061 | G107: 12 | H107: 13065 | I107: 24 | J107: 13073 | K107: 1 | L107: 21112
A108: 12 | B108: 13174 | C108: 13 | D108: 13178 | E108: 13 | F108: 13182 | G108: 14 | H108: 13189 | I108: 13 | J108: 13194 | K108: 0 | L108: 11111
A109: 12 | B109: 13297 | C109: 13 | D109: 13301 | E109: 13 | F109: 13306 | G109: 14 | H109: 13314 | I109: 13 | J109: 13322 | K109: 0 | L109: 11111
A110: 21 | B110: 13421 | C110: 11 | D110: 13431 | E110: 11 | F110: 13436 | G110: 12 | H110: 13440 | I110: 13 | J110: 13447 | K110: 0 | L110: 21111
A111: 12 | B111: 13573 | C111: 13 | D111: 13581 | E111: 24 | F111: 13589 | G111: 23 | H111: 13598 | I111: 24 | J111: 13603 | K111: 0 | L111: 11222
A112: 12 | B112: 13701 | C112: 13 | D112: 13705 | E112: 13 | F112: 13709 | G112: 14 | H112: 13717 | I112: 13 | J112: 13724 | K112: 0 | L112: 11111
A113: 12 | B113: 13826 | C113: 13 | D113: 13830 | E113: 13 | F113: 13835 | G113: 14 | H113: 13840 | I113: 13 | J113: 13846 | K113: 1 | L113: 11111
A114: 12 | B114: 13946 | C114: 13 | D114: 13950 | E114: 13 | F114: 13956 | G114: 23 | H114: 13966 | I114: 24 | J114: 13975 | K114: 0 | L114: 11122
A115: 21 | B115: 14075 | C115: 22 | D115: 14081 | E115: 13 | F115: 14089 | G115: 14 | H115: 14097 | I115: 13 | J115: 14104 | K115: 0 | L115: 22111
A116: 21 | B116: 14225 | C116: 11 | D116: 14233 | E116: 22 | F116: 14241 | G116: 23 | H116: 14248 | I116: 13 | J116: 14256 | K116: 1 | L116: 21221
A117: 12 | B117: 14358 | C117: 13 | D117: 14362 | E117: 13 | F117: 14366 | G117: 14 | H117: 14374 | I117: 13 | J117: 14383 | K117: 0 | L117: 11111
A118: 21 | B118: 14480 | C118: 11 | D118: 14491 | E118: 11 | F118: 14494 | G118: 12 | H118: 14499 | I118: 13 | J118: 14506 | K118: 0 | L118: 21111
A119: 12 | B119: 14627 | C119: 13 | D119: 14631 | E119: 13 | F119: 14635 | G119: 14 | H119: 14642 | I119: 13 | J119: 14648 | K119: 0 | L119: 11111
A120: 21 | B120: 14749 | C120: 11 | D120: 14756 | E120: 11 | F120: 14761 | G120: 12 | H120: 14767 | I120: 13 | J120: 14775 | K120: 0 | L120: 21111
A121: 12 | B121: 14884 | C121: 13 | D121: 14888 | E121: 13 | F121: 14892 | G121: 14 | H121: 14899 | I121: 13 | J121: 14906 | K121: 0 | L121: 11111
A122: 12 | B122: 15022 | C122: 13 | D122: 15033 | E122: 24 | F122: 15045 | G122: 23 | H122: 15052 | I122: 13 | J122: 15062 | K122: 1 | L122: 11221
A123: 21 | B123: 15159 | C123: 22 | D123: 15164 | E123: 13 | F123: 15173 | G123: 23 | H123: 15182 | I123: 24 | J123: 15189 | K123: 0 | L123: 22122
A124: 21 | B124: 15291 | C124: 11 | D124: 15301 | E124: 11 | F124: 15307 | G124: 12 | H124: 15312 | I124: 13 | J124: 15318 | K124: 0 | L124: 21111
A125: 12 | B125: 15434 | C125: 13 | D125: 15438 | E125: 13 | F125: 15442 | G125: 14 | H125: 15446 | I125: 13 | J125: 15453 | K125: 0 | L125: 11111
A126: 21 | B126: 15553 | C126: 11 | D126: 15564 | E126: 11 | F126: 15568 | G126: 12 | H126: 15578 | I126: 13 | J126: 15584 | K126: 0 | L126: 21111
A127: 21 | B127: 15700 | C127: 11 | D127: 15711 | E127: 22 | F127: 15720 | G127: 23 | H127: 15726 | I127: 13 | J127: 15736 | K127: 0 | L127: 21221
A128: 21 | B128: 15836 | C128: 22 | D128: 15840 | E128: 13 | F128: 15850 | G128: 14 | H128: 15857 | I128: 24 | J128: 15865 | K128: 1 | L128: 22112
A129: 21 | B129: 15961 | C129: 11 | D129: 15972 | E129: 11 | F129: 15976 | G129: 12 | H129: 15980 | I129: 13 | J129: 15985 | K129: 0 | L129: 21111
A130: 21 | B130: 16104 | C130: 22 | D130: 16109 | E130: 13 | F130: 16117 | G130: 23 | H130: 16126 | I130: 24 | J130: 16135 | K130: 1 | L130: 22122
A131: 21 | B131: 16248 | C131: 11 | D131: 16259 | E131: 22 | F131: 16268 | G131: 23 | H131: 16274 | I131: 24 | J131: 16281 | K131: 0 | L131: 21222
A132: 12 | B132: 16402 | C132: 13 | D132: 16407 | E132: 13 | F132: 16412 | G132: 23 | H132: 16422 | I132: 24 | J132: 16427 | K132: 0 | L132: 11122
A133: 12 | B133: 16550 | C133: 24 | D133: 16568 | E133: 24 | F133: 16574 | G133: 14 | H133: 16583 | I133: 24 | J133: 16591 | K133: 0 | L133: 12212
A134: 12 | B134: 16716 | C134: 13 | D134: 16721 | E134: 13 | F134: 16726 | G134: 23 | H134: 16737 | I134: 13 | J134: 16747 | K134: 0 | L134: 11121
A135: 21 | B135: 16869 | C135: 22 | D135: 16876 | E135: 13 | F135: 16887 | G135: 23 | H135: 16895 | I135: 24 | J135: 16902 | K135: 0 | L135: 22122
A136: 21 | B136: 17004 | C136: 22 | D136: 17008 | E136: 13 | F136: 17017 | G136: 14 | H136: 17024 | I136: 13 | J136: 17030 | K136: 0 | L136: 22111
A137: 21 | B137: 17166 | C137: 11 | D137: 17177 | E137: 22 | F137: 17185 | G137: 14 | H137: 17195 | I137: 24 | J137: 17203 | K137: 0 | L137: 21212
A138: 12 | B138: 17334 | C138: 24 | D138: 17345 | E138: 13 | F138: 17354 | G138: 14 | H138: 17362 | I138: 13 | J138: 17368 | K138: 0 | L138: 12111
A139: 21 | B139: 17489 | C139: 11 | D139: 17500 | E139: 22 | F139: 17508 | G139: 14 | H139: 17519 | I139: 24 | J139: 17528 | K139: 1 | L139: 21212
A140: 21 | B140: 17635 | C140: 22 | D140: 17645 | E140: 24 | F140: 17652 | G140: 23 | H140: 17658 | I140: 13 | J140: 17668 | K140: 0 | L140: 22221
A141: 21 | B141: 17769 | C141: 11 | D141: 17779 | E141: 22 | F141: 17788 | G141: 14 | H141: 17797 | I141: 24 | J141: 17805 | K141: 0 | L141: 21212
A142: 21 | B142: 17907 | C142: 11 | D142: 17917 | E142: 11 | F142: 17922 | G142: 12 | H142: 17926 | I142: 24 | J142: 17934 | K142: 0 | L142: 21112
A143: 21 | B143: 18070 | C143: 22 | D143: 18075 | E143: 13 | F143: 18085 | G143: 23 | H143: 18093 | I143: 13 | J143: 18106 | K143: 0 | L143: 22121
A144: 21 | B144: 18213 | C144: 22 | D144: 18217 | E144: 13 | F144: 18225 | G144: 14 | H144: 18233 | I144: 13 | J144: 18239 | K144: 0 | L144: 22111
A145: 21 | B145: 18359 | C145: 11 | D145: 18370 | E145: 22 | F145: 18380 | G145: 23 | H145: 18387 | I145: 13 | J145: 18397 | K145: 0 | L145: 21221
A146: 21 | B146: 18549 | C146: 11 | D146: 18561 | E146: 22 | F146: 18569 | G146: 14 | H146: 18582 | I146: 24 | J146: 18589 | K146: 0 | L146: 21212
A147: 21 | B147: 18690 | C147: 22 | D147: 18694 | E147: 13 | F147: 18702 | G147: 23 | H147: 18710 | I147: 13 | J147: 18721 | K147: 0 | L147: 22121
A148: 21 | B148: 18842 | C148: 11 | D148: 18853 | E148: 22 | F148: 18862 | G148: 23 | H148: 18870 | I148: 24 | J148: 18877 | K148: 0 | L148: 21222
A149: 21 | B149: 19058 | C149: 11 | D149: 19069 | E149: 22 | F149: 19077 | G149: 14 | H149: 19094 | I149: 24 | J149: 19102 | K149: 1 | L149: 21212
A150: 21 | B150: 19204 | C150: 22 | D150: 19218 | E150: 13 | F150: 19228 | G150: 23 | H150: 19235 | I150: 24 | J150: 19245 | K150: 0 | L150: 22122
A151: 21 | B151: 19371 | C151: 11 | D151: 19381 | E151: 22 | F151: 19389 | G151: 23 | H151: 19402 | I151: 24 | J151: 19409 | K151: 0 | L151: 21222
A152: 21 | B152: 19548 | C152: 22 | D152: 19553 | E152: 24 | F152: 19562 | G152: 14 | H152: 19573 | I152: 24 | J152: 19581 | K152: 0 | L152: 22212
A153: 21 | B153: 19699 | C153: 11 | D153: 19708 | E153: 22 | F153: 19716 | G153: 14 | H153: 19728 | I153: 24 | J153: 19735 | K153: 0 | L153: 21212
A154: 21 | B154: 19847 | C154: 11 | D154: 19858 | E154: 22 | F154: 19865 | G154: 23 | H154: 19876 | I154: 13 | J154: 19887 | K154: 0 | L154: 21221
A155: 21 | B155: 20008 | C155: 11 | D155: 20019 | E155: 22 | F155: 20026 | G155: 23 | H155: 20036 | I155: 24 | J155: 20043 | K155: 0 | L155: 21222
A156: 21 | B156: 20167 | C156: 11 | D156: 20176 | E156: 22 | F156: 20184 | G156: 14 | H156: 20198 | I156: 24 | J156: 20205 | K156: 1 | L156: 21212
A157: 12 | B157: 20344 | C157: 24 | D157: 20354 | E157: 13 | F157: 20364 | G157: 23 | H157: 20373 | I157: 13 | J157: 20383 | K157: 0 | L157: 12121
A158: 21 | B158: 20520 | C158: 11 | D158: 20528 | E158: 22 | F158: 20536 | G158: 14 | H158: 20545 | I158: 24 | J158: 20552 | K158: 0 | L158: 21212
A159: 21 | B159: 20679 | C159: 22 | D159: 20686 | E159: 13 | F159: 20696 | G159: 23 | H159: 20704 | I159: 13 | J159: 20716 | K159: 0 | L159: 22121
A160: 21 | B160: 20834 | C160: 11 | D160: 20844 | E160: 22 | F160: 20852 | G160: 23 | H160: 20863 | I160: 13 | J160: 20874 | K160: 0 | L160: 21221
A161: 12 | B161: 21003 | C161: 13 | D161: 21008 | E161: 13 | F161: 21013 | G161: 14 | H161: 21018 | I161: 13 | J161: 21024 | K161: 0 | L161: 11111
A162: 12 | B162: 21148 | C162: 24 | D162: 21161 | E162: 13 | F162: 21171 | G162: 23 | H162: 21181 | I162: 13 | J162: 21190 | K162: 0 | L162: 12121
A163: 21 | B163: 21304 | C163: 11 | D163: 21313 | E163: 22 | F163: 21322 | G163: 14 | H163: 21331 | I163: 24 | J163: 21342 | K163: 1 | L163: 21212
A164: 21 | B164: 21442 | C164: 22 | D164: 21446 | E164: 24 | F164: 21454 | G164: 14 | H164: 21464 | I164: 24 | J164: 21472 | K164: 0 | L164: 22212
A165: 21 | B165: 21573 | C165: 22 | D165: 21578 | E165: 13 | F165: 21587 | G165: 23 | H165: 21595 | I165: 13 | J165: 21607 | K165: 0 | L165: 22121
A166: 21 | B166: 21730 | C166: 11 | D166: 21740 | E166: 22 | F166: 21748 | G166: 23 | H166: 21758 | I166: 13 | J166: 21766 | K166: 0 | L166: 21221
A167: 21 | B167: 21869 | C167: 22 | D167: 21884 | E167: 13 | F167: 21892 | G167: 23 | H167: 21900 | I167: 13 | J167: 21911 | K167: 1 | L167: 22121
A168: 12 | B168: 22035 | C168: 24 | D168: 22044 | E168: 13 | F168: 22053 | G168: 23 | H168: 22061 | I168: 24 | J168: 22077 | K168: 0 | L168: 12122
A169: 21 | B169: 22215 | C169: 11 | D169: 22226 | E169: 22 | F169: 22233 | G169: 23 | H169: 22250 | I169: 13 | J169: 22259 | K169: 0 | L169: 21221
A170: 21 | B170: 22358 | C170: 22 | D170: 22362 | E170: 13 | F170: 22372 | G170: 23 | H170: 22380 | I170: 13 | J170: 22391 | K170: 0 | L170: 22121
A171: 21 | B171: 22501 | C171: 11 | D171: 22517 | E171: 22 | F171: 22524 | G171: 14 | H171: 22533 | I171: 24 | J171: 22554 | K171: 0 | L171: 21212
A172: 21 | B172: 22656 | C172: 11 | D172: 22667 | E172: 22 | F172: 22674 | G172: 23 | H172: 22682 | I172: 24 | J172: 22689 | K172: 1 | L172: 21222
A173: 21 | B173: 22802 | C173: 11 | D173: 22814 | E173: 11 | F173: 22831 | G173: 21 | H173: 22847 | I173: 22 | J173: 22858 | K173: 0 | L173: 21122
A174: 12 | B174: 22953 | C174: 24 | D174: 22972 | E174: 24 | F174: 22978 | G174: 23 | H174: 22985 | I174: 13 | J174: 22993 | K174: 0 | L174: 12221
A175: 21 | B175: 23096 | C175: 22 | D175: 23104 | E175: 13 | F175: 23114 | G175: 23 | H175: 23122 | I175: 13 | J175: 23133 | K175: 0 | L175: 22121
A176: 21 | B176: 23247 | C176: 11 | D176: 23257 | E176: 22 | F176: 23264 | G176: 14 | H176: 23275 | I176: 13 | J176: 23293 | K176: 1 | L176: 21211
A177: 12 | B177: 23426 | C177: 13 | D177: 23430 | E177: 13 | F177: 23435 | G177: 14 | H177: 23440 | I177: 13 | J177: 23446 | K177: 1 | L177: 11111
A178: 21 | B178: 23567 | C178: 11 | D178: 23577 | E178: 22 | F178: 23585 | G178: 23 | H178: 23594 | I178: 13 | J178: 23604 | K178: 0 | L178: 21221
A179: 21 | B179: 23705 | C179: 11 | D179: 23716 | E179: 22 | F179: 23724 | G179: 14 | H179: 23733 | I179: 24 | J179: 23741 | K179: 0 | L179: 21212
A180: 21 | B180: 23883 | C180: 11 | D180: 23894 | E180: 22 | F180: 23902 | G180: 14 | H180: 23913 | I180: 24 | J180: 23921 | L180: 21212

Sheet !N329A50.000
A1: Report for:!N329A50.000
A2: Date: | B2: <date>
A3: Hen: | B3: <hen> | F3: Correct Sequence | G3: =Start!J2 -> 21121 | P3: Total Sequences in Data | Q3: =4994-COUNTBLANK(L7:L5000) -> 171 | V3: Total Sequences in Block Data | W3: =COUNTA(L7:L35) -> 29 | AA3: Total Sequences in Block Data | AB3: =COUNTA(L36:L63) -> 28 | AF3: Total Sequences in Block Data | AG3: =COUNTA(L64:L92) -> 29 | AK3: Total Sequences in Block Data | AL3: =COUNTA(L93:L120) -> 28 | AP3: Total Sequences in Block Data | AQ3: =COUNTA(L121:L149) -> 29 | AU3: Total Sequences in Block Data | AV3: =COUNTA(L150:L177) -> 28
P4: Total Sequences in Summary | Q4: =SUM(O7:O38) -> 171 | V4: Total Sequences in Block Summary | W4: =SUM(U7:U38) -> 29 | AA4: Total Sequences in Block Summary | AB4: =SUM(Z7:Z38) -> 28 | AF4: Total Sequences in Block Summary | AG4: =SUM(AE7:AE38) -> 29 | AK4: Total Sequences in Block Summary | AL4: =SUM(AJ7:AJ38) -> 28 | AP4: Total Sequences in Block Summary | AQ4: =SUM(AO7:AO38) -> 29 | AU4: Total Sequences in Block Summary | AV4: =SUM(AT7:AT38) -> 28
T5: Block 1 | Y5: Block 2 | AD5: Block 3 | AI5: Block 4 | AN5: Block 5 | AS5: Block 6
A6: Sequence Component 1 | B6: Time 1 | C6: Sequence Component 2 | D6: Time 2 | E6: Sequence Component 3 | F6: Time 3 | G6: Sequence Component 4 | H6: Time 4 | I6: Sequence Component 5 | J6: Time 5 | K6: Correct? 0=No 1=Yes | L6: Sequence | N6: Frequency | P6: Relative Frequency | Q6: Variability | T6: Frequency | V6: Relative Frequency | W6: Variability | Y6: Frequency | AA6: Relative Frequency | AB6: Variability | AD6: Frequency | AF6: Relative Frequency | AG6: Variability | AI6: Frequency | AK6: Relative Frequency | AL6: Variability | AN6: Frequency | AP6: Relative Frequency | AQ6: Variability | AS6: Frequency | AU6: Relative Frequency | AV6: Variability
A7: 12 | B7: 6 | C7: 13 | D7: 10 | E7: 13 | F7: 17 | G7: 23 | H7: 24 | I7: 24 | J7: 34 | K7: 1 | L7: 11122 | N7: 11111 | O7: =COUNTIF($L$7:$L$500,N7) -> 18 | P7: =O7/$Q$4 -> 0.1052631579 | Q7: =IF(P7=0,0,(P7*((LOG(P7))/LOG(2)))) -> -0.3418871067 | T7: =N7 -> 11111 | U7: =COUNTIF(L7:L35,T7) -> 8 | V7: =U7/(W4-U25) -> 0.3076923077 | W7: =IF(V7=0,0,(V7*((LOG(V7))/LOG(2)))) -> -0.523212221 | Y7: =N7 -> 11111 | Z7: =COUNTIF(L36:L63,Y7) -> 7 | AA7: =Z7/(AB4-Z25) -> 0.2592592593 | AB7: =IF(AA7=0,0,(AA7*((LOG(AA7))/LOG(2)))) -> -0.5049158541 | AD7: =N7 -> 11111 | AE7: =COUNTIF(L64:L92,AD7) -> 1 | AF7: =AE7/(AG4-AE25) -> 0.03703703704 | AG7: =IF(AF7=0,0,(AF7*((LOG(AF7))/LOG(2)))) -> -0.1761069445 | AI7: =N7 -> 11111 | AJ7: =COUNTIF(L93:L120,AI7) -> 1 | AK7: =AJ7/(AL4-AJ25) -> 0.03571428571 | AL7: =IF(AK7=0,0,(AK7*((LOG(AK7))/LOG(2)))) -> -0.1716912472 | AN7: =N7 -> 11111 | AO7: =COUNTIF(L121:L149,AN7) -> 0 | AP7: =AO7/(AQ4-AO25) -> 0 | AQ7: =IF(AP7=0,0,(AP7*((LOG(AP7))/LOG(2)))) -> 0 | AS7: =N7 -> 11111 | AT7: =COUNTIF(L150:L177,AS7) -> 1 | AU7: =AT7/(AV4-AT25) -> 0.03571428571 | AV7: =IF(AU7=0,0,(AU7*((LOG(AU7))/LOG(2)))) -> -0.1716912472
A8: 12 | B8: 127 | C8: 13 | D8: 132 | E8: 24 | F8: 143 | G8: 14 | H8: 152 | I8: 24 | J8: 159 | K8: 1 | L8: 11212 | N8: 11112 | O8: =COUNTIF($L$7:$L$500,N8) -> 11 | P8: =O8/$Q$4 -> 0.06432748538 | Q8: =IF(P8=0,0,(P8*((LOG(P8))/LOG(2)))) -> -0.2546352623 | T8: =N8 -> 11112 | U8: =COUNTIF(L7:L35,T8) -> 7 | V8: =U8/(W4-U25) -> 0.2692307692 | W8: =IF(V8=0,0,(V8*((LOG(V8))/LOG(2)))) -> -0.5096766759 | Y8: =N8 -> 11112 | Z8: =COUNTIF(L36:L63,Y8) -> 3 | AA8: =Z8/(AB4-Z25) -> 0.1111111111 | AB8: =IF(AA8=0,0,(AA8*((LOG(AA8))/LOG(2)))) -> -0.352213889 | AD8: =N8 -> 11112 | AE8: =COUNTIF(L64:L92,AD8) -> 0 | AF8: =AE8/(AG4-AE25) -> 0 | AG8: =IF(AF8=0,0,(AF8*((LOG(AF8))/LOG(2)))) -> 0 | AI8: =N8 -> 11112 | AJ8: =COUNTIF(L93:L120,AI8) -> 0 | AK8: =AJ8/(AL4-AJ25) -> 0 | AL8: =IF(AK8=0,0,(AK8*((LOG(AK8))/LOG(2)))) -> 0 | AN8: =N8 -> 11112 | AO8: =COUNTIF(L121:L149,AN8) -> 1 | AP8: =AO8/(AQ4-AO25) -> 0.03448275862 | AQ8: =IF(AP8=0,0,(AP8*((LOG(AP8))/LOG(2)))) -> -0.167516586 | AS8: =N8 -> 11112 | AT8: =COUNTIF(L150:L177,AS8) -> 0 | AU8: =AT8/(AV4-AT25) -> 0 | AV8: =IF(AU8=0,0,(AU8*((LOG(AU8))/LOG(2)))) -> 0
A9: 12 | B9: 253 | C9: 13 | D9: 258 | E9: 24 | F9: 269 | G9: 14 | H9: 277 | I9: 24 | J9: 284 | K9: 0 | L9: 11212 | N9: 11121 | O9: =COUNTIF($L$7:$L$500,N9) -> 7 | P9: =O9/$Q$4 -> 0.04093567251 | Q9: =IF(P9=0,0,(P9*((LOG(P9))/LOG(2)))) -> -0.1887338196 | T9: =N9 -> 11121 | U9: =COUNTIF(L7:L35,T9) -> 2 | V9: =U9/(W4-U25) -> 0.07692307692 | W9: =IF(V9=0,0,(V9*((LOG(V9))/LOG(2)))) -> -0.2846492091 | Y9: =N9 -> 11121 | Z9: =COUNTIF(L36:L63,Y9) -> 1 | AA9: =Z9/(AB4-Z25) -> 0.03703703704 | AB9: =IF(AA9=0,0,(AA9*((LOG(AA9))/LOG(2)))) -> -0.1761069445 | AD9: =N9 -> 11121 | AE9: =COUNTIF(L64:L92,AD9) -> 3 | AF9: =AE9/(AG4-AE25) -> 0.1111111111 | AG9: =IF(AF9=0,0,(AF9*((LOG(AF9))/LOG(2)))) -> -0.352213889 | AI9: =N9 -> 11121 | AJ9: =COUNTIF(L93:L120,AI9) -> 0 | AK9: =AJ9/(AL4-AJ25) -> 0 | AL9: =IF(AK9=0,0,(AK9*((LOG(AK9))/LOG(2)))) -> 0 | AN9: =N9 -> 11121 | AO9: =COUNTIF(L121:L149,AN9) -> 0 | AP9: =AO9/(AQ4-AO25) -> 0 | AQ9: =IF(AP9=0,0,(AP9*((LOG(AP9))/LOG(2)))) -> 0 | AS9: =N9 -> 11121 | AT9: =COUNTIF(L150:L177,AS9) -> 1 | AU9: =AT9/(AV4-AT25) -> 0.03571428571 | AV9: =IF(AU9=0,0,(AU9*((LOG(AU9))/LOG(2)))) -> -0.1716912472
A10: 12 | B10: 381 | C10: 24 | D10: 389 | E10: 13 | F10: 397 | G10: 23 | H10: 404 | I10: 13 | J10: 412 | K10: 0 | L10: 12121 | N10: 11122 | O10: =COUNTIF($L$7:$L$500,N10) -> 2 | P10: =O10/$Q$4 -> 0.01169590643 | Q10: =IF(P10=0,0,(P10*((LOG(P10))/LOG(2)))) -> -0.07506260251 | T10: =N10 -> 11122 | U10: =COUNTIF(L7:L35,T10) -> 1 | V10: =U10/(W4-U25) -> 0.03846153846 | W10: =IF(V10=0,0,(V10*((LOG(V10))/LOG(2)))) -> -0.180786143 | Y10: =N10 -> 11122 | Z10: =COUNTIF(L36:L63,Y10) -> 1 | AA10: =Z10/(AB4-Z25) -> 0.03703703704 | AB10: =IF(AA10=0,0,(AA10*((LOG(AA10))/LOG(2)))) -> -0.1761069445 | AD10: =N10 -> 11122 | AE10: =COUNTIF(L64:L92,AD10) -> 0 | AF10: =AE10/(AG4-AE25) -> 0 | AG10: =IF(AF10=0,0,(AF10*((LOG(AF10))/LOG(2)))) -> 0 | AI10: =N10 -> 11122 | AJ10: =COUNTIF(L93:L120,AI10) -> 0 | AK10: =AJ10/(AL4-AJ25) -> 0 | AL10: =IF(AK10=0,0,(AK10*((LOG(AK10))/LOG(2)))) -> 0 | AN10: =N10 -> 11122 | AO10: =COUNTIF(L121:L149,AN10) -> 0 | AP10: =AO10/(AQ4-AO25) -> 0 | AQ10: =IF(AP10=0,0,(AP10*((LOG(AP10))/LOG(2)))) -> 0 | AS10: =N10 -> 11122 | AT10: =COUNTIF(L150:L177,AS10) -> 0 | AU10: =AT10/(AV4-AT25) -> 0 | AV10: =IF(AU10=0,0,(AU10*((LOG(AU10))/LOG(2)))) -> 0
A11: 12 | B11: 507 | C11: 13 | D11: 515 | E11: 24 | F11: 522 | G11: 14 | H11: 530 | I11: 24 | J11: 536 | K11: 0 | L11: 11212 | N11: 11211 | O11: =COUNTIF($L$7:$L$500,N11) -> 0 | P11: =O11/$Q$4 -> 0 | Q11: =IF(P11=0,0,(P11*((LOG(P11))/LOG(2)))) -> 0 | T11: =N11 -> 11211 | U11: =COUNTIF(L7:L35,T11) -> 0 | V11: =U11/(W4-U25) -> 0 | W11: =IF(V11=0,0,(V11*((LOG(V11))/LOG(2)))) -> 0 | Y11: =N11 -> 11211 | Z11: =COUNTIF(L36:L63,Y11) -> 0 | AA11: =Z11/(AB4-Z25) -> 0 | AB11: =IF(AA11=0,0,(AA11*((LOG(AA11))/LOG(2)))) -> 0 | AD11: =N11 -> 11211 | AE11: =COUNTIF(L64:L92,AD11) -> 0 | AF11: =AE11/(AG4-AE25) -> 0 | AG11: =IF(AF11=0,0,(AF11*((LOG(AF11))/LOG(2)))) -> 0 | AI11: =N11 -> 11211 | AJ11: =COUNTIF(L93:L120,AI11) -> 0 | AK11: =AJ11/(AL4-AJ25) -> 0 | AL11: =IF(AK11=0,0,(AK11*((LOG(AK11))/LOG(2)))) -> 0 | AN11: =N11 -> 11211 | AO11: =COUNTIF(L121:L149,AN11) -> 0 | AP11: =AO11/(AQ4-AO25) -> 0 | AQ11: =IF(AP11=0,0,(AP11*((LOG(AP11))/LOG(2)))) -> 0 | AS11: =N11 -> 11211 | AT11: =COUNTIF(L150:L177,AS11) -> 0 | AU11: =AT11/(AV4-AT25) -> 0 | AV11: =IF(AU11=0,0,(AU11*((LOG(AU11))/LOG(2)))) -> 0
A12: 12 | B12: 633 | C12: 13 | D12: 639 | E12: 24 | F12: 647 | G12: 14 | H12: 654 | I12: 24 | J12: 661 | K12: 0 | L12: 11212 | N12: 11212 | O12: =COUNTIF($L$7:$L$500,N12) -> 8 | P12: =O12/$Q$4 -> 0.04678362573 | Q12: =IF(P12=0,0,(P12*((LOG(P12))/LOG(2)))) -> -0.2066831586 | T12: =N12 -> 11212 | U12: =COUNTIF(L7:L35,T12) -> 6 | V12: =U12/(W4-U25) -> 0.2307692308 | W12: =IF(V12=0,0,(V12*((LOG(V12))/LOG(2)))) -> -0.4881870502 | Y12: =N12 -> 11212 | Z12: =COUNTIF(L36:L63,Y12) -> 1 | AA12: =Z12/(AB4-Z25) -> 0.03703703704 | AB12: =IF(AA12=0,0,(AA12*((LOG(AA12))/LOG(2)))) -> -0.1761069445 | AD12: =N12 -> 11212 | AE12: =COUNTIF(L64:L92,AD12) -> 0 | AF12: =AE12/(AG4-AE25) -> 0 | AG12: =IF(AF12=0,0,(AF12*((LOG(AF12))/LOG(2)))) -> 0 | AI12: =N12 -> 11212 | AJ12: =COUNTIF(L93:L120,AI12) -> 1 | AK12: =AJ12/(AL4-AJ25) -> 0.03571428571 | AL12: =IF(AK12=0,0,(AK12*((LOG(AK12))/LOG(2)))) -> -0.1716912472 | AN12: =N12 -> 11212 | AO12: =COUNTIF(L121:L149,AN12) -> 0 | AP12: =AO12/(AQ4-AO25) -> 0 | AQ12: =IF(AP12=0,0,(AP12*((LOG(AP12))/LOG(2)))) -> 0 | AS12: =N12 -> 11212 | AT12: =COUNTIF(L150:L177,AS12) -> 0 | AU12: =AT12/(AV4-AT25) -> 0 | AV12: =IF(AU12=0,0,(AU12*((LOG(AU12))/LOG(2)))) -> 0
A13: 12 | B13: 758 | C13: 13 | D13: 766 | E13: 24 | F13: 773 | G13: 14 | H13: 781 | I13: 24 | J13: 789 | K13: 1 | L13: 11212 | N13: 11221 | O13: =COUNTIF($L$7:$L$500,N13) -> 1 | P13: =O13/$Q$4 -> 0.005847953216 | Q13: =IF(P13=0,0,(P13*((LOG(P13))/LOG(2)))) -> -0.04337925447 | T13: =N13 -> 11221 | U13: =COUNTIF(L7:L35,T13) -> 1 | V13: =U13/(W4-U25) -> 0.03846153846 | W13: =IF(V13=0,0,(V13*((LOG(V13))/LOG(2)))) -> -0.180786143 | Y13: =N13 -> 11221 | Z13: =COUNTIF(L36:L63,Y13) -> 0 | AA13: =Z13/(AB4-Z25) -> 0 | AB13: =IF(AA13=0,0,(AA13*((LOG(AA13))/LOG(2)))) -> 0 | AD13: =N13 -> 11221 | AE13: =COUNTIF(L64:L92,AD13) -> 0 | AF13: =AE13/(AG4-AE25) -> 0 | AG13: =IF(AF13=0,0,(AF13*((LOG(AF13))/LOG(2)))) -> 0 | AI13: =N13 -> 11221 | AJ13: =COUNTIF(L93:L120,AI13) -> 0 | AK13: =AJ13/(AL4-AJ25) -> 0 | AL13: =IF(AK13=0,0,(AK13*((LOG(AK13))/LOG(2)))) -> 0 | AN13: =N13 -> 11221 | AO13: =COUNTIF(L121:L149,AN13) -> 0 | AP13: =AO13/(AQ4-AO25) -> 0 | AQ13: =IF(AP13=0,0,(AP13*((LOG(AP13))/LOG(2)))) -> 0 | AS13: =N13 -> 11221 | AT13: =COUNTIF(L150:L177,AS13) -> 0 | AU13: =AT13/(AV4-AT25) -> 0 | AV13: =IF(AU13=0,0,(AU13*((LOG(AU13))/LOG(2)))) -> 0
A14: 12 | B14: 881 | C14: 13 | D14: 885 | E14: 13 | F14: 890 | G14: 14 | H14: 897 | I14: 24 | J14: 908 | K14: 0 | L14: 11112 | N14: 11222 | O14: =COUNTIF($L$7:$L$500,N14) -> 0 | P14: =O14/$Q$4 -> 0 | Q14: =IF(P14=0,0,(P14*((LOG(P14))/LOG(2)))) -> 0 | T14: =N14 -> 11222 | U14: =COUNTIF(L7:L35,T14) -> 0 | V14: =U14/(W4-U25) -> 0 | W14: =IF(V14=0,0,(V14*((LOG(V14))/LOG(2)))) -> 0 | Y14: =N14 -> 11222 | Z14: =COUNTIF(L36:L63,Y14) -> 0 | AA14: =Z14/(AB4-Z25) -> 0 | AB14: =IF(AA14=0,0,(AA14*((LOG(AA14))/LOG(2)))) -> 0 | AD14: =N14 -> 11222 | AE14: =COUNTIF(L64:L92,AD14) -> 0 | AF14: =AE14/(AG4-AE25) -> 0 | AG14: =IF(AF14=0,0,(AF14*((LOG(AF14))/LOG(2)))) -> 0 | AI14: =N14 -> 11222 | AJ14: =COUNTIF(L93:L120,AI14) -> 0 | AK14: =AJ14/(AL4-AJ25) -> 0 | AL14: =IF(AK14=0,0,(AK14*((LOG(AK14))/LOG(2)))) -> 0 | AN14: =N14 -> 11222 | AO14: =COUNTIF(L121:L149,AN14) -> 0 | AP14: =AO14/(AQ4-AO25) -> 0 | AQ14: =IF(AP14=0,0,(AP14*((LOG(AP14))/LOG(2)))) -> 0 | AS14: =N14 -> 11222 | AT14: =COUNTIF(L150:L177,AS14) -> 0 | AU14: =AT14/(AV4-AT25) -> 0 | AV14: =IF(AU14=0,0,(AU14*((LOG(AU14))/LOG(2)))) -> 0
A15: 12 | B15: 1005 | C15: 13 | D15: 1009 | E15: 13 | F15: 1013 | G15: 14 | H15: 1020 | I15: 24 | J15: 1032 | K15: 0 | L15: 11112 | N15: 12111 | O15: =COUNTIF($L$7:$L$500,N15) -> 0 | P15: =O15/$Q$4 -> 0 | Q15: =IF(P15=0,0,(P15*((LOG(P15))/LOG(2)))) -> 0 | T15: =N15 -> 12111 | U15: =COUNTIF(L7:L35,T15) -> 0 | V15: =U15/(W4-U25) -> 0 | W15: =IF(V15=0,0,(V15*((LOG(V15))/LOG(2)))) -> 0 | Y15: =N15 -> 12111 | Z15: =COUNTIF(L36:L63,Y15) -> 0 | AA15: =Z15/(AB4-Z25) -> 0 | AB15: =IF(AA15=0,0,(AA15*((LOG(AA15))/LOG(2)))) -> 0 | AD15: =N15 -> 12111 | AE15: =COUNTIF(L64:L92,AD15) -> 0 | AF15: =AE15/(AG4-AE25) -> 0 | AG15: =IF(AF15=0,0,(AF15*((LOG(AF15))/LOG(2)))) -> 0 | AI15: =N15 -> 12111 | AJ15: =COUNTIF(L93:L120,AI15) -> 0 | AK15: =AJ15/(AL4-AJ25) -> 0 | AL15: =IF(AK15=0,0,(AK15*((LOG(AK15))/LOG(2)))) -> 0 | AN15: =N15 -> 12111 | AO15: =COUNTIF(L121:L149,AN15) -> 0 | AP15: =AO15/(AQ4-AO25) -> 0 | AQ15: =IF(AP15=0,0,(AP15*((LOG(AP15))/LOG(2)))) -> 0 | AS15: =N15 -> 12111 | AT15: =COUNTIF(L150:L177,AS15) -> 0 | AU15: =AT15/(AV4-AT25) -> 0 | AV15: =IF(AU15=0,0,(AU15*((LOG(AU15))/LOG(2)))) -> 0
A16: 12 | B16: 1128 | C16: 13 | D16: 1132 | E16: 13 | F16: 1138 | G16: 14 | H16: 1146 | I16: 24 | J16: 1154 | K16: 0 | L16: 11112 | N16: 12112 | O16: =COUNTIF($L$7:$L$500,N16) -> 0 | P16: =O16/$Q$4 -> 0 | Q16: =IF(P16=0,0,(P16*((LOG(P16))/LOG(2)))) -> 0 | T16: =N16 -> 12112 | U16: =COUNTIF(L7:L35,T16) -> 0 | V16: =U16/(W4-U25) -> 0 | W16: =IF(V16=0,0,(V16*((LOG(V16))/LOG(2)))) -> 0 | Y16: =N16 -> 12112 | Z16: =COUNTIF(L36:L63,Y16) -> 0 | AA16: =Z16/(AB4-Z25) -> 0 | AB16: =IF(AA16=0,0,(AA16*((LOG(AA16))/LOG(2)))) -> 0 | AD16: =N16 -> 12112 | AE16: =COUNTIF(L64:L92,AD16) -> 0 | AF16: =AE16/(AG4-AE25) -> 0 | AG16: =IF(AF16=0,0,(AF16*((LOG(AF16))/LOG(2)))) -> 0 | AI16: =N16 -> 12112 | AJ16: =COUNTIF(L93:L120,AI16) -> 0 | AK16: =AJ16/(AL4-AJ25) -> 0 | AL16: =IF(AK16=0,0,(AK16*((LOG(AK16))/LOG(2)))) -> 0 | AN16: =N16 -> 12112 | AO16: =COUNTIF(L121:L149,AN16) -> 0 | AP16: =AO16/(AQ4-AO25) -> 0 | AQ16: =IF(AP16=0,0,(AP16*((LOG(AP16))/LOG(2)))) -> 0 | AS16: =N16 -> 12112 | AT16: =COUNTIF(L150:L177,AS16) -> 0 | AU16: =AT16/(AV4-AT25) -> 0 | AV16: =IF(AU16=0,0,(AU16*((LOG(AU16))/LOG(2)))) -> 0
A17: 12 | B17: 1253 | C17: 13 | D17: 1257 | E17: 13 | F17: 1263 | G17: 14 | H17: 1271 | I17: 24 | J17: 1279 | K17: 0 | L17: 11112 | N17: 12121 | O17: =COUNTIF($L$7:$L$500,N17) -> 8 | P17: =O17/$Q$4 -> 0.04678362573 | Q17: =IF(P17=0,0,(P17*((LOG(P17))/LOG(2)))) -> -0.2066831586 | T17: =N17 -> 12121 | U17: =COUNTIF(L7:L35,T17) -> 1 | V17: =U17/(W4-U25) -> 0.03846153846 | W17: =IF(V17=0,0,(V17*((LOG(V17))/LOG(2)))) -> -0.180786143 | Y17: =N17 -> 12121 | Z17: =COUNTIF(L36:L63,Y17) -> 1 | AA17: =Z17/(AB4-Z25) -> 0.03703703704 | AB17: =IF(AA17=0,0,(AA17*((LOG(AA17))/LOG(2)))) -> -0.1761069445 | AD17: =N17 -> 12121 | AE17: =COUNTIF(L64:L92,AD17) -> 1 | AF17: =AE17/(AG4-AE25) -> 0.03703703704 | AG17: =IF(AF17=0,0,(AF17*((LOG(AF17))/LOG(2)))) -> -0.1761069445 | AI17: =N17 -> 12121 | AJ17: =COUNTIF(L93:L120,AI17) -> 1 | AK17: =AJ17/(AL4-AJ25) -> 0.03571428571 | AL17: =IF(AK17=0,0,(AK17*((LOG(AK17))/LOG(2)))) -> -0.1716912472 | AN17: =N17 -> 12121 | AO17: =COUNTIF(L121:L149,AN17) -> 3 | AP17: =AO17/(AQ4-AO25) -> 0.1034482759 | AQ17: =IF(AP17=0,0,(AP17*((LOG(AP17))/LOG(2)))) -> -0.3385881201 | AS17: =N17 -> 12121 | AT17: =COUNTIF(L150:L177,AS17) -> 1 | AU17: =AT17/(AV4-AT25) -> 0.03571428571 | AV17: =IF(AU17=0,0,(AU17*((LOG(AU17))/LOG(2)))) -> -0.1716912472
A18: 12 | B18: 1379 | C18: 13 | D18: 1383 | E18: 24 | F18: 1400 | G18: 14 | H18: 1409 | I18: 24 | J18: 1419 | K18: 0 | L18: 11212 | N18: 12122 | O18: =COUNTIF($L$7:$L$500,N18) -> 1 | P18: =O18/$Q$4 -> 0.005847953216 | Q18: =IF(P18=0,0,(P18*((LOG(P18))/LOG(2)))) -> -0.04337925447 | T18: =N18 -> 12122 | U18: =COUNTIF(L7:L35,T18) -> 0 | V18: =U18/(W4-U25) -> 0 | W18: =IF(V18=0,0,(V18*((LOG(V18))/LOG(2)))) -> 0 | Y18: =N18 -> 12122 | Z18: =COUNTIF(L36:L63,Y18) -> 0 | AA18: =Z18/(AB4-Z25) -> 0 | AB18: =IF(AA18=0,0,(AA18*((LOG(AA18))/LOG(2)))) -> 0 | AD18: =N18 -> 12122 | AE18: =COUNTIF(L64:L92,AD18) -> 0 | AF18: =AE18/(AG4-AE25) -> 0 | AG18: =IF(AF18=0,0,(AF18*((LOG(AF18))/LOG(2)))) -> 0 | AI18: =N18 -> 12122 | AJ18: =COUNTIF(L93:L120,AI18) -> 0 | AK18: =AJ18/(AL4-AJ25) -> 0 | AL18: =IF(AK18=0,0,(AK18*((LOG(AK18))/LOG(2)))) -> 0 | AN18: =N18 -> 12122 | AO18: =COUNTIF(L121:L149,AN18) -> 0 | AP18: =AO18/(AQ4-AO25) -> 0 | AQ18: =IF(AP18=0,0,(AP18*((LOG(AP18))/LOG(2)))) -> 0 | AS18: =N18 -> 12122 | AT18: =COUNTIF(L150:L177,AS18) -> 1 | AU18: =AT18/(AV4-AT25) -> 0.03571428571 | AV18: =IF(AU18=0,0,(AU18*((LOG(AU18))/LOG(2)))) -> -0.1716912472
A19: 12 | B19: 1515 | C19: 13 | D19: 1519 | E19: 13 | F19: 1523 | G19: 14 | H19: 1530 | I19: 24 | J19: 1542 | K19: 0 | L19: 11112 | N19: 12211 | O19: =COUNTIF($L$7:$L$500,N19) -> 0 | P19: =O19/$Q$4 -> 0 | Q19: =IF(P19=0,0,(P19*((LOG(P19))/LOG(2)))) -> 0 | T19: =N19 -> 12211 | U19: =COUNTIF(L7:L35,T19) -> 0 | V19: =U19/(W4-U25) -> 0 | W19: =IF(V19=0,0,(V19*((LOG(V19))/LOG(2)))) -> 0 | Y19: =N19 -> 12211 | Z19: =COUNTIF(L36:L63,Y19) -> 0 | AA19: =Z19/(AB4-Z25) -> 0 | AB19: =IF(AA19=0,0,(AA19*((LOG(AA19))/LOG(2)))) -> 0 | AD19: =N19 -> 12211 | AE19: =COUNTIF(L64:L92,AD19) -> 0 | AF19: =AE19/(AG4-AE25) -> 0 | AG19: =IF(AF19=0,0,(AF19*((LOG(AF19))/LOG(2)))) -> 0 | AI19: =N19 -> 12211 | AJ19: =COUNTIF(L93:L120,AI19) -> 0 | AK19: =AJ19/(AL4-AJ25) -> 0 | AL19: =IF(AK19=0,0,(AK19*((LOG(AK19))/LOG(2)))) -> 0 | AN19: =N19 -> 12211 | AO19: =COUNTIF(L121:L149,AN19) -> 0 | AP19: =AO19/(AQ4-AO25) -> 0 | AQ19: =IF(AP19=0,0,(AP19*((LOG(AP19))/LOG(2)))) -> 0 | AS19: =N19 -> 12211 | AT19: =COUNTIF(L150:L177,AS19) -> 0 | AU19: =AT19/(AV4-AT25) -> 0 | AV19: =IF(AU19=0,0,(AU19*((LOG(AU19))/LOG(2)))) -> 0
A20: 12 | B20: 1643 | C20: 13 | D20: 1647 | E20: 13 | F20: 1654 | G20: 14 | H20: 1658 | I20: 13 | J20: 1665 | K20: 0 | L20: 11111 | N20: 12212 | O20: =COUNTIF($L$7:$L$500,N20) -> 2 | P20: =O20/$Q$4 -> 0.01169590643 | Q20: =IF(P20=0,0,(P20*((LOG(P20))/LOG(2)))) -> -0.07506260251 | T20: =N20 -> 12212 | U20: =COUNTIF(L7:L35,T20) -> 0 | V20: =U20/(W4-U25) -> 0 | W20: =IF(V20=0,0,(V20*((LOG(V20))/LOG(2)))) -> 0 | Y20: =N20 -> 12212 | Z20: =COUNTIF(L36:L63,Y20) -> 0 | AA20: =Z20/(AB4-Z25) -> 0 | AB20: =IF(AA20=0,0,(AA20*((LOG(AA20))/LOG(2)))) -> 0 | AD20: =N20 -> 12212 | AE20: =COUNTIF(L64:L92,AD20) -> 0 | AF20: =AE20/(AG4-AE25) -> 0 | AG20: =IF(AF20=0,0,(AF20*((LOG(AF20))/LOG(2)))) -> 0 | AI20: =N20 -> 12212 | AJ20: =COUNTIF(L93:L120,AI20) -> 1 | AK20: =AJ20/(AL4-AJ25) -> 0.03571428571 | AL20: =IF(AK20=0,0,(AK20*((LOG(AK20))/LOG(2)))) -> -0.1716912472 | AN20: =N20 -> 12212 | AO20: =COUNTIF(L121:L149,AN20) -> 0 | AP20: =AO20/(AQ4-AO25) -> 0 | AQ20: =IF(AP20=0,0,(AP20*((LOG(AP20))/LOG(2)))) -> 0 | AS20: =N20 -> 12212 | AT20: =COUNTIF(L150:L177,AS20) -> 1 | AU20: =AT20/(AV4-AT25) -> 0.03571428571 | AV20: =IF(AU20=0,0,(AU20*((LOG(AU20))/LOG(2)))) -> -0.1716912472
A21: 12 | B21: 1763 | C21: 13 | D21: 1768 | E21: 13 | F21: 1772 | G21: 14 | H21: 1778 | I21: 13 | J21: 1784 | K21: 1 | L21: 11111 | N21: 12221 | O21: =COUNTIF($L$7:$L$500,N21) -> 0 | P21: =O21/$Q$4 -> 0 | Q21: =IF(P21=0,0,(P21*((LOG(P21))/LOG(2)))) -> 0 | T21: =N21 -> 12221 | U21: =COUNTIF(L7:L35,T21) -> 0 | V21: =U21/(W4-U25) -> 0 | W21: =IF(V21=0,0,(V21*((LOG(V21))/LOG(2)))) -> 0 | Y21: =N21 -> 12221 | Z21: =COUNTIF(L36:L63,Y21) -> 0 | AA21: =Z21/(AB4-Z25) -> 0 | AB21: =IF(AA21=0,0,(AA21*((LOG(AA21))/LOG(2)))) -> 0 | AD21: =N21 -> 12221 | AE21: =COUNTIF(L64:L92,AD21) -> 0 | AF21: =AE21/(AG4-AE25) -> 0 | AG21: =IF(AF21=0,0,(AF21*((LOG(AF21))/LOG(2)))) -> 0 | AI21: =N21 -> 12221 | AJ21: =COUNTIF(L93:L120,AI21) -> 0 | AK21: =AJ21/(AL4-AJ25) -> 0 | AL21: =IF(AK21=0,0,(AK21*((LOG(AK21))/LOG(2)))) -> 0 | AN21: =N21 -> 12221 | AO21: =COUNTIF(L121:L149,AN21) -> 0 | AP21: =AO21/(AQ4-AO25) -> 0 | AQ21: =IF(AP21=0,0,(AP21*((LOG(AP21))/LOG(2)))) -> 0 | AS21: =N21 -> 12221 | AT21: =COUNTIF(L150:L177,AS21) -> 0 | AU21: =AT21/(AV4-AT25) -> 0 | AV21: =IF(AU21=0,0,(AU21*((LOG(AU21))/LOG(2)))) -> 0
A22: 12 | B22: 1881 | C22: 13 | D22: 1885 | E22: 13 | F22: 1889 | G22: 23 | H22: 1898 | I22: 13 | J22: 1906 | K22: 0 | L22: 11121 | N22: 12222 | O22: =COUNTIF($L$7:$L$500,N22) -> 0 | P22: =O22/$Q$4 -> 0 | Q22: =IF(P22=0,0,(P22*((LOG(P22))/LOG(2)))) -> 0 | T22: =N22 -> 12222 | U22: =COUNTIF(L7:L35,T22) -> 0 | V22: =U22/(W4-U25) -> 0 | W22: =IF(V22=0,0,(V22*((LOG(V22))/LOG(2)))) -> 0 | Y22: =N22 -> 12222 | Z22: =COUNTIF(L36:L63,Y22) -> 0 | AA22: =Z22/(AB4-Z25) -> 0 | AB22: =IF(AA22=0,0,(AA22*((LOG(AA22))/LOG(2)))) -> 0 | AD22: =N22 -> 12222 | AE22: =COUNTIF(L64:L92,AD22) -> 0 | AF22: =AE22/(AG4-AE25) -> 0 | AG22: =IF(AF22=0,0,(AF22*((LOG(AF22))/LOG(2)))) -> 0 | AI22: =N22 -> 12222 | AJ22: =COUNTIF(L93:L120,AI22) -> 0 | AK22: =AJ22/(AL4-AJ25) -> 0 | AL22: =IF(AK22=0,0,(AK22*((LOG(AK22))/LOG(2)))) -> 0 | AN22: =N22 -> 12222 | AO22: =COUNTIF(L121:L149,AN22) -> 0 | AP22: =AO22/(AQ4-AO25) -> 0 | AQ22: =IF(AP22=0,0,(AP22*((LOG(AP22))/LOG(2)))) -> 0 | AS22: =N22 -> 12222 | AT22: =COUNTIF(L150:L177,AS22) -> 0 | AU22: =AT22/(AV4-AT25) -> 0 | AV22: =IF(AU22=0,0,(AU22*((LOG(AU22))/LOG(2)))) -> 0
A23: 12 | B23: 2006 | C23: 13 | D23: 2017 | E23: 24 | F23: 2024 | G23: 23 | H23: 2031 | I23: 13 | J23: 2038 | K23: 0 | L23: 11221 | N23: 21111 | O23: =COUNTIF($L$7:$L$500,N23) -> 11 | P23: =O23/$Q$4 -> 0.06432748538 | Q23: =IF(P23=0,0,(P23*((LOG(P23))/LOG(2)))) -> -0.2546352623 | T23: =N23 -> 21111 | U23: =COUNTIF(L7:L35,T23) -> 0 | V23: =U23/(W4-U25) -> 0 | W23: =IF(V23=0,0,(V23*((LOG(V23))/LOG(2)))) -> 0 | Y23: =N23 -> 21111 | Z23: =COUNTIF(L36:L63,Y23) -> 5 | AA23: =Z23/(AB4-Z25) -> 0.1851851852 | AB23: =IF(AA23=0,0,(AA23*((LOG(AA23))/LOG(2)))) -> -0.4505480384 | AD23: =N23 -> 21111 | AE23: =COUNTIF(L64:L92,AD23) -> 6 | AF23: =AE23/(AG4-AE25) -> 0.2222222222 | AG23: =IF(AF23=0,0,(AF23*((LOG(AF23))/LOG(2)))) -> -0.4822055559 | AI23: =N23 -> 21111 | AJ23: =COUNTIF(L93:L120,AI23) -> 0 | AK23: =AJ23/(AL4-AJ25) -> 0 | AL23: =IF(AK23=0,0,(AK23*((LOG(AK23))/LOG(2)))) -> 0 | AN23: =N23 -> 21111 | AO23: =COUNTIF(L121:L149,AN23) -> 0 | AP23: =AO23/(AQ4-AO25) -> 0 | AQ23: =IF(AP23=0,0,(AP23*((LOG(AP23))/LOG(2)))) -> 0 | AS23: =N23 -> 21111 | AT23: =COUNTIF(L150:L177,AS23) -> 0 | AU23: =AT23/(AV4-AT25) -> 0 | AV23: =IF(AU23=0,0,(AU23*((LOG(AU23))/LOG(2)))) -> 0
A24: 12 | B24: 2136 | C24: 13 | D24: 2140 | E24: 13 | F24: 2144 | G24: 14 | H24: 2151 | I24: 13 | J24: 2157 | K24: 0 | L24: 11111 | N24: 21112 | O24: =COUNTIF($L$7:$L$500,N24) -> 15 | P24: =O24/$Q$4 -> 0.08771929825 | Q24: =IF(P24=0,0,(P24*((LOG(P24))/LOG(2)))) -> -0.3079791157 | T24: =N24 -> 21112 | U24: =COUNTIF(L7:L35,T24) -> 0 | V24: =U24/(W4-U25) -> 0 | W24: =IF(V24=0,0,(V24*((LOG(V24))/LOG(2)))) -> 0 | Y24: =N24 -> 21112 | Z24: =COUNTIF(L36:L63,Y24) -> 4 | AA24: =Z24/(AB4-Z25) -> 0.1481481481 | AB24: =IF(AA24=0,0,(AA24*((LOG(AA24))/LOG(2)))) -> -0.4081314818 | AD24: =N24 -> 21112 | AE24: =COUNTIF(L64:L92,AD24) -> 10 | AF24: =AE24/(AG4-AE25) -> 0.3703703704 | AG24: =IF(AF24=0,0,(AF24*((LOG(AF24))/LOG(2)))) -> -0.5307257064 | AI24: =N24 -> 21112 | AJ24: =COUNTIF(L93:L120,AI24) -> 0 | AK24: =AJ24/(AL4-AJ25) -> 0 | AL24: =IF(AK24=0,0,(AK24*((LOG(AK24))/LOG(2)))) -> 0 | AN24: =N24 -> 21112 | AO24: =COUNTIF(L121:L149,AN24) -> 0 | AP24: =AO24/(AQ4-AO25) -> 0 | AQ24: =IF(AP24=0,0,(AP24*((LOG(AP24))/LOG(2)))) -> 0 | AS24: =N24 -> 21112 | AT24: =COUNTIF(L150:L177,AS24) -> 1 | AU24: =AT24/(AV4-AT25) -> 0.03571428571 | AV24: =IF(AU24=0,0,(AU24*((LOG(AU24))/LOG(2)))) -> -0.1716912472
A25: 12 | B25: 2255 | C25: 13 | D25: 2259 | E25: 13 | F25: 2263 | G25: 14 | H25: 2272 | I25: 24 | J25: 2281 | K25: 0 | L25: 11112 | N25: 21121 | O25: =COUNTIF($L$7:$L$500,N25) -> 6 | P25: =O25/$Q$4 -> 0.0350877193 | Q25: =IF(P25=0,0,(P25*((LOG(P25))/LOG(2)))) -> -0.1695750882 | T25: =N25 -> 21121 | U25: =COUNTIF(L7:L35,T25) -> 3 | Y25: =N25 -> 21121 | Z25: =COUNTIF(L36:L63,Y25) -> 1 | AD25: =N25 -> 21121 | AE25: =COUNTIF(L64:L92,AD25) -> 2 | AI25: =N25 -> 21121 | AJ25: =COUNTIF(L93:L120,AI25) -> 0 | AN25: =N25 -> 21121 | AO25: =COUNTIF(L121:L149,AN25) -> 0 | AS25: =N25 -> 21121 | AT25: =COUNTIF(L150:L177,AS25) -> 0
A26: 12 | B26: 2380 | C26: 13 | D26: 2384 | E26: 13 | F26: 2388 | G26: 14 | H26: 2394 | I26: 13 | J26: 2405 | K26: 0 | L26: 11111 | N26: 21122 | O26: =COUNTIF($L$7:$L$500,N26) -> 1 | P26: =O26/$Q$4 -> 0.005847953216 | Q26: =IF(P26=0,0,(P26*((LOG(P26))/LOG(2)))) -> -0.04337925447 | T26: =N26 -> 21122 | U26: =COUNTIF(L7:L35,T26) -> 0 | V26: =U26/(W4-U25) -> 0 | W26: =IF(V26=0,0,(V26*((LOG(V26))/LOG(2)))) -> 0 | Y26: =N26 -> 21122 | Z26: =COUNTIF(L36:L63,Y26) -> 0 | AA26: =Z26/(AB4-Z25) -> 0 | AB26: =IF(AA26=0,0,(AA26*((LOG(AA26))/LOG(2)))) -> 0 | AD26: =N26 -> 21122 | AE26: =COUNTIF(L64:L92,AD26) -> 1 | AF26: =AE26/(AG4-AE25) -> 0.03703703704 | AG26: =IF(AF26=0,0,(AF26*((LOG(AF26))/LOG(2)))) -> -0.1761069445 | AI26: =N26 -> 21122 | AJ26: =COUNTIF(L93:L120,AI26) -> 0 | AK26: =AJ26/(AL4-AJ25) -> 0 | AL26: =IF(AK26=0,0,(AK26*((LOG(AK26))/LOG(2)))) -> 0 | AN26: =N26 -> 21122 | AO26: =COUNTIF(L121:L149,AN26) -> 0 | AP26: =AO26/(AQ4-AO25) -> 0 | AQ26: =IF(AP26=0,0,(AP26*((LOG(AP26))/LOG(2)))) -> 0 | AS26: =N26 -> 21122 | AT26: =COUNTIF(L150:L177,AS26) -> 0 | AU26: =AT26/(AV4-AT25) -> 0 | AV26: =IF(AU26=0,0,(AU26*((LOG(AU26))/LOG(2)))) -> 0
A27: 12 | B27: 2502 | C27: 13 | D27: 2506 | E27: 13 | F27: 2510 | G27: 14 | H27: 2514 | I27: 13 | J27: 2521 | K27: 0 | L27: 11111 | N27: 21211 | O27: =COUNTIF($L$7:$L$500,N27) -> 1 | P27: =O27/$Q$4 -> 0.005847953216 | Q27: =IF(P27=0,0,(P27*((LOG(P27))/LOG(2)))) -> -0.04337925447 | T27: =N27 -> 21211 | U27: =COUNTIF(L7:L35,T27) -> 0 | V27: =U27/(W4-U25) -> 0 | W27: =IF(V27=0,0,(V27*((LOG(V27))/LOG(2)))) -> 0 | Y27: =N27 -> 21211 | Z27: =COUNTIF(L36:L63,Y27) -> 0 | AA27: =Z27/(AB4-Z25) -> 0 | AB27: =IF(AA27=0,0,(AA27*((LOG(AA27))/LOG(2)))) -> 0 | AD27: =N27 -> 21211 | AE27: =COUNTIF(L64:L92,AD27) -> 1 | AF27: =AE27/(AG4-AE25) -> 0.03703703704 | AG27: =IF(AF27=0,0,(AF27*((LOG(AF27))/LOG(2)))) -> -0.1761069445 | AI27: =N27 -> 21211 | AJ27: =COUNTIF(L93:L120,AI27) -> 0 | AK27: =AJ27/(AL4-AJ25) -> 0 | AL27: =IF(AK27=0,0,(AK27*((LOG(AK27))/LOG(2)))) -> 0 | AN27: =N27 -> 21211 | AO27: =COUNTIF(L121:L149,AN27) -> 0 | AP27: =AO27/(AQ4-AO25) -> 0 | AQ27: =IF(AP27=0,0,(AP27*((LOG(AP27))/LOG(2)))) -> 0 | AS27: =N27 -> 21211 | AT27: =COUNTIF(L150:L177,AS27) -> 0 | AU27: =AT27/(AV4-AT25) -> 0 | AV27: =IF(AU27=0,0,(AU27*((LOG(AU27))/LOG(2)))) -> 0
A28: 12 | B28: 2635 | C28: 13 | D28: 2639 | E28: 13 | F28: 2643 | G28: 14 | H28: 2651 | I28: 13 | J28: 2658 | K28: 0 | L28: 11111 | N28: 21212 | O28: =COUNTIF($L$7:$L$500,N28) -> 25 | P28: =O28/$Q$4 -> 0.1461988304 | Q28: =IF(P28=0,0,(P28*((LOG(P28))/LOG(2)))) -> -0.4055550183 | T28: =N28 -> 21212 | U28: =COUNTIF(L7:L35,T28) -> 0 | V28: =U28/(W4-U25) -> 0 | W28: =IF(V28=0,0,(V28*((LOG(V28))/LOG(2)))) -> 0 | Y28: =N28 -> 21212 | Z28: =COUNTIF(L36:L63,Y28) -> 0 | AA28: =Z28/(AB4-Z25) -> 0 | AB28: =IF(AA28=0,0,(AA28*((LOG(AA28))/LOG(2)))) -> 0 | AD28: =N28 -> 21212 | AE28: =COUNTIF(L64:L92,AD28) -> 1 | AF28: =AE28/(AG4-AE25) -> 0.03703703704 | AG28: =IF(AF28=0,0,(AF28*((LOG(AF28))/LOG(2)))) -> -0.1761069445 | AI28: =N28 -> 21212 | AJ28: =COUNTIF(L93:L120,AI28) -> 12 | AK28: =AJ28/(AL4-AJ25) -> 0.4285714286 | AL28: =IF(AK28=0,0,(AK28*((LOG(AK28))/LOG(2)))) -> -0.5238824663 | AN28: =N28 -> 21212 | AO28: =COUNTIF(L121:L149,AN28) -> 10 | AP28: =AO28/(AQ4-AO25) -> 0.3448275862 | AQ28: =IF(AP28=0,0,(AP28*((LOG(AP28))/LOG(2)))) -> -0.5296734139 | AS28: =N28 -> 21212 | AT28: =COUNTIF(L150:L177,AS28) -> 2 | AU28: =AT28/(AV4-AT25) -> 0.07142857143 | AV28: =IF(AU28=0,0,(AU28*((LOG(AU28))/LOG(2)))) -> -0.271953923
A29: 12 | B29: 2768 | C29: 13 | D29: 2772 | E29: 13 | F29: 2780 | G29: 23 | H29: 2787 | I29: 13 | J29: 2797 | K29: 0 | L29: 11121 | N29: 21221 | O29: =COUNTIF($L$7:$L$500,N29) -> 5 | P29: =O29/$Q$4 -> 0.02923976608 | Q29: =IF(P29=0,0,(P29*((LOG(P29))/LOG(2)))) -> -0.149003638 | T29: =N29 -> 21221 | U29: =COUNTIF(L7:L35,T29) -> 0 | V29: =U29/(W4-U25) -> 0 | W29: =IF(V29=0,0,(V29*((LOG(V29))/LOG(2)))) -> 0 | Y29: =N29 -> 21221 | Z29: =COUNTIF(L36:L63,Y29) -> 0 | AA29: =Z29/(AB4-Z25) -> 0 | AB29: =IF(AA29=0,0,(AA29*((LOG(AA29))/LOG(2)))) -> 0 | AD29: =N29 -> 21221 | AE29: =COUNTIF(L64:L92,AD29) -> 1 | AF29: =AE29/(AG4-AE25) -> 0.03703703704 | AG29: =IF(AF29=0,0,(AF29*((LOG(AF29))/LOG(2)))) -> -0.1761069445 | AI29: =N29 -> 21221 | AJ29: =COUNTIF(L93:L120,AI29) -> 2 | AK29: =AJ29/(AL4-AJ25) -> 0.07142857143 | AL29: =IF(AK29=0,0,(AK29*((LOG(AK29))/LOG(2)))) -> -0.271953923 | AN29: =N29 -> 21221 | AO29: =COUNTIF(L121:L149,AN29) -> 0 | AP29: =AO29/(AQ4-AO25) -> 0 | AQ29: =IF(AP29=0,0,(AP29*((LOG(AP29))/LOG(2)))) -> 0 | AS29: =N29 -> 21221 | AT29: =COUNTIF(L150:L177,AS29) -> 2 | AU29: =AT29/(AV4-AT25) -> 0.07142857143 | AV29: =IF(AU29=0,0,(AU29*((LOG(AU29))/LOG(2)))) -> -0.271953923
A30: 12 | B30: 2899 | C30: 13 | D30: 2903 | E30: 13 | F30: 2908 | G30: 14 | H30: 2915 | I30: 24 | J30: 2924 | K30: 0 | L30: 11112 | N30: 21222 | O30: =COUNTIF($L$7:$L$500,N30) -> 0 | P30: =O30/$Q$4 -> 0 | Q30: =IF(P30=0,0,(P30*((LOG(P30))/LOG(2)))) -> 0 | T30: =N30 -> 21222 | U30: =COUNTIF(L7:L35,T30) -> 0 | V30: =U30/(W4-U25) -> 0 | W30: =IF(V30=0,0,(V30*((LOG(V30))/LOG(2)))) -> 0 | Y30: =N30 -> 21222 | Z30: =COUNTIF(L36:L63,Y30) -> 0 | AA30: =Z30/(AB4-Z25) -> 0 | AB30: =IF(AA30=0,0,(AA30*((LOG(AA30))/LOG(2)))) -> 0 | AD30: =N30 -> 21222 | AE30: =COUNTIF(L64:L92,AD30) -> 0 | AF30: =AE30/(AG4-AE25) -> 0 | AG30: =IF(AF30=0,0,(AF30*((LOG(AF30))/LOG(2)))) -> 0 | AI30: =N30 -> 21222 | AJ30: =COUNTIF(L93:L120,AI30) -> 0 | AK30: =AJ30/(AL4-AJ25) -> 0 | AL30: =IF(AK30=0,0,(AK30*((LOG(AK30))/LOG(2)))) -> 0 | AN30: =N30 -> 21222 | AO30: =COUNTIF(L121:L149,AN30) -> 0 | AP30: =AO30/(AQ4-AO25) -> 0 | AQ30: =IF(AP30=0,0,(AP30*((LOG(AP30))/LOG(2)))) -> 0 | AS30: =N30 -> 21222 | AT30: =COUNTIF(L150:L177,AS30) -> 0 | AU30: =AT30/(AV4-AT25) -> 0 | AV30: =IF(AU30=0,0,(AU30*((LOG(AU30))/LOG(2)))) -> 0
A31: 21 | B31: 3025 | C31: 11 | D31: 3032 | E31: 11 | F31: 3039 | G31: 21 | H31: 3047 | I31: 11 | J31: 3054 | K31: 1 | L31: 21121 | N31: 22111 | O31: =COUNTIF($L$7:$L$500,N31) -> 6 | P31: =O31/$Q$4 -> 0.0350877193 | Q31: =IF(P31=0,0,(P31*((LOG(P31))/LOG(2)))) -> -0.1695750882 | T31: =N31 -> 22111 | U31: =COUNTIF(L7:L35,T31) -> 0 | V31: =U31/(W4-U25) -> 0 | W31: =IF(V31=0,0,(V31*((LOG(V31))/LOG(2)))) -> 0 | Y31: =N31 -> 22111 | Z31: =COUNTIF(L36:L63,Y31) -> 2 | AA31: =Z31/(AB4-Z25) -> 0.07407407407 | AB31: =IF(AA31=0,0,(AA31*((LOG(AA31))/LOG(2)))) -> -0.278139815 | AD31: =N31 -> 22111 | AE31: =COUNTIF(L64:L92,AD31) -> 1 | AF31: =AE31/(AG4-AE25) -> 0.03703703704 | AG31: =IF(AF31=0,0,(AF31*((LOG(AF31))/LOG(2)))) -> -0.1761069445 | AI31: =N31 -> 22111 | AJ31: =COUNTIF(L93:L120,AI31) -> 1 | AK31: =AJ31/(AL4-AJ25) -> 0.03571428571 | AL31: =IF(AK31=0,0,(AK31*((LOG(AK31))/LOG(2)))) -> -0.1716912472 | AN31: =N31 -> 22111 | AO31: =COUNTIF(L121:L149,AN31) -> 0 | AP31: =AO31/(AQ4-AO25) -> 0 | AQ31: =IF(AP31=0,0,(AP31*((LOG(AP31))/LOG(2)))) -> 0 | AS31: =N31 -> 22111 | AT31: =COUNTIF(L150:L177,AS31) -> 2 | AU31: =AT31/(AV4-AT25) -> 0.07142857143 | AV31: =IF(AU31=0,0,(AU31*((LOG(AU31))/LOG(2)))) -> -0.271953923
A32: 12 | B32: 3159 | C32: 13 | D32: 3163 | E32: 13 | F32: 3167 | G32: 14 | H32: 3171 | I32: 13 | J32: 3178 | K32: 0 | L32: 11111 | N32: 22112 | O32: =COUNTIF($L$7:$L$500,N32) -> 2 | P32: =O32/$Q$4 -> 0.01169590643 | Q32: =IF(P32=0,0,(P32*((LOG(P32))/LOG(2)))) -> -0.07506260251 | T32: =N32 -> 22112 | U32: =COUNTIF(L7:L35,T32) -> 0 | V32: =U32/(W4-U25) -> 0 | W32: =IF(V32=0,0,(V32*((LOG(V32))/LOG(2)))) -> 0 | Y32: =N32 -> 22112 | Z32: =COUNTIF(L36:L63,Y32) -> 2 | AA32: =Z32/(AB4-Z25) -> 0.07407407407 | AB32: =IF(AA32=0,0,(AA32*((LOG(AA32))/LOG(2)))) -> -0.278139815 | AD32: =N32 -> 22112 | AE32: =COUNTIF(L64:L92,AD32) -> 0 | AF32: =AE32/(AG4-AE25) -> 0 | AG32: =IF(AF32=0,0,(AF32*((LOG(AF32))/LOG(2)))) -> 0 | AI32: =N32 -> 22112 | AJ32: =COUNTIF(L93:L120,AI32) -> 0 | AK32: =AJ32/(AL4-AJ25) -> 0 | AL32: =IF(AK32=0,0,(AK32*((LOG(AK32))/LOG(2)))) -> 0 | AN32: =N32 -> 22112 | AO32: =COUNTIF(L121:L149,AN32) -> 0 | AP32: =AO32/(AQ4-AO25) -> 0 | AQ32: =IF(AP32=0,0,(AP32*((LOG(AP32))/LOG(2)))) -> 0 | AS32: =N32 -> 22112 | AT32: =COUNTIF(L150:L177,AS32) -> 0 | AU32: =AT32/(AV4-AT25) -> 0 | AV32: =IF(AU32=0,0,(AU32*((LOG(AU32))/LOG(2)))) -> 0
A33: 21 | B33: 3280 | C33: 11 | D33: 3287 | E33: 11 | F33: 3294 | G33: 21 | H33: 3302 | I33: 11 | J33: 3309 | K33: 1 | L33: 21121 | N33: 22121 | O33: =COUNTIF($L$7:$L$500,N33) -> 18 | P33: =O33/$Q$4 -> 0.1052631579 | Q33: =IF(P33=0,0,(P33*((LOG(P33))/LOG(2)))) -> -0.3418871067 | T33: =N33 -> 22121 | U33: =COUNTIF(L7:L35,T33) -> 0 | V33: =U33/(W4-U25) -> 0 | W33: =IF(V33=0,0,(V33*((LOG(V33))/LOG(2)))) -> 0 | Y33: =N33 -> 22121 | Z33: =COUNTIF(L36:L63,Y33) -> 0 | AA33: =Z33/(AB4-Z25) -> 0 | AB33: =IF(AA33=0,0,(AA33*((LOG(AA33))/LOG(2)))) -> 0 | AD33: =N33 -> 22121 | AE33: =COUNTIF(L64:L92,AD33) -> 1 | AF33: =AE33/(AG4-AE25) -> 0.03703703704 | AG33: =IF(AF33=0,0,(AF33*((LOG(AF33))/LOG(2)))) -> -0.1761069445 | AI33: =N33 -> 22121 | AJ33: =COUNTIF(L93:L120,AI33) -> 5 | AK33: =AJ33/(AL4-AJ25) -> 0.1785714286 | AL33: =IF(AK33=0,0,(AK33*((LOG(AK33))/LOG(2)))) -> -0.4438262191 | AN33: =N33 -> 22121 | AO33: =COUNTIF(L121:L149,AN33) -> 6 | AP33: =AO33/(AQ4-AO25) -> 0.2068965517 | AQ33: =IF(AP33=0,0,(AP33*((LOG(AP33))/LOG(2)))) -> -0.4702796885 | AS33: =N33 -> 22121 | AT33: =COUNTIF(L150:L177,AS33) -> 6 | AU33: =AT33/(AV4-AT25) -> 0.2142857143 | AV33: =IF(AU33=0,0,(AU33*((LOG(AU33))/LOG(2)))) -> -0.4762269474
A34: 21 | B34: 3407 | C34: 11 | D34: 3418 | E34: 11 | F34: 3425 | G34: 21 | H34: 3433 | I34: 11 | J34: 3440 | K34: 1 | L34: 21121 | N34: 22122 | O34: =COUNTIF($L$7:$L$500,N34) -> 1 | P34: =O34/$Q$4 -> 0.005847953216 | Q34: =IF(P34=0,0,(P34*((LOG(P34))/LOG(2)))) -> -0.04337925447 | T34: =N34 -> 22122 | U34: =COUNTIF(L7:L35,T34) -> 0 | V34: =U34/(W4-U25) -> 0 | W34: =IF(V34=0,0,(V34*((LOG(V34))/LOG(2)))) -> 0 | Y34: =N34 -> 22122 | Z34: =COUNTIF(L36:L63,Y34) -> 0 | AA34: =Z34/(AB4-Z25) -> 0 | AB34: =IF(AA34=0,0,(AA34*((LOG(AA34))/LOG(2)))) -> 0 | AD34: =N34 -> 22122 | AE34: =COUNTIF(L64:L92,AD34) -> 0 | AF34: =AE34/(AG4-AE25) -> 0 | AG34: =IF(AF34=0,0,(AF34*((LOG(AF34))/LOG(2)))) -> 0 | AI34: =N34 -> 22122 | AJ34: =COUNTIF(L93:L120,AI34) -> 0 | AK34: =AJ34/(AL4-AJ25) -> 0 | AL34: =IF(AK34=0,0,(AK34*((LOG(AK34))/LOG(2)))) -> 0 | AN34: =N34 -> 22122 | AO34: =COUNTIF(L121:L149,AN34) -> 0 | AP34: =AO34/(AQ4-AO25) -> 0 | AQ34: =IF(AP34=0,0,(AP34*((LOG(AP34))/LOG(2)))) -> 0 | AS34: =N34 -> 22122 | AT34: =COUNTIF(L150:L177,AS34) -> 1 | AU34: =AT34/(AV4-AT25) -> 0.03571428571 | AV34: =IF(AU34=0,0,(AU34*((LOG(AU34))/LOG(2)))) -> -0.1716912472
A35: 12 | B35: 3535 | C35: 13 | D35: 3539 | E35: 13 | F35: 3553 | G35: 14 | H35: 3558 | I35: 13 | J35: 3564 | K35: 0 | L35: 11111 | N35: 22211 | O35: =COUNTIF($L$7:$L$500,N35) -> 0 | P35: =O35/$Q$4 -> 0 | Q35: =IF(P35=0,0,(P35*((LOG(P35))/LOG(2)))) -> 0 | T35: =N35 -> 22211 | U35: =COUNTIF(L7:L35,T35) -> 0 | V35: =U35/(W4-U25) -> 0 | W35: =IF(V35=0,0,(V35*((LOG(V35))/LOG(2)))) -> 0 | Y35: =N35 -> 22211 | Z35: =COUNTIF(L36:L63,Y35) -> 0 | AA35: =Z35/(AB4-Z25) -> 0 | AB35: =IF(AA35=0,0,(AA35*((LOG(AA35))/LOG(2)))) -> 0 | AD35: =N35 -> 22211 | AE35: =COUNTIF(L64:L92,AD35) -> 0 | AF35: =AE35/(AG4-AE25) -> 0 | AG35: =IF(AF35=0,0,(AF35*((LOG(AF35))/LOG(2)))) -> 0 | AI35: =N35 -> 22211 | AJ35: =COUNTIF(L93:L120,AI35) -> 0 | AK35: =AJ35/(AL4-AJ25) -> 0 | AL35: =IF(AK35=0,0,(AK35*((LOG(AK35))/LOG(2)))) -> 0 | AN35: =N35 -> 22211 | AO35: =COUNTIF(L121:L149,AN35) -> 0 | AP35: =AO35/(AQ4-AO25) -> 0 | AQ35: =IF(AP35=0,0,(AP35*((LOG(AP35))/LOG(2)))) -> 0 | AS35: =N35 -> 22211 | AT35: =COUNTIF(L150:L177,AS35) -> 0 | AU35: =AT35/(AV4-AT25) -> 0 | AV35: =IF(AU35=0,0,(AU35*((LOG(AU35))/LOG(2)))) -> 0
A36: 12 | B36: 3664 | C36: 13 | D36: 3668 | E36: 13 | F36: 3672 | G36: 14 | H36: 3676 | I36: 13 | J36: 3684 | K36: 0 | L36: 11111 | N36: 22212 | O36: =COUNTIF($L$7:$L$500,N36) -> 16 | P36: =O36/$Q$4 -> 0.09356725146 | Q36: =IF(P36=0,0,(P36*((LOG(P36))/LOG(2)))) -> -0.3197990657 | T36: =N36 -> 22212 | U36: =COUNTIF(L7:L35,T36) -> 0 | V36: =U36/(W4-U25) -> 0 | W36: =IF(V36=0,0,(V36*((LOG(V36))/LOG(2)))) -> 0 | Y36: =N36 -> 22212 | Z36: =COUNTIF(L36:L63,Y36) -> 0 | AA36: =Z36/(AB4-Z25) -> 0 | AB36: =IF(AA36=0,0,(AA36*((LOG(AA36))/LOG(2)))) -> 0 | AD36: =N36 -> 22212 | AE36: =COUNTIF(L64:L92,AD36) -> 0 | AF36: =AE36/(AG4-AE25) -> 0 | AG36: =IF(AF36=0,0,(AF36*((LOG(AF36))/LOG(2)))) -> 0 | AI36: =N36 -> 22212 | AJ36: =COUNTIF(L93:L120,AI36) -> 4 | AK36: =AJ36/(AL4-AJ25) -> 0.1428571429 | AL36: =IF(AK36=0,0,(AK36*((LOG(AK36))/LOG(2)))) -> -0.4010507032 | AN36: =N36 -> 22212 | AO36: =COUNTIF(L121:L149,AN36) -> 7 | AP36: =AO36/(AQ4-AO25) -> 0.2413793103 | AQ36: =IF(AP36=0,0,(AP36*((LOG(AP36))/LOG(2)))) -> -0.4949787073 | AS36: =N36 -> 22212 | AT36: =COUNTIF(L150:L177,AS36) -> 5 | AU36: =AT36/(AV4-AT25) -> 0.1785714286 | AV36: =IF(AU36=0,0,(AU36*((LOG(AU36))/LOG(2)))) -> -0.4438262191
A37: 12 | B37: 3786 | C37: 13 | D37: 3791 | E37: 13 | F37: 3798 | G37: 23 | H37: 3813 | I37: 13 | J37: 3821 | K37: 0 | L37: 11121 | N37: 22221 | O37: =COUNTIF($L$7:$L$500,N37) -> 6 | P37: =O37/$Q$4 -> 0.0350877193 | Q37: =IF(P37=0,0,(P37*((LOG(P37))/LOG(2)))) -> -0.1695750882 | T37: =N37 -> 22221 | U37: =COUNTIF(L7:L35,T37) -> 0 | V37: =U37/(W4-U25) -> 0 | W37: =IF(V37=0,0,(V37*((LOG(V37))/LOG(2)))) -> 0 | Y37: =N37 -> 22221 | Z37: =COUNTIF(L36:L63,Y37) -> 0 | AA37: =Z37/(AB4-Z25) -> 0 | AB37: =IF(AA37=0,0,(AA37*((LOG(AA37))/LOG(2)))) -> 0 | AD37: =N37 -> 22221 | AE37: =COUNTIF(L64:L92,AD37) -> 0 | AF37: =AE37/(AG4-AE25) -> 0 | AG37: =IF(AF37=0,0,(AF37*((LOG(AF37))/LOG(2)))) -> 0 | AI37: =N37 -> 22221 | AJ37: =COUNTIF(L93:L120,AI37) -> 0 | AK37: =AJ37/(AL4-AJ25) -> 0 | AL37: =IF(AK37=0,0,(AK37*((LOG(AK37))/LOG(2)))) -> 0 | AN37: =N37 -> 22221 | AO37: =COUNTIF(L121:L149,AN37) -> 2 | AP37: =AO37/(AQ4-AO25) -> 0.06896551724 | AQ37: =IF(AP37=0,0,(AP37*((LOG(AP37))/LOG(2)))) -> -0.2660676548 | AS37: =N37 -> 22221 | AT37: =COUNTIF(L150:L177,AS37) -> 4 | AU37: =AT37/(AV4-AT25) -> 0.1428571429 | AV37: =IF(AU37=0,0,(AU37*((LOG(AU37))/LOG(2)))) -> -0.4010507032
A38: 21 | B38: 3921 | C38: 11 | D38: 3927 | E38: 11 | F38: 3935 | G38: 12 | H38: 3940 | I38: 24 | J38: 3948 | K38: 1 | L38: 21112 | N38: 22222 | O38: =COUNTIF($L$7:$L$500,N38) -> 0 | P38: =O38/$Q$4 -> 0 | Q38: =IF(P38=0,0,(P38*((LOG(P38))/LOG(2)))) -> 0 | T38: =N38 -> 22222 | U38: =COUNTIF(L7:L35,T38) -> 0 | V38: =U38/(W4-U25) -> 0 | W38: =IF(V38=0,0,(V38*((LOG(V38))/LOG(2)))) -> 0 | Y38: =N38 -> 22222 | Z38: =COUNTIF(L36:L63,Y38) -> 0 | AA38: =Z38/(AB4-Z25) -> 0 | AB38: =IF(AA38=0,0,(AA38*((LOG(AA38))/LOG(2)))) -> 0 | AD38: =N38 -> 22222 | AE38: =COUNTIF(L64:L92,AD38) -> 0 | AF38: =AE38/(AG4-AE25) -> 0 | AG38: =IF(AF38=0,0,(AF38*((LOG(AF38))/LOG(2)))) -> 0 | AI38: =N38 -> 22222 | AJ38: =COUNTIF(L93:L120,AI38) -> 0 | AK38: =AJ38/(AL4-AJ25) -> 0 | AL38: =IF(AK38=0,0,(AK38*((LOG(AK38))/LOG(2)))) -> 0 | AN38: =N38 -> 22222 | AO38: =COUNTIF(L121:L149,AN38) -> 0 | AP38: =AO38/(AQ4-AO25) -> 0 | AQ38: =IF(AP38=0,0,(AP38*((LOG(AP38))/LOG(2)))) -> 0 | AS38: =N38 -> 22222 | AT38: =COUNTIF(L150:L177,AS38) -> 0 | AU38: =AT38/(AV4-AT25) -> 0 | AV38: =IF(AU38=0,0,(AU38*((LOG(AU38))/LOG(2)))) -> 0
A39: 21 | B39: 4043 | C39: 11 | D39: 4051 | E39: 11 | F39: 4055 | G39: 12 | H39: 4060 | I39: 24 | J39: 4068 | K39: 0 | L39: 21112 | P39: =SUM(P7:P38) -> 1 | Q39: =-SUM(Q7:Q38) -> 3.928291057 | V39: =SUM(V7:V38) -> 1 | W39: =-SUM(W7:W38) -> 2.348083585 | AA39: =SUM(AA7:AA38) -> 1 | AB39: =-SUM(AB7:AB38) -> 2.976516671 | AF39: =SUM(AF7:AF38) -> 1 | AG39: =-SUM(AG7:AG38) -> 2.774000708 | AK39: =SUM(AK7:AK38) -> 1 | AL39: =-SUM(AL7:AL38) -> 2.499169548 | AP39: =SUM(AP7:AP38) -> 1 | AQ39: =-SUM(AQ7:AQ38) -> 2.267104171 | AU39: =SUM(AU7:AU38) -> 1 | AV39: =-SUM(AV7:AV38) -> 3.338804369
A40: 12 | B40: 4170 | C40: 13 | D40: 4182 | E40: 13 | F40: 4195 | G40: 14 | H40: 4201 | I40: 13 | J40: 4208 | K40: 0 | L40: 11111 | P40: U= | Q40: =Q39/(LOG(Q4)/LOG(2)) -> 0.529572548 | V40: U1= | W40: =W39/(LOG(W4)/LOG(2)) -> 0.4833455683 | AA40: U2= | AB40: =AB39/(LOG(AB4)/LOG(2)) -> 0.6191589179 | AF40: U3= | AG40: =AG39/(LOG(AG4)/LOG(2)) -> 0.5710192589 | AK40: U4= | AL40: =AL39/(LOG(AL4)/LOG(2)) -> 0.519863748 | AP40: U5= | AQ40: =AQ39/(LOG(AQ4)/LOG(2)) -> 0.4666762124 | AU40: U6= | AV40: =AV39/(LOG(AV4)/LOG(2)) -> 0.6945200476
A41: 12 | B41: 4309 | C41: 13 | D41: 4313 | E41: 13 | F41: 4317 | G41: 14 | H41: 4321 | I41: 13 | J41: 4326 | K41: 0 | L41: 11111
A42: 12 | B42: 4433 | C42: 13 | D42: 4441 | E42: 13 | F42: 4448 | G42: 14 | H42: 4455 | I42: 13 | J42: 4462 | K42: 0 | L42: 11111
A43: 12 | B43: 4565 | C43: 13 | D43: 4570 | E43: 13 | F43: 4577 | G43: 14 | H43: 4582 | I43: 13 | J43: 4587 | K43: 0 | L43: 11111 | N43: Total Target Seq
A44: 12 | B44: 4689 | C44: 13 | D44: 4693 | E44: 13 | F44: 4697 | G44: 14 | H44: 4702 | I44: 24 | J44: 4712 | K44: 1 | L44: 11112 | N44: =COUNTIF(L7:L177,G3) -> 6 | P44: 29 | Q44: 28 | R44: 29 | S44: 28 | T44: 29 | U44: 28
A45: 21 | B45: 4809 | C45: 11 | D45: 4817 | E45: 11 | F45: 4822 | G45: 12 | H45: 4831 | I45: 13 | J45: 4837 | K45: 0 | L45: 21111 | P45: % of reinforcement given in 6 equal intervals based on number of trials
A46: 12 | B46: 4941 | C46: 13 | D46: 4950 | E46: 13 | F46: 4954 | G46: 14 | H46: 4959 | I46: 13 | J46: 4965 | K46: 1 | L46: 11111 | P46: %_1 | Q46: %_2 | R46: %_3 | S46: %_4 | T46: %_5 | U46: %_6
A47: 21 | B47: 5066 | C47: 11 | D47: 5073 | E47: 11 | F47: 5077 | G47: 12 | H47: 5081 | I47: 24 | J47: 5089 | K47: 0 | L47: 21112 | O47: target sequence | P47: =$G$3 -> 21121 | Q47: =$G$3 -> 21121 | R47: =$G$3 -> 21121 | S47: =$G$3 -> 21121 | T47: =$G$3 -> 21121 | U47: =$G$3 -> 21121
A48: 12 | B48: 5186 | C48: 13 | D48: 5190 | E48: 13 | F48: 5194 | G48: 14 | H48: 5198 | I48: 13 | J48: 5205 | K48: 0 | L48: 11111 | O48: total reinforcement | P48: =U25 -> 3 | Q48: =Z25 -> 1 | R48: =AE25 -> 2 | S48: =AJ25 -> 0 | T48: =AO25 -> 0 | U48: =AT25 -> 0
A49: 12 | B49: 5318 | C49: 13 | D49: 5322 | E49: 13 | F49: 5326 | G49: 23 | H49: 5334 | I49: 24 | J49: 5341 | K49: 0 | L49: 11122 | O49: % target
A50: 21 | B50: 5441 | C50: 11 | D50: 5448 | E50: 11 | F50: 5451 | G50: 12 | H50: 5455 | I50: 13 | J50: 5462 | K50: 0 | L50: 21111 | O50: CCRF
A51: 21 | B51: 5563 | C51: 11 | D51: 5570 | E51: 11 | F51: 5574 | G51: 12 | H51: 5579 | I51: 13 | J51: 5594 | K51: 1 | L51: 21111 | O51: % CCRf
A52: 21 | B52: 5690 | C52: 11 | D52: 5697 | E52: 11 | F52: 5701 | G52: 12 | H52: 5705 | I52: 24 | J52: 5724 | K52: 1 | L52: 21112 | O52: average response rate | P52: =J35/P44 -> 122.8965517 | Q52: =(J63-J35)/Q44 -> 129.1071429 | R52: =(J92-J63)/R44 -> 134.4827586 | S52: =(J120-J92)/S44 -> 150.0357143 | T52: =(J149-J120)/T44 -> 150.3793103 | U52: =(J177-J149)/U44 -> 151.6071429
A53: 21 | B53: 5817 | C53: 22 | D53: 5829 | E53: 13 | F53: 5837 | G53: 14 | H53: 5844 | I53: 13 | J53: 5850 | K53: 0 | L53: 22111
A54: 21 | B54: 5951 | C54: 11 | D54: 5958 | E54: 11 | F54: 5963 | G54: 12 | H54: 5969 | I54: 13 | J54: 5977 | K54: 0 | L54: 21111
A55: 12 | B55: 6098 | C55: 13 | D55: 6102 | E55: 13 | F55: 6106 | G55: 14 | H55: 6111 | I55: 24 | J55: 6120 | K55: 0 | L55: 11112
A56: 21 | B56: 6220 | C56: 11 | D56: 6228 | E56: 11 | F56: 6233 | G56: 12 | H56: 6237 | I56: 13 | J56: 6244 | K56: 0 | L56: 21111
A57: 12 | B57: 6350 | C57: 13 | D57: 6359 | E57: 13 | F57: 6363 | G57: 14 | H57: 6368 | I57: 24 | J57: 6378 | K57: 0 | L57: 11112
A58: 21 | B58: 6480 | C58: 22 | D58: 6487 | E58: 13 | F58: 6495 | G58: 14 | H58: 6502 | I58: 24 | J58: 6509 | K58: 1 | L58: 22112
A59: 21 | B59: 6603 | C59: 22 | D59: 6613 | E59: 13 | F59: 6621 | G59: 14 | H59: 6627 | I59: 24 | J59: 6635 | K59: 0 | L59: 22112
A60: 12 | B60: 6751 | C60: 13 | D60: 6756 | E60: 24 | F60: 6764 | G60: 14 | H60: 6772 | I60: 24 | J60: 6780 | K60: 0 | L60: 11212
A61: 21 | B61: 6876 | C61: 22 | D61: 6884 | E61: 13 | F61: 6891 | G61: 14 | H61: 6899 | I61: 13 | J61: 6906 | K61: 1 | L61: 22111
A62: 21 | B62: 7003 | C62: 11 | D62: 7011 | E62: 11 | F62: 7018 | G62: 21 | H62: 7026 | I62: 11 | J62: 7034 | K62: 1 | L62: 21121
A63: 12 | B63: 7147 | C63: 24 | D63: 7156 | E63: 13 | F63: 7164 | G63: 23 | H63: 7172 | I63: 13 | J63: 7179 | K63: 0 | L63: 12121
A64: 12 | B64: 7286 | C64: 13 | D64: 7290 | E64: 13 | F64: 7298 | G64: 23 | H64: 7308 | I64: 13 | J64: 7316 | K64: 0 | L64: 11121
A65: 21 | B65: 7418 | C65: 11 | D65: 7425 | E65: 11 | F65: 7429 | G65: 12 | H65: 7433 | I65: 24 | J65: 7442 | K65: 1 | L65: 21112
A66: 21 | B66: 7535 | C66: 11 | D66: 7546 | E66: 11 | F66: 7550 | G66: 12 | H66: 7554 | I66: 13 | J66: 7559 | K66: 0 | L66: 21111
A67: 21 | B67: 7658 | C67: 11 | D67: 7666 | E67: 11 | F67: 7673 | G67: 21 | H67: 7683 | I67: 11 | J67: 7690 | K67: 1 | L67: 21121
A68: 21 | B68: 7787 | C68: 11 | D68: 7794 | E68: 11 | F68: 7798 | G68: 12 | H68: 7802 | I68: 24 | J68: 7812 | K68: 0 | L68: 21112
A69: 21 | B69: 7911 | C69: 11 | D69: 7918 | E69: 11 | F69: 7922 | G69: 12 | H69: 7926 | I69: 24 | J69: 7940 | K69: 0 | L69: 21112
A70: 21 | B70: 8037 | C70: 11 | D70: 8045 | E70: 11 | F70: 8048 | G70: 12 | H70: 8054 | I70: 13 | J70: 8061 | K70: 0 | L70: 21111
A71: 21 | B71: 8158 | C71: 11 | D71: 8165 | E71: 11 | F71: 8172 | G71: 12 | H71: 8176 | I71: 13 | J71: 8180 | K71: 0 | L71: 21111
A72: 21 | B72: 8299 | C72: 11 | D72: 8308 | E72: 11 | F72: 8313 | G72: 12 | H72: 8317 | I72: 24 | J72: 8329 | K72: 0 | L72: 21112
A73: 21 | B73: 8426 | C73: 11 | D73: 8440 | E73: 11 | F73: 8445 | G73: 12 | H73: 8449 | I73: 24 | J73: 8458 | K73: 1 | L73: 21112
A74: 21 | B74: 8554 | C74: 11 | D74: 8563 | E74: 11 | F74: 8567 | G74: 12 | H74: 8571 | I74: 13 | J74: 8575 | K74: 0 | L74: 21111
A75: 21 | B75: 8673 | C75: 11 | D75: 8684 | E75: 11 | F75: 8689 | G75: 12 | H75: 8694 | I75: 24 | J75: 8702 | K75: 0 | L75: 21112
A76: 21 | B76: 8803 | C76: 11 | D76: 8811 | E76: 11 | F76: 8815 | G76: 12 | H76: 8820 | I76: 24 | J76: 8830 | K76: 0 | L76: 21112
A77: 12 | B77: 8939 | C77: 13 | D77: 8943 | E77: 13 | F77: 8951 | G77: 14 | H77: 8962 | I77: 13 | J77: 8973 | K77: 0 | L77: 11111
A78: 21 | B78: 9081 | C78: 11 | D78: 9088 | E78: 11 | F78: 9093 | G78: 12 | H78: 9097 | I78: 24 | J78: 9105 | K78: 0 | L78: 21112
A79: 21 | B79: 9202 | C79: 11 | D79: 9216 | E79: 11 | F79: 9220 | G79: 12 | H79: 9224 | I79: 13 | J79: 9228 | K79: 0 | L79: 21111
A80: 21 | B80: 9325 | C80: 11 | D80: 9334 | E80: 22 | F80: 9346 | G80: 14 | H80: 9354 | I80: 13 | J80: 9361 | K80: 0 | L80: 21211
A81: 12 | B81: 9472 | C81: 13 | D81: 9476 | E81: 13 | F81: 9480 | G81: 23 | H81: 9489 | I81: 13 | J81: 9496 | K81: 1 | L81: 11121
A82: 21 | B82: 9614 | C82: 11 | D82: 9622 | E82: 22 | F82: 9629 | G82: 23 | H82: 9639 | I82: 13 | J82: 9650 | K82: 0 | L82: 21221
A83: 21 | B83: 9747 | C83: 11 | D83: 9765 | E83: 11 | F83: 9770 | G83: 21 | H83: 9778 | I83: 11 | J83: 9787 | K83: 1 | L83: 21121
A84: 21 | B84: 9885 | C84: 11 | D84: 9899 | E84: 11 | F84: 9909 | G84: 12 | H84: 9912 | I84: 13 | J84: 9917 | K84: 0 | L84: 21111
A85: 21 | B85: 10019 | C85: 11 | D85: 10032 | E85: 11 | F85: 10040 | G85: 21 | H85: 10047 | I85: 22 | J85: 10057 | K85: 0 | L85: 21122
A86: 12 | B86: 10152 | C86: 24 | D86: 10162 | E86: 13 | F86: 10170 | G86: 23 | H86: 10180 | I86: 13 | J86: 10187 | K86: 0 | L86: 12121
A87: 12 | B87: 10314 | C87: 13 | D87: 10318 | E87: 13 | F87: 10322 | G87: 23 | H87: 10332 | I87: 13 | J87: 10339 | K87: 0 | L87: 11121
A88: 21 | B88: 10438 | C88: 22 | D88: 10446 | E88: 13 | F88: 10453 | G88: 14 | H88: 10472 | I88: 13 | J88: 10476 | K88: 0 | L88: 22111
A89: 21 | B89: 10578 | C89: 11 | D89: 10586 | E89: 11 | F89: 10590 | G89: 12 | H89: 10594 | I89: 24 | J89: 10602 | K89: 0 | L89: 21112
A90: 21 | B90: 10734 | C90: 11 | D90: 10744 | E90: 22 | F90: 10752 | G90: 14 | H90: 10762 | I90: 24 | J90: 10770 | K90: 1 | L90: 21212
A91: 21 | B91: 10889 | C91: 11 | D91: 10902 | E91: 11 | F91: 10907 | G91: 12 | H91: 10911 | I91: 24 | J91: 10919 | K91: 0 | L91: 21112
A92: 21 | B92: 11040 | C92: 22 | D92: 11055 | E92: 13 | F92: 11063 | G92: 23 | H92: 11071 | I92: 13 | J92: 11079 | K92: 0 | L92: 22121
A93: 21 | B93: 11202 | C93: 11 | D93: 11211 | E93: 22 | F93: 11220 | G93: 14 | H93: 11228 | I93: 24 | J93: 11236 | K93: 0 | L93: 21212
A94: 21 | B94: 11335 | C94: 22 | D94: 11351 | E94: 13 | F94: 11361 | G94: 23 | H94: 11369 | I94: 13 | J94: 11377 | K94: 0 | L94: 22121
A95: 21 | B95: 11476 | C95: 22 | D95: 11481 | E95: 13 | F95: 11488 | G95: 23 | H95: 11497 | I95: 13 | J95: 11507 | K95: 0 | L95: 22121
A96: 21 | B96: 11624 | C96: 11 | D96: 11634 | E96: 22 | F96: 11643 | G96: 14 | H96: 11651 | I96: 24 | J96: 11660 | K96: 0 | L96: 21212
A97: 21 | B97: 11760 | C97: 22 | D97: 11764 | E97: 24 | F97: 11771 | G97: 14 | H97: 11781 | I97: 24 | J97: 11788 | K97: 0 | L97: 22212
A98: 21 | B98: 11941 | C98: 11 | D98: 11951 | E98: 22 | F98: 11959 | G98: 23 | H98: 11966 | I98: 13 | J98: 11974 | K98: 0 | L98: 21221
A99: 12 | B99: 12121 | C99: 24 | D99: 12129 | E99: 13 | F99: 12137 | G99: 23 | H99: 12145 | I99: 13 | J99: 12156 | K99: 0 | L99: 12121
A100: 21 | B100: 12287 | C100: 11 | D100: 12297 | E100: 22 | F100: 12305 | G100: 14 | H100: 12313 | I100: 24 | J100: 12325 | K100: 1 | L100: 21212
A101: 21 | B101: 12453 | C101: 11 | D101: 12461 | E101: 22 | F101: 12469 | G101: 14 | H101: 12479 | I101: 24 | J101: 12487 | K101: 0 | L101: 21212
A102: 21 | B102: 12595 | C102: 22 | D102: 12603 | E102: 24 | F102: 12614 | G102: 14 | H102: 12624 | I102: 24 | J102: 12632 | K102: 0 | L102: 22212
A103: 21 | B103: 12732 | C103: 11 | D103: 12752 | E103: 22 | F103: 12760 | G103: 14 | H103: 12771 | I103: 24 | J103: 12779 | K103: 0 | L103: 21212
A104: 21 | B104: 12888 | C104: 11 | D104: 12900 | E104: 22 | F104: 12907 | G104: 23 | H104: 12917 | I104: 13 | J104: 12926 | K104: 0 | L104: 21221
A105: 21 | B105: 13034 | C105: 11 | D105: 13056 | E105: 22 | F105: 13063 | G105: 14 | H105: 13074 | I105: 24 | J105: 13081 | K105: 0 | L105: 21212
A106: 21 | B106: 13214 | C106: 11 | D106: 13222 | E106: 22 | F106: 13230 | G106: 14 | H106: 13238 | I106: 24 | J106: 13249 | K106: 0 | L106: 21212
A107: 12 | B107: 13361 | C107: 13 | D107: 13365 | E107: 24 | F107: 13380 | G107: 14 | H107: 13389 | I107: 24 | J107: 13399 | K107: 1 | L107: 11212
A108: 21 | B108: 13521 | C108: 11 | D108: 13530 | E108: 22 | F108: 13538 | G108: 14 | H108: 13545 | I108: 24 | J108: 13555 | K108: 0 | L108: 21212
A109: 12 | B109: 13673 | C109: 13 | D109: 13680 | E109: 13 | F109: 13685 | G109: 14 | H109: 13689 | I109: 13 | J109: 13695 | K109: 1 | L109: 11111
A110: 21 | B110: 13817 | C110: 11 | D110: 13828 | E110: 22 | F110: 13837 | G110: 14 | H110: 13845 | I110: 24 | J110: 13853 | K110: 0 | L110: 21212
A111: 21 | B111: 13967 | C111: 22 | D111: 13975 | E111: 13 | F111: 13983 | G111: 23 | H111: 13992 | I111: 13 | J111: 14001 | K111: 0 | L111: 22121
A112: 21 | B112: 14098 | C112: 22 | D112: 14106 | E112: 13 | F112: 14114 | G112: 14 | H112: 14119 | I112: 13 | J112: 14123 | K112: 0 | L112: 22111
A113: 21 | B113: 14222 | C113: 22 | D113: 14236 | E113: 13 | F113: 14244 | G113: 23 | H113: 14252 | I113: 13 | J113: 14263 | K113: 1 | L113: 22121
A114: 21 | B114: 14375 | C114: 11 | D114: 14391 | E114: 22 | F114: 14398 | G114: 14 | H114: 14408 | I114: 24 | J114: 14416 | K114: 0 | L114: 21212
A115: 12 | B115: 14527 | C115: 24 | D115: 14536 | E115: 24 | F115: 14544 | G115: 14 | H115: 14551 | I115: 24 | J115: 14560 | K115: 0 | L115: 12212
A116: 21 | B116: 14658 | C116: 22 | D116: 14663 | E116: 24 | F116: 14672 | G116: 14 | H116: 14682 | I116: 24 | J116: 14690 | K116: 0 | L116: 22212
A117: 21 | B117: 14792 | C117: 22 | D117: 14804 | E117: 13 | F117: 14814 | G117: 23 | H117: 14821 | I117: 13 | J117: 14828 | K117: 0 | L117: 22121
A118: 21 | B118: 14949 | C118: 11 | D118: 14960 | E118: 22 | F118: 14968 | G118: 14 | H118: 14976 | I118: 24 | J118: 14984 | K118: 0 | L118: 21212
A119: 21 | B119: 15083 | C119: 22 | D119: 15089 | E119: 24 | F119: 15107 | G119: 14 | H119: 15115 | I119: 24 | J119: 15124 | K119: 0 | L119: 22212
A120: 21 | B120: 15247 | C120: 11 | D120: 15255 | E120: 22 | F120: 15263 | G120: 14 | H120: 15272 | I120: 24 | J120: 15280 | K120: 1 | L120: 21212
A121: 21 | B121: 15376 | C121: 22 | D121: 15381 | E121: 24 | F121: 15388 | G121: 14 | H121: 15411 | I121: 24 | J121: 15418 | K121: 0 | L121: 22212
A122: 21 | B122: 15524 | C122: 22 | D122: 15532 | E122: 24 | F122: 15540 | G122: 14 | H122: 15550 | I122: 24 | J122: 15558 | K122: 0 | L122: 22212
A123: 21 | B123: 15679 | C123: 11 | D123: 15687 | E123: 22 | F123: 15695 | G123: 14 | H123: 15707 | I123: 24 | J123: 15715 | K123: 1 | L123: 21212
A124: 21 | B124: 15821 | C124: 22 | D124: 15828 | E124: 13 | F124: 15839 | G124: 23 | H124: 15846 | I124: 13 | J124: 15855 | K124: 0 | L124: 22121
A125: 12 | B125: 15992 | C125: 24 | D125: 16000 | E125: 13 | F125: 16008 | G125: 23 | H125: 16017 | I125: 13 | J125: 16025 | K125: 0 | L125: 12121
A126: 21 | B126: 16134 | C126: 22 | D126: 16144 | E126: 13 | F126: 16151 | G126: 23 | H126: 16159 | I126: 13 | J126: 16169 | K126: 0 | L126: 22121
A127: 21 | B127: 16268 | C127: 22 | D127: 16272 | E127: 24 | F127: 16281 | G127: 14 | H127: 16291 | I127: 24 | J127: 16299 | K127: 0 | L127: 22212
A128: 21 | B128: 16399 | C128: 22 | D128: 16407 | E128: 24 | F128: 16417 | G128: 14 | H128: 16426 | I128: 24 | J128: 16434 | K128: 1 | L128: 22212
A129: 21 | B129: 16568 | C129: 11 | D129: 16578 | E129: 22 | F129: 16586 | G129: 14 | H129: 16597 | I129: 24 | J129: 16605 | K129: 0 | L129: 21212
A130: 21 | B130: 16707 | C130: 22 | D130: 16712 | E130: 24 | F130: 16722 | G130: 14 | H130: 16732 | I130: 24 | J130: 16740 | K130: 0 | L130: 22212
A131: 21 | B131: 16844 | C131: 11 | D131: 16863 | E131: 22 | F131: 16870 | G131: 14 | H131: 16879 | I131: 24 | J131: 16887 | K131: 1 | L131: 21212
A132: 21 | B132: 16982 | C132: 22 | D132: 16993 | E132: 13 | F132: 17003 | G132: 23 | H132: 17010 | I132: 13 | J132: 17018 | K132: 0 | L132: 22121
A133: 21 | B133: 17141 | C133: 11 | D133: 17150 | E133: 22 | F133: 17158 | G133: 14 | H133: 17166 | I133: 24 | J133: 17174 | K133: 0 | L133: 21212
A134: 21 | B134: 17288 | C134: 11 | D134: 17298 | E134: 22 | F134: 17306 | G134: 14 | H134: 17318 | I134: 24 | J134: 17326 | K134: 0 | L134: 21212
A135: 21 | B135: 17473 | C135: 11 | D135: 17481 | E135: 22 | F135: 17489 | G135: 14 | H135: 17497 | I135: 24 | J135: 17504 | K135: 0 | L135: 21212
A136: 12 | B136: 17611 | C136: 24 | D136: 17619 | E136: 13 | F136: 17626 | G136: 23 | H136: 17635 | I136: 13 | J136: 17643 | K136: 1 | L136: 12121
A137: 21 | B137: 17759 | C137: 22 | D137: 17767 | E137: 13 | F137: 17777 | G137: 23 | H137: 17782 | I137: 13 | J137: 17793 | K137: 0 | L137: 22121
A138: 21 | B138: 17899 | C138: 22 | D138: 17906 | E138: 13 | F138: 17914 | G138: 23 | H138: 17921 | I138: 13 | J138: 17933 | K138: 0 | L138: 22121
A139: 12 | B139: 18064 | C139: 13 | D139: 18068 | E139: 13 | F139: 18073 | G139: 14 | H139: 18086 | I139: 24 | J139: 18094 | K139: 1 | L139: 11112
A140: 21 | B140: 18194 | C140: 22 | D140: 18203 | E140: 24 | F140: 18218 | G140: 23 | H140: 18225 | I140: 13 | J140: 18233 | K140: 1 | L140: 22221
A141: 21 | B141: 18330 | C141: 22 | D141: 18337 | E141: 24 | F141: 18346 | G141: 14 | H141: 18357 | I141: 24 | J141: 18365 | K141: 0 | L141: 22212
A142: 12 | B142: 18486 | C142: 24 | D142: 18495 | E142: 13 | F142: 18502 | G142: 23 | H142: 18511 | I142: 13 | J142: 18522 | K142: 0 | L142: 12121
A143: 21 | B143: 18736 | C143: 11 | D143: 18746 | E143: 22 | F143: 18754 | G143: 14 | H143: 18764 | I143: 24 | J143: 18773 | K143: 0 | L143: 21212
A144: 21 | B144: 18890 | C144: 22 | D144: 18898 | E144: 24 | F144: 18906 | G144: 14 | H144: 18917 | I144: 24 | J144: 18925 | K144: 1 | L144: 22212
A145: 21 | B145: 19035 | C145: 22 | D145: 19042 | E145: 24 | F145: 19050 | G145: 23 | H145: 19058 | I145: 13 | J145: 19068 | K145: 1 | L145: 22221
A146: 21 | B146: 19171 | C146: 11 | D146: 19184 | E146: 22 | F146: 19192 | G146: 14 | H146: 19202 | I146: 24 | J146: 19210 | K146: 0 | L146: 21212
A147: 21 | B147: 19312 | C147: 11 | D147: 19333 | E147: 22 | F147: 19340 | G147: 14 | H147: 19349 | I147: 24 | J147: 19358 | K147: 0 | L147: 21212
A148: 21 | B148: 19458 | C148: 11 | D148: 19478 | E148: 22 | F148: 19487 | G148: 14 | H148: 19496 | I148: 24 | J148: 19504 | K148: 0 | L148: 21212
A149: 21 | B149: 19609 | C149: 22 | D149: 19614 | E149: 13 | F149: 19623 | G149: 23 | H149: 19630 | I149: 13 | J149: 19641 | K149: 0 | L149: 22121
A150: 21 | B150: 19744 | C150: 11 | D150: 19770 | E150: 22 | F150: 19782 | G150: 23 | H150: 19791 | I150: 13 | J150: 19799 | K150: 1 | L150: 21221
A151: 21 | B151: 19901 | C151: 11 | D151: 19913 | E151: 22 | F151: 19921 | G151: 14 | H151: 19929 | I151: 24 | J151: 19937 | K151: 0 | L151: 21212
A152: 21 | B152: 20047 | C152: 22 | D152: 20056 | E152: 13 | F152: 20064 | G152: 23 | H152: 20071 | I152: 13 | J152: 20080 | K152: 0 | L152: 22121
A153: 21 | B153: 20189 | C153: 11 | D153: 20197 | E153: 22 | F153: 20203 | G153: 23 | H153: 20214 | I153: 13 | J153: 20223 | K153: 0 | L153: 21221
A154: 21 | B154: 20330 | C154: 22 | D154: 20339 | E154: 13 | F154: 20357 | G154: 23 | H154: 20364 | I154: 13 | J154: 20374 | K154: 0 | L154: 22121
A155: 21 | B155: 20476 | C155: 22 | D155: 20483 | E155: 13 | F155: 20499 | G155: 23 | H155: 20506 | I155: 13 | J155: 20514 | K155: 0 | L155: 22121
A156: 12 | B156: 20623 | C156: 13 | D156: 20627 | E156: 13 | F156: 20632 | G156: 23 | H156: 20643 | I156: 13 | J156: 20651 | K156: 0 | L156: 11121
A157: 21 | B157: 20755 | C157: 22 | D157: 20763 | E157: 13 | F157: 20775 | G157: 14 | H157: 20779 | I157: 13 | J157: 20783 | K157: 0 | L157: 22111
A158: 21 | B158: 20899 | C158: 22 | D158: 20909 | E158: 24 | F158: 20917 | G158: 14 | H158: 20926 | I158: 24 | J158: 20936 | K158: 0 | L158: 22212
A159: 21 | B159: 21043 | C159: 22 | D159: 21053 | E159: 13 | F159: 21062 | G159: 14 | H159: 21066 | I159: 13 | J159: 21070 | K159: 0 | L159: 22111
A160: 21 | B160: 21184 | C160: 22 | D160: 21192 | E160: 24 | F160: 21203 | G160: 14 | H160: 21212 | I160: 24 | J160: 21219 | K160: 1 | L160: 22212
A161: 12 | B161: 21342 | C161: 24 | D161: 21350 | E161: 13 | F161: 21360 | G161: 23 | H161: 21372 | I161: 13 | J161: 21383 | K161: 0 | L161: 12121
A162: 21 | B162: 21496 | C162: 22 | D162: 21504 | E162: 24 | F162: 21512 | G162: 14 | H162: 21523 | I162: 24 | J162: 21531 | K162: 0 | L162: 22212
A163: 21 | B163: 21636 | C163: 22 | D163: 21644 | E163: 13 | F163: 21654 | G163: 23 | H163: 21662 | I163: 13 | J163: 21670 | K163: 0 | L163: 22121
A164: 21 | B164: 21797 | C164: 22 | D164: 21805 | E164: 13 | F164: 21813 | G164: 23 | H164: 21820 | I164: 13 | J164: 21832 | K164: 0 | L164: 22121
A165: 21 | B165: 21945 | C165: 11 | D165: 21955 | E165: 22 | F165: 21972 | G165: 14 | H165: 21979 | I165: 24 | J165: 21987 | K165: 0 | L165: 21212
A166: 21 | B166: 22089 | C166: 22 | D166: 22095 | E166: 24 | F166: 22110 | G166: 14 | H166: 22119 | I166: 24 | J166: 22126 | K166: 0 | L166: 22212
A167: 21 | B167: 22245 | C167: 22 | D167: 22253 | E167: 13 | F167: 22264 | G167: 23 | H167: 22272 | I167: 13 | J167: 22280 | K167: 0 | L167: 22121
A168: 21 | B168: 22390 | C168: 22 | D168: 22394 | E168: 24 | F168: 22401 | G168: 23 | H168: 22414 | I168: 13 | J168: 22424 | K168: 1 | L168: 22221
A169: 12 | B169: 22543 | C169: 13 | D169: 22551 | E169: 13 | F169: 22555 | G169: 14 | H169: 22559 | I169: 13 | J169: 22565 | K169: 1 | L169: 11111
A170: 21 | B170: 22739 | C170: 11 | D170: 22748 | E170: 11 | F170: 22752 | G170: 12 | H170: 22756 | I170: 24 | J170: 22765 | K170: 0 | L170: 21112
A171: 12 | B171: 22941 | C171: 24 | D171: 22949 | E171: 13 | F171: 22956 | G171: 23 | H171: 22965 | I171: 24 | J171: 22974 | K171: 0 | L171: 12122
A172: 21 | B172: 23084 | C172: 22 | D172: 23090 | E172: 13 | F172: 23102 | G172: 23 | H172: 23110 | I172: 24 | J172: 23117 | K172: 0 | L172: 22122
A173: 21 | B173: 23222 | C173: 22 | D173: 23226 | E173: 24 | F173: 23234 | G173: 23 | H173: 23241 | I173: 13 | J173: 23252 | K173: 0 | L173: 22221
A174: 21 | B174: 23396 | C174: 22 | D174: 23408 | E174: 24 | F174: 23412 | G174: 23 | H174: 23420 | I174: 13 | J174: 23431 | K174: 1 | L174: 22221
A175: 21 | B175: 23535 | C175: 22 | D175: 23542 | E175: 24 | F175: 23552 | G175: 14 | H175: 23559 | I175: 24 | J175: 23567 | K175: 0 | L175: 22212
A176: 12 | B176: 23673 | C176: 24 | D176: 23683 | E176: 24 | F176: 23691 | G176: 14 | H176: 23699 | I176: 24 | J176: 23707 | K176: 0 | L176: 12212
A177: 21 | B177: 23852 | C177: 22 | D177: 23859 | E177: 24 | F177: 23866 | G177: 23 | H177: 23875 | I177: 13 | J177: 23886 | K177: 0 | L177: 22221

Sheet !N330920.000
A1: Report for:!N330920.000
A2: Date: | B2: <date>
A3: Hen: | B3: <hen> | F3: Correct Sequence | G3: =Start!J2 -> 21121 | P3: Total Sequences in Data | Q3: =4994-COUNTBLANK(L7:L5000) -> 145 | V3: Total Sequences in Block Data | W3: =COUNTA(L7:L30) -> 24 | AA3: Total Sequences in Block Data | AB3: =COUNTA(L31:L54) -> 24 | AF3: Total Sequences in Block Data | AG3: =COUNTA(L55:L79) -> 25 | AK3: Total Sequences in Block Data | AL3: =COUNTA(L80:L103) -> 24 | AP3: Total Sequences in Block Data | AQ3: =COUNTA(L104:L127) -> 24 | AU3: Total Sequences in Block Data | AV3: =COUNTA(L128:L151) -> 24
P4: Total Sequences in Summary | Q4: =SUM(O7:O38) -> 145 | V4: Total Sequences in Block Summary | W4: =SUM(U7:U38) -> 24 | AA4: Total Sequences in Block Summary | AB4: =SUM(Z7:Z38) -> 24 | AF4: Total Sequences in Block Summary | AG4: =SUM(AE7:AE38) -> 25 | AK4: Total Sequences in Block Summary | AL4: =SUM(AJ7:AJ38) -> 24 | AP4: Total Sequences in Block Summary | AQ4: =SUM(AO7:AO38) -> 24 | AU4: Total Sequences in Block Summary | AV4: =SUM(AT7:AT38) -> 24
T5: Block 1 | Y5: Block 2 | AD5: Block 3 | AI5: Block 4 | AN5: Block 5 | AS5: Block 6
A6: Sequence Component 1 | B6: Time 1 | C6: Sequence Component 2 | D6: Time 2 | E6: Sequence Component 3 | F6: Time 3 | G6: Sequence Component 4 | H6: Time 4 | I6: Sequence Component 5 | J6: Time 5 | K6: Correct? 0=No 1=Yes | L6: Sequence | N6: Frequency | P6: Relative Frequency | Q6: Variability | T6: Frequency | V6: Relative Frequency | W6: Variability | Y6: Frequency | AA6: Relative Frequency | AB6: Variability | AD6: Frequency | AF6: Relative Frequency | AG6: Variability | AI6: Frequency | AK6: Relative Frequency | AL6: Variability | AN6: Frequency | AP6: Relative Frequency | AQ6: Variability | AS6: Frequency | AU6: Relative Frequency | AV6: Variability
A7: 21 | B7: 13 | C7: 11 | D7: 24 | E7: 22 | F7: 31 | G7: 14 | H7: 38 | I7: 24 | J7: 46 | K7: 0 | L7: 21212 | N7: 11111 | O7: =COUNTIF($L$7:$L$500,N7) -> 8 | P7: =O7/$Q$4 -> 0.05517241379 | Q7: =IF(P7=0,0,(P7*((LOG(P7))/LOG(2)))) -> -0.2306156739 | T7: =N7 -> 11111 | U7: =COUNTIF(L7:L30,T7) -> 5 | V7: =U7/(W4-U25) -> 0.2083333333 | W7: =IF(V7=0,0,(V7*((LOG(V7))/LOG(2)))) -> -0.4714655012 | Y7: =N7 -> 11111 | Z7: =COUNTIF(L31:L54,Y7) -> 0 | AA7: =Z7/(AB4-Z25) -> 0 | AB7: =IF(AA7=0,0,(AA7*((LOG(AA7))/LOG(2)))) -> 0 | AD7: =N7 -> 11111 | AE7: =COUNTIF(L55:L79,AD7) -> 0 | AF7: =AE7/(AG4-AE25) -> 0 | AG7: =IF(AF7=0,0,(AF7*((LOG(AF7))/LOG(2)))) -> 0 | AI7: =N7 -> 11111 | AJ7: =COUNTIF(L80:L103,AI7) -> 0 | AK7: =AJ7/(AL4-AJ25) -> 0 | AL7: =IF(AK7=0,0,(AK7*((LOG(AK7))/LOG(2)))) -> 0 | AN7: =N7 -> 11111 | AO7: =COUNTIF(L104:L127,AN7) -> 3 | AP7: =AO7/(AQ4-AO25) -> 0.125 | AQ7: =IF(AP7=0,0,(AP7*((LOG(AP7))/LOG(2)))) -> -0.375 | AS7: =N7 -> 11111 | AT7: =COUNTIF(L128:L151,AS7) -> 0 | AU7: =AT7/(AV4-AT25) -> 0 | AV7: =IF(AU7=0,0,(AU7*((LOG(AU7))/LOG(2)))) -> 0
A8: 12 | B8: 145 | C8: 13 | D8: 149 | E8: 13 | F8: 153 | G8: 14 | H8: 160 | I8: 13 | J8: 167 | K8: 0 | L8: 11111 | N8: 11112 | O8: =COUNTIF($L$7:$L$500,N8) -> 1 | P8: =O8/$Q$4 -> 0.006896551724 | Q8: =IF(P8=0,0,(P8*((LOG(P8))/LOG(2)))) -> -0.04951661441 | T8: =N8 -> 11112 | U8: =COUNTIF(L7:L30,T8) -> 1 | V8: =U8/(W4-U25) -> 0.04166666667 | W8: =IF(V8=0,0,(V8*((LOG(V8))/LOG(2)))) -> -0.1910401042 | Y8: =N8 -> 11112 | Z8: =COUNTIF(L31:L54,Y8) -> 0 | AA8: =Z8/(AB4-Z25) -> 0 | AB8: =IF(AA8=0,0,(AA8*((LOG(AA8))/LOG(2)))) -> 0 | AD8: =N8 -> 11112 | AE8: =COUNTIF(L55:L79,AD8) -> 0 | AF8: =AE8/(AG4-AE25) -> 0 | AG8: =IF(AF8=0,0,(AF8*((LOG(AF8))/LOG(2)))) -> 0 | AI8: =N8 -> 11112 | AJ8: =COUNTIF(L80:L103,AI8) -> 0 | AK8: =AJ8/(AL4-AJ25) -> 0 | AL8: =IF(AK8=0,0,(AK8*((LOG(AK8))/LOG(2)))) -> 0 | AN8: =N8 -> 11112 | AO8: =COUNTIF(L104:L127,AN8) -> 0 | AP8: =AO8/(AQ4-AO25) -> 0 | AQ8: =IF(AP8=0,0,(AP8*((LOG(AP8))/LOG(2)))) -> 0 | AS8: =N8 -> 11112 | AT8: =COUNTIF(L128:L151,AS8) -> 0 | AU8: =AT8/(AV4-AT25) -> 0 | AV8: =IF(AU8=0,0,(AU8*((LOG(AU8))/LOG(2)))) -> 0
A9: 12 | B9: 267 | C9: 13 | D9: 271 | E9: 13 | F9: 275 | G9: 14 | H9: 280 | I9: 24 | J9: 288 | K9: 0 | L9: 11112 | N9: 11121 | O9: =COUNTIF($L$7:$L$500,N9) -> 1 | P9: =O9/$Q$4 -> 0.006896551724 | Q9: =IF(P9=0,0,(P9*((LOG(P9))/LOG(2)))) -> -0.04951661441 | T9: =N9 -> 11121 | U9: =COUNTIF(L7:L30,T9) -> 0 | V9: =U9/(W4-U25) -> 0 | W9: =IF(V9=0,0,(V9*((LOG(V9))/LOG(2)))) -> 0 | Y9: =N9 -> 11121 | Z9: =COUNTIF(L31:L54,Y9) -> 0 | AA9: =Z9/(AB4-Z25) -> 0 | AB9: =IF(AA9=0,0,(AA9*((LOG(AA9))/LOG(2)))) -> 0 | AD9: =N9 -> 11121 | AE9: =COUNTIF(L55:L79,AD9) -> 0 | AF9: =AE9/(AG4-AE25) -> 0 | AG9: =IF(AF9=0,0,(AF9*((LOG(AF9))/LOG(2)))) -> 0 | AI9: =N9 -> 11121 | AJ9: =COUNTIF(L80:L103,AI9) -> 0 | AK9: =AJ9/(AL4-AJ25) -> 0 | AL9: =IF(AK9=0,0,(AK9*((LOG(AK9))/LOG(2)))) -> 0 | AN9: =N9 -> 11121 | AO9: =COUNTIF(L104:L127,AN9) -> 1 | AP9: =AO9/(AQ4-AO25) -> 0.04166666667 | AQ9: =IF(AP9=0,0,(AP9*((LOG(AP9))/LOG(2)))) -> -0.1910401042 | AS9: =N9 -> 11121 | AT9: =COUNTIF(L128:L151,AS9) -> 0 | AU9: =AT9/(AV4-AT25) -> 0 | AV9: =IF(AU9=0,0,(AU9*((LOG(AU9))/LOG(2)))) -> 0
A10: 12 | B10: 389 | C10: 13 | D10: 397 | E10: 13 | F10: 401 | G10: 14 | H10: 409 | I10: 13 | J10: 415 | K10: 0 | L10: 11111 | N10: 11122 | O10: =COUNTIF($L$7:$L$500,N10) -> 4 | P10: =O10/$Q$4 -> 0.0275862069 | Q10: =IF(P10=0,0,(P10*((LOG(P10))/LOG(2)))) -> -0.1428940439 | T10: =N10 -> 11122 | U10: =COUNTIF(L7:L30,T10) -> 0 | V10: =U10/(W4-U25) -> 0 | W10: =IF(V10=0,0,(V10*((LOG(V10))/LOG(2)))) -> 0 | Y10: =N10 -> 11122 | Z10: =COUNTIF(L31:L54,Y10) -> 1 | AA10: =Z10/(AB4-Z25) -> 0.04166666667 | AB10: =IF(AA10=0,0,(AA10*((LOG(AA10))/LOG(2)))) -> -0.1910401042 | AD10: =N10 -> 11122 | AE10: =COUNTIF(L55:L79,AD10) -> 0 | AF10: =AE10/(AG4-AE25) -> 0 | AG10: =IF(AF10=0,0,(AF10*((LOG(AF10))/LOG(2)))) -> 0 | AI10: =N10 -> 11122 | AJ10: =COUNTIF(L80:L103,AI10) -> 1 | AK10: =AJ10/(AL4-AJ25) -> 0.04166666667 | AL10: =IF(AK10=0,0,(AK10*((LOG(AK10))/LOG(2)))) -> -0.1910401042 | AN10: =N10 -> 11122 | AO10: =COUNTIF(L104:L127,AN10) -> 1 | AP10: =AO10/(AQ4-AO25) -> 0.04166666667 | AQ10: =IF(AP10=0,0,(AP10*((LOG(AP10))/LOG(2)))) -> -0.1910401042 | AS10: =N10 -> 11122 | AT10: =COUNTIF(L128:L151,AS10) -> 1 | AU10: =AT10/(AV4-AT25) -> 0.04166666667 | AV10: =IF(AU10=0,0,(AU10*((LOG(AU10))/LOG(2)))) -> -0.1910401042
A11: 12 | B11: 516 | C11: 13 | D11: 520 | E11: 13 | F11: 524 | G11: 14 | H11: 528 | I11: 13 | J11: 535 | K11: 0 | L11: 11111 | N11: 11211 | O11: =COUNTIF($L$7:$L$500,N11) -> 0 | P11: =O11/$Q$4 -> 0 | Q11: =IF(P11=0,0,(P11*((LOG(P11))/LOG(2)))) -> 0 | T11: =N11 -> 11211 | U11: =COUNTIF(L7:L30,T11) -> 0 | V11: =U11/(W4-U25) -> 0 | W11: =IF(V11=0,0,(V11*((LOG(V11))/LOG(2)))) -> 0 | Y11: =N11 -> 11211 | Z11: =COUNTIF(L31:L54,Y11) -> 0 | AA11: =Z11/(AB4-Z25) -> 0 | AB11: =IF(AA11=0,0,(AA11*((LOG(AA11))/LOG(2)))) -> 0 | AD11: =N11 -> 11211 | AE11: =COUNTIF(L55:L79,AD11) -> 0 | AF11: =AE11/(AG4-AE25) -> 0 | AG11: =IF(AF11=0,0,(AF11*((LOG(AF11))/LOG(2)))) -> 0 | AI11: =N11 -> 11211 | AJ11: =COUNTIF(L80:L103,AI11) -> 0 | AK11: =AJ11/(AL4-AJ25) -> 0 | AL11: =IF(AK11=0,0,(AK11*((LOG(AK11))/LOG(2)))) -> 0 | AN11: =N11 -> 11211 | AO11: =COUNTIF(L104:L127,AN11) -> 0 | AP11: =AO11/(AQ4-AO25) -> 0 | AQ11: =IF(AP11=0,0,(AP11*((LOG(AP11))/LOG(2)))) -> 0 | AS11: =N11 -> 11211 | AT11: =COUNTIF(L128:L151,AS11) -> 0 | AU11: =AT11/(AV4-AT25) -> 0 | AV11: =IF(AU11=0,0,(AU11*((LOG(AU11))/LOG(2)))) -> 0
A12: 21 | B12: 637 | C12: 22 | D12: 652 | E12: 13 | F12: 664 | G12: 23 | H12: 672 | I12: 13 | J12: 681 | K12: 1 | L12: 22121 | N12: 11212 | O12: =COUNTIF($L$7:$L$500,N12) -> 1 | P12: =O12/$Q$4 -> 0.006896551724 | Q12: =IF(P12=0,0,(P12*((LOG(P12))/LOG(2)))) -> -0.04951661441 | T12: =N12 -> 11212 | U12: =COUNTIF(L7:L30,T12) -> 0 | V12: =U12/(W4-U25) -> 0 | W12: =IF(V12=0,0,(V12*((LOG(V12))/LOG(2)))) -> 0 | Y12: =N12 -> 11212 | Z12: =COUNTIF(L31:L54,Y12) -> 0 | AA12: =Z12/(AB4-Z25) -> 0 | AB12: =IF(AA12=0,0,(AA12*((LOG(AA12))/LOG(2)))) -> 0 | AD12: =N12 -> 11212 | AE12: =COUNTIF(L55:L79,AD12) -> 1 | AF12: =AE12/(AG4-AE25) -> 0.04 | AG12: =IF(AF12=0,0,(AF12*((LOG(AF12))/LOG(2)))) -> -0.1857542476 | AI12: =N12 -> 11212 | AJ12: =COUNTIF(L80:L103,AI12) -> 0 | AK12: =AJ12/(AL4-AJ25) -> 0 | AL12: =IF(AK12=0,0,(AK12*((LOG(AK12))/LOG(2)))) -> 0 | AN12: =N12 -> 11212 | AO12: =COUNTIF(L104:L127,AN12) -> 0 | AP12: =AO12/(AQ4-AO25) -> 0 | AQ12: =IF(AP12=0,0,(AP12*((LOG(AP12))/LOG(2)))) -> 0 | AS12: =N12 -> 11212 | AT12: =COUNTIF(L128:L151,AS12) -> 0 | AU12: =AT12/(AV4-AT25) -> 0 | AV12: =IF(AU12=0,0,(AU12*((LOG(AU12))/LOG(2)))) -> 0
A13: 21 | B13: 781 | C13: 22 | D13: 786 | E13: 13 | F13: 796 | G13: 14 | H13: 800 | I13: 13 | J13: 804 | K13: 0 | L13: 22111 | N13: 11221 | O13: =COUNTIF($L$7:$L$500,N13) -> 2 | P13: =O13/$Q$4 -> 0.01379310345 | Q13: =IF(P13=0,0,(P13*((LOG(P13))/LOG(2)))) -> -0.08524012538 | T13: =N13 -> 11221 | U13: =COUNTIF(L7:L30,T13) -> 0 | V13: =U13/(W4-U25) -> 0 | W13: =IF(V13=0,0,(V13*((LOG(V13))/LOG(2)))) -> 0 | Y13: =N13 -> 11221 | Z13: =COUNTIF(L31:L54,Y13) -> 0 | AA13: =Z13/(AB4-Z25) -> 0 | AB13: =IF(AA13=0,0,(AA13*((LOG(AA13))/LOG(2)))) -> 0 | AD13: =N13 -> 11221 | AE13: =COUNTIF(L55:L79,AD13) -> 0 | AF13: =AE13/(AG4-AE25) -> 0 | AG13: =IF(AF13=0,0,(AF13*((LOG(AF13))/LOG(2)))) -> 0 | AI13: =N13 -> 11221 | AJ13: =COUNTIF(L80:L103,AI13) -> 1 | AK13: =AJ13/(AL4-AJ25) -> 0.04166666667 | AL13: =IF(AK13=0,0,(AK13*((LOG(AK13))/LOG(2)))) -> -0.1910401042 | AN13: =N13 -> 11221 | AO13: =COUNTIF(L104:L127,AN13) -> 0 | AP13: =AO13/(AQ4-AO25) -> 0 | AQ13: =IF(AP13=0,0,(AP13*((LOG(AP13))/LOG(2)))) -> 0 | AS13: =N13 -> 11221 | AT13: =COUNTIF(L128:L151,AS13) -> 1 | AU13: =AT13/(AV4-AT25) -> 0.04166666667 | AV13: =IF(AU13=0,0,(AU13*((LOG(AU13))/LOG(2)))) -> -0.1910401042
A14: 21 | B14: 904 | C14: 11 | D14: 912 | E14: 11 | F14: 916 | G14: 12 | H14: 921 | I14: 24 | J14: 929 | K14: 0 | L14: 21112 | N14: 11222 | O14: =COUNTIF($L$7:$L$500,N14) -> 2 | P14: =O14/$Q$4 -> 0.01379310345 | Q14: =IF(P14=0,0,(P14*((LOG(P14))/LOG(2)))) -> -0.08524012538 | T14: =N14 -> 11222 | U14: =COUNTIF(L7:L30,T14) -> 0 | V14: =U14/(W4-U25) -> 0 | W14: =IF(V14=0,0,(V14*((LOG(V14))/LOG(2)))) -> 0 | Y14: =N14 -> 11222 | Z14: =COUNTIF(L31:L54,Y14) -> 0 | AA14: =Z14/(AB4-Z25) -> 0 | AB14: =IF(AA14=0,0,(AA14*((LOG(AA14))/LOG(2)))) -> 0 | AD14: =N14 -> 11222 | AE14: =COUNTIF(L55:L79,AD14) -> 0 | AF14: =AE14/(AG4-AE25) -> 0 | AG14: =IF(AF14=0,0,(AF14*((LOG(AF14))/LOG(2)))) -> 0 | AI14: =N14 -> 11222 | AJ14: =COUNTIF(L80:L103,AI14) -> 0 | AK14: =AJ14/(AL4-AJ25) -> 0 | AL14: =IF(AK14=0,0,(AK14*((LOG(AK14))/LOG(2)))) -> 0 | AN14: =N14 -> 11222 | AO14: =COUNTIF(L104:L127,AN14) -> 1 | AP14: =AO14/(AQ4-AO25) -> 0.04166666667 | AQ14: =IF(AP14=0,0,(AP14*((LOG(AP14))/LOG(2)))) -> -0.1910401042 | AS14: =N14 -> 11222 | AT14: =COUNTIF(L128:L151,AS14) -> 1 | AU14: =AT14/(AV4-AT25) -> 0.04166666667 | AV14: =IF(AU14=0,0,(AU14*((LOG(AU14))/LOG(2)))) -> -0.1910401042
A15: 21 | B15: 1031 | C15: 22 | D15: 1036 | E15: 13 | F15: 1043 | G15: 14 | H15: 1047 | I15: 24 | J15: 1057 | K15: 0 | L15: 22112 | N15: 12111 | O15: =COUNTIF($L$7:$L$500,N15) -> 2 | P15: =O15/$Q$4 -> 0.01379310345 | Q15: =IF(P15=0,0,(P15*((LOG(P15))/LOG(2)))) -> -0.08524012538 | T15: =N15 -> 12111 | U15: =COUNTIF(L7:L30,T15) -> 0 | V15: =U15/(W4-U25) -> 0 | W15: =IF(V15=0,0,(V15*((LOG(V15))/LOG(2)))) -> 0 | Y15: =N15 -> 12111 | Z15: =COUNTIF(L31:L54,Y15) -> 0 | AA15: =Z15/(AB4-Z25) -> 0 | AB15: =IF(AA15=0,0,(AA15*((LOG(AA15))/LOG(2)))) -> 0 | AD15: =N15 -> 12111 | AE15: =COUNTIF(L55:L79,AD15) -> 0 | AF15: =AE15/(AG4-AE25) -> 0 | AG15: =IF(AF15=0,0,(AF15*((LOG(AF15))/LOG(2)))) -> 0 | AI15: =N15 -> 12111 | AJ15: =COUNTIF(L80:L103,AI15) -> 0 | AK15: =AJ15/(AL4-AJ25) -> 0 | AL15: =IF(AK15=0,0,(AK15*((LOG(AK15))/LOG(2)))) -> 0 | AN15: =N15 -> 12111 | AO15: =COUNTIF(L104:L127,AN15) -> 1 | AP15: =AO15/(AQ4-AO25) -> 0.04166666667 | AQ15: =IF(AP15=0,0,(AP15*((LOG(AP15))/LOG(2)))) -> -0.1910401042 | AS15: =N15 -> 12111 | AT15: =COUNTIF(L128:L151,AS15) -> 1 | AU15: =AT15/(AV4-AT25) -> 0.04166666667 | AV15: =IF(AU15=0,0,(AU15*((LOG(AU15))/LOG(2)))) -> -0.1910401042
A16: 12 | B16: 1154 | C16: 13 | D16: 1162 | E16: 13 | F16: 1170 | G16: 14 | H16: 1174 | I16: 13 | J16: 1179 | K16: 0 | L16: 11111 | N16: 12112 | O16: =COUNTIF($L$7:$L$500,N16) -> 0 | P16: =O16/$Q$4 -> 0 | Q16: =IF(P16=0,0,(P16*((LOG(P16))/LOG(2)))) -> 0 | T16: =N16 -> 12112 | U16: =COUNTIF(L7:L30,T16) -> 0 | V16: =U16/(W4-U25) -> 0 | W16: =IF(V16=0,0,(V16*((LOG(V16))/LOG(2)))) -> 0 | Y16: =N16 -> 12112 | Z16: =COUNTIF(L31:L54,Y16) -> 0 | AA16: =Z16/(AB4-Z25) -> 0 | AB16: =IF(AA16=0,0,(AA16*((LOG(AA16))/LOG(2)))) -> 0 | AD16: =N16 -> 12112 | AE16: =COUNTIF(L55:L79,AD16) -> 0 | AF16: =AE16/(AG4-AE25) -> 0 | AG16: =IF(AF16=0,0,(AF16*((LOG(AF16))/LOG(2)))) -> 0 | AI16: =N16 -> 12112 | AJ16: =COUNTIF(L80:L103,AI16) -> 0 | AK16: =AJ16/(AL4-AJ25) -> 0 | AL16: =IF(AK16=0,0,(AK16*((LOG(AK16))/LOG(2)))) -> 0 | AN16: =N16 -> 12112 | AO16: =COUNTIF(L104:L127,AN16) -> 0 | AP16: =AO16/(AQ4-AO25) -> 0 | AQ16: =IF(AP16=0,0,(AP16*((LOG(AP16))/LOG(2)))) -> 0 | AS16: =N16 -> 12112 | AT16: =COUNTIF(L128:L151,AS16) -> 0 | AU16: =AT16/(AV4-AT25) -> 0 | AV16: =IF(AU16=0,0,(AU16*((LOG(AU16))/LOG(2)))) -> 0
A17: 21 | B17: 1281 | C17: 22 | D17: 1288 | E17: 13 | F17: 1297 | G17: 14 | H17: 1301 | I17: 13 | J17: 1306 | K17: 0 | L17: 22111 | N17: 12121 | O17: =COUNTIF($L$7:$L$500,N17) -> 2 | P17: =O17/$Q$4 -> 0.01379310345 | Q17: =IF(P17=0,0,(P17*((LOG(P17))/LOG(2)))) -> -0.08524012538 | T17: =N17 -> 12121 | U17: =COUNTIF(L7:L30,T17) -> 0 | V17: =U17/(W4-U25) -> 0 | W17: =IF(V17=0,0,(V17*((LOG(V17))/LOG(2)))) -> 0 | Y17: =N17 -> 12121 | Z17: =COUNTIF(L31:L54,Y17) -> 0 | AA17: =Z17/(AB4-Z25) -> 0 | AB17: =IF(AA17=0,0,(AA17*((LOG(AA17))/LOG(2)))) -> 0 | AD17: =N17 -> 12121 | AE17: =COUNTIF(L55:L79,AD17) -> 0 | AF17: =AE17/(AG4-AE25) -> 0 | AG17: =IF(AF17=0,0,(AF17*((LOG(AF17))/LOG(2)))) -> 0 | AI17: =N17 -> 12121 | AJ17: =COUNTIF(L80:L103,AI17) -> 1 | AK17: =AJ17/(AL4-AJ25) -> 0.04166666667 | AL17: =IF(AK17=0,0,(AK17*((LOG(AK17))/LOG(2)))) -> -0.1910401042 | AN17: =N17 -> 12121 | AO17: =COUNTIF(L104:L127,AN17) -> 1 | AP17: =AO17/(AQ4-AO25) -> 0.04166666667 | AQ17: =IF(AP17=0,0,(AP17*((LOG(AP17))/LOG(2)))) -> -0.1910401042 | AS17: =N17 -> 12121 | AT17: =COUNTIF(L128:L151,AS17) -> 0 | AU17: =AT17/(AV4-AT25) -> 0 | AV17: =IF(AU17=0,0,(AU17*((LOG(AU17))/LOG(2)))) -> 0
A18: 21 | B18: 1410 | C18: 22 | D18: 1415 | E18: 13 | F18: 1424 | G18: 14 | H18: 1428 | I18: 24 | J18: 1436 | K18: 1 | L18: 22112 | N18: 12122 | O18: =COUNTIF($L$7:$L$500,N18) -> 0 | P18: =O18/$Q$4 -> 0 | Q18: =IF(P18=0,0,(P18*((LOG(P18))/LOG(2)))) -> 0 | T18: =N18 -> 12122 | U18: =COUNTIF(L7:L30,T18) -> 0 | V18: =U18/(W4-U25) -> 0 | W18: =IF(V18=0,0,(V18*((LOG(V18))/LOG(2)))) -> 0 | Y18: =N18 -> 12122 | Z18: =COUNTIF(L31:L54,Y18) -> 0 | AA18: =Z18/(AB4-Z25) -> 0 | AB18: =IF(AA18=0,0,(AA18*((LOG(AA18))/LOG(2)))) -> 0 | AD18: =N18 -> 12122 | AE18: =COUNTIF(L55:L79,AD18) -> 0 | AF18: =AE18/(AG4-AE25) -> 0 | AG18: =IF(AF18=0,0,(AF18*((LOG(AF18))/LOG(2)))) -> 0 | AI18: =N18 -> 12122 | AJ18: =COUNTIF(L80:L103,AI18) -> 0 | AK18: =AJ18/(AL4-AJ25) -> 0 | AL18: =IF(AK18=0,0,(AK18*((LOG(AK18))/LOG(2)))) -> 0 | AN18: =N18 -> 12122 | AO18: =COUNTIF(L104:L127,AN18) -> 0 | AP18: =AO18/(AQ4-AO25) -> 0 | AQ18: =IF(AP18=0,0,(AP18*((LOG(AP18))/LOG(2)))) -> 0 | AS18: =N18 -> 12122 | AT18: =COUNTIF(L128:L151,AS18) -> 0 | AU18: =AT18/(AV4-AT25) -> 0 | AV18: =IF(AU18=0,0,(AU18*((LOG(AU18))/LOG(2)))) -> 0
A19: 21 | B19: 1535 | C19: 22 | D19: 1540 | E19: 13 | F19: 1554 | G19: 14 | H19: 1558 | I19: 13 | J19: 1562 | K19: 0 | L19: 22111 | N19: 12211 | O19: =COUNTIF($L$7:$L$500,N19) -> 1 | P19: =O19/$Q$4 -> 0.006896551724 | Q19: =IF(P19=0,0,(P19*((LOG(P19))/LOG(2)))) -> -0.04951661441 | T19: =N19 -> 12211 | U19: =COUNTIF(L7:L30,T19) -> 0 | V19: =U19/(W4-U25) -> 0 | W19: =IF(V19=0,0,(V19*((LOG(V19))/LOG(2)))) -> 0 | Y19: =N19 -> 12211 | Z19: =COUNTIF(L31:L54,Y19) -> 0 | AA19: =Z19/(AB4-Z25) -> 0 | AB19: =IF(AA19=0,0,(AA19*((LOG(AA19))/LOG(2)))) -> 0 | AD19: =N19 -> 12211 | AE19: =COUNTIF(L55:L79,AD19) -> 0 | AF19: =AE19/(AG4-AE25) -> 0 | AG19: =IF(AF19=0,0,(AF19*((LOG(AF19))/LOG(2)))) -> 0 | AI19: =N19 -> 12211 | AJ19: =COUNTIF(L80:L103,AI19) -> 0 | AK19: =AJ19/(AL4-AJ25) -> 0 | AL19: =IF(AK19=0,0,(AK19*((LOG(AK19))/LOG(2)))) -> 0 | AN19: =N19 -> 12211 | AO19: =COUNTIF(L104:L127,AN19) -> 0 | AP19: =AO19/(AQ4-AO25) -> 0 | AQ19: =IF(AP19=0,0,(AP19*((LOG(AP19))/LOG(2)))) -> 0 | AS19: =N19 -> 12211 | AT19: =COUNTIF(L128:L151,AS19) -> 1 | AU19: =AT19/(AV4-AT25) -> 0.04166666667 | AV19: =IF(AU19=0,0,(AU19*((LOG(AU19))/LOG(2)))) -> -0.1910401042
A20: 12 | B20: 1670 | C20: 13 | D20: 1678 | E20: 13 | F20: 1685 | G20: 14 | H20: 1691 | I20: 13 | J20: 1697 | K20: 0 | L20: 11111 | N20: 12212 | O20: =COUNTIF($L$7:$L$500,N20) -> 3 | P20: =O20/$Q$4 -> 0.02068965517 | Q20: =IF(P20=0,0,(P20*((LOG(P20))/LOG(2)))) -> -0.1157575156 | T20: =N20 -> 12212 | U20: =COUNTIF(L7:L30,T20) -> 0 | V20: =U20/(W4-U25) -> 0 | W20: =IF(V20=0,0,(V20*((LOG(V20))/LOG(2)))) -> 0 | Y20: =N20 -> 12212 | Z20: =COUNTIF(L31:L54,Y20) -> 1 | AA20: =Z20/(AB4-Z25) -> 0.04166666667 | AB20: =IF(AA20=0,0,(AA20*((LOG(AA20))/LOG(2)))) -> -0.1910401042 | AD20: =N20 -> 12212 | AE20: =COUNTIF(L55:L79,AD20) -> 1 | AF20: =AE20/(AG4-AE25) -> 0.04 | AG20: =IF(AF20=0,0,(AF20*((LOG(AF20))/LOG(2)))) -> -0.1857542476 | AI20: =N20 -> 12212 | AJ20: =COUNTIF(L80:L103,AI20) -> 1 | AK20: =AJ20/(AL4-AJ25) -> 0.04166666667 | AL20: =IF(AK20=0,0,(AK20*((LOG(AK20))/LOG(2)))) -> -0.1910401042 | AN20: =N20 -> 12212 | AO20: =COUNTIF(L104:L127,AN20) -> 0 | AP20: =AO20/(AQ4-AO25) -> 0 | AQ20: =IF(AP20=0,0,(AP20*((LOG(AP20))/LOG(2)))) -> 0 | AS20: =N20 -> 12212 | AT20: =COUNTIF(L128:L151,AS20) -> 0 | AU20: =AT20/(AV4-AT25) -> 0 | AV20: =IF(AU20=0,0,(AU20*((LOG(AU20))/LOG(2)))) -> 0
A21: 21 | B21: 1795 | C21: 22 | D21: 1799 | E21: 24 | F21: 1806 | G21: 14 | H21: 1818 | I21: 13 | J21: 1822 | K21: 0 | L21: 22211 | N21: 12221 | O21: =COUNTIF($L$7:$L$500,N21) -> 1 | P21: =O21/$Q$4 -> 0.006896551724 | Q21: =IF(P21=0,0,(P21*((LOG(P21))/LOG(2)))) -> -0.04951661441 | T21: =N21 -> 12221 | U21: =COUNTIF(L7:L30,T21) -> 0 | V21: =U21/(W4-U25) -> 0 | W21: =IF(V21=0,0,(V21*((LOG(V21))/LOG(2)))) -> 0 | Y21: =N21 -> 12221 | Z21: =COUNTIF(L31:L54,Y21) -> 0 | AA21: =Z21/(AB4-Z25) -> 0 | AB21: =IF(AA21=0,0,(AA21*((LOG(AA21))/LOG(2)))) -> 0 | AD21: =N21 -> 12221 | AE21: =COUNTIF(L55:L79,AD21) -> 0 | AF21: =AE21/(AG4-AE25) -> 0 | AG21: =IF(AF21=0,0,(AF21*((LOG(AF21))/LOG(2)))) -> 0 | AI21: =N21 -> 12221 | AJ21: =COUNTIF(L80:L103,AI21) -> 0 | AK21: =AJ21/(AL4-AJ25) -> 0 | AL21: =IF(AK21=0,0,(AK21*((LOG(AK21))/LOG(2)))) -> 0 | AN21: =N21 -> 12221 | AO21: =COUNTIF(L104:L127,AN21) -> 1 | AP21: =AO21/(AQ4-AO25) -> 0.04166666667 | AQ21: =IF(AP21=0,0,(AP21*((LOG(AP21))/LOG(2)))) -> -0.1910401042 | AS21: =N21 -> 12221 | AT21: =COUNTIF(L128:L151,AS21) -> 0 | AU21: =AT21/(AV4-AT25) -> 0 | AV21: =IF(AU21=0,0,(AU21*((LOG(AU21))/LOG(2)))) -> 0
A22: 21 | B22: 1927 | C22: 22 | D22: 1935 | E22: 13 | F22: 1945 | G22: 14 | H22: 1949 | I22: 13 | J22: 1952 | K22: 0 | L22: 22111 | N22: 12222 | O22: =COUNTIF($L$7:$L$500,N22) -> 3 | P22: =O22/$Q$4 -> 0.02068965517 | Q22: =IF(P22=0,0,(P22*((LOG(P22))/LOG(2)))) -> -0.1157575156 | T22: =N22 -> 12222 | U22: =COUNTIF(L7:L30,T22) -> 0 | V22: =U22/(W4-U25) -> 0 | W22: =IF(V22=0,0,(V22*((LOG(V22))/LOG(2)))) -> 0 | Y22: =N22 -> 12222 | Z22: =COUNTIF(L31:L54,Y22) -> 0 | AA22: =Z22/(AB4-Z25) -> 0 | AB22: =IF(AA22=0,0,(AA22*((LOG(AA22))/LOG(2)))) -> 0 | AD22: =N22 -> 12222 | AE22: =COUNTIF(L55:L79,AD22) -> 0 | AF22: =AE22/(AG4-AE25) -> 0 | AG22: =IF(AF22=0,0,(AF22*((LOG(AF22))/LOG(2)))) -> 0 | AI22: =N22 -> 12222 | AJ22: =COUNTIF(L80:L103,AI22) -> 0 | AK22: =AJ22/(AL4-AJ25) -> 0 | AL22: =IF(AK22=0,0,(AK22*((LOG(AK22))/LOG(2)))) -> 0 | AN22: =N22 -> 12222 | AO22: =COUNTIF(L104:L127,AN22) -> 2 | AP22: =AO22/(AQ4-AO25) -> 0.08333333333 | AQ22: =IF(AP22=0,0,(AP22*((LOG(AP22))/LOG(2)))) -> -0.2987468751 | AS22: =N22 -> 12222 | AT22: =COUNTIF(L128:L151,AS22) -> 1 | AU22: =AT22/(AV4-AT25) -> 0.04166666667 | AV22: =IF(AU22=0,0,(AU22*((LOG(AU22))/LOG(2)))) -> -0.1910401042
A23: 21 | B23: 2073 | C23: 22 | D23: 2080 | E23: 13 | F23: 2089 | G23: 23 | H23: 2096 | I23: 24 | J23: 2112 | K23: 0 | L23: 22122 | N23: 21111 | O23: =COUNTIF($L$7:$L$500,N23) -> 0 | P23: =O23/$Q$4 -> 0 | Q23: =IF(P23=0,0,(P23*((LOG(P23))/LOG(2)))) -> 0 | T23: =N23 -> 21111 | U23: =COUNTIF(L7:L30,T23) -> 0 | V23: =U23/(W4-U25) -> 0 | W23: =IF(V23=0,0,(V23*((LOG(V23))/LOG(2)))) -> 0 | Y23: =N23 -> 21111 | Z23: =COUNTIF(L31:L54,Y23) -> 0 | AA23: =Z23/(AB4-Z25) -> 0 | AB23: =IF(AA23=0,0,(AA23*((LOG(AA23))/LOG(2)))) -> 0 | AD23: =N23 -> 21111 | AE23: =COUNTIF(L55:L79,AD23) -> 0 | AF23: =AE23/(AG4-AE25) -> 0 | AG23: =IF(AF23=0,0,(AF23*((LOG(AF23))/LOG(2)))) -> 0 | AI23: =N23 -> 21111 | AJ23: =COUNTIF(L80:L103,AI23) -> 0 | AK23: =AJ23/(AL4-AJ25) -> 0 | AL23: =IF(AK23=0,0,(AK23*((LOG(AK23))/LOG(2)))) -> 0 | AN23: =N23 -> 21111 | AO23: =COUNTIF(L104:L127,AN23) -> 0 | AP23: =AO23/(AQ4-AO25) -> 0 | AQ23: =IF(AP23=0,0,(AP23*((LOG(AP23))/LOG(2)))) -> 0 | AS23: =N23 -> 21111 | AT23: =COUNTIF(L128:L151,AS23) -> 0 | AU23: =AT23/(AV4-AT25) -> 0 | AV23: =IF(AU23=0,0,(AU23*((LOG(AU23))/LOG(2)))) -> 0
A24: 21 | B24: 2213 | C24: 22 | D24: 2221 | E24: 13 | F24: 2228 | G24: 14 | H24: 2232 | I24: 13 | J24: 2236 | K24: 0 | L24: 22111 | N24: 21112 | O24: =COUNTIF($L$7:$L$500,N24) -> 5 | P24: =O24/$Q$4 -> 0.03448275862 | Q24: =IF(P24=0,0,(P24*((LOG(P24))/LOG(2)))) -> -0.167516586 | T24: =N24 -> 21112 | U24: =COUNTIF(L7:L30,T24) -> 2 | V24: =U24/(W4-U25) -> 0.08333333333 | W24: =IF(V24=0,0,(V24*((LOG(V24))/LOG(2)))) -> -0.2987468751 | Y24: =N24 -> 21112 | Z24: =COUNTIF(L31:L54,Y24) -> 2 | AA24: =Z24/(AB4-Z25) -> 0.08333333333 | AB24: =IF(AA24=0,0,(AA24*((LOG(AA24))/LOG(2)))) -> -0.2987468751 | AD24: =N24 -> 21112 | AE24: =COUNTIF(L55:L79,AD24) -> 1 | AF24: =AE24/(AG4-AE25) -> 0.04 | AG24: =IF(AF24=0,0,(AF24*((LOG(AF24))/LOG(2)))) -> -0.1857542476 | AI24: =N24 -> 21112 | AJ24: =COUNTIF(L80:L103,AI24) -> 0 | AK24: =AJ24/(AL4-AJ25) -> 0 | AL24: =IF(AK24=0,0,(AK24*((LOG(AK24))/LOG(2)))) -> 0 | AN24: =N24 -> 21112 | AO24: =COUNTIF(L104:L127,AN24) -> 0 | AP24: =AO24/(AQ4-AO25) -> 0 | AQ24: =IF(AP24=0,0,(AP24*((LOG(AP24))/LOG(2)))) -> 0 | AS24: =N24 -> 21112 | AT24: =COUNTIF(L128:L151,AS24) -> 0 | AU24: =AT24/(AV4-AT25) -> 0 | AV24: =IF(AU24=0,0,(AU24*((LOG(AU24))/LOG(2)))) -> 0
A25: 21 | B25: 2351 | C25: 22 | D25: 2359 | E25: 24 | F25: 2367 | G25: 14 | H25: 2377 | I25: 24 | J25: 2385 | K25: 1 | L25: 22212 | N25: 21121 | O25: =COUNTIF($L$7:$L$500,N25) -> 0 | P25: =O25/$Q$4 -> 0 | Q25: =IF(P25=0,0,(P25*((LOG(P25))/LOG(2)))) -> 0 | T25: =N25 -> 21121 | U25: =COUNTIF(L7:L30,T25) -> 0 | Y25: =N25 -> 21121 | Z25: =COUNTIF(L31:L54,Y25) -> 0 | AD25: =N25 -> 21121 | AE25: =COUNTIF(L55:L79,AD25) -> 0 | AI25: =N25 -> 21121 | AJ25: =COUNTIF(L80:L103,AI25) -> 0 | AN25: =N25 -> 21121 | AO25: =COUNTIF(L104:L127,AN25) -> 0 | AS25: =N25 -> 21121 | AT25: =COUNTIF(L128:L151,AS25) -> 0
A26: 21 | B26: 2503 | C26: 11 | D26: 2520 | E26: 11 | F26: 2524 | G26: 12 | H26: 2528 | I26: 24 | J26: 2536 | K26: 0 | L26: 21112 | N26: 21122 | O26: =COUNTIF($L$7:$L$500,N26) -> 0 | P26: =O26/$Q$4 -> 0 | Q26: =IF(P26=0,0,(P26*((LOG(P26))/LOG(2)))) -> 0 | T26: =N26 -> 21122 | U26: =COUNTIF(L7:L30,T26) -> 0 | V26: =U26/(W4-U25) -> 0 | W26: =IF(V26=0,0,(V26*((LOG(V26))/LOG(2)))) -> 0 | Y26: =N26 -> 21122 | Z26: =COUNTIF(L31:L54,Y26) -> 0 | AA26: =Z26/(AB4-Z25) -> 0 | AB26: =IF(AA26=0,0,(AA26*((LOG(AA26))/LOG(2)))) -> 0 | AD26: =N26 -> 21122 | AE26: =COUNTIF(L55:L79,AD26) -> 0 | AF26: =AE26/(AG4-AE25) -> 0 | AG26: =IF(AF26=0,0,(AF26*((LOG(AF26))/LOG(2)))) -> 0 | AI26: =N26 -> 21122 | AJ26: =COUNTIF(L80:L103,AI26) -> 0 | AK26: =AJ26/(AL4-AJ25) -> 0 | AL26: =IF(AK26=0,0,(AK26*((LOG(AK26))/LOG(2)))) -> 0 | AN26: =N26 -> 21122 | AO26: =COUNTIF(L104:L127,AN26) -> 0 | AP26: =AO26/(AQ4-AO25) -> 0 | AQ26: =IF(AP26=0,0,(AP26*((LOG(AP26))/LOG(2)))) -> 0 | AS26: =N26 -> 21122 | AT26: =COUNTIF(L128:L151,AS26) -> 0 | AU26: =AT26/(AV4-AT25) -> 0 | AV26: =IF(AU26=0,0,(AU26*((LOG(AU26))/LOG(2)))) -> 0
A27: 21 | B27: 2655 | C27: 11 | D27: 2664 | E27: 22 | F27: 2672 | G27: 14 | H27: 2683 | I27: 24 | J27: 2691 | K27: 0 | L27: 21212 | N27: 21211 | O27: =COUNTIF($L$7:$L$500,N27) -> 0 | P27: =O27/$Q$4 -> 0 | Q27: =IF(P27=0,0,(P27*((LOG(P27))/LOG(2)))) -> 0 | T27: =N27 -> 21211 | U27: =COUNTIF(L7:L30,T27) -> 0 | V27: =U27/(W4-U25) -> 0 | W27: =IF(V27=0,0,(V27*((LOG(V27))/LOG(2)))) -> 0 | Y27: =N27 -> 21211 | Z27: =COUNTIF(L31:L54,Y27) -> 0 | AA27: =Z27/(AB4-Z25) -> 0 | AB27: =IF(AA27=0,0,(AA27*((LOG(AA27))/LOG(2)))) -> 0 | AD27: =N27 -> 21211 | AE27: =COUNTIF(L55:L79,AD27) -> 0 | AF27: =AE27/(AG4-AE25) -> 0 | AG27: =IF(AF27=0,0,(AF27*((LOG(AF27))/LOG(2)))) -> 0 | AI27: =N27 -> 21211 | AJ27: =COUNTIF(L80:L103,AI27) -> 0 | AK27: =AJ27/(AL4-AJ25) -> 0 | AL27: =IF(AK27=0,0,(AK27*((LOG(AK27))/LOG(2)))) -> 0 | AN27: =N27 -> 21211 | AO27: =COUNTIF(L104:L127,AN27) -> 0 | AP27: =AO27/(AQ4-AO25) -> 0 | AQ27: =IF(AP27=0,0,(AP27*((LOG(AP27))/LOG(2)))) -> 0 | AS27: =N27 -> 21211 | AT27: =COUNTIF(L128:L151,AS27) -> 0 | AU27: =AT27/(AV4-AT25) -> 0 | AV27: =IF(AU27=0,0,(AU27*((LOG(AU27))/LOG(2)))) -> 0
A28: 21 | B28: 2791 | C28: 22 | D28: 2796 | E28: 13 | F28: 2809 | G28: 23 | H28: 2818 | I28: 13 | J28: 2827 | K28: 0 | L28: 22121 | N28: 21212 | O28: =COUNTIF($L$7:$L$500,N28) -> 13 | P28: =O28/$Q$4 -> 0.08965517241 | Q28: =IF(P28=0,0,(P28*((LOG(P28))/LOG(2)))) -> -0.3119524264 | T28: =N28 -> 21212 | U28: =COUNTIF(L7:L30,T28) -> 2 | V28: =U28/(W4-U25) -> 0.08333333333 | W28: =IF(V28=0,0,(V28*((LOG(V28))/LOG(2)))) -> -0.2987468751 | Y28: =N28 -> 21212 | Z28: =COUNTIF(L31:L54,Y28) -> 2 | AA28: =Z28/(AB4-Z25) -> 0.08333333333 | AB28: =IF(AA28=0,0,(AA28*((LOG(AA28))/LOG(2)))) -> -0.2987468751 | AD28: =N28 -> 21212 | AE28: =COUNTIF(L55:L79,AD28) -> 2 | AF28: =AE28/(AG4-AE25) -> 0.08 | AG28: =IF(AF28=0,0,(AF28*((LOG(AF28))/LOG(2)))) -> -0.2915084952 | AI28: =N28 -> 21212 | AJ28: =COUNTIF(L80:L103,AI28) -> 4 | AK28: =AJ28/(AL4-AJ25) -> 0.1666666667 | AL28: =IF(AK28=0,0,(AK28*((LOG(AK28))/LOG(2)))) -> -0.4308270835 | AN28: =N28 -> 21212 | AO28: =COUNTIF(L104:L127,AN28) -> 2 | AP28: =AO28/(AQ4-AO25) -> 0.08333333333 | AQ28: =IF(AP28=0,0,(AP28*((LOG(AP28))/LOG(2)))) -> -0.2987468751 | AS28: =N28 -> 21212 | AT28: =COUNTIF(L128:L151,AS28) -> 1 | AU28: =AT28/(AV4-AT25) -> 0.04166666667 | AV28: =IF(AU28=0,0,(AU28*((LOG(AU28))/LOG(2)))) -> -0.1910401042
A29: 21 | B29: 2950 | C29: 22 | D29: 2958 | E29: 13 | F29: 2968 | G29: 23 | H29: 2975 | I29: 24 | J29: 2982 | K29: 1 | L29: 22122 | N29: 21221 | O29: =COUNTIF($L$7:$L$500,N29) -> 8 | P29: =O29/$Q$4 -> 0.05517241379 | Q29: =IF(P29=0,0,(P29*((LOG(P29))/LOG(2)))) -> -0.2306156739 | T29: =N29 -> 21221 | U29: =COUNTIF(L7:L30,T29) -> 0 | V29: =U29/(W4-U25) -> 0 | W29: =IF(V29=0,0,(V29*((LOG(V29))/LOG(2)))) -> 0 | Y29: =N29 -> 21221 | Z29: =COUNTIF(L31:L54,Y29) -> 2 | AA29: =Z29/(AB4-Z25) -> 0.08333333333 | AB29: =IF(AA29=0,0,(AA29*((LOG(AA29))/LOG(2)))) -> -0.2987468751 | AD29: =N29 -> 21221 | AE29: =COUNTIF(L55:L79,AD29) -> 3 | AF29: =AE29/(AG4-AE25) -> 0.12 | AG29: =IF(AF29=0,0,(AF29*((LOG(AF29))/LOG(2)))) -> -0.3670672427 | AI29: =N29 -> 21221 | AJ29: =COUNTIF(L80:L103,AI29) -> 1 | AK29: =AJ29/(AL4-AJ25) -> 0.04166666667 | AL29: =IF(AK29=0,0,(AK29*((LOG(AK29))/LOG(2)))) -> -0.1910401042 | AN29: =N29 -> 21221 | AO29: =COUNTIF(L104:L127,AN29) -> 2 | AP29: =AO29/(AQ4-AO25) -> 0.08333333333 | AQ29: =IF(AP29=0,0,(AP29*((LOG(AP29))/LOG(2)))) -> -0.2987468751 | AS29: =N29 -> 21221 | AT29: =COUNTIF(L128:L151,AS29) -> 0 | AU29: =AT29/(AV4-AT25) -> 0 | AV29: =IF(AU29=0,0,(AU29*((LOG(AU29))/LOG(2)))) -> 0
A30: 21 | B30: 3088 | C30: 22 | D30: 3096 | E30: 24 | F30: 3103 | G30: 14 | H30: 3114 | I30: 13 | J30: 3118 | K30: 0 | L30: 22211 | N30: 21222 | O30: =COUNTIF($L$7:$L$500,N30) -> 5 | P30: =O30/$Q$4 -> 0.03448275862 | Q30: =IF(P30=0,0,(P30*((LOG(P30))/LOG(2)))) -> -0.167516586 | T30: =N30 -> 21222 | U30: =COUNTIF(L7:L30,T30) -> 0 | V30: =U30/(W4-U25) -> 0 | W30: =IF(V30=0,0,(V30*((LOG(V30))/LOG(2)))) -> 0 | Y30: =N30 -> 21222 | Z30: =COUNTIF(L31:L54,Y30) -> 1 | AA30: =Z30/(AB4-Z25) -> 0.04166666667 | AB30: =IF(AA30=0,0,(AA30*((LOG(AA30))/LOG(2)))) -> -0.1910401042 | AD30: =N30 -> 21222 | AE30: =COUNTIF(L55:L79,AD30) -> 0 | AF30: =AE30/(AG4-AE25) -> 0 | AG30: =IF(AF30=0,0,(AF30*((LOG(AF30))/LOG(2)))) -> 0 | AI30: =N30 -> 21222 | AJ30: =COUNTIF(L80:L103,AI30) -> 2 | AK30: =AJ30/(AL4-AJ25) -> 0.08333333333 | AL30: =IF(AK30=0,0,(AK30*((LOG(AK30))/LOG(2)))) -> -0.2987468751 | AN30: =N30 -> 21222 | AO30: =COUNTIF(L104:L127,AN30) -> 2 | AP30: =AO30/(AQ4-AO25) -> 0.08333333333 | AQ30: =IF(AP30=0,0,(AP30*((LOG(AP30))/LOG(2)))) -> -0.2987468751 | AS30: =N30 -> 21222 | AT30: =COUNTIF(L128:L151,AS30) -> 0 | AU30: =AT30/(AV4-AT25) -> 0 | AV30: =IF(AU30=0,0,(AU30*((LOG(AU30))/LOG(2)))) -> 0
A31: 21 | B31: 3221 | C31: 22 | D31: 3225 | E31: 13 | F31: 3238 | G31: 14 | H31: 3241 | I31: 13 | J31: 3246 | K31: 0 | L31: 22111 | N31: 22111 | O31: =COUNTIF($L$7:$L$500,N31) -> 9 | P31: =O31/$Q$4 -> 0.06206896552 | Q31: =IF(P31=0,0,(P31*((LOG(P31))/LOG(2)))) -> -0.2488955641 | T31: =N31 -> 22111 | U31: =COUNTIF(L7:L30,T31) -> 5 | V31: =U31/(W4-U25) -> 0.2083333333 | W31: =IF(V31=0,0,(V31*((LOG(V31))/LOG(2)))) -> -0.4714655012 | Y31: =N31 -> 22111 | Z31: =COUNTIF(L31:L54,Y31) -> 3 | AA31: =Z31/(AB4-Z25) -> 0.125 | AB31: =IF(AA31=0,0,(AA31*((LOG(AA31))/LOG(2)))) -> -0.375 | AD31: =N31 -> 22111 | AE31: =COUNTIF(L55:L79,AD31) -> 0 | AF31: =AE31/(AG4-AE25) -> 0 | AG31: =IF(AF31=0,0,(AF31*((LOG(AF31))/LOG(2)))) -> 0 | AI31: =N31 -> 22111 | AJ31: =COUNTIF(L80:L103,AI31) -> 0 | AK31: =AJ31/(AL4-AJ25) -> 0 | AL31: =IF(AK31=0,0,(AK31*((LOG(AK31))/LOG(2)))) -> 0 | AN31: =N31 -> 22111 | AO31: =COUNTIF(L104:L127,AN31) -> 0 | AP31: =AO31/(AQ4-AO25) -> 0 | AQ31: =IF(AP31=0,0,(AP31*((LOG(AP31))/LOG(2)))) -> 0 | AS31: =N31 -> 22111 | AT31: =COUNTIF(L128:L151,AS31) -> 1 | AU31: =AT31/(AV4-AT25) -> 0.04166666667 | AV31: =IF(AU31=0,0,(AU31*((LOG(AU31))/LOG(2)))) -> -0.1910401042
A32: 21 | B32: 3354 | C32: 11 | D32: 3365 | E32: 11 | F32: 3372 | G32: 12 | H32: 3376 | I32: 24 | J32: 3386 | K32: 0 | L32: 21112 | N32: 22112 | O32: =COUNTIF($L$7:$L$500,N32) -> 2 | P32: =O32/$Q$4 -> 0.01379310345 | Q32: =IF(P32=0,0,(P32*((LOG(P32))/LOG(2)))) -> -0.08524012538 | T32: =N32 -> 22112 | U32: =COUNTIF(L7:L30,T32) -> 2 | V32: =U32/(W4-U25) -> 0.08333333333 | W32: =IF(V32=0,0,(V32*((LOG(V32))/LOG(2)))) -> -0.2987468751 | Y32: =N32 -> 22112 | Z32: =COUNTIF(L31:L54,Y32) -> 0 | AA32: =Z32/(AB4-Z25) -> 0 | AB32: =IF(AA32=0,0,(AA32*((LOG(AA32))/LOG(2)))) -> 0 | AD32: =N32 -> 22112 | AE32: =COUNTIF(L55:L79,AD32) -> 0 | AF32: =AE32/(AG4-AE25) -> 0 | AG32: =IF(AF32=0,0,(AF32*((LOG(AF32))/LOG(2)))) -> 0 | AI32: =N32 -> 22112 | AJ32: =COUNTIF(L80:L103,AI32) -> 0 | AK32: =AJ32/(AL4-AJ25) -> 0 | AL32: =IF(AK32=0,0,(AK32*((LOG(AK32))/LOG(2)))) -> 0 | AN32: =N32 -> 22112 | AO32: =COUNTIF(L104:L127,AN32) -> 0 | AP32: =AO32/(AQ4-AO25) -> 0 | AQ32: =IF(AP32=0,0,(AP32*((LOG(AP32))/LOG(2)))) -> 0 | AS32: =N32 -> 22112 | AT32: =COUNTIF(L128:L151,AS32) -> 0 | AU32: =AT32/(AV4-AT25) -> 0 | AV32: =IF(AU32=0,0,(AU32*((LOG(AU32))/LOG(2)))) -> 0
A33: 21 | B33: 3507 | C33: 11 | D33: 3528 | E33: 11 | F33: 3534 | G33: 12 | H33: 3541 | I33: 24 | J33: 3551 | K33: 0 | L33: 21112 | N33: 22121 | O33: =COUNTIF($L$7:$L$500,N33) -> 13 | P33: =O33/$Q$4 -> 0.08965517241 | Q33: =IF(P33=0,0,(P33*((LOG(P33))/LOG(2)))) -> -0.3119524264 | T33: =N33 -> 22121 | U33: =COUNTIF(L7:L30,T33) -> 2 | V33: =U33/(W4-U25) -> 0.08333333333 | W33: =IF(V33=0,0,(V33*((LOG(V33))/LOG(2)))) -> -0.2987468751 | Y33: =N33 -> 22121 | Z33: =COUNTIF(L31:L54,Y33) -> 2 | AA33: =Z33/(AB4-Z25) -> 0.08333333333 | AB33: =IF(AA33=0,0,(AA33*((LOG(AA33))/LOG(2)))) -> -0.2987468751 | AD33: =N33 -> 22121 | AE33: =COUNTIF(L55:L79,AD33) -> 6 | AF33: =AE33/(AG4-AE25) -> 0.24 | AG33: =IF(AF33=0,0,(AF33*((LOG(AF33))/LOG(2)))) -> -0.4941344854 | AI33: =N33 -> 22121 | AJ33: =COUNTIF(L80:L103,AI33) -> 1 | AK33: =AJ33/(AL4-AJ25) -> 0.04166666667 | AL33: =IF(AK33=0,0,(AK33*((LOG(AK33))/LOG(2)))) -> -0.1910401042 | AN33: =N33 -> 22121 | AO33: =COUNTIF(L104:L127,AN33) -> 1 | AP33: =AO33/(AQ4-AO25) -> 0.04166666667 | AQ33: =IF(AP33=0,0,(AP33*((LOG(AP33))/LOG(2)))) -> -0.1910401042 | AS33: =N33 -> 22121 | AT33: =COUNTIF(L128:L151,AS33) -> 1 | AU33: =AT33/(AV4-AT25) -> 0.04166666667 | AV33: =IF(AU33=0,0,(AU33*((LOG(AU33))/LOG(2)))) -> -0.1910401042
A34: 21 | B34: 3707 | C34: 22 | D34: 3715 | E34: 13 | F34: 3725 | G34: 23 | H34: 3733 | I34: 24 | J34: 3740 | K34: 0 | L34: 22122 | N34: 22122 | O34: =COUNTIF($L$7:$L$500,N34) -> 17 | P34: =O34/$Q$4 -> 0.1172413793 | Q34: =IF(P34=0,0,(P34*((LOG(P34))/LOG(2)))) -> -0.3625626636 | T34: =N34 -> 22122 | U34: =COUNTIF(L7:L30,T34) -> 2 | V34: =U34/(W4-U25) -> 0.08333333333 | W34: =IF(V34=0,0,(V34*((LOG(V34))/LOG(2)))) -> -0.2987468751 | Y34: =N34 -> 22122 | Z34: =COUNTIF(L31:L54,Y34) -> 5 | AA34: =Z34/(AB4-Z25) -> 0.2083333333 | AB34: =IF(AA34=0,0,(AA34*((LOG(AA34))/LOG(2)))) -> -0.4714655012 | AD34: =N34 -> 22122 | AE34: =COUNTIF(L55:L79,AD34) -> 3 | AF34: =AE34/(AG4-AE25) -> 0.12 | AG34: =IF(AF34=0,0,(AF34*((LOG(AF34))/LOG(2)))) -> -0.3670672427 | AI34: =N34 -> 22122 | AJ34: =COUNTIF(L80:L103,AI34) -> 3 | AK34: =AJ34/(AL4-AJ25) -> 0.125 | AL34: =IF(AK34=0,0,(AK34*((LOG(AK34))/LOG(2)))) -> -0.375 | AN34: =N34 -> 22122 | AO34: =COUNTIF(L104:L127,AN34) -> 1 | AP34: =AO34/(AQ4-AO25) -> 0.04166666667 | AQ34: =IF(AP34=0,0,(AP34*((LOG(AP34))/LOG(2)))) -> -0.1910401042 | AS34: =N34 -> 22122 | AT34: =COUNTIF(L128:L151,AS34) -> 3 | AU34: =AT34/(AV4-AT25) -> 0.125 | AV34: =IF(AU34=0,0,(AU34*((LOG(AU34))/LOG(2)))) -> -0.375
A35: 21 | B35: 3863 | C35: 22 | D35: 3871 | E35: 13 | F35: 3881 | G35: 14 | H35: 3886 | I35: 13 | J35: 3890 | K35: 0 | L35: 22111 | N35: 22211 | O35: =COUNTIF($L$7:$L$500,N35) -> 5 | P35: =O35/$Q$4 -> 0.03448275862 | Q35: =IF(P35=0,0,(P35*((LOG(P35))/LOG(2)))) -> -0.167516586 | T35: =N35 -> 22211 | U35: =COUNTIF(L7:L30,T35) -> 2 | V35: =U35/(W4-U25) -> 0.08333333333 | W35: =IF(V35=0,0,(V35*((LOG(V35))/LOG(2)))) -> -0.2987468751 | Y35: =N35 -> 22211 | Z35: =COUNTIF(L31:L54,Y35) -> 1 | AA35: =Z35/(AB4-Z25) -> 0.04166666667 | AB35: =IF(AA35=0,0,(AA35*((LOG(AA35))/LOG(2)))) -> -0.1910401042 | AD35: =N35 -> 22211 | AE35: =COUNTIF(L55:L79,AD35) -> 1 | AF35: =AE35/(AG4-AE25) -> 0.04 | AG35: =IF(AF35=0,0,(AF35*((LOG(AF35))/LOG(2)))) -> -0.1857542476 | AI35: =N35 -> 22211 | AJ35: =COUNTIF(L80:L103,AI35) -> 0 | AK35: =AJ35/(AL4-AJ25) -> 0 | AL35: =IF(AK35=0,0,(AK35*((LOG(AK35))/LOG(2)))) -> 0 | AN35: =N35 -> 22211 | AO35: =COUNTIF(L104:L127,AN35) -> 0 | AP35: =AO35/(AQ4-AO25) -> 0 | AQ35: =IF(AP35=0,0,(AP35*((LOG(AP35))/LOG(2)))) -> 0 | AS35: =N35 -> 22211 | AT35: =COUNTIF(L128:L151,AS35) -> 1 | AU35: =AT35/(AV4-AT25) -> 0.04166666667 | AV35: =IF(AU35=0,0,(AU35*((LOG(AU35))/LOG(2)))) -> -0.1910401042
A36: 21 | B36: 4000 | C36: 22 | D36: 4006 | E36: 24 | F36: 4018 | G36: 14 | H36: 4028 | I36: 13 | J36: 4031 | K36: 1 | L36: 22211 | N36: 22212 | O36: =COUNTIF($L$7:$L$500,N36) -> 10 | P36: =O36/$Q$4 -> 0.06896551724 | Q36: =IF(P36=0,0,(P36*((LOG(P36))/LOG(2)))) -> -0.2660676548 | T36: =N36 -> 22212 | U36: =COUNTIF(L7:L30,T36) -> 1 | V36: =U36/(W4-U25) -> 0.04166666667 | W36: =IF(V36=0,0,(V36*((LOG(V36))/LOG(2)))) -> -0.1910401042 | Y36: =N36 -> 22212 | Z36: =COUNTIF(L31:L54,Y36) -> 1 | AA36: =Z36/(AB4-Z25) -> 0.04166666667 | AB36: =IF(AA36=0,0,(AA36*((LOG(AA36))/LOG(2)))) -> -0.1910401042 | AD36: =N36 -> 22212 | AE36: =COUNTIF(L55:L79,AD36) -> 3 | AF36: =AE36/(AG4-AE25) -> 0.12 | AG36: =IF(AF36=0,0,(AF36*((LOG(AF36))/LOG(2)))) -> -0.3670672427 | AI36: =N36 -> 22212 | AJ36: =COUNTIF(L80:L103,AI36) -> 2 | AK36: =AJ36/(AL4-AJ25) -> 0.08333333333 | AL36: =IF(AK36=0,0,(AK36*((LOG(AK36))/LOG(2)))) -> -0.2987468751 | AN36: =N36 -> 22212 | AO36: =COUNTIF(L104:L127,AN36) -> 1 | AP36: =AO36/(AQ4-AO25) -> 0.04166666667 | AQ36: =IF(AP36=0,0,(AP36*((LOG(AP36))/LOG(2)))) -> -0.1910401042 | AS36: =N36 -> 22212 | AT36: =COUNTIF(L128:L151,AS36) -> 2 | AU36: =AT36/(AV4-AT25) -> 0.08333333333 | AV36: =IF(AU36=0,0,(AU36*((LOG(AU36))/LOG(2)))) -> -0.2987468751
A37: 12 | B37: 4205 | C37: 13 | D37: 4209 | E37: 13 | F37: 4213 | G37: 23 | H37: 4221 | I37: 24 | J37: 4230 | K37: 0 | L37: 11122 | N37: 22221 | O37: =COUNTIF($L$7:$L$500,N37) -> 7 | P37: =O37/$Q$4 -> 0.04827586207 | Q37: =IF(P37=0,0,(P37*((LOG(P37))/LOG(2)))) -> -0.2110888219 | T37: =N37 -> 22221 | U37: =COUNTIF(L7:L30,T37) -> 0 | V37: =U37/(W4-U25) -> 0 | W37: =IF(V37=0,0,(V37*((LOG(V37))/LOG(2)))) -> 0 | Y37: =N37 -> 22221 | Z37: =COUNTIF(L31:L54,Y37) -> 0 | AA37: =Z37/(AB4-Z25) -> 0 | AB37: =IF(AA37=0,0,(AA37*((LOG(AA37))/LOG(2)))) -> 0 | AD37: =N37 -> 22221 | AE37: =COUNTIF(L55:L79,AD37) -> 1 | AF37: =AE37/(AG4-AE25) -> 0.04 | AG37: =IF(AF37=0,0,(AF37*((LOG(AF37))/LOG(2)))) -> -0.1857542476 | AI37: =N37 -> 22221 | AJ37: =COUNTIF(L80:L103,AI37) -> 1 | AK37: =AJ37/(AL4-AJ25) -> 0.04166666667 | AL37: =IF(AK37=0,0,(AK37*((LOG(AK37))/LOG(2)))) -> -0.1910401042 | AN37: =N37 -> 22221 | AO37: =COUNTIF(L104:L127,AN37) -> 2 | AP37: =AO37/(AQ4-AO25) -> 0.08333333333 | AQ37: =IF(AP37=0,0,(AP37*((LOG(AP37))/LOG(2)))) -> -0.2987468751 | AS37: =N37 -> 22221 | AT37: =COUNTIF(L128:L151,AS37) -> 3 | AU37: =AT37/(AV4-AT25) -> 0.125 | AV37: =IF(AU37=0,0,(AU37*((LOG(AU37))/LOG(2)))) -> -0.375
A38: 21 | B38: 4343 | C38: 11 | D38: 4358 | E38: 22 | F38: 4365 | G38: 23 | H38: 4375 | I38: 24 | J38: 4381 | K38: 0 | L38: 21222 | N38: 22222 | O38: =COUNTIF($L$7:$L$500,N38) -> 20 | P38: =O38/$Q$4 -> 0.1379310345 | Q38: =IF(P38=0,0,(P38*((LOG(P38))/LOG(2)))) -> -0.3942042752 | T38: =N38 -> 22222 | U38: =COUNTIF(L7:L30,T38) -> 0 | V38: =U38/(W4-U25) -> 0 | W38: =IF(V38=0,0,(V38*((LOG(V38))/LOG(2)))) -> 0 | Y38: =N38 -> 22222 | Z38: =COUNTIF(L31:L54,Y38) -> 3 | AA38: =Z38/(AB4-Z25) -> 0.125 | AB38: =IF(AA38=0,0,(AA38*((LOG(AA38))/LOG(2)))) -> -0.375 | AD38: =N38 -> 22222 | AE38: =COUNTIF(L55:L79,AD38) -> 3 | AF38: =AE38/(AG4-AE25) -> 0.12 | AG38: =IF(AF38=0,0,(AF38*((LOG(AF38))/LOG(2)))) -> -0.3670672427 | AI38: =N38 -> 22222 | AJ38: =COUNTIF(L80:L103,AI38) -> 6 | AK38: =AJ38/(AL4-AJ25) -> 0.25 | AL38: =IF(AK38=0,0,(AK38*((LOG(AK38))/LOG(2)))) -> -0.5 | AN38: =N38 -> 22222 | AO38: =COUNTIF(L104:L127,AN38) -> 2 | AP38: =AO38/(AQ4-AO25) -> 0.08333333333 | AQ38: =IF(AP38=0,0,(AP38*((LOG(AP38))/LOG(2)))) -> -0.2987468751 | AS38: =N38 -> 22222 | AT38: =COUNTIF(L128:L151,AS38) -> 6 | AU38: =AT38/(AV4-AT25) -> 0.25 | AV38: =IF(AU38=0,0,(AU38*((LOG(AU38))/LOG(2)))) -> -0.5
A39: 21 | B39: 4506 | C39: 11 | D39: 4515 | E39: 22 | F39: 4523 | G39: 23 | H39: 4533 | I39: 13 | J39: 4543 | K39: 0 | L39: 21221 | P39: =SUM(P7:P38) -> 1 | Q39: =-SUM(Q7:Q38) -> 4.118697713 | V39: =SUM(V7:V38) -> 1 | W39: =-SUM(W7:W38) -> 3.117492461 | AA39: =SUM(AA7:AA38) -> 1 | AB39: =-SUM(AB7:AB38) -> 3.371653522 | AF39: =SUM(AF7:AF38) -> 1 | AG39: =-SUM(AG7:AG38) -> 3.182683189 | AK39: =SUM(AK7:AK38) -> 1 | AL39: =-SUM(AL7:AL38) -> 3.240601563 | AP39: =SUM(AP7:AP38) -> 1 | AQ39: =-SUM(AQ7:AQ38) -> 3.886842188 | AU39: =SUM(AU7:AU38) -> 1 | AV39: =-SUM(AV7:AV38) -> 3.459147917
A40: 21 | B40: 4647 | C40: 11 | D40: 4657 | E40: 22 | F40: 4664 | G40: 14 | H40: 4674 | I40: 24 | J40: 4682 | K40: 0 | L40: 21212 | P40: U= | Q40: =Q39/(LOG(Q4)/LOG(2)) -> 0.5736420421 | V40: U1= | W40: =W39/(LOG(W4)/LOG(2)) -> 0.679938486 | AA40: U2= | AB40: =AB39/(LOG(AB4)/LOG(2)) -> 0.7353721043 | AF40: U3= | AG40: =AG39/(LOG(AG4)/LOG(2)) -> 0.6853535207 | AK40: U4= | AL40: =AL39/(LOG(AL4)/LOG(2)) -> 0.7067891095 | AP40: U5= | AQ40: =AQ39/(LOG(AQ4)/LOG(2)) -> 0.8477369635 | AU40: U6= | AV40: =AV39/(LOG(AV4)/LOG(2)) -> 0.7544550073
A41: 21 | B41: 4779 | C41: 22 | D41: 4796 | E41: 13 | F41: 4805 | G41: 23 | H41: 4812 | I41: 24 | J41: 4819 | K41: 0 | L41: 22122
A42: 12 | B42: 4969 | C42: 24 | D42: 4977 | E42: 24 | F42: 4987 | G42: 14 | H42: 4998 | I42: 24 | J42: 5005 | K42: 0 | L42: 12212
A43: 21 | B43: 5233 | C43: 11 | D43: 5245 | E43: 22 | F43: 5253 | G43: 14 | H43: 5267 | I43: 24 | J43: 5275 | K43: 1 | L43: 21212 | N43: Total Target Seq
A44: 21 | B44: 5376 | C44: 22 | D44: 5380 | E44: 13 | F44: 5401 | G44: 14 | H44: 5405 | I44: 13 | J44: 5409 | K44: 0 | L44: 22111 | N44: =COUNTIF(L7:L151,G3) -> 0 | P44: 24 | Q44: 24 | R44: 25 | S44: 24 | T44: 24 | U44: 24
A45: 21 | B45: 5521 | C45: 22 | D45: 5534 | E45: 13 | F45: 5544 | G45: 23 | H45: 5551 | I45: 24 | J45: 5562 | K45: 0 | L45: 22122 | P45: % of reinforcement given in 6 equal intervals based on number of trials
A46: 21 | B46: 5664 | C46: 22 | D46: 5685 | E46: 13 | F46: 5695 | G46: 23 | H46: 5702 | I46: 13 | J46: 5712 | K46: 0 | L46: 22121 | P46: %_1 | Q46: %_2 | R46: %_3 | S46: %_4 | T46: %_5 | U46: %_6
A47: 21 | B47: 5864 | C47: 22 | D47: 5872 | E47: 13 | F47: 5882 | G47: 23 | H47: 5890 | I47: 24 | J47: 5899 | K47: 0 | L47: 22122 | O47: target sequence | P47: =$G$3 -> 21121 | Q47: =$G$3 -> 21121 | R47: =$G$3 -> 21121 | S47: =$G$3 -> 21121 | T47: =$G$3 -> 21121 | U47: =$G$3 -> 21121
A48: 21 | B48: 6035 | C48: 22 | D48: 6040 | E48: 13 | F48: 6048 | G48: 23 | H48: 6056 | I48: 13 | J48: 6066 | K48: 0 | L48: 22121 | O48: total reinforcement | P48: =U25 -> 0 | Q48: =Z25 -> 0 | R48: =AE25 -> 0 | S48: =AJ25 -> 0 | T48: =AO25 -> 0 | U48: =AT25 -> 0
A49: 21 | B49: 6169 | C49: 22 | D49: 6174 | E49: 24 | F49: 6179 | G49: 23 | H49: 6194 | I49: 24 | J49: 6201 | K49: 0 | L49: 22222 | O49: % target
A50: 21 | B50: 6301 | C50: 22 | D50: 6310 | E50: 24 | F50: 6320 | G50: 14 | H50: 6328 | I50: 24 | J50: 6335 | K50: 0 | L50: 22212 | O50: CCRF
A51: 21 | B51: 6431 | C51: 22 | D51: 6441 | E51: 24 | F51: 6446 | G51: 23 | H51: 6454 | I51: 24 | J51: 6462 | K51: 1 | L51: 22222 | O51: % CCRf
A52: 21 | B52: 6582 | C52: 22 | D52: 6590 | E52: 13 | F52: 6600 | G52: 23 | H52: 6608 | I52: 24 | J52: 6615 | K52: 0 | L52: 22122 | O52: average response rate | P52: =J30/P44 -> 129.9166667 | Q52: =(J54-J30)/Q44 -> 157.625 | R52: =(J79-J54)/R44 -> 147.76 | S52: =(J103-J79)/S44 -> 157.375 | T52: =(J127-J103)/T44 -> 194.25 | U52: =(J151-J127)/U44 -> 206.3333333
A53: 21 | B53: 6720 | C53: 22 | D53: 6726 | E53: 24 | F53: 6737 | G53: 23 | H53: 6743 | I53: 24 | J53: 6750 | K53: 0 | L53: 22222
A54: 21 | B54: 6865 | C54: 11 | D54: 6875 | E54: 22 | F54: 6883 | G54: 23 | H54: 6891 | I54: 13 | J54: 6901 | K54: 0 | L54: 21221
A55: 21 | B55: 7009 | C55: 22 | D55: 7016 | E55: 13 | F55: 7024 | G55: 23 | H55: 7034 | I55: 13 | J55: 7043 | K55: 0 | L55: 22121
A56: 21 | B56: 7168 | C56: 22 | D56: 7176 | E56: 24 | F56: 7184 | G56: 14 | H56: 7195 | I56: 24 | J56: 7203 | K56: 0 | L56: 22212
A57: 21 | B57: 7326 | C57: 22 | D57: 7333 | E57: 24 | F57: 7341 | G57: 23 | H57: 7348 | I57: 24 | J57: 7356 | K57: 0 | L57: 22222
A58: 21 | B58: 7479 | C58: 22 | D58: 7488 | E58: 13 | F58: 7501 | G58: 23 | H58: 7509 | I58: 24 | J58: 7520 | K58: 0 | L58: 22122
A59: 21 | B59: 7656 | C59: 11 | D59: 7666 | E59: 22 | F59: 7675 | G59: 23 | H59: 7684 | I59: 13 | J59: 7693 | K59: 0 | L59: 21221
A60: 21 | B60: 7797 | C60: 22 | D60: 7806 | E60: 24 | F60: 7815 | G60: 14 | H60: 7825 | I60: 24 | J60: 7833 | K60: 1 | L60: 22212
A61: 21 | B61: 7939 | C61: 22 | D61: 7953 | E61: 13 | F61: 7966 | G61: 23 | H61: 7972 | I61: 13 | J61: 7994 | K61: 0 | L61: 22121
A62: 21 | B62: 8113 | C62: 22 | D62: 8118 | E62: 24 | F62: 8126 | G62: 14 | H62: 8136 | I62: 13 | J62: 8161 | K62: 0 | L62: 22211
A63: 21 | B63: 8266 | C63: 22 | D63: 8271 | E63: 24 | F63: 8282 | G63: 23 | H63: 8289 | I63: 24 | J63: 8301 | K63: 0 | L63: 22222
A64: 21 | B64: 8408 | C64: 22 | D64: 8417 | E64: 24 | F64: 8421 | G64: 23 | H64: 8427 | I64: 24 | J64: 8434 | K64: 0 | L64: 22222
A65: 21 | B65: 8533 | C65: 22 | D65: 8541 | E65: 24 | F65: 8549 | G65: 23 | H65: 8556 | I65: 13 | J65: 8567 | K65: 0 | L65: 22221
A66: 21 | B66: 8698 | C66: 11 | D66: 8708 | E66: 22 | F66: 8716 | G66: 14 | H66: 8726 | I66: 24 | J66: 8734 | K66: 0 | L66: 21212
A67: 12 | B67: 8874 | C67: 24 | D67: 8881 | E67: 24 | F67: 8889 | G67: 14 | H67: 8899 | I67: 24 | J67: 8906 | K67: 0 | L67: 12212
A68: 21 | B68: 9010 | C68: 22 | D68: 9021 | E68: 13 | F68: 9032 | G68: 23 | H68: 9039 | I68: 13 | J68: 9050 | K68: 0 | L68: 22121
A69: 21 | B69: 9156 | C69: 11 | D69: 9166 | E69: 22 | F69: 9174 | G69: 23 | H69: 9182 | I69: 13 | J69: 9193 | K69: 0 | L69: 21221
A70: 21 | B70: 9301 | C70: 11 | D70: 9312 | E70: 22 | F70: 9319 | G70: 23 | H70: 9326 | I70: 13 | J70: 9337 | K70: 1 | L70: 21221
A71: 21 | B71: 9454 | C71: 22 | D71: 9463 | E71: 13 | F71: 9472 | G71: 23 | H71: 9480 | I71: 13 | J71: 9491 | K71: 0 | L71: 22121
A72: 21 | B72: 9594 | C72: 22 | D72: 9601 | E72: 13 | F72: 9611 | G72: 23 | H72: 9618 | I72: 24 | J72: 9625 | K72: 1 | L72: 22122
A73: 21 | B73: 9726 | C73: 22 | D73: 9732 | E73: 24 | F73: 9743 | G73: 14 | H73: 9754 | I73: 24 | J73: 9761 | K73: 1 | L73: 22212
A74: 21 | B74: 9871 | C74: 11 | D74: 9882 | E74: 22 | F74: 9890 | G74: 14 | H74: 9900 | I74: 24 | J74: 9909 | K74: 1 | L74: 21212
A75: 21 | B75: 10007 | C75: 22 | D75: 10015 | E75: 13 | F75: 10026 | G75: 23 | H75: 10033 | I75: 13 | J75: 10041 | K75: 1 | L75: 22121
A76: 21 | B76: 10139 | C76: 22 | D76: 10148 | E76: 13 | F76: 10162 | G76: 23 | H76: 10170 | I76: 13 | J76: 10178 | K76: 0 | L76: 22121
A77: 21 | B77: 10287 | C77: 22 | D77: 10294 | E77: 13 | F77: 10305 | G77: 23 | H77: 10313 | I77: 24 | J77: 10322 | K77: 0 | L77: 22122
A78: 21 | B78: 10422 | C78: 11 | D78: 10435 | E78: 11 | F78: 10443 | G78: 12 | H78: 10448 | I78: 24 | J78: 10457 | K78: 1 | L78: 21112
A79: 12 | B79: 10561 | C79: 13 | D79: 10566 | E79: 24 | F79: 10575 | G79: 14 | H79: 10587 | I79: 24 | J79: 10595 | K79: 0 | L79: 11212
A80: 21 | B80: 10705 | C80: 11 | D80: 10714 | E80: 22 | F80: 10722 | G80: 14 | H80: 10733 | I80: 24 | J80: 10741 | K80: 0 | L80: 21212
A81: 21 | B81: 10850 | C81: 22 | D81: 10864 | E81: 24 | F81: 10870 | G81: 23 | H81: 10875 | I81: 24 | J81: 10883 | K81: 1 | L81: 22222
A82: 21 | B82: 10998 | C82: 22 | D82: 11002 | E82: 13 | F82: 11012 | G82: 23 | H82: 11020 | I82: 24 | J82: 11029 | K82: 0 | L82: 22122
A83: 21 | B83: 11150 | C83: 11 | D83: 11160 | E83: 22 | F83: 11167 | G83: 23 | H83: 11177 | I83: 13 | J83: 11186 | K83: 0 | L83: 21221
A84: 12 | B84: 11299 | C84: 13 | D84: 11306 | E84: 13 | F84: 11313 | G84: 23 | H84: 11323 | I84: 24 | J84: 11334 | K84: 0 | L84: 11122
A85: 21 | B85: 11452 | C85: 22 | D85: 11468 | E85: 24 | F85: 11481 | G85: 23 | H85: 11487 | I85: 24 | J85: 11494 | K85: 1 | L85: 22222
A86: 21 | B86: 11607 | C86: 22 | D86: 11629 | E86: 24 | F86: 11637 | G86: 14 | H86: 11646 | I86: 24 | J86: 11654 | K86: 0 | L86: 22212
A87: 21 | B87: 11761 | C87: 22 | D87: 11783 | E87: 24 | F87: 11788 | G87: 23 | H87: 11796 | I87: 13 | J87: 11807 | K87: 0 | L87: 22221
A88: 21 | B88: 11935 | C88: 11 | D88: 11944 | E88: 22 | F88: 11952 | G88: 14 | H88: 11962 | I88: 24 | J88: 11970 | K88: 0 | L88: 21212
A89: 21 | B89: 12089 | C89: 22 | D89: 12098 | E89: 24 | F89: 12105 | G89: 14 | H89: 12116 | I89: 24 | J89: 12124 | K89: 1 | L89: 22212
A90: 12 | B90: 12233 | C90: 24 | D90: 12258 | E90: 24 | F90: 12263 | G90: 14 | H90: 12275 | I90: 24 | J90: 12282 | K90: 0 | L90: 12212
A91: 21 | B91: 12408 | C91: 22 | D91: 12414 | E91: 24 | F91: 12421 | G91: 23 | H91: 12429 | I91: 24 | J91: 12437 | K91: 0 | L91: 22222
A92: 21 | B92: 12543 | C92: 22 | D92: 12552 | E92: 24 | F92: 12556 | G92: 23 | H92: 12563 | I92: 24 | J92: 12570 | K92: 0 | L92: 22222
A93: 21 | B93: 12675 | C93: 22 | D93: 12686 | E93: 13 | F93: 12699 | G93: 23 | H93: 12707 | I93: 13 | J93: 12717 | K93: 0 | L93: 22121
A94: 21 | B94: 12866 | C94: 11 | D94: 12882 | E94: 22 | F94: 12890 | G94: 23 | H94: 12897 | I94: 24 | J94: 12908 | K94: 1 | L94: 21222
A95: 21 | B95: 13019 | C95: 22 | D95: 13029 | E95: 13 | F95: 13039 | G95: 23 | H95: 13058 | I95: 24 | J95: 13065 | K95: 0 | L95: 22122
A96: 21 | B96: 13186 | C96: 11 | D96: 13197 | E96: 22 | F96: 13205 | G96: 14 | H96: 13216 | I96: 24 | J96: 13235 | K96: 0 | L96: 21212
A97: 21 | B97: 13361 | C97: 22 | D97: 13372 | E97: 24 | F97: 13380 | G97: 23 | H97: 13386 | I97: 24 | J97: 13393 | K97: 0 | L97: 22222
A98: 12 | B98: 13517 | C98: 13 | D98: 13531 | E98: 24 | F98: 13540 | G98: 23 | H98: 13547 | I98: 13 | J98: 13557 | K98: 0 | L98: 11221
A99: 21 | B99: 13682 | C99: 11 | D99: 13694 | E99: 22 | F99: 13702 | G99: 23 | H99: 13712 | I99: 24 | J99: 13719 | K99: 1 | L99: 21222
A100: 21 | B100: 13845 | C100: 11 | D100: 13856 | E100: 22 | F100: 13863 | G100: 14 | H100: 13874 | I100: 24 | J100: 13882 | K100: 0 | L100: 21212
A101: 21 | B101: 14004 | C101: 22 | D101: 14022 | E101: 13 | F101: 14032 | G101: 23 | H101: 14040 | I101: 24 | J101: 14054 | K101: 0 | L101: 22122
A102: 12 | B102: 14189 | C102: 24 | D102: 14197 | E102: 13 | F102: 14208 | G102: 23 | H102: 14217 | I102: 13 | J102: 14228 | K102: 1 | L102: 12121
A103: 21 | B103: 14337 | C103: 22 | D103: 14353 | E103: 24 | F103: 14358 | G103: 23 | H103: 14365 | I103: 24 | J103: 14372 | K103: 0 | L103: 22222
A104: 21 | B104: 14504 | C104: 11 | D104: 14522 | E104: 22 | F104: 14529 | G104: 23 | H104: 14536 | I104: 24 | J104: 14544 | K104: 1 | L104: 21222
A105: 21 | B105: 14681 | C105: 22 | D105: 14689 | E105: 13 | F105: 14700 | G105: 23 | H105: 14708 | I105: 24 | J105: 14722 | K105: 0 | L105: 22122
A106: 21 | B106: 14852 | C106: 22 | D106: 14859 | E106: 24 | F106: 14868 | G106: 23 | H106: 14875 | I106: 24 | J106: 14881 | K106: 0 | L106: 22222
A107: 21 | B107: 15023 | C107: 22 | D107: 15034 | E107: 24 | F107: 15039 | G107: 23 | H107: 15046 | I107: 24 | J107: 15053 | K107: 0 | L107: 22222
A108: 12 | B108: 15200 | C108: 24 | D108: 15208 | E108: 13 | F108: 15218 | G108: 23 | H108: 15226 | I108: 13 | J108: 15236 | K108: 1 | L108: 12121
A109: 21 | B109: 15379 | C109: 11 | D109: 15414 | E109: 22 | F109: 15423 | G109: 14 | H109: 15444 | I109: 24 | J109: 15453 | K109: 0 | L109: 21212
A110: 12 | B110: 15619 | C110: 13 | D110: 15627 | E110: 24 | F110: 15637 | G110: 23 | H110: 15653 | I110: 24 | J110: 15660 | K110: 1 | L110: 11222
A111: 21 | B111: 15871 | C111: 11 | D111: 15888 | E111: 22 | F111: 15896 | G111: 23 | H111: 15907 | I111: 24 | J111: 15914 | K111: 0 | L111: 21222
A112: 12 | B112: 16056 | C112: 13 | D112: 16070 | E112: 13 | F112: 16080 | G112: 14 | H112: 16086 | I112: 13 | J112: 16091 | K112: 1 | L112: 11111
A113: 12 | B113: 16222 | C113: 13 | D113: 16225 | E113: 13 | F113: 16230 | G113: 23 | H113: 16242 | I113: 24 | J113: 16248 | K113: 0 | L113: 11122
A114: 12 | B114: 16380 | C114: 13 | D114: 16388 | E114: 13 | F114: 16398 | G114: 23 | H114: 16409 | I114: 13 | J114: 16420 | K114: 0 | L114: 11121
A115: 21 | B115: 16593 | C115: 22 | D115: 16601 | E115: 24 | F115: 16611 | G115: 23 | H115: 16620 | I115: 13 | J115: 16631 | K115: 1 | L115: 22221
A116: 12 | B116: 16801 | C116: 24 | D116: 16809 | E116: 24 | F116: 16816 | G116: 23 | H116: 16823 | I116: 24 | J116: 16831 | K116: 0 | L116: 12222
A117: 21 | B117: 16977 | C117: 11 | D117: 16992 | E117: 22 | F117: 17001 | G117: 23 | H117: 17008 | I117: 13 | J117: 17019 | K117: 0 | L117: 21221
A118: 21 | B118: 17140 | C118: 11 | D118: 17151 | E118: 22 | F118: 17159 | G118: 14 | H118: 17172 | I118: 24 | J118: 17182 | K118: 0 | L118: 21212
A119: 21 | B119: 17334 | C119: 22 | D119: 17339 | E119: 24 | F119: 17348 | G119: 14 | H119: 17360 | I119: 24 | J119: 17368 | K119: 1 | L119: 22212
A120: 12 | B120: 17506 | C120: 24 | D120: 17520 | E120: 24 | F120: 17529 | G120: 23 | H120: 17534 | I120: 24 | J120: 17541 | K120: 0 | L120: 12222
A121: 21 | B121: 17698 | C121: 22 | D121: 17712 | E121: 24 | F121: 17720 | G121: 23 | H121: 17729 | I121: 13 | J121: 17740 | K121: 0 | L121: 22221
A122: 21 | B122: 17903 | C122: 11 | D122: 17915 | E122: 22 | F122: 17923 | G122: 23 | H122: 17939 | I122: 13 | J122: 17948 | K122: 0 | L122: 21221
A123: 21 | B123: 18137 | C123: 22 | D123: 18153 | E123: 13 | F123: 18168 | G123: 23 | H123: 18176 | I123: 13 | J123: 18187 | K123: 0 | L123: 22121
A124: 12 | B124: 18323 | C124: 24 | D124: 18334 | E124: 24 | F124: 18340 | G124: 23 | H124: 18350 | I124: 13 | J124: 18361 | K124: 1 | L124: 12221
A125: 12 | B125: 18507 | C125: 13 | D125: 18518 | E125: 13 | F125: 18529 | G125: 14 | H125: 18536 | I125: 13 | J125: 18543 | K125: 1 | L125: 11111
A126: 12 | B126: 18676 | C126: 24 | D126: 18714 | E126: 13 | F126: 18727 | G126: 14 | H126: 18733 | I126: 13 | J126: 18748 | K126: 1 | L126: 12111
A127: 12 | B127: 18998 | C127: 13 | D127: 19003 | E127: 13 | F127: 19011 | G127: 14 | H127: 19029 | I127: 13 | J127: 19034 | K127: 1 | L127: 11111
A128: 21 | B128: 19215 | C128: 22 | D128: 19222 | E128: 24 | F128: 19236 | G128: 23 | H128: 19243 | I128: 24 | J128: 19250 | K128: 0 | L128: 22222
A129: 12 | B129: 19477 | C129: 13 | D129: 19498 | E129: 24 | F129: 19516 | G129: 23 | H129: 19523 | I129: 13 | J129: 19534 | K129: 0 | L129: 11221
A130: 21 | B130: 19682 | C130: 22 | D130: 19688 | E130: 13 | F130: 19699 | G130: 23 | H130: 19708 | I130: 13 | J130: 19719 | K130: 1 | L130: 22121
A131: 21 | B131: 19868 | C131: 22 | D131: 19902 | E131: 13 | F131: 19915 | G131: 14 | H131: 19922 | I131: 13 | J131: 19927 | K131: 0 | L131: 22111
A132: 12 | B132: 20091 | C132: 24 | D132: 20104 | E132: 24 | F132: 20111 | G132: 14 | H132: 20122 | I132: 13 | J132: 20129 | K132: 0 | L132: 12211
A133: 21 | B133: 20316 | C133: 22 | D133: 20325 | E133: 24 | F133: 20333 | G133: 14 | H133: 20345 | I133: 24 | J133: 20353 | K133: 1 | L133: 22212
A134: 21 | B134: 20466 | C134: 22 | D134: 20486 | E134: 24 | F134: 20495 | G134: 23 | H134: 20509 | I134: 13 | J134: 20524 | K134: 0 | L134: 22221
A135: 21 | B135: 20677 | C135: 22 | D135: 20699 | E135: 24 | F135: 20706 | G135: 23 | H135: 20714 | I135: 24 | J135: 20723 | K135: 0 | L135: 22222
A136: 21 | B136: 20844 | C136: 22 | D136: 20855 | E136: 24 | F136: 20860 | G136: 14 | H136: 20876 | I136: 24 | J136: 20888 | K136: 0 | L136: 22212
A137: 21 | B137: 21102 | C137: 22 | D137: 21114 | E137: 24 | F137: 21119 | G137: 23 | H137: 21127 | I137: 24 | J137: 21134 | K137: 0 | L137: 22222
A138: 12 | B138: 21278 | C138: 13 | D138: 21282 | E138: 24 | F138: 21292 | G138: 23 | H138: 21298 | I138: 24 | J138: 21308 | K138: 1 | L138: 11222
A139: 21 | B139: 21454 | C139: 22 | D139: 21462 | E139: 13 | F139: 21475 | G139: 23 | H139: 21484 | I139: 24 | J139: 21490 | K139: 0 | L139: 22122
A140: 12 | B140: 21623 | C140: 13 | D140: 21628 | E140: 13 | F140: 21632 | G140: 23 | H140: 21651 | I140: 24 | J140: 21655 | K140: 0 | L140: 11122
A141: 21 | B141: 21819 | C141: 22 | D141: 21840 | E141: 24 | F141: 21848 | G141: 23 | H141: 21856 | I141: 13 | J141: 21872 | K141: 0 | L141: 22221
A142: 21 | B142: 22083 | C142: 22 | D142: 22093 | E142: 13 | F142: 22103 | G142: 23 | H142: 22111 | I142: 24 | J142: 22123 | K142: 0 | L142: 22122
A143: 21 | B143: 22254 | C143: 22 | D143: 22270 | E143: 24 | F143: 22275 | G143: 23 | H143: 22283 | I143: 13 | J143: 22297 | K143: 0 | L143: 22221
A144: 21 | B144: 22435 | C144: 22 | D144: 22444 | E144: 24 | F144: 22453 | G144: 23 | H144: 22458 | I144: 24 | J144: 22464 | K144: 1 | L144: 22222
A145: 21 | B145: 22618 | C145: 11 | D145: 22631 | E145: 22 | F145: 22640 | G145: 14 | H145: 22655 | I145: 24 | J145: 22664 | K145: 0 | L145: 21212
A146: 12 | B146: 22821 | C146: 24 | D146: 22835 | E146: 13 | F146: 22847 | G146: 14 | H146: 22857 | I146: 13 | J146: 22867 | K146: 0 | L146: 12111
A147: 21 | B147: 23049 | C147: 22 | D147: 23067 | E147: 24 | F147: 23072 | G147: 23 | H147: 23080 | I147: 24 | J147: 23087 | K147: 0 | L147: 22222
A148: 21 | B148: 23244 | C148: 22 | D148: 23250 | E148: 13 | F148: 23261 | G148: 23 | H148: 23269 | I148: 24 | J148: 23275 | K148: 0 | L148: 22122
A149: 21 | B149: 23459 | C149: 22 | D149: 23467 | E149: 24 | F149: 23481 | G149: 23 | H149: 23486 | I149: 24 | J149: 23495 | K149: 0 | L149: 22222
A150: 21 | B150: 23669 | C150: 22 | D150: 23675 | E150: 24 | F150: 23681 | G150: 14 | H150: 23693 | I150: 13 | J150: 23701 | K150: 0 | L150: 22211
A151: 12 | B151: 23952 | C151: 24 | D151: 23960 | E151: 24 | F151: 23971 | G151: 23 | H151: 23978 | I151: 24 | J151: 23986 | K151: 1 | L151: 12222

Sheet !N331910.000
A1: Report for:!N331910.000
A2: Date: | B2: <date>
A3: Hen: | B3: <hen> | F3: Correct Sequence | G3: =Start!J2 -> 21121 | P3: Total Sequences in Data | Q3: =4994-COUNTBLANK(L7:L5000) -> 169 | V3: Total Sequences in Block Data | W3: =COUNTA(L7:L34) -> 28 | AA3: Total Sequences in Block Data | AB3: =COUNTA(L35:L62) -> 28 | AF3: Total Sequences in Block Data | AG3: =COUNTA(L63:L91) -> 29 | AK3: Total Sequences in Block Data | AL3: =COUNTA(L92:L119) -> 28 | AP3: Total Sequences in Block Data | AQ3: =COUNTA(L120:L147) -> 28 | AU3: Total Sequences in Block Data | AV3: =COUNTA(L148:L175) -> 28
P4: Total Sequences in Summary | Q4: =SUM(O7:O38) -> 169 | V4: Total Sequences in Block Summary | W4: =SUM(U7:U38) -> 28 | AA4: Total Sequences in Block Summary | AB4: =SUM(Z7:Z38) -> 28 | AF4: Total Sequences in Block Summary | AG4: =SUM(AE7:AE38) -> 29 | AK4: Total Sequences in Block Summary | AL4: =SUM(AJ7:AJ38) -> 28 | AP4: Total Sequences in Block Summary | AQ4: =SUM(AO7:AO38) -> 28 | AU4: Total Sequences in Block Summary | AV4: =SUM(AT7:AT38) -> 28
T5: Block 1 | Y5: Block 2 | AD5: Block 3 | AI5: Block 4 | AN5: Block 5 | AS5: Block 6
A6: Sequence Component 1 | B6: Time 1 | C6: Sequence Component 2 | D6: Time 2 | E6: Sequence Component 3 | F6: Time 3 | G6: Sequence Component 4 | H6: Time 4 | I6: Sequence Component 5 | J6: Time 5 | K6: Correct? 0=No 1=Yes | L6: Sequence | N6: Frequency | P6: Relative Frequency | Q6: Variability | T6: Frequency | V6: Relative Frequency | W6: Variability | Y6: Frequency | AA6: Relative Frequency | AB6: Variability | AD6: Frequency | AF6: Relative Frequency | AG6: Variability | AI6: Frequency | AK6: Relative Frequency | AL6: Variability | AN6: Frequency | AP6: Relative Frequency | AQ6: Variability | AS6: Frequency | AU6: Relative Frequency | AV6: Variability
A7: 12 | B7: 7 | C7: 13 | D7: 11 | E7: 24 | F7: 19 | G7: 14 | H7: 28 | I7: 24 | J7: 36 | K7: 0 | L7: 11212 | N7: 11111 | O7: =COUNTIF($L$7:$L$500,N7) -> 15 | P7: =O7/$Q$4 -> 0.08875739645 | Q7: =IF(P7=0,0,(P7*((LOG(P7))/LOG(2)))) -> -0.3101173527 | T7: =N7 -> 11111 | U7: =COUNTIF(L7:L34,T7) -> 3 | V7: =U7/(W4-U25) -> 0.1071428571 | W7: =IF(V7=0,0,(V7*((LOG(V7))/LOG(2)))) -> -0.3452563309 | Y7: =N7 -> 11111 | Z7: =COUNTIF(L35:L62,Y7) -> 4 | AA7: =Z7/(AB4-Z25) -> 0.1481481481 | AB7: =IF(AA7=0,0,(AA7*((LOG(AA7))/LOG(2)))) -> -0.4081314818 | AD7: =N7 -> 11111 | AE7: =COUNTIF(L63:L91,AD7) -> 0 | AF7: =AE7/(AG4-AE25) -> 0 | AG7: =IF(AF7=0,0,(AF7*((LOG(AF7))/LOG(2)))) -> 0 | AI7: =N7 -> 11111 | AJ7: =COUNTIF(L92:L119,AI7) -> 2 | AK7: =AJ7/(AL4-AJ25) -> 0.07142857143 | AL7: =IF(AK7=0,0,(AK7*((LOG(AK7))/LOG(2)))) -> -0.271953923 | AN7: =N7 -> 11111 | AO7: =COUNTIF(L120:L147,AN7) -> 1 | AP7: =AO7/(AQ4-AO25) -> 0.03571428571 | AQ7: =IF(AP7=0,0,(AP7*((LOG(AP7))/LOG(2)))) -> -0.1716912472 | AS7: =N7 -> 11111 | AT7: =COUNTIF(L148:L175,AS7) -> 5 | AU7: =AT7/(AV4-AT25) -> 0.1851851852 | AV7: =IF(AU7=0,0,(AU7*((LOG(AU7))/LOG(2)))) -> -0.4505480384
A8: 12 | B8: 137 | C8: 13 | D8: 141 | E8: 13 | F8: 145 | G8: 14 | H8: 153 | I8: 13 | J8: 160 | K8: 0 | L8: 11111 | N8: 11112 | O8: =COUNTIF($L$7:$L$500,N8) -> 19 | P8: =O8/$Q$4 -> 0.1124260355 | Q8: =IF(P8=0,0,(P8*((LOG(P8))/LOG(2)))) -> -0.3544738848 | T8: =N8 -> 11112 | U8: =COUNTIF(L7:L34,T8) -> 4 | V8: =U8/(W4-U25) -> 0.1428571429 | W8: =IF(V8=0,0,(V8*((LOG(V8))/LOG(2)))) -> -0.4010507032 | Y8: =N8 -> 11112 | Z8: =COUNTIF(L35:L62,Y8) -> 3 | AA8: =Z8/(AB4-Z25) -> 0.1111111111 | AB8: =IF(AA8=0,0,(AA8*((LOG(AA8))/LOG(2)))) -> -0.352213889 | AD8: =N8 -> 11112 | AE8: =COUNTIF(L63:L91,AD8) -> 4 | AF8: =AE8/(AG4-AE25) -> 0.1379310345 | AG8: =IF(AF8=0,0,(AF8*((LOG(AF8))/LOG(2)))) -> -0.3942042752 | AI8: =N8 -> 11112 | AJ8: =COUNTIF(L92:L119,AI8) -> 0 | AK8: =AJ8/(AL4-AJ25) -> 0 | AL8: =IF(AK8=0,0,(AK8*((LOG(AK8))/LOG(2)))) -> 0 | AN8: =N8 -> 11112 | AO8: =COUNTIF(L120:L147,AN8) -> 4 | AP8: =AO8/(AQ4-AO25) -> 0.1428571429 | AQ8: =IF(AP8=0,0,(AP8*((LOG(AP8))/LOG(2)))) -> -0.4010507032 | AS8: =N8 -> 11112 | AT8: =COUNTIF(L148:L175,AS8) -> 4 | AU8: =AT8/(AV4-AT25) -> 0.1481481481 | AV8: =IF(AU8=0,0,(AU8*((LOG(AU8))/LOG(2)))) -> -0.4081314818
A9: 12 | B9: 264 | C9: 13 | D9: 271 | E9: 13 | F9: 275 | G9: 14 | H9: 278 | I9: 13 | J9: 283 | K9: 0 | L9: 11111 | N9: 11121 | O9: =COUNTIF($L$7:$L$500,N9) -> 8 | P9: =O9/$Q$4 -> 0.04733727811 | Q9: =IF(P9=0,0,(P9*((LOG(P9))/LOG(2)))) -> -0.2083256538 | T9: =N9 -> 11121 | U9: =COUNTIF(L7:L34,T9) -> 1 | V9: =U9/(W4-U25) -> 0.03571428571 | W9: =IF(V9=0,0,(V9*((LOG(V9))/LOG(2)))) -> -0.1716912472 | Y9: =N9 -> 11121 | Z9: =COUNTIF(L35:L62,Y9) -> 1 | AA9: =Z9/(AB4-Z25) -> 0.03703703704 | AB9: =IF(AA9=0,0,(AA9*((LOG(AA9))/LOG(2)))) -> -0.1761069445 | AD9: =N9 -> 11121 | AE9: =COUNTIF(L63:L91,AD9) -> 1 | AF9: =AE9/(AG4-AE25) -> 0.03448275862 | AG9: =IF(AF9=0,0,(AF9*((LOG(AF9))/LOG(2)))) -> -0.167516586 | AI9: =N9 -> 11121 | AJ9: =COUNTIF(L92:L119,AI9) -> 0 | AK9: =AJ9/(AL4-AJ25) -> 0 | AL9: =IF(AK9=0,0,(AK9*((LOG(AK9))/LOG(2)))) -> 0 | AN9: =N9 -> 11121 | AO9: =COUNTIF(L120:L147,AN9) -> 3 | AP9: =AO9/(AQ4-AO25) -> 0.1071428571 | AQ9: =IF(AP9=0,0,(AP9*((LOG(AP9))/LOG(2)))) -> -0.3452563309 | AS9: =N9 -> 11121 | AT9: =COUNTIF(L148:L175,AS9) -> 2 | AU9: =AT9/(AV4-AT25) -> 0.07407407407 | AV9: =IF(AU9=0,0,(AU9*((LOG(AU9))/LOG(2)))) -> -0.278139815
A10: 21 | B10: 383 | C10: 22 | D10: 387 | E10: 24 | F10: 392 | G10: 23 | H10: 400 | I10: 24 | J10: 405 | K10: 0 | L10: 22222 | N10: 11122 | O10: =COUNTIF($L$7:$L$500,N10) -> 30 | P10: =O10/$Q$4 -> 0.1775147929 | Q10: =IF(P10=0,0,(P10*((LOG(P10))/LOG(2)))) -> -0.4427199125 | T10: =N10 -> 11122 | U10: =COUNTIF(L7:L34,T10) -> 4 | V10: =U10/(W4-U25) -> 0.1428571429 | W10: =IF(V10=0,0,(V10*((LOG(V10))/LOG(2)))) -> -0.4010507032 | Y10: =N10 -> 11122 | Z10: =COUNTIF(L35:L62,Y10) -> 9 | AA10: =Z10/(AB4-Z25) -> 0.3333333333 | AB10: =IF(AA10=0,0,(AA10*((LOG(AA10))/LOG(2)))) -> -0.5283208336 | AD10: =N10 -> 11122 | AE10: =COUNTIF(L63:L91,AD10) -> 4 | AF10: =AE10/(AG4-AE25) -> 0.1379310345 | AG10: =IF(AF10=0,0,(AF10*((LOG(AF10))/LOG(2)))) -> -0.3942042752 | AI10: =N10 -> 11122 | AJ10: =COUNTIF(L92:L119,AI10) -> 4 | AK10: =AJ10/(AL4-AJ25) -> 0.1428571429 | AL10: =IF(AK10=0,0,(AK10*((LOG(AK10))/LOG(2)))) -> -0.4010507032 | AN10: =N10 -> 11122 | AO10: =COUNTIF(L120:L147,AN10) -> 1 | AP10: =AO10/(AQ4-AO25) -> 0.03571428571 | AQ10: =IF(AP10=0,0,(AP10*((LOG(AP10))/LOG(2)))) -> -0.1716912472 | AS10: =N10 -> 11122 | AT10: =COUNTIF(L148:L175,AS10) -> 8 | AU10: =AT10/(AV4-AT25) -> 0.2962962963 | AV10: =IF(AU10=0,0,(AU10*((LOG(AU10))/LOG(2)))) -> -0.5199666673
A11: 12 | B11: 501 | C11: 13 | D11: 515 | E11: 13 | F11: 519 | G11: 14 | H11: 524 | I11: 13 | J11: 529 | K11: 0 | L11: 11111 | N11: 11211 | O11: =COUNTIF($L$7:$L$500,N11) -> 1 | P11: =O11/$Q$4 -> 0.005917159763 | Q11: =IF(P11=0,0,(P11*((LOG(P11))/LOG(2)))) -> -0.04379218601 | T11: =N11 -> 11211 | U11: =COUNTIF(L7:L34,T11) -> 1 | V11: =U11/(W4-U25) -> 0.03571428571 | W11: =IF(V11=0,0,(V11*((LOG(V11))/LOG(2)))) -> -0.1716912472 | Y11: =N11 -> 11211 | Z11: =COUNTIF(L35:L62,Y11) -> 0 | AA11: =Z11/(AB4-Z25) -> 0 | AB11: =IF(AA11=0,0,(AA11*((LOG(AA11))/LOG(2)))) -> 0 | AD11: =N11 -> 11211 | AE11: =COUNTIF(L63:L91,AD11) -> 0 | AF11: =AE11/(AG4-AE25) -> 0 | AG11: =IF(AF11=0,0,(AF11*((LOG(AF11))/LOG(2)))) -> 0 | AI11: =N11 -> 11211 | AJ11: =COUNTIF(L92:L119,AI11) -> 0 | AK11: =AJ11/(AL4-AJ25) -> 0 | AL11: =IF(AK11=0,0,(AK11*((LOG(AK11))/LOG(2)))) -> 0 | AN11: =N11 -> 11211 | AO11: =COUNTIF(L120:L147,AN11) -> 0 | AP11: =AO11/(AQ4-AO25) -> 0 | AQ11: =IF(AP11=0,0,(AP11*((LOG(AP11))/LOG(2)))) -> 0 | AS11: =N11 -> 11211 | AT11: =COUNTIF(L148:L175,AS11) -> 0 | AU11: =AT11/(AV4-AT25) -> 0 | AV11: =IF(AU11=0,0,(AU11*((LOG(AU11))/LOG(2)))) -> 0
A12: 21 | B12: 633 | C12: 22 | D12: 641 | E12: 24 | F12: 648 | G12: 23 | H12: 653 | I12: 13 | J12: 663 | K12: 1 | L12: 22221 | N12: 11212 | O12: =COUNTIF($L$7:$L$500,N12) -> 7 | P12: =O12/$Q$4 -> 0.04142011834 | Q12: =IF(P12=0,0,(P12*((LOG(P12))/LOG(2)))) -> -0.190264329 | T12: =N12 -> 11212 | U12: =COUNTIF(L7:L34,T12) -> 1 | V12: =U12/(W4-U25) -> 0.03571428571 | W12: =IF(V12=0,0,(V12*((LOG(V12))/LOG(2)))) -> -0.1716912472 | Y12: =N12 -> 11212 | Z12: =COUNTIF(L35:L62,Y12) -> 2 | AA12: =Z12/(AB4-Z25) -> 0.07407407407 | AB12: =IF(AA12=0,0,(AA12*((LOG(AA12))/LOG(2)))) -> -0.278139815 | AD12: =N12 -> 11212 | AE12: =COUNTIF(L63:L91,AD12) -> 0 | AF12: =AE12/(AG4-AE25) -> 0 | AG12: =IF(AF12=0,0,(AF12*((LOG(AF12))/LOG(2)))) -> 0 | AI12: =N12 -> 11212 | AJ12: =COUNTIF(L92:L119,AI12) -> 1 | AK12: =AJ12/(AL4-AJ25) -> 0.03571428571 | AL12: =IF(AK12=0,0,(AK12*((LOG(AK12))/LOG(2)))) -> -0.1716912472 | AN12: =N12 -> 11212 | AO12: =COUNTIF(L120:L147,AN12) -> 0 | AP12: =AO12/(AQ4-AO25) -> 0 | AQ12: =IF(AP12=0,0,(AP12*((LOG(AP12))/LOG(2)))) -> 0 | AS12: =N12 -> 11212 | AT12: =COUNTIF(L148:L175,AS12) -> 3 | AU12: =AT12/(AV4-AT25) -> 0.1111111111 | AV12: =IF(AU12=0,0,(AU12*((LOG(AU12))/LOG(2)))) -> -0.352213889
A13: 12 | B13: 760 | C13: 13 | D13: 764 | E13: 24 | F13: 773 | G13: 14 | H13: 787 | I13: 13 | J13: 794 | K13: 0 | L13: 11211 | N13: 11221 | O13: =COUNTIF($L$7:$L$500,N13) -> 7 | P13: =O13/$Q$4 -> 0.04142011834 | Q13: =IF(P13=0,0,(P13*((LOG(P13))/LOG(2)))) -> -0.190264329 | T13: =N13 -> 11221 | U13: =COUNTIF(L7:L34,T13) -> 1 | V13: =U13/(W4-U25) -> 0.03571428571 | W13: =IF(V13=0,0,(V13*((LOG(V13))/LOG(2)))) -> -0.1716912472 | Y13: =N13 -> 11221 | Z13: =COUNTIF(L35:L62,Y13) -> 1 | AA13: =Z13/(AB4-Z25) -> 0.03703703704 | AB13: =IF(AA13=0,0,(AA13*((LOG(AA13))/LOG(2)))) -> -0.1761069445 | AD13: =N13 -> 11221 | AE13: =COUNTIF(L63:L91,AD13) -> 0 | AF13: =AE13/(AG4-AE25) -> 0 | AG13: =IF(AF13=0,0,(AF13*((LOG(AF13))/LOG(2)))) -> 0 | AI13: =N13 -> 11221 | AJ13: =COUNTIF(L92:L119,AI13) -> 2 | AK13: =AJ13/(AL4-AJ25) -> 0.07142857143 | AL13: =IF(AK13=0,0,(AK13*((LOG(AK13))/LOG(2)))) -> -0.271953923 | AN13: =N13 -> 11221 | AO13: =COUNTIF(L120:L147,AN13) -> 2 | AP13: =AO13/(AQ4-AO25) -> 0.07142857143 | AQ13: =IF(AP13=0,0,(AP13*((LOG(AP13))/LOG(2)))) -> -0.271953923 | AS13: =N13 -> 11221 | AT13: =COUNTIF(L148:L175,AS13) -> 1 | AU13: =AT13/(AV4-AT25) -> 0.03703703704 | AV13: =IF(AU13=0,0,(AU13*((LOG(AU13))/LOG(2)))) -> -0.1761069445
A14: 21 | B14: 895 | C14: 11 | D14: 906 | E14: 11 | F14: 914 | G14: 12 | H14: 919 | I14: 24 | J14: 934 | K14: 0 | L14: 21112 | N14: 11222 | O14: =COUNTIF($L$7:$L$500,N14) -> 5 | P14: =O14/$Q$4 -> 0.02958579882 | Q14: =IF(P14=0,0,(P14*((LOG(P14))/LOG(2)))) -> -0.1502648326 | T14: =N14 -> 11222 | U14: =COUNTIF(L7:L34,T14) -> 0 | V14: =U14/(W4-U25) -> 0 | W14: =IF(V14=0,0,(V14*((LOG(V14))/LOG(2)))) -> 0 | Y14: =N14 -> 11222 | Z14: =COUNTIF(L35:L62,Y14) -> 0 | AA14: =Z14/(AB4-Z25) -> 0 | AB14: =IF(AA14=0,0,(AA14*((LOG(AA14))/LOG(2)))) -> 0 | AD14: =N14 -> 11222 | AE14: =COUNTIF(L63:L91,AD14) -> 1 | AF14: =AE14/(AG4-AE25) -> 0.03448275862 | AG14: =IF(AF14=0,0,(AF14*((LOG(AF14))/LOG(2)))) -> -0.167516586 | AI14: =N14 -> 11222 | AJ14: =COUNTIF(L92:L119,AI14) -> 2 | AK14: =AJ14/(AL4-AJ25) -> 0.07142857143 | AL14: =IF(AK14=0,0,(AK14*((LOG(AK14))/LOG(2)))) -> -0.271953923 | AN14: =N14 -> 11222 | AO14: =COUNTIF(L120:L147,AN14) -> 2 | AP14: =AO14/(AQ4-AO25) -> 0.07142857143 | AQ14: =IF(AP14=0,0,(AP14*((LOG(AP14))/LOG(2)))) -> -0.271953923 | AS14: =N14 -> 11222 | AT14: =COUNTIF(L148:L175,AS14) -> 0 | AU14: =AT14/(AV4-AT25) -> 0 | AV14: =IF(AU14=0,0,(AU14*((LOG(AU14))/LOG(2)))) -> 0
A15: 12 | B15: 1032 | C15: 13 | D15: 1042 | E15: 13 | F15: 1047 | G15: 14 | H15: 1051 | I15: 24 | J15: 1060 | K15: 0 | L15: 11112 | N15: 12111 | O15: =COUNTIF($L$7:$L$500,N15) -> 0 | P15: =O15/$Q$4 -> 0 | Q15: =IF(P15=0,0,(P15*((LOG(P15))/LOG(2)))) -> 0 | T15: =N15 -> 12111 | U15: =COUNTIF(L7:L34,T15) -> 0 | V15: =U15/(W4-U25) -> 0 | W15: =IF(V15=0,0,(V15*((LOG(V15))/LOG(2)))) -> 0 | Y15: =N15 -> 12111 | Z15: =COUNTIF(L35:L62,Y15) -> 0 | AA15: =Z15/(AB4-Z25) -> 0 | AB15: =IF(AA15=0,0,(AA15*((LOG(AA15))/LOG(2)))) -> 0 | AD15: =N15 -> 12111 | AE15: =COUNTIF(L63:L91,AD15) -> 0 | AF15: =AE15/(AG4-AE25) -> 0 | AG15: =IF(AF15=0,0,(AF15*((LOG(AF15))/LOG(2)))) -> 0 | AI15: =N15 -> 12111 | AJ15: =COUNTIF(L92:L119,AI15) -> 0 | AK15: =AJ15/(AL4-AJ25) -> 0 | AL15: =IF(AK15=0,0,(AK15*((LOG(AK15))/LOG(2)))) -> 0 | AN15: =N15 -> 12111 | AO15: =COUNTIF(L120:L147,AN15) -> 0 | AP15: =AO15/(AQ4-AO25) -> 0 | AQ15: =IF(AP15=0,0,(AP15*((LOG(AP15))/LOG(2)))) -> 0 | AS15: =N15 -> 12111 | AT15: =COUNTIF(L148:L175,AS15) -> 0 | AU15: =AT15/(AV4-AT25) -> 0 | AV15: =IF(AU15=0,0,(AU15*((LOG(AU15))/LOG(2)))) -> 0
A16: 12 | B16: 1166 | C16: 13 | D16: 1174 | E16: 13 | F16: 1185 | G16: 14 | H16: 1190 | I16: 24 | J16: 1201 | K16: 0 | L16: 11112 | N16: 12112 | O16: =COUNTIF($L$7:$L$500,N16) -> 0 | P16: =O16/$Q$4 -> 0 | Q16: =IF(P16=0,0,(P16*((LOG(P16))/LOG(2)))) -> 0 | T16: =N16 -> 12112 | U16: =COUNTIF(L7:L34,T16) -> 0 | V16: =U16/(W4-U25) -> 0 | W16: =IF(V16=0,0,(V16*((LOG(V16))/LOG(2)))) -> 0 | Y16: =N16 -> 12112 | Z16: =COUNTIF(L35:L62,Y16) -> 0 | AA16: =Z16/(AB4-Z25) -> 0 | AB16: =IF(AA16=0,0,(AA16*((LOG(AA16))/LOG(2)))) -> 0 | AD16: =N16 -> 12112 | AE16: =COUNTIF(L63:L91,AD16) -> 0 | AF16: =AE16/(AG4-AE25) -> 0 | AG16: =IF(AF16=0,0,(AF16*((LOG(AF16))/LOG(2)))) -> 0 | AI16: =N16 -> 12112 | AJ16: =COUNTIF(L92:L119,AI16) -> 0 | AK16: =AJ16/(AL4-AJ25) -> 0 | AL16: =IF(AK16=0,0,(AK16*((LOG(AK16))/LOG(2)))) -> 0 | AN16: =N16 -> 12112 | AO16: =COUNTIF(L120:L147,AN16) -> 0 | AP16: =AO16/(AQ4-AO25) -> 0 | AQ16: =IF(AP16=0,0,(AP16*((LOG(AP16))/LOG(2)))) -> 0 | AS16: =N16 -> 12112 | AT16: =COUNTIF(L148:L175,AS16) -> 0 | AU16: =AT16/(AV4-AT25) -> 0 | AV16: =IF(AU16=0,0,(AU16*((LOG(AU16))/LOG(2)))) -> 0
A17: 12 | B17: 1312 | C17: 13 | D17: 1328 | E17: 24 | F17: 1343 | G17: 23 | H17: 1348 | I17: 13 | J17: 1358 | K17: 0 | L17: 11221 | N17: 12121 | O17: =COUNTIF($L$7:$L$500,N17) -> 0 | P17: =O17/$Q$4 -> 0 | Q17: =IF(P17=0,0,(P17*((LOG(P17))/LOG(2)))) -> 0 | T17: =N17 -> 12121 | U17: =COUNTIF(L7:L34,T17) -> 0 | V17: =U17/(W4-U25) -> 0 | W17: =IF(V17=0,0,(V17*((LOG(V17))/LOG(2)))) -> 0 | Y17: =N17 -> 12121 | Z17: =COUNTIF(L35:L62,Y17) -> 0 | AA17: =Z17/(AB4-Z25) -> 0 | AB17: =IF(AA17=0,0,(AA17*((LOG(AA17))/LOG(2)))) -> 0 | AD17: =N17 -> 12121 | AE17: =COUNTIF(L63:L91,AD17) -> 0 | AF17: =AE17/(AG4-AE25) -> 0 | AG17: =IF(AF17=0,0,(AF17*((LOG(AF17))/LOG(2)))) -> 0 | AI17: =N17 -> 12121 | AJ17: =COUNTIF(L92:L119,AI17) -> 0 | AK17: =AJ17/(AL4-AJ25) -> 0 | AL17: =IF(AK17=0,0,(AK17*((LOG(AK17))/LOG(2)))) -> 0 | AN17: =N17 -> 12121 | AO17: =COUNTIF(L120:L147,AN17) -> 0 | AP17: =AO17/(AQ4-AO25) -> 0 | AQ17: =IF(AP17=0,0,(AP17*((LOG(AP17))/LOG(2)))) -> 0 | AS17: =N17 -> 12121 | AT17: =COUNTIF(L148:L175,AS17) -> 0 | AU17: =AT17/(AV4-AT25) -> 0 | AV17: =IF(AU17=0,0,(AU17*((LOG(AU17))/LOG(2)))) -> 0
A18: 21 | B18: 1459 | C18: 22 | D18: 1463 | E18: 13 | F18: 1482 | G18: 23 | H18: 1491 | I18: 24 | J18: 1496 | K18: 0 | L18: 22122 | N18: 12122 | O18: =COUNTIF($L$7:$L$500,N18) -> 2 | P18: =O18/$Q$4 -> 0.01183431953 | Q18: =IF(P18=0,0,(P18*((LOG(P18))/LOG(2)))) -> -0.0757500525 | T18: =N18 -> 12122 | U18: =COUNTIF(L7:L34,T18) -> 0 | V18: =U18/(W4-U25) -> 0 | W18: =IF(V18=0,0,(V18*((LOG(V18))/LOG(2)))) -> 0 | Y18: =N18 -> 12122 | Z18: =COUNTIF(L35:L62,Y18) -> 0 | AA18: =Z18/(AB4-Z25) -> 0 | AB18: =IF(AA18=0,0,(AA18*((LOG(AA18))/LOG(2)))) -> 0 | AD18: =N18 -> 12122 | AE18: =COUNTIF(L63:L91,AD18) -> 0 | AF18: =AE18/(AG4-AE25) -> 0 | AG18: =IF(AF18=0,0,(AF18*((LOG(AF18))/LOG(2)))) -> 0 | AI18: =N18 -> 12122 | AJ18: =COUNTIF(L92:L119,AI18) -> 1 | AK18: =AJ18/(AL4-AJ25) -> 0.03571428571 | AL18: =IF(AK18=0,0,(AK18*((LOG(AK18))/LOG(2)))) -> -0.1716912472 | AN18: =N18 -> 12122 | AO18: =COUNTIF(L120:L147,AN18) -> 1 | AP18: =AO18/(AQ4-AO25) -> 0.03571428571 | AQ18: =IF(AP18=0,0,(AP18*((LOG(AP18))/LOG(2)))) -> -0.1716912472 | AS18: =N18 -> 12122 | AT18: =COUNTIF(L148:L175,AS18) -> 0 | AU18: =AT18/(AV4-AT25) -> 0 | AV18: =IF(AU18=0,0,(AU18*((LOG(AU18))/LOG(2)))) -> 0
A19: 12 | B19: 1613 | C19: 13 | D19: 1627 | E19: 13 | F19: 1632 | G19: 23 | H19: 1642 | I19: 24 | J19: 1650 | K19: 0 | L19: 11122 | N19: 12211 | O19: =COUNTIF($L$7:$L$500,N19) -> 1 | P19: =O19/$Q$4 -> 0.005917159763 | Q19: =IF(P19=0,0,(P19*((LOG(P19))/LOG(2)))) -> -0.04379218601 | T19: =N19 -> 12211 | U19: =COUNTIF(L7:L34,T19) -> 0 | V19: =U19/(W4-U25) -> 0 | W19: =IF(V19=0,0,(V19*((LOG(V19))/LOG(2)))) -> 0 | Y19: =N19 -> 12211 | Z19: =COUNTIF(L35:L62,Y19) -> 0 | AA19: =Z19/(AB4-Z25) -> 0 | AB19: =IF(AA19=0,0,(AA19*((LOG(AA19))/LOG(2)))) -> 0 | AD19: =N19 -> 12211 | AE19: =COUNTIF(L63:L91,AD19) -> 0 | AF19: =AE19/(AG4-AE25) -> 0 | AG19: =IF(AF19=0,0,(AF19*((LOG(AF19))/LOG(2)))) -> 0 | AI19: =N19 -> 12211 | AJ19: =COUNTIF(L92:L119,AI19) -> 1 | AK19: =AJ19/(AL4-AJ25) -> 0.03571428571 | AL19: =IF(AK19=0,0,(AK19*((LOG(AK19))/LOG(2)))) -> -0.1716912472 | AN19: =N19 -> 12211 | AO19: =COUNTIF(L120:L147,AN19) -> 0 | AP19: =AO19/(AQ4-AO25) -> 0 | AQ19: =IF(AP19=0,0,(AP19*((LOG(AP19))/LOG(2)))) -> 0 | AS19: =N19 -> 12211 | AT19: =COUNTIF(L148:L175,AS19) -> 0 | AU19: =AT19/(AV4-AT25) -> 0 | AV19: =IF(AU19=0,0,(AU19*((LOG(AU19))/LOG(2)))) -> 0
A20: 21 | B20: 1759 | C20: 22 | D20: 1763 | E20: 13 | F20: 1777 | G20: 14 | H20: 1784 | I20: 13 | J20: 1788 | K20: 1 | L20: 22111 | N20: 12212 | O20: =COUNTIF($L$7:$L$500,N20) -> 3 | P20: =O20/$Q$4 -> 0.01775147929 | Q20: =IF(P20=0,0,(P20*((LOG(P20))/LOG(2)))) -> -0.103241129 | T20: =N20 -> 12212 | U20: =COUNTIF(L7:L34,T20) -> 0 | V20: =U20/(W4-U25) -> 0 | W20: =IF(V20=0,0,(V20*((LOG(V20))/LOG(2)))) -> 0 | Y20: =N20 -> 12212 | Z20: =COUNTIF(L35:L62,Y20) -> 0 | AA20: =Z20/(AB4-Z25) -> 0 | AB20: =IF(AA20=0,0,(AA20*((LOG(AA20))/LOG(2)))) -> 0 | AD20: =N20 -> 12212 | AE20: =COUNTIF(L63:L91,AD20) -> 0 | AF20: =AE20/(AG4-AE25) -> 0 | AG20: =IF(AF20=0,0,(AF20*((LOG(AF20))/LOG(2)))) -> 0 | AI20: =N20 -> 12212 | AJ20: =COUNTIF(L92:L119,AI20) -> 0 | AK20: =AJ20/(AL4-AJ25) -> 0 | AL20: =IF(AK20=0,0,(AK20*((LOG(AK20))/LOG(2)))) -> 0 | AN20: =N20 -> 12212 | AO20: =COUNTIF(L120:L147,AN20) -> 3 | AP20: =AO20/(AQ4-AO25) -> 0.1071428571 | AQ20: =IF(AP20=0,0,(AP20*((LOG(AP20))/LOG(2)))) -> -0.3452563309 | AS20: =N20 -> 12212 | AT20: =COUNTIF(L148:L175,AS20) -> 0 | AU20: =AT20/(AV4-AT25) -> 0 | AV20: =IF(AU20=0,0,(AU20*((LOG(AU20))/LOG(2)))) -> 0
A21: 12 | B21: 1885 | C21: 24 | D21: 1902 | E21: 24 | F21: 1907 | G21: 23 | H21: 1914 | I21: 24 | J21: 1921 | K21: 0 | L21: 12222 | N21: 12221 | O21: =COUNTIF($L$7:$L$500,N21) -> 2 | P21: =O21/$Q$4 -> 0.01183431953 | Q21: =IF(P21=0,0,(P21*((LOG(P21))/LOG(2)))) -> -0.0757500525 | T21: =N21 -> 12221 | U21: =COUNTIF(L7:L34,T21) -> 0 | V21: =U21/(W4-U25) -> 0 | W21: =IF(V21=0,0,(V21*((LOG(V21))/LOG(2)))) -> 0 | Y21: =N21 -> 12221 | Z21: =COUNTIF(L35:L62,Y21) -> 1 | AA21: =Z21/(AB4-Z25) -> 0.03703703704 | AB21: =IF(AA21=0,0,(AA21*((LOG(AA21))/LOG(2)))) -> -0.1761069445 | AD21: =N21 -> 12221 | AE21: =COUNTIF(L63:L91,AD21) -> 0 | AF21: =AE21/(AG4-AE25) -> 0 | AG21: =IF(AF21=0,0,(AF21*((LOG(AF21))/LOG(2)))) -> 0 | AI21: =N21 -> 12221 | AJ21: =COUNTIF(L92:L119,AI21) -> 0 | AK21: =AJ21/(AL4-AJ25) -> 0 | AL21: =IF(AK21=0,0,(AK21*((LOG(AK21))/LOG(2)))) -> 0 | AN21: =N21 -> 12221 | AO21: =COUNTIF(L120:L147,AN21) -> 1 | AP21: =AO21/(AQ4-AO25) -> 0.03571428571 | AQ21: =IF(AP21=0,0,(AP21*((LOG(AP21))/LOG(2)))) -> -0.1716912472 | AS21: =N21 -> 12221 | AT21: =COUNTIF(L148:L175,AS21) -> 0 | AU21: =AT21/(AV4-AT25) -> 0 | AV21: =IF(AU21=0,0,(AU21*((LOG(AU21))/LOG(2)))) -> 0
A22: 12 | B22: 2021 | C22: 13 | D22: 2025 | E22: 13 | F22: 2041 | G22: 14 | H22: 2045 | I22: 24 | J22: 2054 | K22: 0 | L22: 11112 | N22: 12222 | O22: =COUNTIF($L$7:$L$500,N22) -> 4 | P22: =O22/$Q$4 -> 0.02366863905 | Q22: =IF(P22=0,0,(P22*((LOG(P22))/LOG(2)))) -> -0.1278314659 | T22: =N22 -> 12222 | U22: =COUNTIF(L7:L34,T22) -> 1 | V22: =U22/(W4-U25) -> 0.03571428571 | W22: =IF(V22=0,0,(V22*((LOG(V22))/LOG(2)))) -> -0.1716912472 | Y22: =N22 -> 12222 | Z22: =COUNTIF(L35:L62,Y22) -> 1 | AA22: =Z22/(AB4-Z25) -> 0.03703703704 | AB22: =IF(AA22=0,0,(AA22*((LOG(AA22))/LOG(2)))) -> -0.1761069445 | AD22: =N22 -> 12222 | AE22: =COUNTIF(L63:L91,AD22) -> 0 | AF22: =AE22/(AG4-AE25) -> 0 | AG22: =IF(AF22=0,0,(AF22*((LOG(AF22))/LOG(2)))) -> 0 | AI22: =N22 -> 12222 | AJ22: =COUNTIF(L92:L119,AI22) -> 2 | AK22: =AJ22/(AL4-AJ25) -> 0.07142857143 | AL22: =IF(AK22=0,0,(AK22*((LOG(AK22))/LOG(2)))) -> -0.271953923 | AN22: =N22 -> 12222 | AO22: =COUNTIF(L120:L147,AN22) -> 0 | AP22: =AO22/(AQ4-AO25) -> 0 | AQ22: =IF(AP22=0,0,(AP22*((LOG(AP22))/LOG(2)))) -> 0 | AS22: =N22 -> 12222 | AT22: =COUNTIF(L148:L175,AS22) -> 0 | AU22: =AT22/(AV4-AT25) -> 0 | AV22: =IF(AU22=0,0,(AU22*((LOG(AU22))/LOG(2)))) -> 0
A23: 12 | B23: 2161 | C23: 13 | D23: 2175 | E23: 13 | F23: 2180 | G23: 23 | H23: 2191 | I23: 24 | J23: 2200 | K23: 0 | L23: 11122 | N23: 21111 | O23: =COUNTIF($L$7:$L$500,N23) -> 2 | P23: =O23/$Q$4 -> 0.01183431953 | Q23: =IF(P23=0,0,(P23*((LOG(P23))/LOG(2)))) -> -0.0757500525 | T23: =N23 -> 21111 | U23: =COUNTIF(L7:L34,T23) -> 0 | V23: =U23/(W4-U25) -> 0 | W23: =IF(V23=0,0,(V23*((LOG(V23))/LOG(2)))) -> 0 | Y23: =N23 -> 21111 | Z23: =COUNTIF(L35:L62,Y23) -> 1 | AA23: =Z23/(AB4-Z25) -> 0.03703703704 | AB23: =IF(AA23=0,0,(AA23*((LOG(AA23))/LOG(2)))) -> -0.1761069445 | AD23: =N23 -> 21111 | AE23: =COUNTIF(L63:L91,AD23) -> 0 | AF23: =AE23/(AG4-AE25) -> 0 | AG23: =IF(AF23=0,0,(AF23*((LOG(AF23))/LOG(2)))) -> 0 | AI23: =N23 -> 21111 | AJ23: =COUNTIF(L92:L119,AI23) -> 0 | AK23: =AJ23/(AL4-AJ25) -> 0 | AL23: =IF(AK23=0,0,(AK23*((LOG(AK23))/LOG(2)))) -> 0 | AN23: =N23 -> 21111 | AO23: =COUNTIF(L120:L147,AN23) -> 0 | AP23: =AO23/(AQ4-AO25) -> 0 | AQ23: =IF(AP23=0,0,(AP23*((LOG(AP23))/LOG(2)))) -> 0 | AS23: =N23 -> 21111 | AT23: =COUNTIF(L148:L175,AS23) -> 1 | AU23: =AT23/(AV4-AT25) -> 0.03703703704 | AV23: =IF(AU23=0,0,(AU23*((LOG(AU23))/LOG(2)))) -> -0.1761069445
A24: 21 | B24: 2303 | C24: 22 | D24: 2307 | E24: 13 | F24: 2317 | G24: 14 | H24: 2321 | I24: 24 | J24: 2330 | K24: 1 | L24: 22112 | N24: 21112 | O24: =COUNTIF($L$7:$L$500,N24) -> 6 | P24: =O24/$Q$4 -> 0.03550295858 | Q24: =IF(P24=0,0,(P24*((LOG(P24))/LOG(2)))) -> -0.1709792995 | T24: =N24 -> 21112 | U24: =COUNTIF(L7:L34,T24) -> 4 | V24: =U24/(W4-U25) -> 0.1428571429 | W24: =IF(V24=0,0,(V24*((LOG(V24))/LOG(2)))) -> -0.4010507032 | Y24: =N24 -> 21112 | Z24: =COUNTIF(L35:L62,Y24) -> 0 | AA24: =Z24/(AB4-Z25) -> 0 | AB24: =IF(AA24=0,0,(AA24*((LOG(AA24))/LOG(2)))) -> 0 | AD24: =N24 -> 21112 | AE24: =COUNTIF(L63:L91,AD24) -> 1 | AF24: =AE24/(AG4-AE25) -> 0.03448275862 | AG24: =IF(AF24=0,0,(AF24*((LOG(AF24))/LOG(2)))) -> -0.167516586 | AI24: =N24 -> 21112 | AJ24: =COUNTIF(L92:L119,AI24) -> 0 | AK24: =AJ24/(AL4-AJ25) -> 0 | AL24: =IF(AK24=0,0,(AK24*((LOG(AK24))/LOG(2)))) -> 0 | AN24: =N24 -> 21112 | AO24: =COUNTIF(L120:L147,AN24) -> 0 | AP24: =AO24/(AQ4-AO25) -> 0 | AQ24: =IF(AP24=0,0,(AP24*((LOG(AP24))/LOG(2)))) -> 0 | AS24: =N24 -> 21112 | AT24: =COUNTIF(L148:L175,AS24) -> 1 | AU24: =AT24/(AV4-AT25) -> 0.03703703704 | AV24: =IF(AU24=0,0,(AU24*((LOG(AU24))/LOG(2)))) -> -0.1761069445
A25: 12 | B25: 2426 | C25: 13 | D25: 2430 | E25: 13 | F25: 2434 | G25: 23 | H25: 2442 | I25: 24 | J25: 2448 | K25: 0 | L25: 11122 | N25: 21121 | O25: =COUNTIF($L$7:$L$500,N25) -> 2 | P25: =O25/$Q$4 -> 0.01183431953 | Q25: =IF(P25=0,0,(P25*((LOG(P25))/LOG(2)))) -> -0.0757500525 | T25: =N25 -> 21121 | U25: =COUNTIF(L7:L34,T25) -> 0 | Y25: =N25 -> 21121 | Z25: =COUNTIF(L35:L62,Y25) -> 1 | AD25: =N25 -> 21121 | AE25: =COUNTIF(L63:L91,AD25) -> 0 | AI25: =N25 -> 21121 | AJ25: =COUNTIF(L92:L119,AI25) -> 0 | AN25: =N25 -> 21121 | AO25: =COUNTIF(L120:L147,AN25) -> 0 | AS25: =N25 -> 21121 | AT25: =COUNTIF(L148:L175,AS25) -> 1
A26: 12 | B26: 2562 | C26: 13 | D26: 2570 | E26: 13 | F26: 2575 | G26: 23 | H26: 2585 | I26: 24 | J26: 2592 | K26: 0 | L26: 11122 | N26: 21122 | O26: =COUNTIF($L$7:$L$500,N26) -> 5 | P26: =O26/$Q$4 -> 0.02958579882 | Q26: =IF(P26=0,0,(P26*((LOG(P26))/LOG(2)))) -> -0.1502648326 | T26: =N26 -> 21122 | U26: =COUNTIF(L7:L34,T26) -> 0 | V26: =U26/(W4-U25) -> 0 | W26: =IF(V26=0,0,(V26*((LOG(V26))/LOG(2)))) -> 0 | Y26: =N26 -> 21122 | Z26: =COUNTIF(L35:L62,Y26) -> 0 | AA26: =Z26/(AB4-Z25) -> 0 | AB26: =IF(AA26=0,0,(AA26*((LOG(AA26))/LOG(2)))) -> 0 | AD26: =N26 -> 21122 | AE26: =COUNTIF(L63:L91,AD26) -> 1 | AF26: =AE26/(AG4-AE25) -> 0.03448275862 | AG26: =IF(AF26=0,0,(AF26*((LOG(AF26))/LOG(2)))) -> -0.167516586 | AI26: =N26 -> 21122 | AJ26: =COUNTIF(L92:L119,AI26) -> 1 | AK26: =AJ26/(AL4-AJ25) -> 0.03571428571 | AL26: =IF(AK26=0,0,(AK26*((LOG(AK26))/LOG(2)))) -> -0.1716912472 | AN26: =N26 -> 21122 | AO26: =COUNTIF(L120:L147,AN26) -> 2 | AP26: =AO26/(AQ4-AO25) -> 0.07142857143 | AQ26: =IF(AP26=0,0,(AP26*((LOG(AP26))/LOG(2)))) -> -0.271953923 | AS26: =N26 -> 21122 | AT26: =COUNTIF(L148:L175,AS26) -> 1 | AU26: =AT26/(AV4-AT25) -> 0.03703703704 | AV26: =IF(AU26=0,0,(AU26*((LOG(AU26))/LOG(2)))) -> -0.1761069445
A27: 21 | B27: 2705 | C27: 22 | D27: 2709 | E27: 24 | F27: 2724 | G27: 14 | H27: 2734 | I27: 24 | J27: 2746 | K27: 0 | L27: 22212 | N27: 21211 | O27: =COUNTIF($L$7:$L$500,N27) -> 0 | P27: =O27/$Q$4 -> 0 | Q27: =IF(P27=0,0,(P27*((LOG(P27))/LOG(2)))) -> 0 | T27: =N27 -> 21211 | U27: =COUNTIF(L7:L34,T27) -> 0 | V27: =U27/(W4-U25) -> 0 | W27: =IF(V27=0,0,(V27*((LOG(V27))/LOG(2)))) -> 0 | Y27: =N27 -> 21211 | Z27: =COUNTIF(L35:L62,Y27) -> 0 | AA27: =Z27/(AB4-Z25) -> 0 | AB27: =IF(AA27=0,0,(AA27*((LOG(AA27))/LOG(2)))) -> 0 | AD27: =N27 -> 21211 | AE27: =COUNTIF(L63:L91,AD27) -> 0 | AF27: =AE27/(AG4-AE25) -> 0 | AG27: =IF(AF27=0,0,(AF27*((LOG(AF27))/LOG(2)))) -> 0 | AI27: =N27 -> 21211 | AJ27: =COUNTIF(L92:L119,AI27) -> 0 | AK27: =AJ27/(AL4-AJ25) -> 0 | AL27: =IF(AK27=0,0,(AK27*((LOG(AK27))/LOG(2)))) -> 0 | AN27: =N27 -> 21211 | AO27: =COUNTIF(L120:L147,AN27) -> 0 | AP27: =AO27/(AQ4-AO25) -> 0 | AQ27: =IF(AP27=0,0,(AP27*((LOG(AP27))/LOG(2)))) -> 0 | AS27: =N27 -> 21211 | AT27: =COUNTIF(L148:L175,AS27) -> 0 | AU27: =AT27/(AV4-AT25) -> 0 | AV27: =IF(AU27=0,0,(AU27*((LOG(AU27))/LOG(2)))) -> 0
A28: 21 | B28: 2847 | C28: 11 | D28: 2858 | E28: 11 | F28: 2862 | G28: 12 | H28: 2867 | I28: 24 | J28: 2877 | K28: 0 | L28: 21112 | N28: 21212 | O28: =COUNTIF($L$7:$L$500,N28) -> 5 | P28: =O28/$Q$4 -> 0.02958579882 | Q28: =IF(P28=0,0,(P28*((LOG(P28))/LOG(2)))) -> -0.1502648326 | T28: =N28 -> 21212 | U28: =COUNTIF(L7:L34,T28) -> 1 | V28: =U28/(W4-U25) -> 0.03571428571 | W28: =IF(V28=0,0,(V28*((LOG(V28))/LOG(2)))) -> -0.1716912472 | Y28: =N28 -> 21212 | Z28: =COUNTIF(L35:L62,Y28) -> 0 | AA28: =Z28/(AB4-Z25) -> 0 | AB28: =IF(AA28=0,0,(AA28*((LOG(AA28))/LOG(2)))) -> 0 | AD28: =N28 -> 21212 | AE28: =COUNTIF(L63:L91,AD28) -> 2 | AF28: =AE28/(AG4-AE25) -> 0.06896551724 | AG28: =IF(AF28=0,0,(AF28*((LOG(AF28))/LOG(2)))) -> -0.2660676548 | AI28: =N28 -> 21212 | AJ28: =COUNTIF(L92:L119,AI28) -> 2 | AK28: =AJ28/(AL4-AJ25) -> 0.07142857143 | AL28: =IF(AK28=0,0,(AK28*((LOG(AK28))/LOG(2)))) -> -0.271953923 | AN28: =N28 -> 21212 | AO28: =COUNTIF(L120:L147,AN28) -> 0 | AP28: =AO28/(AQ4-AO25) -> 0 | AQ28: =IF(AP28=0,0,(AP28*((LOG(AP28))/LOG(2)))) -> 0 | AS28: =N28 -> 21212 | AT28: =COUNTIF(L148:L175,AS28) -> 0 | AU28: =AT28/(AV4-AT25) -> 0 | AV28: =IF(AU28=0,0,(AU28*((LOG(AU28))/LOG(2)))) -> 0
A29: 21 | B29: 2978 | C29: 22 | D29: 2983 | E29: 13 | F29: 2992 | G29: 14 | H29: 2996 | I29: 13 | J29: 3000 | K29: 0 | L29: 22111 | N29: 21221 | O29: =COUNTIF($L$7:$L$500,N29) -> 9 | P29: =O29/$Q$4 -> 0.05325443787 | Q29: =IF(P29=0,0,(P29*((LOG(P29))/LOG(2)))) -> -0.2253171001 | T29: =N29 -> 21221 | U29: =COUNTIF(L7:L34,T29) -> 0 | V29: =U29/(W4-U25) -> 0 | W29: =IF(V29=0,0,(V29*((LOG(V29))/LOG(2)))) -> 0 | Y29: =N29 -> 21221 | Z29: =COUNTIF(L35:L62,Y29) -> 0 | AA29: =Z29/(AB4-Z25) -> 0 | AB29: =IF(AA29=0,0,(AA29*((LOG(AA29))/LOG(2)))) -> 0 | AD29: =N29 -> 21221 | AE29: =COUNTIF(L63:L91,AD29) -> 4 | AF29: =AE29/(AG4-AE25) -> 0.1379310345 | AG29: =IF(AF29=0,0,(AF29*((LOG(AF29))/LOG(2)))) -> -0.3942042752 | AI29: =N29 -> 21221 | AJ29: =COUNTIF(L92:L119,AI29) -> 1 | AK29: =AJ29/(AL4-AJ25) -> 0.03571428571 | AL29: =IF(AK29=0,0,(AK29*((LOG(AK29))/LOG(2)))) -> -0.1716912472 | AN29: =N29 -> 21221 | AO29: =COUNTIF(L120:L147,AN29) -> 4 | AP29: =AO29/(AQ4-AO25) -> 0.1428571429 | AQ29: =IF(AP29=0,0,(AP29*((LOG(AP29))/LOG(2)))) -> -0.4010507032 | AS29: =N29 -> 21221 | AT29: =COUNTIF(L148:L175,AS29) -> 0 | AU29: =AT29/(AV4-AT25) -> 0 | AV29: =IF(AU29=0,0,(AU29*((LOG(AU29))/LOG(2)))) -> 0
A30: 12 | B30: 3110 | C30: 13 | D30: 3114 | E30: 13 | F30: 3118 | G30: 14 | H30: 3122 | I30: 24 | J30: 3133 | K30: 0 | L30: 11112 | N30: 21222 | O30: =COUNTIF($L$7:$L$500,N30) -> 3 | P30: =O30/$Q$4 -> 0.01775147929 | Q30: =IF(P30=0,0,(P30*((LOG(P30))/LOG(2)))) -> -0.103241129 | T30: =N30 -> 21222 | U30: =COUNTIF(L7:L34,T30) -> 0 | V30: =U30/(W4-U25) -> 0 | W30: =IF(V30=0,0,(V30*((LOG(V30))/LOG(2)))) -> 0 | Y30: =N30 -> 21222 | Z30: =COUNTIF(L35:L62,Y30) -> 0 | AA30: =Z30/(AB4-Z25) -> 0 | AB30: =IF(AA30=0,0,(AA30*((LOG(AA30))/LOG(2)))) -> 0 | AD30: =N30 -> 21222 | AE30: =COUNTIF(L63:L91,AD30) -> 1 | AF30: =AE30/(AG4-AE25) -> 0.03448275862 | AG30: =IF(AF30=0,0,(AF30*((LOG(AF30))/LOG(2)))) -> -0.167516586 | AI30: =N30 -> 21222 | AJ30: =COUNTIF(L92:L119,AI30) -> 1 | AK30: =AJ30/(AL4-AJ25) -> 0.03571428571 | AL30: =IF(AK30=0,0,(AK30*((LOG(AK30))/LOG(2)))) -> -0.1716912472 | AN30: =N30 -> 21222 | AO30: =COUNTIF(L120:L147,AN30) -> 1 | AP30: =AO30/(AQ4-AO25) -> 0.03571428571 | AQ30: =IF(AP30=0,0,(AP30*((LOG(AP30))/LOG(2)))) -> -0.1716912472 | AS30: =N30 -> 21222 | AT30: =COUNTIF(L148:L175,AS30) -> 0 | AU30: =AT30/(AV4-AT25) -> 0 | AV30: =IF(AU30=0,0,(AU30*((LOG(AU30))/LOG(2)))) -> 0
A31: 21 | B31: 3241 | C31: 11 | D31: 3252 | E31: 22 | F31: 3260 | G31: 14 | H31: 3270 | I31: 24 | J31: 3278 | K31: 0 | L31: 21212 | N31: 22111 | O31: =COUNTIF($L$7:$L$500,N31) -> 3 | P31: =O31/$Q$4 -> 0.01775147929 | Q31: =IF(P31=0,0,(P31*((LOG(P31))/LOG(2)))) -> -0.103241129 | T31: =N31 -> 22111 | U31: =COUNTIF(L7:L34,T31) -> 2 | V31: =U31/(W4-U25) -> 0.07142857143 | W31: =IF(V31=0,0,(V31*((LOG(V31))/LOG(2)))) -> -0.271953923 | Y31: =N31 -> 22111 | Z31: =COUNTIF(L35:L62,Y31) -> 0 | AA31: =Z31/(AB4-Z25) -> 0 | AB31: =IF(AA31=0,0,(AA31*((LOG(AA31))/LOG(2)))) -> 0 | AD31: =N31 -> 22111 | AE31: =COUNTIF(L63:L91,AD31) -> 0 | AF31: =AE31/(AG4-AE25) -> 0 | AG31: =IF(AF31=0,0,(AF31*((LOG(AF31))/LOG(2)))) -> 0 | AI31: =N31 -> 22111 | AJ31: =COUNTIF(L92:L119,AI31) -> 1 | AK31: =AJ31/(AL4-AJ25) -> 0.03571428571 | AL31: =IF(AK31=0,0,(AK31*((LOG(AK31))/LOG(2)))) -> -0.1716912472 | AN31: =N31 -> 22111 | AO31: =COUNTIF(L120:L147,AN31) -> 0 | AP31: =AO31/(AQ4-AO25) -> 0 | AQ31: =IF(AP31=0,0,(AP31*((LOG(AP31))/LOG(2)))) -> 0 | AS31: =N31 -> 22111 | AT31: =COUNTIF(L148:L175,AS31) -> 0 | AU31: =AT31/(AV4-AT25) -> 0 | AV31: =IF(AU31=0,0,(AU31*((LOG(AU31))/LOG(2)))) -> 0
A32: 21 | B32: 3395 | C32: 11 | D32: 3406 | E32: 11 | F32: 3410 | G32: 12 | H32: 3414 | I32: 24 | J32: 3423 | K32: 0 | L32: 21112 | N32: 22112 | O32: =COUNTIF($L$7:$L$500,N32) -> 5 | P32: =O32/$Q$4 -> 0.02958579882 | Q32: =IF(P32=0,0,(P32*((LOG(P32))/LOG(2)))) -> -0.1502648326 | T32: =N32 -> 22112 | U32: =COUNTIF(L7:L34,T32) -> 1 | V32: =U32/(W4-U25) -> 0.03571428571 | W32: =IF(V32=0,0,(V32*((LOG(V32))/LOG(2)))) -> -0.1716912472 | Y32: =N32 -> 22112 | Z32: =COUNTIF(L35:L62,Y32) -> 0 | AA32: =Z32/(AB4-Z25) -> 0 | AB32: =IF(AA32=0,0,(AA32*((LOG(AA32))/LOG(2)))) -> 0 | AD32: =N32 -> 22112 | AE32: =COUNTIF(L63:L91,AD32) -> 4 | AF32: =AE32/(AG4-AE25) -> 0.1379310345 | AG32: =IF(AF32=0,0,(AF32*((LOG(AF32))/LOG(2)))) -> -0.3942042752 | AI32: =N32 -> 22112 | AJ32: =COUNTIF(L92:L119,AI32) -> 0 | AK32: =AJ32/(AL4-AJ25) -> 0 | AL32: =IF(AK32=0,0,(AK32*((LOG(AK32))/LOG(2)))) -> 0 | AN32: =N32 -> 22112 | AO32: =COUNTIF(L120:L147,AN32) -> 0 | AP32: =AO32/(AQ4-AO25) -> 0 | AQ32: =IF(AP32=0,0,(AP32*((LOG(AP32))/LOG(2)))) -> 0 | AS32: =N32 -> 22112 | AT32: =COUNTIF(L148:L175,AS32) -> 0 | AU32: =AT32/(AV4-AT25) -> 0 | AV32: =IF(AU32=0,0,(AU32*((LOG(AU32))/LOG(2)))) -> 0
A33: 21 | B33: 3532 | C33: 11 | D33: 3549 | E33: 11 | F33: 3553 | G33: 12 | H33: 3562 | I33: 24 | J33: 3569 | K33: 0 | L33: 21112 | N33: 22121 | O33: =COUNTIF($L$7:$L$500,N33) -> 5 | P33: =O33/$Q$4 -> 0.02958579882 | Q33: =IF(P33=0,0,(P33*((LOG(P33))/LOG(2)))) -> -0.1502648326 | T33: =N33 -> 22121 | U33: =COUNTIF(L7:L34,T33) -> 0 | V33: =U33/(W4-U25) -> 0 | W33: =IF(V33=0,0,(V33*((LOG(V33))/LOG(2)))) -> 0 | Y33: =N33 -> 22121 | Z33: =COUNTIF(L35:L62,Y33) -> 2 | AA33: =Z33/(AB4-Z25) -> 0.07407407407 | AB33: =IF(AA33=0,0,(AA33*((LOG(AA33))/LOG(2)))) -> -0.278139815 | AD33: =N33 -> 22121 | AE33: =COUNTIF(L63:L91,AD33) -> 0 | AF33: =AE33/(AG4-AE25) -> 0 | AG33: =IF(AF33=0,0,(AF33*((LOG(AF33))/LOG(2)))) -> 0 | AI33: =N33 -> 22121 | AJ33: =COUNTIF(L92:L119,AI33) -> 0 | AK33: =AJ33/(AL4-AJ25) -> 0 | AL33: =IF(AK33=0,0,(AK33*((LOG(AK33))/LOG(2)))) -> 0 | AN33: =N33 -> 22121 | AO33: =COUNTIF(L120:L147,AN33) -> 3 | AP33: =AO33/(AQ4-AO25) -> 0.1071428571 | AQ33: =IF(AP33=0,0,(AP33*((LOG(AP33))/LOG(2)))) -> -0.3452563309 | AS33: =N33 -> 22121 | AT33: =COUNTIF(L148:L175,AS33) -> 0 | AU33: =AT33/(AV4-AT25) -> 0 | AV33: =IF(AU33=0,0,(AU33*((LOG(AU33))/LOG(2)))) -> 0
A34: 12 | B34: 3692 | C34: 13 | D34: 3696 | E34: 13 | F34: 3701 | G34: 23 | H34: 3712 | I34: 13 | J34: 3722 | K34: 1 | L34: 11121 | N34: 22122 | O34: =COUNTIF($L$7:$L$500,N34) -> 7 | P34: =O34/$Q$4 -> 0.04142011834 | Q34: =IF(P34=0,0,(P34*((LOG(P34))/LOG(2)))) -> -0.190264329 | T34: =N34 -> 22122 | U34: =COUNTIF(L7:L34,T34) -> 1 | V34: =U34/(W4-U25) -> 0.03571428571 | W34: =IF(V34=0,0,(V34*((LOG(V34))/LOG(2)))) -> -0.1716912472 | Y34: =N34 -> 22122 | Z34: =COUNTIF(L35:L62,Y34) -> 0 | AA34: =Z34/(AB4-Z25) -> 0 | AB34: =IF(AA34=0,0,(AA34*((LOG(AA34))/LOG(2)))) -> 0 | AD34: =N34 -> 22122 | AE34: =COUNTIF(L63:L91,AD34) -> 1 | AF34: =AE34/(AG4-AE25) -> 0.03448275862 | AG34: =IF(AF34=0,0,(AF34*((LOG(AF34))/LOG(2)))) -> -0.167516586 | AI34: =N34 -> 22122 | AJ34: =COUNTIF(L92:L119,AI34) -> 4 | AK34: =AJ34/(AL4-AJ25) -> 0.1428571429 | AL34: =IF(AK34=0,0,(AK34*((LOG(AK34))/LOG(2)))) -> -0.4010507032 | AN34: =N34 -> 22122 | AO34: =COUNTIF(L120:L147,AN34) -> 0 | AP34: =AO34/(AQ4-AO25) -> 0 | AQ34: =IF(AP34=0,0,(AP34*((LOG(AP34))/LOG(2)))) -> 0 | AS34: =N34 -> 22122 | AT34: =COUNTIF(L148:L175,AS34) -> 1 | AU34: =AT34/(AV4-AT25) -> 0.03703703704 | AV34: =IF(AU34=0,0,(AU34*((LOG(AU34))/LOG(2)))) -> -0.1761069445
A35: 12 | B35: 3821 | C35: 13 | D35: 3825 | E35: 13 | F35: 3829 | G35: 23 | H35: 3837 | I35: 24 | J35: 3844 | K35: 0 | L35: 11122 | N35: 22211 | O35: =COUNTIF($L$7:$L$500,N35) -> 1 | P35: =O35/$Q$4 -> 0.005917159763 | Q35: =IF(P35=0,0,(P35*((LOG(P35))/LOG(2)))) -> -0.04379218601 | T35: =N35 -> 22211 | U35: =COUNTIF(L7:L34,T35) -> 0 | V35: =U35/(W4-U25) -> 0 | W35: =IF(V35=0,0,(V35*((LOG(V35))/LOG(2)))) -> 0 | Y35: =N35 -> 22211 | Z35: =COUNTIF(L35:L62,Y35) -> 0 | AA35: =Z35/(AB4-Z25) -> 0 | AB35: =IF(AA35=0,0,(AA35*((LOG(AA35))/LOG(2)))) -> 0 | AD35: =N35 -> 22211 | AE35: =COUNTIF(L63:L91,AD35) -> 1 | AF35: =AE35/(AG4-AE25) -> 0.03448275862 | AG35: =IF(AF35=0,0,(AF35*((LOG(AF35))/LOG(2)))) -> -0.167516586 | AI35: =N35 -> 22211 | AJ35: =COUNTIF(L92:L119,AI35) -> 0 | AK35: =AJ35/(AL4-AJ25) -> 0 | AL35: =IF(AK35=0,0,(AK35*((LOG(AK35))/LOG(2)))) -> 0 | AN35: =N35 -> 22211 | AO35: =COUNTIF(L120:L147,AN35) -> 0 | AP35: =AO35/(AQ4-AO25) -> 0 | AQ35: =IF(AP35=0,0,(AP35*((LOG(AP35))/LOG(2)))) -> 0 | AS35: =N35 -> 22211 | AT35: =COUNTIF(L148:L175,AS35) -> 0 | AU35: =AT35/(AV4-AT25) -> 0 | AV35: =IF(AU35=0,0,(AU35*((LOG(AU35))/LOG(2)))) -> 0
A36: 12 | B36: 3950 | C36: 13 | D36: 3953 | E36: 13 | F36: 3957 | G36: 23 | H36: 3965 | I36: 24 | J36: 3973 | K36: 0 | L36: 11122 | N36: 22212 | O36: =COUNTIF($L$7:$L$500,N36) -> 6 | P36: =O36/$Q$4 -> 0.03550295858 | Q36: =IF(P36=0,0,(P36*((LOG(P36))/LOG(2)))) -> -0.1709792995 | T36: =N36 -> 22212 | U36: =COUNTIF(L7:L34,T36) -> 1 | V36: =U36/(W4-U25) -> 0.03571428571 | W36: =IF(V36=0,0,(V36*((LOG(V36))/LOG(2)))) -> -0.1716912472 | Y36: =N36 -> 22212 | Z36: =COUNTIF(L35:L62,Y36) -> 2 | AA36: =Z36/(AB4-Z25) -> 0.07407407407 | AB36: =IF(AA36=0,0,(AA36*((LOG(AA36))/LOG(2)))) -> -0.278139815 | AD36: =N36 -> 22212 | AE36: =COUNTIF(L63:L91,AD36) -> 1 | AF36: =AE36/(AG4-AE25) -> 0.03448275862 | AG36: =IF(AF36=0,0,(AF36*((LOG(AF36))/LOG(2)))) -> -0.167516586 | AI36: =N36 -> 22212 | AJ36: =COUNTIF(L92:L119,AI36) -> 2 | AK36: =AJ36/(AL4-AJ25) -> 0.07142857143 | AL36: =IF(AK36=0,0,(AK36*((LOG(AK36))/LOG(2)))) -> -0.271953923 | AN36: =N36 -> 22212 | AO36: =COUNTIF(L120:L147,AN36) -> 0 | AP36: =AO36/(AQ4-AO25) -> 0 | AQ36: =IF(AP36=0,0,(AP36*((LOG(AP36))/LOG(2)))) -> 0 | AS36: =N36 -> 22212 | AT36: =COUNTIF(L148:L175,AS36) -> 0 | AU36: =AT36/(AV4-AT25) -> 0 | AV36: =IF(AU36=0,0,(AU36*((LOG(AU36))/LOG(2)))) -> 0
A37: 21 | B37: 4072 | C37: 11 | D37: 4080 | E37: 11 | F37: 4083 | G37: 12 | H37: 4087 | I37: 13 | J37: 4092 | K37: 0 | L37: 21111 | N37: 22221 | O37: =COUNTIF($L$7:$L$500,N37) -> 4 | P37: =O37/$Q$4 -> 0.02366863905 | Q37: =IF(P37=0,0,(P37*((LOG(P37))/LOG(2)))) -> -0.1278314659 | T37: =N37 -> 22221 | U37: =COUNTIF(L7:L34,T37) -> 1 | V37: =U37/(W4-U25) -> 0.03571428571 | W37: =IF(V37=0,0,(V37*((LOG(V37))/LOG(2)))) -> -0.1716912472 | Y37: =N37 -> 22221 | Z37: =COUNTIF(L35:L62,Y37) -> 0 | AA37: =Z37/(AB4-Z25) -> 0 | AB37: =IF(AA37=0,0,(AA37*((LOG(AA37))/LOG(2)))) -> 0 | AD37: =N37 -> 22221 | AE37: =COUNTIF(L63:L91,AD37) -> 2 | AF37: =AE37/(AG4-AE25) -> 0.06896551724 | AG37: =IF(AF37=0,0,(AF37*((LOG(AF37))/LOG(2)))) -> -0.2660676548 | AI37: =N37 -> 22221 | AJ37: =COUNTIF(L92:L119,AI37) -> 1 | AK37: =AJ37/(AL4-AJ25) -> 0.03571428571 | AL37: =IF(AK37=0,0,(AK37*((LOG(AK37))/LOG(2)))) -> -0.1716912472 | AN37: =N37 -> 22221 | AO37: =COUNTIF(L120:L147,AN37) -> 0 | AP37: =AO37/(AQ4-AO25) -> 0 | AQ37: =IF(AP37=0,0,(AP37*((LOG(AP37))/LOG(2)))) -> 0 | AS37: =N37 -> 22221 | AT37: =COUNTIF(L148:L175,AS37) -> 0 | AU37: =AT37/(AV4-AT25) -> 0 | AV37: =IF(AU37=0,0,(AU37*((LOG(AU37))/LOG(2)))) -> 0
A38: 12 | B38: 4199 | C38: 13 | D38: 4206 | E38: 13 | F38: 4214 | G38: 23 | H38: 4225 | I38: 24 | J38: 4232 | K38: 0 | L38: 11122 | N38: 22222 | O38: =COUNTIF($L$7:$L$500,N38) -> 2 | P38: =O38/$Q$4 -> 0.01183431953 | Q38: =IF(P38=0,0,(P38*((LOG(P38))/LOG(2)))) -> -0.0757500525 | T38: =N38 -> 22222 | U38: =COUNTIF(L7:L34,T38) -> 1 | V38: =U38/(W4-U25) -> 0.03571428571 | W38: =IF(V38=0,0,(V38*((LOG(V38))/LOG(2)))) -> -0.1716912472 | Y38: =N38 -> 22222 | Z38: =COUNTIF(L35:L62,Y38) -> 0 | AA38: =Z38/(AB4-Z25) -> 0 | AB38: =IF(AA38=0,0,(AA38*((LOG(AA38))/LOG(2)))) -> 0 | AD38: =N38 -> 22222 | AE38: =COUNTIF(L63:L91,AD38) -> 1 | AF38: =AE38/(AG4-AE25) -> 0.03448275862 | AG38: =IF(AF38=0,0,(AF38*((LOG(AF38))/LOG(2)))) -> -0.167516586 | AI38: =N38 -> 22222 | AJ38: =COUNTIF(L92:L119,AI38) -> 0 | AK38: =AJ38/(AL4-AJ25) -> 0 | AL38: =IF(AK38=0,0,(AK38*((LOG(AK38))/LOG(2)))) -> 0 | AN38: =N38 -> 22222 | AO38: =COUNTIF(L120:L147,AN38) -> 0 | AP38: =AO38/(AQ4-AO25) -> 0 | AQ38: =IF(AP38=0,0,(AP38*((LOG(AP38))/LOG(2)))) -> 0 | AS38: =N38 -> 22222 | AT38: =COUNTIF(L148:L175,AS38) -> 0 | AU38: =AT38/(AV4-AT25) -> 0 | AV38: =IF(AU38=0,0,(AU38*((LOG(AU38))/LOG(2)))) -> 0
A39: 21 | B39: 4339 | C39: 22 | D39: 4344 | E39: 24 | F39: 4352 | G39: 14 | H39: 4359 | I39: 24 | J39: 4367 | K39: 0 | L39: 22212 | P39: =SUM(P7:P38) -> 1 | Q39: =-SUM(Q7:Q38) -> 4.280542792 | V39: =SUM(V7:V38) -> 1 | W39: =-SUM(W7:W38) -> 3.708966083 | AA39: =SUM(AA7:AA38) -> 1 | AB39: =-SUM(AB7:AB38) -> 3.003620372 | AF39: =SUM(AF7:AF38) -> 1 | AG39: =-SUM(AG7:AG38) -> 3.616601685 | AK39: =SUM(AK7:AK38) -> 1 | AL39: =-SUM(AL7:AL38) -> 3.807354922 | AP39: =SUM(AP7:AP38) -> 1 | AQ39: =-SUM(AQ7:AQ38) -> 3.512188404 | AU39: =SUM(AU7:AU38) -> 1 | AV39: =-SUM(AV7:AV38) -> 2.889534614
A40: 21 | B40: 4472 | C40: 22 | D40: 4476 | E40: 13 | F40: 4483 | G40: 23 | H40: 4492 | I40: 13 | J40: 4501 | K40: 0 | L40: 22121 | P40: U= | Q40: =Q39/(LOG(Q4)/LOG(2)) -> 0.5783829921 | V40: U1= | W40: =W39/(LOG(W4)/LOG(2)) -> 0.7715190875 | AA40: U2= | AB40: =AB39/(LOG(AB4)/LOG(2)) -> 0.6247968832 | AF40: U3= | AG40: =AG39/(LOG(AG4)/LOG(2)) -> 0.7444660011 | AK40: U4= | AL40: =AL39/(LOG(AL4)/LOG(2)) -> 0.7919854023 | AP40: U5= | AQ40: =AQ39/(LOG(AQ4)/LOG(2)) -> 0.7305864578 | AU40: U6= | AV40: =AV39/(LOG(AV4)/LOG(2)) -> 0.6010653802
A41: 21 | B41: 4607 | C41: 11 | D41: 4620 | E41: 11 | F41: 4628 | G41: 21 | H41: 4643 | I41: 11 | J41: 4655 | K41: 1 | L41: 21121
A42: 12 | B42: 4752 | C42: 13 | D42: 4756 | E42: 13 | F42: 4760 | G42: 14 | H42: 4768 | I42: 24 | J42: 4785 | K42: 1 | L42: 11112
A43: 12 | B43: 4882 | C43: 13 | D43: 4890 | E43: 13 | F43: 4894 | G43: 14 | H43: 4905 | I43: 13 | J43: 4910 | K43: 1 | L43: 11111 | N43: Total Target Seq
A44: 12 | B44: 5003 | C44: 13 | D44: 5008 | E44: 13 | F44: 5012 | G44: 14 | H44: 5016 | I44: 13 | J44: 5020 | K44: 0 | L44: 11111 | N44: =COUNTIF(L7:L175,G3) -> 2 | P44: 28 | Q44: 28 | R44: 29 | S44: 28 | T44: 28 | U44: 28
A45: 12 | B45: 5126 | C45: 13 | D45: 5132 | E45: 13 | F45: 5137 | G45: 23 | H45: 5146 | I45: 24 | J45: 5152 | K45: 0 | L45: 11122 | P45: % of reinforcement given in 6 equal intervals based on number of trials
A46: 12 | B46: 5258 | C46: 13 | D46: 5266 | E46: 13 | F46: 5270 | G46: 23 | H46: 5281 | I46: 13 | J46: 5290 | K46: 1 | L46: 11121 | P46: %_1 | Q46: %_2 | R46: %_3 | S46: %_4 | T46: %_5 | U46: %_6
A47: 12 | B47: 5384 | C47: 13 | D47: 5388 | E47: 24 | F47: 5397 | G47: 23 | H47: 5404 | I47: 13 | J47: 5412 | K47: 0 | L47: 11221 | O47: target sequence | P47: =$G$3 -> 21121 | Q47: =$G$3 -> 21121 | R47: =$G$3 -> 21121 | S47: =$G$3 -> 21121 | T47: =$G$3 -> 21121 | U47: =$G$3 -> 21121
A48: 12 | B48: 5509 | C48: 13 | D48: 5513 | E48: 24 | F48: 5521 | G48: 14 | H48: 5540 | I48: 24 | J48: 5548 | K48: 0 | L48: 11212 | O48: total reinforcement | P48: =U25 -> 0 | Q48: =Z25 -> 1 | R48: =AE25 -> 0 | S48: =AJ25 -> 0 | T48: =AO25 -> 0 | U48: =AT25 -> 1
A49: 12 | B49: 5647 | C49: 13 | D49: 5650 | E49: 13 | F49: 5654 | G49: 14 | H49: 5658 | I49: 24 | J49: 5668 | K49: 1 | L49: 11112 | O49: % target
A50: 12 | B50: 5763 | C50: 13 | D50: 5767 | E50: 13 | F50: 5772 | G50: 23 | H50: 5781 | I50: 24 | J50: 5789 | K50: 0 | L50: 11122 | O50: CCRF
A51: 12 | B51: 5886 | C51: 13 | D51: 5890 | E51: 24 | F51: 5899 | G51: 14 | H51: 5908 | I51: 24 | J51: 5918 | K51: 0 | L51: 11212 | O51: % CCRf
A52: 21 | B52: 6021 | C52: 22 | D52: 6025 | E52: 13 | F52: 6033 | G52: 23 | H52: 6042 | I52: 13 | J52: 6050 | K52: 0 | L52: 22121 | O52: average response rate | P52: =J34/P44 -> 132.9285714 | Q52: =(J62-J34)/Q44 -> 127.5357143 | R52: =(J91-J62)/R44 -> 133.4137931 | S52: =(J119-J91)/S44 -> 147.8214286 | T52: =(J147-J119)/T44 -> 169.0357143 | U52: =(J175-J147)/U44 -> 138.9642857
A53: 12 | B53: 6149 | C53: 13 | D53: 6152 | E53: 13 | F53: 6156 | G53: 14 | H53: 6160 | I53: 13 | J53: 6164 | K53: 0 | L53: 11111
A54: 12 | B54: 6263 | C54: 13 | D54: 6267 | E54: 13 | F54: 6270 | G54: 14 | H54: 6274 | I54: 24 | J54: 6282 | K54: 1 | L54: 11112
A55: 12 | B55: 6374 | C55: 24 | D55: 6383 | E55: 24 | F55: 6388 | G55: 23 | H55: 6395 | I55: 13 | J55: 6402 | K55: 0 | L55: 12221
A56: 12 | B56: 6501 | C56: 13 | D56: 6512 | E56: 13 | F56: 6525 | G56: 23 | H56: 6536 | I56: 24 | J56: 6544 | K56: 0 | L56: 11122
A57: 12 | B57: 6643 | C57: 13 | D57: 6646 | E57: 13 | F57: 6650 | G57: 14 | H57: 6654 | I57: 13 | J57: 6658 | K57: 0 | L57: 11111
A58: 12 | B58: 6765 | C58: 13 | D58: 6769 | E58: 13 | F58: 6773 | G58: 23 | H58: 6782 | I58: 24 | J58: 6789 | K58: 0 | L58: 11122
A59: 21 | B59: 6887 | C59: 22 | D59: 6895 | E59: 24 | F59: 6901 | G59: 14 | H59: 6908 | I59: 24 | J59: 6915 | K59: 0 | L59: 22212
A60: 12 | B60: 7021 | C60: 13 | D60: 7024 | E60: 13 | F60: 7028 | G60: 23 | H60: 7036 | I60: 24 | J60: 7047 | K60: 1 | L60: 11122
A61: 12 | B61: 7140 | C61: 24 | D61: 7148 | E61: 24 | F61: 7155 | G61: 23 | H61: 7165 | I61: 24 | J61: 7172 | K61: 1 | L61: 12222
A62: 12 | B62: 7266 | C62: 13 | D62: 7270 | E62: 13 | F62: 7279 | G62: 23 | H62: 7287 | I62: 24 | J62: 7293 | K62: 0 | L62: 11122
A63: 12 | B63: 7392 | C63: 13 | D63: 7396 | E63: 13 | F63: 7399 | G63: 23 | H63: 7408 | I63: 13 | J63: 7418 | K63: 0 | L63: 11121
A64: 21 | B64: 7518 | C64: 22 | D64: 7523 | E64: 13 | F64: 7531 | G64: 14 | H64: 7538 | I64: 24 | J64: 7546 | K64: 0 | L64: 22112
A65: 21 | B65: 7648 | C65: 22 | D65: 7652 | E65: 13 | F65: 7662 | G65: 14 | H65: 7669 | I65: 24 | J65: 7676 | K65: 1 | L65: 22112
A66: 12 | B66: 7769 | C66: 13 | D66: 7773 | E66: 13 | F66: 7777 | G66: 14 | H66: 7781 | I66: 24 | J66: 7790 | K66: 0 | L66: 11112
A67: 12 | B67: 7890 | C67: 13 | D67: 7893 | E67: 13 | F67: 7897 | G67: 23 | H67: 7905 | I67: 24 | J67: 7917 | K67: 0 | L67: 11122
A68: 12 | B68: 8017 | C68: 13 | D68: 8021 | E68: 13 | F68: 8024 | G68: 23 | H68: 8032 | I68: 24 | J68: 8042 | K68: 0 | L68: 11122
A69: 12 | B69: 8143 | C69: 13 | D69: 8147 | E69: 13 | F69: 8151 | G69: 14 | H69: 8155 | I69: 24 | J69: 8163 | K69: 0 | L69: 11112
A70: 21 | B70: 8263 | C70: 22 | D70: 8271 | E70: 24 | F70: 8276 | G70: 23 | H70: 8283 | I70: 13 | J70: 8293 | K70: 0 | L70: 22221
A71: 21 | B71: 8401 | C71: 11 | D71: 8411 | E71: 11 | F71: 8418 | G71: 21 | H71: 8425 | I71: 22 | J71: 8434 | K71: 1 | L71: 21122
A72: 21 | B72: 8532 | C72: 11 | D72: 8542 | E72: 22 | F72: 8551 | G72: 23 | H72: 8557 | I72: 13 | J72: 8567 | K72: 0 | L72: 21221
A73: 21 | B73: 8672 | C73: 11 | D73: 8681 | E73: 11 | F73: 8686 | G73: 12 | H73: 8690 | I73: 24 | J73: 8698 | K73: 0 | L73: 21112
A74: 12 | B74: 8800 | C74: 13 | D74: 8808 | E74: 13 | F74: 8812 | G74: 14 | H74: 8816 | I74: 24 | J74: 8824 | K74: 0 | L74: 11112
A75: 21 | B75: 8925 | C75: 11 | D75: 8935 | E75: 22 | F75: 8942 | G75: 14 | H75: 8952 | I75: 24 | J75: 8959 | K75: 0 | L75: 21212
A76: 21 | B76: 9057 | C76: 22 | D76: 9070 | E76: 13 | F76: 9085 | G76: 14 | H76: 9092 | I76: 24 | J76: 9099 | K76: 0 | L76: 22112
A77: 21 | B77: 9203 | C77: 11 | D77: 9213 | E77: 22 | F77: 9221 | G77: 23 | H77: 9230 | I77: 13 | J77: 9239 | K77: 0 | L77: 21221
A78: 21 | B78: 9362 | C78: 22 | D78: 9367 | E78: 24 | F78: 9372 | G78: 14 | H78: 9381 | I78: 24 | J78: 9388 | K78: 1 | L78: 22212
A79: 12 | B79: 9482 | C79: 13 | D79: 9490 | E79: 13 | F79: 9497 | G79: 23 | H79: 9505 | I79: 24 | J79: 9511 | K79: 0 | L79: 11122
A80: 21 | B80: 9612 | C80: 22 | D80: 9617 | E80: 13 | F80: 9632 | G80: 14 | H80: 9636 | I80: 24 | J80: 9644 | K80: 0 | L80: 22112
A81: 21 | B81: 9759 | C81: 11 | D81: 9769 | E81: 22 | F81: 9775 | G81: 23 | H81: 9781 | I81: 24 | J81: 9791 | K81: 0 | L81: 21222
A82: 21 | B82: 9900 | C82: 22 | D82: 9905 | E82: 24 | F82: 9911 | G82: 23 | H82: 9915 | I82: 13 | J82: 9925 | K82: 0 | L82: 22221
A83: 21 | B83: 10027 | C83: 22 | D83: 10032 | E83: 24 | F83: 10036 | G83: 14 | H83: 10045 | I83: 13 | J83: 10049 | K83: 0 | L83: 22211
A84: 21 | B84: 10155 | C84: 22 | D84: 10161 | E84: 24 | F84: 10167 | G84: 23 | H84: 10172 | I84: 24 | J84: 10179 | K84: 0 | L84: 22222
A85: 21 | B85: 10277 | C85: 22 | D85: 10285 | E85: 13 | F85: 10299 | G85: 23 | H85: 10306 | I85: 24 | J85: 10315 | K85: 0 | L85: 22122
A86: 21 | B86: 10425 | C86: 11 | D86: 10440 | E86: 22 | F86: 10447 | G86: 14 | H86: 10456 | I86: 24 | J86: 10464 | K86: 1 | L86: 21212
A87: 12 | B87: 10560 | C87: 13 | D87: 10568 | E87: 24 | F87: 10577 | G87: 23 | H87: 10582 | I87: 24 | J87: 10600 | K87: 0 | L87: 11222
A88: 12 | B88: 10701 | C88: 13 | D88: 10708 | E88: 13 | F88: 10716 | G88: 23 | H88: 10724 | I88: 24 | J88: 10730 | K88: 0 | L88: 11122
A89: 12 | B89: 10832 | C89: 13 | D89: 10835 | E89: 13 | F89: 10840 | G89: 14 | H89: 10844 | I89: 24 | J89: 10853 | K89: 0 | L89: 11112
A90: 21 | B90: 10959 | C90: 11 | D90: 10968 | E90: 22 | F90: 10975 | G90: 23 | H90: 10982 | I90: 13 | J90: 11004 | K90: 0 | L90: 21221
A91: 21 | B91: 11110 | C91: 11 | D91: 11122 | E91: 22 | F91: 11129 | G91: 23 | H91: 11140 | I91: 13 | J91: 11162 | K91: 0 | L91: 21221
A92: 21 | B92: 11261 | C92: 22 | D92: 11270 | E92: 13 | F92: 11278 | G92: 23 | H92: 11285 | I92: 24 | J92: 11294 | K92: 0 | L92: 22122
A93: 12 | B93: 11402 | C93: 24 | D93: 11410 | E93: 24 | F93: 11418 | G93: 23 | H93: 11424 | I93: 24 | J93: 11437 | K93: 1 | L93: 12222
A94: 12 | B94: 11552 | C94: 13 | D94: 11560 | E94: 24 | F94: 11568 | G94: 14 | H94: 11589 | I94: 24 | J94: 11596 | K94: 0 | L94: 11212
A95: 21 | B95: 11694 | C95: 22 | D95: 11709 | E95: 24 | F95: 11714 | G95: 14 | H95: 11727 | I95: 24 | J95: 11734 | K95: 0 | L95: 22212
A96: 21 | B96: 11832 | C96: 22 | D96: 11848 | E96: 13 | F96: 11858 | G96: 23 | H96: 11866 | I96: 24 | J96: 11873 | K96: 1 | L96: 22122
A97: 12 | B97: 11965 | C97: 13 | D97: 11972 | E97: 13 | F97: 11976 | G97: 14 | H97: 11984 | I97: 13 | J97: 11988 | K97: 0 | L97: 11111
A98: 12 | B98: 12096 | C98: 13 | D98: 12100 | E98: 13 | F98: 12104 | G98: 23 | H98: 12112 | I98: 24 | J98: 12123 | K98: 0 | L98: 11122
A99: 21 | B99: 12229 | C99: 22 | D99: 12233 | E99: 24 | F99: 12238 | G99: 23 | H99: 12245 | I99: 13 | J99: 12261 | K99: 0 | L99: 22221
A100: 12 | B100: 12367 | C100: 13 | D100: 12372 | E100: 24 | F100: 12379 | G100: 23 | H100: 12386 | I100: 13 | J100: 12394 | K100: 0 | L100: 11221
A101: 12 | B101: 12499 | C101: 13 | D101: 12503 | E101: 13 | F101: 12507 | G101: 23 | H101: 12514 | I101: 24 | J101: 12521 | K101: 1 | L101: 11122
A102: 21 | B102: 12627 | C102: 22 | D102: 12632 | E102: 13 | F102: 12642 | G102: 23 | H102: 12665 | I102: 24 | J102: 12685 | K102: 0 | L102: 22122
A103: 12 | B103: 12795 | C103: 13 | D103: 12800 | E103: 24 | F103: 12807 | G103: 23 | H103: 12815 | I103: 13 | J103: 12835 | K103: 0 | L103: 11221
A104: 12 | B104: 12934 | C104: 13 | D104: 12942 | E104: 13 | F104: 12946 | G104: 14 | H104: 12955 | I104: 13 | J104: 12959 | K104: 0 | L104: 11111
A105: 21 | B105: 13059 | C105: 22 | D105: 13063 | E105: 13 | F105: 13074 | G105: 14 | H105: 13078 | I105: 13 | J105: 13082 | K105: 0 | L105: 22111
A106: 21 | B106: 13182 | C106: 22 | D106: 13186 | E106: 24 | F106: 13194 | G106: 14 | H106: 13202 | I106: 24 | J106: 13209 | K106: 1 | L106: 22212
A107: 12 | B107: 13305 | C107: 13 | D107: 13308 | E107: 24 | F107: 13316 | G107: 23 | H107: 13323 | I107: 24 | J107: 13334 | K107: 0 | L107: 11222
A108: 12 | B108: 13434 | C108: 13 | D108: 13438 | E108: 13 | F108: 13442 | G108: 23 | H108: 13450 | I108: 24 | J108: 13460 | K108: 0 | L108: 11122
A109: 21 | B109: 13562 | C109: 11 | D109: 13576 | E109: 22 | F109: 13583 | G109: 14 | H109: 13593 | I109: 24 | J109: 13624 | K109: 0 | L109: 21212
A110: 12 | B110: 13737 | C110: 24 | D110: 13745 | E110: 24 | F110: 13763 | G110: 23 | H110: 13793 | I110: 24 | J110: 13821 | K110: 1 | L110: 12222
A111: 12 | B111: 13915 | C111: 24 | D111: 13931 | E111: 13 | F111: 13941 | G111: 23 | H111: 13949 | I111: 24 | J111: 13956 | K111: 1 | L111: 12122
A112: 12 | B112: 14050 | C112: 13 | D112: 14054 | E112: 24 | F112: 14062 | G112: 23 | H112: 14070 | I112: 24 | J112: 14085 | K112: 0 | L112: 11222
A113: 12 | B113: 14185 | C113: 13 | D113: 14189 | E113: 13 | F113: 14193 | G113: 23 | H113: 14200 | I113: 24 | J113: 14208 | K113: 0 | L113: 11122
A114: 21 | B114: 14313 | C114: 11 | D114: 14325 | E114: 22 | F114: 14339 | G114: 23 | H114: 14488 | I114: 13 | J114: 14506 | K114: 0 | L114: 21221
A115: 21 | B115: 14645 | C115: 11 | D115: 14653 | E115: 11 | F115: 14670 | G115: 21 | H115: 14678 | I115: 22 | J115: 14702 | K115: 0 | L115: 21122
A116: 21 | B116: 14806 | C116: 11 | D116: 14816 | E116: 22 | F116: 14830 | G116: 23 | H116: 14853 | I116: 24 | J116: 14860 | K116: 0 | L116: 21222
A117: 12 | B117: 14971 | C117: 24 | D117: 14978 | E117: 24 | F117: 14985 | G117: 14 | H117: 14995 | I117: 13 | J117: 15001 | K117: 0 | L117: 12211
A118: 21 | B118: 15102 | C118: 11 | D118: 15121 | E118: 22 | F118: 15128 | G118: 14 | H118: 15147 | I118: 24 | J118: 15163 | K118: 0 | L118: 21212
A119: 21 | B119: 15264 | C119: 22 | D119: 15272 | E119: 13 | F119: 15284 | G119: 23 | H119: 15294 | I119: 24 | J119: 15301 | K119: 0 | L119: 22122
A120: 12 | B120: 15412 | C120: 24 | D120: 15419 | E120: 13 | F120: 15432 | G120: 23 | H120: 15467 | I120: 24 | J120: 15473 | K120: 1 | L120: 12122
A121: 12 | B121: 15610 | C121: 13 | D121: 15615 | E121: 24 | F121: 15635 | G121: 23 | H121: 15642 | I121: 24 | J121: 15649 | K121: 0 | L121: 11222
A122: 12 | B122: 16333 | C122: 24 | D122: 16348 | E122: 24 | F122: 16357 | G122: 14 | H122: 16368 | I122: 24 | J122: 16377 | K122: 1 | L122: 12212
A123: 12 | B123: 16473 | C123: 24 | D123: 16534 | E123: 24 | F123: 16539 | G123: 14 | H123: 16551 | I123: 24 | J123: 16558 | K123: 0 | L123: 12212
A124: 12 | B124: 16670 | C124: 13 | D124: 16674 | E124: 13 | F124: 16678 | G124: 23 | H124: 16694 | I124: 13 | J124: 16704 | K124: 0 | L124: 11121
A125: 12 | B125: 16814 | C125: 13 | D125: 16823 | E125: 24 | F125: 16832 | G125: 23 | H125: 16843 | I125: 13 | J125: 16854 | K125: 1 | L125: 11221
A126: 12 | B126: 16947 | C126: 13 | D126: 16950 | E126: 24 | F126: 16963 | G126: 23 | H126: 16968 | I126: 13 | J126: 16977 | K126: 0 | L126: 11221
A127: 21 | B127: 17115 | C127: 22 | D127: 17122 | E127: 13 | F127: 17132 | G127: 23 | H127: 17140 | I127: 13 | J127: 17150 | K127: 0 | L127: 22121
A128: 21 | B128: 17253 | C128: 22 | D128: 17259 | E128: 13 | F128: 17267 | G128: 23 | H128: 17275 | I128: 13 | J128: 17287 | K128: 0 | L128: 22121
A129: 21 | B129: 17404 | C129: 11 | D129: 17418 | E129: 11 | F129: 17435 | G129: 21 | H129: 17451 | I129: 22 | J129: 17457 | K129: 0 | L129: 21122
A130: 21 | B130: 17562 | C130: 11 | D130: 17572 | E130: 11 | F130: 17577 | G130: 21 | H130: 17588 | I130: 22 | J130: 17595 | K130: 1 | L130: 21122
A131: 21 | B131: 17690 | C131: 22 | D131: 17698 | E131: 13 | F131: 17705 | G131: 23 | H131: 17713 | I131: 13 | J131: 17728 | K131: 0 | L131: 22121
A132: 12 | B132: 17828 | C132: 13 | D132: 17831 | E132: 13 | F132: 17835 | G132: 23 | H132: 17844 | I132: 13 | J132: 17854 | K132: 0 | L132: 11121
A133: 12 | B133: 17953 | C133: 13 | D133: 17961 | E133: 13 | F133: 17965 | G133: 14 | H133: 17970 | I133: 24 | J133: 18000 | K133: 0 | L133: 11112
A134: 21 | B134: 18104 | C134: 11 | D134: 18111 | E134: 22 | F134: 18119 | G134: 23 | H134: 18125 | I134: 13 | J134: 18135 | K134: 0 | L134: 21221
A135: 12 | B135: 18238 | C135: 13 | D135: 18252 | E135: 13 | F135: 18256 | G135: 23 | H135: 18266 | I135: 13 | J135: 18276 | K135: 0 | L135: 11121
A136: 21 | B136: 18381 | C136: 11 | D136: 18392 | E136: 22 | F136: 18399 | G136: 23 | H136: 18414 | I136: 13 | J136: 18427 | K136: 0 | L136: 21221
A137: 12 | B137: 18533 | C137: 24 | D137: 18542 | E137: 24 | F137: 18548 | G137: 14 | H137: 18559 | I137: 24 | J137: 18580 | K137: 0 | L137: 12212
A138: 12 | B138: 18705 | C138: 13 | D138: 18726 | E138: 24 | F138: 18734 | G138: 23 | H138: 18746 | I138: 24 | J138: 18762 | K138: 0 | L138: 11222
A139: 21 | B139: 18864 | C139: 11 | D139: 18888 | E139: 22 | F139: 18896 | G139: 23 | H139: 18903 | I139: 24 | J139: 18938 | K139: 0 | L139: 21222
A140: 21 | B140: 19043 | C140: 11 | D140: 19052 | E140: 22 | F140: 19060 | G140: 23 | H140: 19067 | I140: 13 | J140: 19077 | K140: 1 | L140: 21221
A141: 12 | B141: 19172 | C141: 13 | D141: 19176 | E141: 13 | F141: 19180 | G141: 14 | H141: 19188 | I141: 24 | J141: 19197 | K141: 0 | L141: 11112
A142: 12 | B142: 19298 | C142: 13 | D142: 19301 | E142: 13 | F142: 19305 | G142: 14 | H142: 19310 | I142: 24 | J142: 19320 | K142: 0 | L142: 11112
A143: 12 | B143: 19427 | C143: 13 | D143: 19431 | E143: 13 | F143: 19440 | G143: 23 | H143: 19448 | I143: 24 | J143: 19455 | K143: 0 | L143: 11122
A144: 12 | B144: 19577 | C144: 24 | D144: 19585 | E144: 24 | F144: 19597 | G144: 23 | H144: 19604 | I144: 13 | J144: 19615 | K144: 0 | L144: 12221
A145: 12 | B145: 19714 | C145: 13 | D145: 19725 | E145: 13 | F145: 19736 | G145: 14 | H145: 19742 | I145: 13 | J145: 19749 | K145: 0 | L145: 11111
A146: 21 | B146: 19875 | C146: 11 | D146: 19885 | E146: 22 | F146: 19893 | G146: 23 | H146: 19904 | I146: 13 | J146: 19914 | K146: 1 | L146: 21221
A147: 12 | B147: 20008 | C147: 13 | D147: 20015 | E147: 13 | F147: 20019 | G147: 14 | H147: 20024 | I147: 24 | J147: 20034 | K147: 0 | L147: 11112
A148: 12 | B148: 20135 | C148: 13 | D148: 20138 | E148: 13 | F148: 20146 | G148: 14 | H148: 20150 | I148: 13 | J148: 20154 | K148: 0 | L148: 11111
A149: 12 | B149: 20277 | C149: 13 | D149: 20285 | E149: 13 | F149: 20289 | G149: 23 | H149: 20304 | I149: 24 | J149: 20311 | K149: 1 | L149: 11122
A150: 12 | B150: 20403 | C150: 13 | D150: 20417 | E150: 24 | F150: 20428 | G150: 23 | H150: 20433 | I150: 13 | J150: 20440 | K150: 0 | L150: 11221
A151: 12 | B151: 20563 | C151: 13 | D151: 20567 | E151: 13 | F151: 20571 | G151: 23 | H151: 20581 | I151: 24 | J151: 20588 | K151: 0 | L151: 11122
A152: 12 | B152: 20692 | C152: 13 | D152: 20700 | E152: 13 | F152: 20704 | G152: 14 | H152: 20708 | I152: 24 | J152: 20726 | K152: 0 | L152: 11112
A153: 12 | B153: 20824 | C153: 13 | D153: 20834 | E153: 13 | F153: 20843 | G153: 23 | H153: 20852 | I153: 24 | J153: 20864 | K153: 1 | L153: 11122
A154: 12 | B154: 20958 | C154: 13 | D154: 20970 | E154: 13 | F154: 20974 | G154: 14 | H154: 20978 | I154: 24 | J154: 20992 | K154: 0 | L154: 11112
A155: 12 | B155: 21089 | C155: 13 | D155: 21093 | E155: 13 | F155: 21099 | G155: 14 | H155: 21104 | I155: 24 | J155: 21115 | K155: 0 | L155: 11112
A156: 12 | B156: 21225 | C156: 13 | D156: 21229 | E156: 24 | F156: 21239 | G156: 14 | H156: 21250 | I156: 24 | J156: 21259 | K156: 0 | L156: 11212
A157: 12 | B157: 21365 | C157: 13 | D157: 21369 | E157: 13 | F157: 21378 | G157: 23 | H157: 21395 | I157: 24 | J157: 21407 | K157: 0 | L157: 11122
A158: 12 | B158: 21506 | C158: 13 | D158: 21510 | E158: 24 | F158: 21523 | G158: 14 | H158: 21531 | I158: 24 | J158: 21542 | K158: 0 | L158: 11212
A159: 21 | B159: 21644 | C159: 11 | D159: 21653 | E159: 11 | F159: 21665 | G159: 21 | H159: 21680 | I159: 22 | J159: 21686 | K159: 1 | L159: 21122
A160: 21 | B160: 21783 | C160: 11 | D160: 21793 | E160: 11 | F160: 21805 | G160: 21 | H160: 21816 | I160: 11 | J160: 21827 | K160: 1 | L160: 21121
A161: 12 | B161: 21922 | C161: 13 | D161: 21926 | E161: 13 | F161: 21943 | G161: 14 | H161: 21950 | I161: 13 | J161: 21956 | K161: 0 | L161: 11111
A162: 12 | B162: 22057 | C162: 13 | D162: 22065 | E162: 13 | F162: 22068 | G162: 14 | H162: 22073 | I162: 24 | J162: 22082 | K162: 0 | L162: 11112
A163: 12 | B163: 22185 | C163: 13 | D163: 22189 | E163: 24 | F163: 22201 | G163: 14 | H163: 22208 | I163: 24 | J163: 22227 | K163: 0 | L163: 11212
A164: 12 | B164: 22329 | C164: 13 | D164: 22334 | E164: 13 | F164: 22346 | G164: 14 | H164: 22350 | I164: 13 | J164: 22356 | K164: 0 | L164: 11111
A165: 12 | B165: 22455 | C165: 13 | D165: 22460 | E165: 13 | F165: 22467 | G165: 23 | H165: 22475 | I165: 24 | J165: 22485 | K165: 0 | L165: 11122
A166: 12 | B166: 22593 | C166: 13 | D166: 22601 | E166: 13 | F166: 22610 | G166: 23 | H166: 22620 | I166: 24 | J166: 22628 | K166: 0 | L166: 11122
A167: 12 | B167: 22735 | C167: 13 | D167: 22739 | E167: 13 | F167: 22750 | G167: 14 | H167: 22757 | I167: 13 | J167: 22763 | K167: 0 | L167: 11111
A168: 12 | B168: 22873 | C168: 13 | D168: 22877 | E168: 13 | F168: 22885 | G168: 23 | H168: 22895 | I168: 24 | J168: 22903 | K168: 1 | L168: 11122
A169: 12 | B169: 23001 | C169: 13 | D169: 23012 | E169: 13 | F169: 23016 | G169: 23 | H169: 23025 | I169: 13 | J169: 23033 | K169: 0 | L169: 11121
A170: 21 | B170: 23152 | C170: 22 | D170: 23157 | E170: 13 | F170: 23180 | G170: 23 | H170: 23204 | I170: 24 | J170: 23211 | K170: 0 | L170: 22122
A171: 21 | B171: 23363 | C171: 11 | D171: 23374 | E171: 11 | F171: 23379 | G171: 12 | H171: 23387 | I171: 13 | J171: 23392 | K171: 0 | L171: 21111
A172: 12 | B172: 23498 | C172: 13 | D172: 23507 | E172: 13 | F172: 23510 | G172: 23 | H172: 23521 | I172: 13 | J172: 23529 | K172: 0 | L172: 11121
A173: 12 | B173: 23634 | C173: 13 | D173: 23645 | E173: 13 | F173: 23649 | G173: 23 | H173: 23661 | I173: 24 | J173: 23667 | K173: 0 | L173: 11122
A174: 21 | B174: 23767 | C174: 11 | D174: 23780 | E174: 11 | F174: 23784 | G174: 12 | H174: 23788 | I174: 24 | J174: 23799 | K174: 0 | L174: 21112
A175: 12 | B175: 23900 | C175: 13 | D175: 23909 | E175: 13 | F175: 23913 | G175: 14 | H175: 23917 | I175: 13 | J175: 23925 | L175: 11111

Sheet !N401A30.000
A1: Report for:!N401A30.000
A2: Date: | B2: <date>
A3: Hen: | B3: <hen> | F3: Correct Sequence | G3: =Start!J2 -> 21121 | P3: Total Sequences in Data | Q3: =4994-COUNTBLANK(L7:L5000) -> 166 | V3: Total Sequences in Block Data | W3: =COUNTA(L7:L34) -> 28 | AA3: Total Sequences in Block Data | AB3: =COUNTA(L35:L61) -> 27 | AF3: Total Sequences in Block Data | AG3: =COUNTA(L62:L89) -> 28 | AK3: Total Sequences in Block Data | AL3: =COUNTA(L90:L117) -> 28 | AP3: Total Sequences in Block Data | AQ3: =COUNTA(L118:L144) -> 27 | AU3: Total Sequences in Block Data | AV3: =COUNTA(L145:L172) -> 28
P4: Total Sequences in Summary | Q4: =SUM(O7:O38) -> 166 | V4: Total Sequences in Block Summary | W4: =SUM(U7:U38) -> 28 | AA4: Total Sequences in Block Summary | AB4: =SUM(Z7:Z38) -> 27 | AF4: Total Sequences in Block Summary | AG4: =SUM(AE7:AE38) -> 28 | AK4: Total Sequences in Block Summary | AL4: =SUM(AJ7:AJ38) -> 28 | AP4: Total Sequences in Block Summary | AQ4: =SUM(AO7:AO38) -> 27 | AU4: Total Sequences in Block Summary | AV4: =SUM(AT7:AT38) -> 28
T5: Block 1 | Y5: Block 2 | AD5: Block 3 | AI5: Block 4 | AN5: Block 5 | AS5: Block 6
A6: Sequence Component 1 | B6: Time 1 | C6: Sequence Component 2 | D6: Time 2 | E6: Sequence Component 3 | F6: Time 3 | G6: Sequence Component 4 | H6: Time 4 | I6: Sequence Component 5 | J6: Time 5 | K6: Correct? 0=No 1=Yes | L6: Sequence | N6: Frequency | P6: Relative Frequency | Q6: Variability | T6: Frequency | V6: Relative Frequency | W6: Variability | Y6: Frequency | AA6: Relative Frequency | AB6: Variability | AD6: Frequency | AF6: Relative Frequency | AG6: Variability | AI6: Frequency | AK6: Relative Frequency | AL6: Variability | AN6: Frequency | AP6: Relative Frequency | AQ6: Variability | AS6: Frequency | AU6: Relative Frequency | AV6: Variability
A7: 12 | B7: 7 | C7: 13 | D7: 12 | E7: 13 | F7: 19 | G7: 23 | H7: 30 | I7: 24 | J7: 41 | K7: 0 | L7: 11122 | N7: 11111 | O7: =COUNTIF($L$7:$L$500,N7) -> 10 | P7: =O7/$Q$4 -> 0.06024096386 | Q7: =IF(P7=0,0,(P7*((LOG(P7))/LOG(2)))) -> -0.2441633335 | T7: =N7 -> 11111 | U7: =COUNTIF(L7:L34,T7) -> 4 | V7: =U7/(W4-U25) -> 0.1481481481 | W7: =IF(V7=0,0,(V7*((LOG(V7))/LOG(2)))) -> -0.4081314818 | Y7: =N7 -> 11111 | Z7: =COUNTIF(L35:L61,Y7) -> 1 | AA7: =Z7/(AB4-Z25) -> 0.03703703704 | AB7: =IF(AA7=0,0,(AA7*((LOG(AA7))/LOG(2)))) -> -0.1761069445 | AD7: =N7 -> 11111 | AE7: =COUNTIF(L62:L89,AD7) -> 4 | AF7: =AE7/(AG4-AE25) -> 0.1481481481 | AG7: =IF(AF7=0,0,(AF7*((LOG(AF7))/LOG(2)))) -> -0.4081314818 | AI7: =N7 -> 11111 | AJ7: =COUNTIF(L90:L117,AI7) -> 0 | AK7: =AJ7/(AL4-AJ25) -> 0 | AL7: =IF(AK7=0,0,(AK7*((LOG(AK7))/LOG(2)))) -> 0 | AN7: =N7 -> 11111 | AO7: =COUNTIF(L118:L144,AN7) -> 0 | AP7: =AO7/(AQ4-AO25) -> 0 | AQ7: =IF(AP7=0,0,(AP7*((LOG(AP7))/LOG(2)))) -> 0 | AS7: =N7 -> 11111 | AT7: =COUNTIF(L145:L172,AS7) -> 1 | AU7: =AT7/(AV4-AT25) -> 0.03703703704 | AV7: =IF(AU7=0,0,(AU7*((LOG(AU7))/LOG(2)))) -> -0.1761069445
A8: 12 | B8: 139 | C8: 13 | D8: 147 | E8: 13 | F8: 152 | G8: 23 | H8: 163 | I8: 24 | J8: 170 | K8: 0 | L8: 11122 | N8: 11112 | O8: =COUNTIF($L$7:$L$500,N8) -> 4 | P8: =O8/$Q$4 -> 0.02409638554 | Q8: =IF(P8=0,0,(P8*((LOG(P8))/LOG(2)))) -> -0.1295190224 | T8: =N8 -> 11112 | U8: =COUNTIF(L7:L34,T8) -> 0 | V8: =U8/(W4-U25) -> 0 | W8: =IF(V8=0,0,(V8*((LOG(V8))/LOG(2)))) -> 0 | Y8: =N8 -> 11112 | Z8: =COUNTIF(L35:L61,Y8) -> 0 | AA8: =Z8/(AB4-Z25) -> 0 | AB8: =IF(AA8=0,0,(AA8*((LOG(AA8))/LOG(2)))) -> 0 | AD8: =N8 -> 11112 | AE8: =COUNTIF(L62:L89,AD8) -> 2 | AF8: =AE8/(AG4-AE25) -> 0.07407407407 | AG8: =IF(AF8=0,0,(AF8*((LOG(AF8))/LOG(2)))) -> -0.278139815 | AI8: =N8 -> 11112 | AJ8: =COUNTIF(L90:L117,AI8) -> 1 | AK8: =AJ8/(AL4-AJ25) -> 0.03703703704 | AL8: =IF(AK8=0,0,(AK8*((LOG(AK8))/LOG(2)))) -> -0.1761069445 | AN8: =N8 -> 11112 | AO8: =COUNTIF(L118:L144,AN8) -> 0 | AP8: =AO8/(AQ4-AO25) -> 0 | AQ8: =IF(AP8=0,0,(AP8*((LOG(AP8))/LOG(2)))) -> 0 | AS8: =N8 -> 11112 | AT8: =COUNTIF(L145:L172,AS8) -> 1 | AU8: =AT8/(AV4-AT25) -> 0.03703703704 | AV8: =IF(AU8=0,0,(AU8*((LOG(AU8))/LOG(2)))) -> -0.1761069445
A9: 12 | B9: 270 | C9: 13 | D9: 274 | E9: 13 | F9: 284 | G9: 14 | H9: 291 | I9: 13 | J9: 299 | K9: 0 | L9: 11111 | N9: 11121 | O9: =COUNTIF($L$7:$L$500,N9) -> 2 | P9: =O9/$Q$4 -> 0.01204819277 | Q9: =IF(P9=0,0,(P9*((LOG(P9))/LOG(2)))) -> -0.07680770399 | T9: =N9 -> 11121 | U9: =COUNTIF(L7:L34,T9) -> 1 | V9: =U9/(W4-U25) -> 0.03703703704 | W9: =IF(V9=0,0,(V9*((LOG(V9))/LOG(2)))) -> -0.1761069445 | Y9: =N9 -> 11121 | Z9: =COUNTIF(L35:L61,Y9) -> 1 | AA9: =Z9/(AB4-Z25) -> 0.03703703704 | AB9: =IF(AA9=0,0,(AA9*((LOG(AA9))/LOG(2)))) -> -0.1761069445 | AD9: =N9 -> 11121 | AE9: =COUNTIF(L62:L89,AD9) -> 0 | AF9: =AE9/(AG4-AE25) -> 0 | AG9: =IF(AF9=0,0,(AF9*((LOG(AF9))/LOG(2)))) -> 0 | AI9: =N9 -> 11121 | AJ9: =COUNTIF(L90:L117,AI9) -> 0 | AK9: =AJ9/(AL4-AJ25) -> 0 | AL9: =IF(AK9=0,0,(AK9*((LOG(AK9))/LOG(2)))) -> 0 | AN9: =N9 -> 11121 | AO9: =COUNTIF(L118:L144,AN9) -> 0 | AP9: =AO9/(AQ4-AO25) -> 0 | AQ9: =IF(AP9=0,0,(AP9*((LOG(AP9))/LOG(2)))) -> 0 | AS9: =N9 -> 11121 | AT9: =COUNTIF(L145:L172,AS9) -> 0 | AU9: =AT9/(AV4-AT25) -> 0 | AV9: =IF(AU9=0,0,(AU9*((LOG(AU9))/LOG(2)))) -> 0
A10: 21 | B10: 400 | C10: 11 | D10: 411 | E10: 11 | F10: 415 | G10: 12 | H10: 419 | I10: 24 | J10: 427 | K10: 0 | L10: 21112 | N10: 11122 | O10: =COUNTIF($L$7:$L$500,N10) -> 4 | P10: =O10/$Q$4 -> 0.02409638554 | Q10: =IF(P10=0,0,(P10*((LOG(P10))/LOG(2)))) -> -0.1295190224 | T10: =N10 -> 11122 | U10: =COUNTIF(L7:L34,T10) -> 2 | V10: =U10/(W4-U25) -> 0.07407407407 | W10: =IF(V10=0,0,(V10*((LOG(V10))/LOG(2)))) -> -0.278139815 | Y10: =N10 -> 11122 | Z10: =COUNTIF(L35:L61,Y10) -> 0 | AA10: =Z10/(AB4-Z25) -> 0 | AB10: =IF(AA10=0,0,(AA10*((LOG(AA10))/LOG(2)))) -> 0 | AD10: =N10 -> 11122 | AE10: =COUNTIF(L62:L89,AD10) -> 0 | AF10: =AE10/(AG4-AE25) -> 0 | AG10: =IF(AF10=0,0,(AF10*((LOG(AF10))/LOG(2)))) -> 0 | AI10: =N10 -> 11122 | AJ10: =COUNTIF(L90:L117,AI10) -> 1 | AK10: =AJ10/(AL4-AJ25) -> 0.03703703704 | AL10: =IF(AK10=0,0,(AK10*((LOG(AK10))/LOG(2)))) -> -0.1761069445 | AN10: =N10 -> 11122 | AO10: =COUNTIF(L118:L144,AN10) -> 0 | AP10: =AO10/(AQ4-AO25) -> 0 | AQ10: =IF(AP10=0,0,(AP10*((LOG(AP10))/LOG(2)))) -> 0 | AS10: =N10 -> 11122 | AT10: =COUNTIF(L145:L172,AS10) -> 1 | AU10: =AT10/(AV4-AT25) -> 0.03703703704 | AV10: =IF(AU10=0,0,(AU10*((LOG(AU10))/LOG(2)))) -> -0.1761069445
A11: 12 | B11: 543 | C11: 13 | D11: 547 | E11: 13 | F11: 554 | G11: 14 | H11: 559 | I11: 13 | J11: 571 | K11: 0 | L11: 11111 | N11: 11211 | O11: =COUNTIF($L$7:$L$500,N11) -> 0 | P11: =O11/$Q$4 -> 0 | Q11: =IF(P11=0,0,(P11*((LOG(P11))/LOG(2)))) -> 0 | T11: =N11 -> 11211 | U11: =COUNTIF(L7:L34,T11) -> 0 | V11: =U11/(W4-U25) -> 0 | W11: =IF(V11=0,0,(V11*((LOG(V11))/LOG(2)))) -> 0 | Y11: =N11 -> 11211 | Z11: =COUNTIF(L35:L61,Y11) -> 0 | AA11: =Z11/(AB4-Z25) -> 0 | AB11: =IF(AA11=0,0,(AA11*((LOG(AA11))/LOG(2)))) -> 0 | AD11: =N11 -> 11211 | AE11: =COUNTIF(L62:L89,AD11) -> 0 | AF11: =AE11/(AG4-AE25) -> 0 | AG11: =IF(AF11=0,0,(AF11*((LOG(AF11))/LOG(2)))) -> 0 | AI11: =N11 -> 11211 | AJ11: =COUNTIF(L90:L117,AI11) -> 0 | AK11: =AJ11/(AL4-AJ25) -> 0 | AL11: =IF(AK11=0,0,(AK11*((LOG(AK11))/LOG(2)))) -> 0 | AN11: =N11 -> 11211 | AO11: =COUNTIF(L118:L144,AN11) -> 0 | AP11: =AO11/(AQ4-AO25) -> 0 | AQ11: =IF(AP11=0,0,(AP11*((LOG(AP11))/LOG(2)))) -> 0 | AS11: =N11 -> 11211 | AT11: =COUNTIF(L145:L172,AS11) -> 0 | AU11: =AT11/(AV4-AT25) -> 0 | AV11: =IF(AU11=0,0,(AU11*((LOG(AU11))/LOG(2)))) -> 0
A12: 12 | B12: 672 | C12: 13 | D12: 677 | E12: 13 | F12: 698 | G12: 14 | H12: 702 | I12: 13 | J12: 708 | K12: 0 | L12: 11111 | N12: 11212 | O12: =COUNTIF($L$7:$L$500,N12) -> 0 | P12: =O12/$Q$4 -> 0 | Q12: =IF(P12=0,0,(P12*((LOG(P12))/LOG(2)))) -> 0 | T12: =N12 -> 11212 | U12: =COUNTIF(L7:L34,T12) -> 0 | V12: =U12/(W4-U25) -> 0 | W12: =IF(V12=0,0,(V12*((LOG(V12))/LOG(2)))) -> 0 | Y12: =N12 -> 11212 | Z12: =COUNTIF(L35:L61,Y12) -> 0 | AA12: =Z12/(AB4-Z25) -> 0 | AB12: =IF(AA12=0,0,(AA12*((LOG(AA12))/LOG(2)))) -> 0 | AD12: =N12 -> 11212 | AE12: =COUNTIF(L62:L89,AD12) -> 0 | AF12: =AE12/(AG4-AE25) -> 0 | AG12: =IF(AF12=0,0,(AF12*((LOG(AF12))/LOG(2)))) -> 0 | AI12: =N12 -> 11212 | AJ12: =COUNTIF(L90:L117,AI12) -> 0 | AK12: =AJ12/(AL4-AJ25) -> 0 | AL12: =IF(AK12=0,0,(AK12*((LOG(AK12))/LOG(2)))) -> 0 | AN12: =N12 -> 11212 | AO12: =COUNTIF(L118:L144,AN12) -> 0 | AP12: =AO12/(AQ4-AO25) -> 0 | AQ12: =IF(AP12=0,0,(AP12*((LOG(AP12))/LOG(2)))) -> 0 | AS12: =N12 -> 11212 | AT12: =COUNTIF(L145:L172,AS12) -> 0 | AU12: =AT12/(AV4-AT25) -> 0 | AV12: =IF(AU12=0,0,(AU12*((LOG(AU12))/LOG(2)))) -> 0
A13: 21 | B13: 810 | C13: 22 | D13: 814 | E13: 13 | F13: 823 | G13: 14 | H13: 829 | I13: 13 | J13: 834 | K13: 0 | L13: 22111 | N13: 11221 | O13: =COUNTIF($L$7:$L$500,N13) -> 1 | P13: =O13/$Q$4 -> 0.006024096386 | Q13: =IF(P13=0,0,(P13*((LOG(P13))/LOG(2)))) -> -0.04442794838 | T13: =N13 -> 11221 | U13: =COUNTIF(L7:L34,T13) -> 0 | V13: =U13/(W4-U25) -> 0 | W13: =IF(V13=0,0,(V13*((LOG(V13))/LOG(2)))) -> 0 | Y13: =N13 -> 11221 | Z13: =COUNTIF(L35:L61,Y13) -> 0 | AA13: =Z13/(AB4-Z25) -> 0 | AB13: =IF(AA13=0,0,(AA13*((LOG(AA13))/LOG(2)))) -> 0 | AD13: =N13 -> 11221 | AE13: =COUNTIF(L62:L89,AD13) -> 0 | AF13: =AE13/(AG4-AE25) -> 0 | AG13: =IF(AF13=0,0,(AF13*((LOG(AF13))/LOG(2)))) -> 0 | AI13: =N13 -> 11221 | AJ13: =COUNTIF(L90:L117,AI13) -> 0 | AK13: =AJ13/(AL4-AJ25) -> 0 | AL13: =IF(AK13=0,0,(AK13*((LOG(AK13))/LOG(2)))) -> 0 | AN13: =N13 -> 11221 | AO13: =COUNTIF(L118:L144,AN13) -> 1 | AP13: =AO13/(AQ4-AO25) -> 0.03846153846 | AQ13: =IF(AP13=0,0,(AP13*((LOG(AP13))/LOG(2)))) -> -0.180786143 | AS13: =N13 -> 11221 | AT13: =COUNTIF(L145:L172,AS13) -> 0 | AU13: =AT13/(AV4-AT25) -> 0 | AV13: =IF(AU13=0,0,(AU13*((LOG(AU13))/LOG(2)))) -> 0
A14: 21 | B14: 934 | C14: 22 | D14: 939 | E14: 13 | F14: 950 | G14: 14 | H14: 954 | I14: 24 | J14: 963 | K14: 0 | L14: 22112 | N14: 11222 | O14: =COUNTIF($L$7:$L$500,N14) -> 4 | P14: =O14/$Q$4 -> 0.02409638554 | Q14: =IF(P14=0,0,(P14*((LOG(P14))/LOG(2)))) -> -0.1295190224 | T14: =N14 -> 11222 | U14: =COUNTIF(L7:L34,T14) -> 0 | V14: =U14/(W4-U25) -> 0 | W14: =IF(V14=0,0,(V14*((LOG(V14))/LOG(2)))) -> 0 | Y14: =N14 -> 11222 | Z14: =COUNTIF(L35:L61,Y14) -> 0 | AA14: =Z14/(AB4-Z25) -> 0 | AB14: =IF(AA14=0,0,(AA14*((LOG(AA14))/LOG(2)))) -> 0 | AD14: =N14 -> 11222 | AE14: =COUNTIF(L62:L89,AD14) -> 1 | AF14: =AE14/(AG4-AE25) -> 0.03703703704 | AG14: =IF(AF14=0,0,(AF14*((LOG(AF14))/LOG(2)))) -> -0.1761069445 | AI14: =N14 -> 11222 | AJ14: =COUNTIF(L90:L117,AI14) -> 1 | AK14: =AJ14/(AL4-AJ25) -> 0.03703703704 | AL14: =IF(AK14=0,0,(AK14*((LOG(AK14))/LOG(2)))) -> -0.1761069445 | AN14: =N14 -> 11222 | AO14: =COUNTIF(L118:L144,AN14) -> 1 | AP14: =AO14/(AQ4-AO25) -> 0.03846153846 | AQ14: =IF(AP14=0,0,(AP14*((LOG(AP14))/LOG(2)))) -> -0.180786143 | AS14: =N14 -> 11222 | AT14: =COUNTIF(L145:L172,AS14) -> 1 | AU14: =AT14/(AV4-AT25) -> 0.03703703704 | AV14: =IF(AU14=0,0,(AU14*((LOG(AU14))/LOG(2)))) -> -0.1761069445
A15: 21 | B15: 1074 | C15: 11 | D15: 1088 | E15: 11 | F15: 1092 | G15: 12 | H15: 1110 | I15: 13 | J15: 1116 | K15: 1 | L15: 21111 | N15: 12111 | O15: =COUNTIF($L$7:$L$500,N15) -> 0 | P15: =O15/$Q$4 -> 0 | Q15: =IF(P15=0,0,(P15*((LOG(P15))/LOG(2)))) -> 0 | T15: =N15 -> 12111 | U15: =COUNTIF(L7:L34,T15) -> 0 | V15: =U15/(W4-U25) -> 0 | W15: =IF(V15=0,0,(V15*((LOG(V15))/LOG(2)))) -> 0 | Y15: =N15 -> 12111 | Z15: =COUNTIF(L35:L61,Y15) -> 0 | AA15: =Z15/(AB4-Z25) -> 0 | AB15: =IF(AA15=0,0,(AA15*((LOG(AA15))/LOG(2)))) -> 0 | AD15: =N15 -> 12111 | AE15: =COUNTIF(L62:L89,AD15) -> 0 | AF15: =AE15/(AG4-AE25) -> 0 | AG15: =IF(AF15=0,0,(AF15*((LOG(AF15))/LOG(2)))) -> 0 | AI15: =N15 -> 12111 | AJ15: =COUNTIF(L90:L117,AI15) -> 0 | AK15: =AJ15/(AL4-AJ25) -> 0 | AL15: =IF(AK15=0,0,(AK15*((LOG(AK15))/LOG(2)))) -> 0 | AN15: =N15 -> 12111 | AO15: =COUNTIF(L118:L144,AN15) -> 0 | AP15: =AO15/(AQ4-AO25) -> 0 | AQ15: =IF(AP15=0,0,(AP15*((LOG(AP15))/LOG(2)))) -> 0 | AS15: =N15 -> 12111 | AT15: =COUNTIF(L145:L172,AS15) -> 0 | AU15: =AT15/(AV4-AT25) -> 0 | AV15: =IF(AU15=0,0,(AU15*((LOG(AU15))/LOG(2)))) -> 0
A16: 12 | B16: 1209 | C16: 13 | D16: 1220 | E16: 13 | F16: 1225 | G16: 14 | H16: 1229 | I16: 13 | J16: 1238 | K16: 0 | L16: 11111 | N16: 12112 | O16: =COUNTIF($L$7:$L$500,N16) -> 1 | P16: =O16/$Q$4 -> 0.006024096386 | Q16: =IF(P16=0,0,(P16*((LOG(P16))/LOG(2)))) -> -0.04442794838 | T16: =N16 -> 12112 | U16: =COUNTIF(L7:L34,T16) -> 0 | V16: =U16/(W4-U25) -> 0 | W16: =IF(V16=0,0,(V16*((LOG(V16))/LOG(2)))) -> 0 | Y16: =N16 -> 12112 | Z16: =COUNTIF(L35:L61,Y16) -> 0 | AA16: =Z16/(AB4-Z25) -> 0 | AB16: =IF(AA16=0,0,(AA16*((LOG(AA16))/LOG(2)))) -> 0 | AD16: =N16 -> 12112 | AE16: =COUNTIF(L62:L89,AD16) -> 1 | AF16: =AE16/(AG4-AE25) -> 0.03703703704 | AG16: =IF(AF16=0,0,(AF16*((LOG(AF16))/LOG(2)))) -> -0.1761069445 | AI16: =N16 -> 12112 | AJ16: =COUNTIF(L90:L117,AI16) -> 0 | AK16: =AJ16/(AL4-AJ25) -> 0 | AL16: =IF(AK16=0,0,(AK16*((LOG(AK16))/LOG(2)))) -> 0 | AN16: =N16 -> 12112 | AO16: =COUNTIF(L118:L144,AN16) -> 0 | AP16: =AO16/(AQ4-AO25) -> 0 | AQ16: =IF(AP16=0,0,(AP16*((LOG(AP16))/LOG(2)))) -> 0 | AS16: =N16 -> 12112 | AT16: =COUNTIF(L145:L172,AS16) -> 0 | AU16: =AT16/(AV4-AT25) -> 0 | AV16: =IF(AU16=0,0,(AU16*((LOG(AU16))/LOG(2)))) -> 0
A17: 21 | B17: 1340 | C17: 11 | D17: 1373 | E17: 11 | F17: 1377 | G17: 12 | H17: 1384 | I17: 13 | J17: 1391 | K17: 0 | L17: 21111 | N17: 12121 | O17: =COUNTIF($L$7:$L$500,N17) -> 1 | P17: =O17/$Q$4 -> 0.006024096386 | Q17: =IF(P17=0,0,(P17*((LOG(P17))/LOG(2)))) -> -0.04442794838 | T17: =N17 -> 12121 | U17: =COUNTIF(L7:L34,T17) -> 0 | V17: =U17/(W4-U25) -> 0 | W17: =IF(V17=0,0,(V17*((LOG(V17))/LOG(2)))) -> 0 | Y17: =N17 -> 12121 | Z17: =COUNTIF(L35:L61,Y17) -> 1 | AA17: =Z17/(AB4-Z25) -> 0.03703703704 | AB17: =IF(AA17=0,0,(AA17*((LOG(AA17))/LOG(2)))) -> -0.1761069445 | AD17: =N17 -> 12121 | AE17: =COUNTIF(L62:L89,AD17) -> 0 | AF17: =AE17/(AG4-AE25) -> 0 | AG17: =IF(AF17=0,0,(AF17*((LOG(AF17))/LOG(2)))) -> 0 | AI17: =N17 -> 12121 | AJ17: =COUNTIF(L90:L117,AI17) -> 0 | AK17: =AJ17/(AL4-AJ25) -> 0 | AL17: =IF(AK17=0,0,(AK17*((LOG(AK17))/LOG(2)))) -> 0 | AN17: =N17 -> 12121 | AO17: =COUNTIF(L118:L144,AN17) -> 0 | AP17: =AO17/(AQ4-AO25) -> 0 | AQ17: =IF(AP17=0,0,(AP17*((LOG(AP17))/LOG(2)))) -> 0 | AS17: =N17 -> 12121 | AT17: =COUNTIF(L145:L172,AS17) -> 0 | AU17: =AT17/(AV4-AT25) -> 0 | AV17: =IF(AU17=0,0,(AU17*((LOG(AU17))/LOG(2)))) -> 0
A18: 21 | B18: 1500 | C18: 22 | D18: 1510 | E18: 24 | F18: 1517 | G18: 14 | H18: 1528 | I18: 13 | J18: 1533 | K18: 1 | L18: 22211 | N18: 12122 | O18: =COUNTIF($L$7:$L$500,N18) -> 0 | P18: =O18/$Q$4 -> 0 | Q18: =IF(P18=0,0,(P18*((LOG(P18))/LOG(2)))) -> 0 | T18: =N18 -> 12122 | U18: =COUNTIF(L7:L34,T18) -> 0 | V18: =U18/(W4-U25) -> 0 | W18: =IF(V18=0,0,(V18*((LOG(V18))/LOG(2)))) -> 0 | Y18: =N18 -> 12122 | Z18: =COUNTIF(L35:L61,Y18) -> 0 | AA18: =Z18/(AB4-Z25) -> 0 | AB18: =IF(AA18=0,0,(AA18*((LOG(AA18))/LOG(2)))) -> 0 | AD18: =N18 -> 12122 | AE18: =COUNTIF(L62:L89,AD18) -> 0 | AF18: =AE18/(AG4-AE25) -> 0 | AG18: =IF(AF18=0,0,(AF18*((LOG(AF18))/LOG(2)))) -> 0 | AI18: =N18 -> 12122 | AJ18: =COUNTIF(L90:L117,AI18) -> 0 | AK18: =AJ18/(AL4-AJ25) -> 0 | AL18: =IF(AK18=0,0,(AK18*((LOG(AK18))/LOG(2)))) -> 0 | AN18: =N18 -> 12122 | AO18: =COUNTIF(L118:L144,AN18) -> 0 | AP18: =AO18/(AQ4-AO25) -> 0 | AQ18: =IF(AP18=0,0,(AP18*((LOG(AP18))/LOG(2)))) -> 0 | AS18: =N18 -> 12122 | AT18: =COUNTIF(L145:L172,AS18) -> 0 | AU18: =AT18/(AV4-AT25) -> 0 | AV18: =IF(AU18=0,0,(AU18*((LOG(AU18))/LOG(2)))) -> 0
A19: 12 | B19: 1650 | C19: 13 | D19: 1657 | E19: 13 | F19: 1665 | G19: 23 | H19: 1682 | I19: 13 | J19: 1691 | K19: 0 | L19: 11121 | N19: 12211 | O19: =COUNTIF($L$7:$L$500,N19) -> 0 | P19: =O19/$Q$4 -> 0 | Q19: =IF(P19=0,0,(P19*((LOG(P19))/LOG(2)))) -> 0 | T19: =N19 -> 12211 | U19: =COUNTIF(L7:L34,T19) -> 0 | V19: =U19/(W4-U25) -> 0 | W19: =IF(V19=0,0,(V19*((LOG(V19))/LOG(2)))) -> 0 | Y19: =N19 -> 12211 | Z19: =COUNTIF(L35:L61,Y19) -> 0 | AA19: =Z19/(AB4-Z25) -> 0 | AB19: =IF(AA19=0,0,(AA19*((LOG(AA19))/LOG(2)))) -> 0 | AD19: =N19 -> 12211 | AE19: =COUNTIF(L62:L89,AD19) -> 0 | AF19: =AE19/(AG4-AE25) -> 0 | AG19: =IF(AF19=0,0,(AF19*((LOG(AF19))/LOG(2)))) -> 0 | AI19: =N19 -> 12211 | AJ19: =COUNTIF(L90:L117,AI19) -> 0 | AK19: =AJ19/(AL4-AJ25) -> 0 | AL19: =IF(AK19=0,0,(AK19*((LOG(AK19))/LOG(2)))) -> 0 | AN19: =N19 -> 12211 | AO19: =COUNTIF(L118:L144,AN19) -> 0 | AP19: =AO19/(AQ4-AO25) -> 0 | AQ19: =IF(AP19=0,0,(AP19*((LOG(AP19))/LOG(2)))) -> 0 | AS19: =N19 -> 12211 | AT19: =COUNTIF(L145:L172,AS19) -> 0 | AU19: =AT19/(AV4-AT25) -> 0 | AV19: =IF(AU19=0,0,(AU19*((LOG(AU19))/LOG(2)))) -> 0
A20: 21 | B20: 1796 | C20: 11 | D20: 1825 | E20: 22 | F20: 1864 | G20: 23 | H20: 1872 | I20: 13 | J20: 1887 | K20: 0 | L20: 21221 | N20: 12212 | O20: =COUNTIF($L$7:$L$500,N20) -> 1 | P20: =O20/$Q$4 -> 0.006024096386 | Q20: =IF(P20=0,0,(P20*((LOG(P20))/LOG(2)))) -> -0.04442794838 | T20: =N20 -> 12212 | U20: =COUNTIF(L7:L34,T20) -> 1 | V20: =U20/(W4-U25) -> 0.03703703704 | W20: =IF(V20=0,0,(V20*((LOG(V20))/LOG(2)))) -> -0.1761069445 | Y20: =N20 -> 12212 | Z20: =COUNTIF(L35:L61,Y20) -> 0 | AA20: =Z20/(AB4-Z25) -> 0 | AB20: =IF(AA20=0,0,(AA20*((LOG(AA20))/LOG(2)))) -> 0 | AD20: =N20 -> 12212 | AE20: =COUNTIF(L62:L89,AD20) -> 0 | AF20: =AE20/(AG4-AE25) -> 0 | AG20: =IF(AF20=0,0,(AF20*((LOG(AF20))/LOG(2)))) -> 0 | AI20: =N20 -> 12212 | AJ20: =COUNTIF(L90:L117,AI20) -> 0 | AK20: =AJ20/(AL4-AJ25) -> 0 | AL20: =IF(AK20=0,0,(AK20*((LOG(AK20))/LOG(2)))) -> 0 | AN20: =N20 -> 12212 | AO20: =COUNTIF(L118:L144,AN20) -> 0 | AP20: =AO20/(AQ4-AO25) -> 0 | AQ20: =IF(AP20=0,0,(AP20*((LOG(AP20))/LOG(2)))) -> 0 | AS20: =N20 -> 12212 | AT20: =COUNTIF(L145:L172,AS20) -> 0 | AU20: =AT20/(AV4-AT25) -> 0 | AV20: =IF(AU20=0,0,(AU20*((LOG(AU20))/LOG(2)))) -> 0
A21: 21 | B21: 1993 | C21: 22 | D21: 1998 | E21: 13 | F21: 2008 | G21: 14 | H21: 2012 | I21: 13 | J21: 2016 | K21: 0 | L21: 22111 | N21: 12221 | O21: =COUNTIF($L$7:$L$500,N21) -> 3 | P21: =O21/$Q$4 -> 0.01807228916 | Q21: =IF(P21=0,0,(P21*((LOG(P21))/LOG(2)))) -> -0.1046399445 | T21: =N21 -> 12221 | U21: =COUNTIF(L7:L34,T21) -> 0 | V21: =U21/(W4-U25) -> 0 | W21: =IF(V21=0,0,(V21*((LOG(V21))/LOG(2)))) -> 0 | Y21: =N21 -> 12221 | Z21: =COUNTIF(L35:L61,Y21) -> 1 | AA21: =Z21/(AB4-Z25) -> 0.03703703704 | AB21: =IF(AA21=0,0,(AA21*((LOG(AA21))/LOG(2)))) -> -0.1761069445 | AD21: =N21 -> 12221 | AE21: =COUNTIF(L62:L89,AD21) -> 2 | AF21: =AE21/(AG4-AE25) -> 0.07407407407 | AG21: =IF(AF21=0,0,(AF21*((LOG(AF21))/LOG(2)))) -> -0.278139815 | AI21: =N21 -> 12221 | AJ21: =COUNTIF(L90:L117,AI21) -> 0 | AK21: =AJ21/(AL4-AJ25) -> 0 | AL21: =IF(AK21=0,0,(AK21*((LOG(AK21))/LOG(2)))) -> 0 | AN21: =N21 -> 12221 | AO21: =COUNTIF(L118:L144,AN21) -> 0 | AP21: =AO21/(AQ4-AO25) -> 0 | AQ21: =IF(AP21=0,0,(AP21*((LOG(AP21))/LOG(2)))) -> 0 | AS21: =N21 -> 12221 | AT21: =COUNTIF(L145:L172,AS21) -> 0 | AU21: =AT21/(AV4-AT25) -> 0 | AV21: =IF(AU21=0,0,(AU21*((LOG(AU21))/LOG(2)))) -> 0
A22: 21 | B22: 2139 | C22: 22 | D22: 2145 | E22: 13 | F22: 2169 | G22: 23 | H22: 2177 | I22: 24 | J22: 2211 | K22: 1 | L22: 22122 | N22: 12222 | O22: =COUNTIF($L$7:$L$500,N22) -> 0 | P22: =O22/$Q$4 -> 0 | Q22: =IF(P22=0,0,(P22*((LOG(P22))/LOG(2)))) -> 0 | T22: =N22 -> 12222 | U22: =COUNTIF(L7:L34,T22) -> 0 | V22: =U22/(W4-U25) -> 0 | W22: =IF(V22=0,0,(V22*((LOG(V22))/LOG(2)))) -> 0 | Y22: =N22 -> 12222 | Z22: =COUNTIF(L35:L61,Y22) -> 0 | AA22: =Z22/(AB4-Z25) -> 0 | AB22: =IF(AA22=0,0,(AA22*((LOG(AA22))/LOG(2)))) -> 0 | AD22: =N22 -> 12222 | AE22: =COUNTIF(L62:L89,AD22) -> 0 | AF22: =AE22/(AG4-AE25) -> 0 | AG22: =IF(AF22=0,0,(AF22*((LOG(AF22))/LOG(2)))) -> 0 | AI22: =N22 -> 12222 | AJ22: =COUNTIF(L90:L117,AI22) -> 0 | AK22: =AJ22/(AL4-AJ25) -> 0 | AL22: =IF(AK22=0,0,(AK22*((LOG(AK22))/LOG(2)))) -> 0 | AN22: =N22 -> 12222 | AO22: =COUNTIF(L118:L144,AN22) -> 0 | AP22: =AO22/(AQ4-AO25) -> 0 | AQ22: =IF(AP22=0,0,(AP22*((LOG(AP22))/LOG(2)))) -> 0 | AS22: =N22 -> 12222 | AT22: =COUNTIF(L145:L172,AS22) -> 0 | AU22: =AT22/(AV4-AT25) -> 0 | AV22: =IF(AU22=0,0,(AU22*((LOG(AU22))/LOG(2)))) -> 0
A23: 21 | B23: 2320 | C23: 11 | D23: 2332 | E23: 11 | F23: 2336 | G23: 12 | H23: 2340 | I23: 24 | J23: 2351 | K23: 0 | L23: 21112 | N23: 21111 | O23: =COUNTIF($L$7:$L$500,N23) -> 33 | P23: =O23/$Q$4 -> 0.1987951807 | Q23: =IF(P23=0,0,(P23*((LOG(P23))/LOG(2)))) -> -0.463321056 | T23: =N23 -> 21111 | U23: =COUNTIF(L7:L34,T23) -> 2 | V23: =U23/(W4-U25) -> 0.07407407407 | W23: =IF(V23=0,0,(V23*((LOG(V23))/LOG(2)))) -> -0.278139815 | Y23: =N23 -> 21111 | Z23: =COUNTIF(L35:L61,Y23) -> 0 | AA23: =Z23/(AB4-Z25) -> 0 | AB23: =IF(AA23=0,0,(AA23*((LOG(AA23))/LOG(2)))) -> 0 | AD23: =N23 -> 21111 | AE23: =COUNTIF(L62:L89,AD23) -> 5 | AF23: =AE23/(AG4-AE25) -> 0.1851851852 | AG23: =IF(AF23=0,0,(AF23*((LOG(AF23))/LOG(2)))) -> -0.4505480384 | AI23: =N23 -> 21111 | AJ23: =COUNTIF(L90:L117,AI23) -> 6 | AK23: =AJ23/(AL4-AJ25) -> 0.2222222222 | AL23: =IF(AK23=0,0,(AK23*((LOG(AK23))/LOG(2)))) -> -0.4822055559 | AN23: =N23 -> 21111 | AO23: =COUNTIF(L118:L144,AN23) -> 9 | AP23: =AO23/(AQ4-AO25) -> 0.3461538462 | AQ23: =IF(AP23=0,0,(AP23*((LOG(AP23))/LOG(2)))) -> -0.5297935558 | AS23: =N23 -> 21111 | AT23: =COUNTIF(L145:L172,AS23) -> 11 | AU23: =AT23/(AV4-AT25) -> 0.4074074074 | AV23: =IF(AU23=0,0,(AU23*((LOG(AU23))/LOG(2)))) -> -0.5277783229
A24: 21 | B24: 2456 | C24: 22 | D24: 2462 | E24: 13 | F24: 2476 | G24: 14 | H24: 2479 | I24: 24 | J24: 2489 | K24: 0 | L24: 22112 | N24: 21112 | O24: =COUNTIF($L$7:$L$500,N24) -> 21 | P24: =O24/$Q$4 -> 0.1265060241 | Q24: =IF(P24=0,0,(P24*((LOG(P24))/LOG(2)))) -> -0.3773323023 | T24: =N24 -> 21112 | U24: =COUNTIF(L7:L34,T24) -> 4 | V24: =U24/(W4-U25) -> 0.1481481481 | W24: =IF(V24=0,0,(V24*((LOG(V24))/LOG(2)))) -> -0.4081314818 | Y24: =N24 -> 21112 | Z24: =COUNTIF(L35:L61,Y24) -> 1 | AA24: =Z24/(AB4-Z25) -> 0.03703703704 | AB24: =IF(AA24=0,0,(AA24*((LOG(AA24))/LOG(2)))) -> -0.1761069445 | AD24: =N24 -> 21112 | AE24: =COUNTIF(L62:L89,AD24) -> 3 | AF24: =AE24/(AG4-AE25) -> 0.1111111111 | AG24: =IF(AF24=0,0,(AF24*((LOG(AF24))/LOG(2)))) -> -0.352213889 | AI24: =N24 -> 21112 | AJ24: =COUNTIF(L90:L117,AI24) -> 4 | AK24: =AJ24/(AL4-AJ25) -> 0.1481481481 | AL24: =IF(AK24=0,0,(AK24*((LOG(AK24))/LOG(2)))) -> -0.4081314818 | AN24: =N24 -> 21112 | AO24: =COUNTIF(L118:L144,AN24) -> 4 | AP24: =AO24/(AQ4-AO25) -> 0.1538461538 | AQ24: =IF(AP24=0,0,(AP24*((LOG(AP24))/LOG(2)))) -> -0.4154522643 | AS24: =N24 -> 21112 | AT24: =COUNTIF(L145:L172,AS24) -> 5 | AU24: =AT24/(AV4-AT25) -> 0.1851851852 | AV24: =IF(AU24=0,0,(AU24*((LOG(AU24))/LOG(2)))) -> -0.4505480384
A25: 21 | B25: 2591 | C25: 22 | D25: 2598 | E25: 13 | F25: 2618 | G25: 14 | H25: 2622 | I25: 13 | J25: 2626 | K25: 0 | L25: 22111 | N25: 21121 | O25: =COUNTIF($L$7:$L$500,N25) -> 5 | P25: =O25/$Q$4 -> 0.03012048193 | Q25: =IF(P25=0,0,(P25*((LOG(P25))/LOG(2)))) -> -0.1522021487 | T25: =N25 -> 21121 | U25: =COUNTIF(L7:L34,T25) -> 1 | Y25: =N25 -> 21121 | Z25: =COUNTIF(L35:L61,Y25) -> 0 | AD25: =N25 -> 21121 | AE25: =COUNTIF(L62:L89,AD25) -> 1 | AI25: =N25 -> 21121 | AJ25: =COUNTIF(L90:L117,AI25) -> 1 | AN25: =N25 -> 21121 | AO25: =COUNTIF(L118:L144,AN25) -> 1 | AS25: =N25 -> 21121 | AT25: =COUNTIF(L145:L172,AS25) -> 1
A26: 21 | B26: 2739 | C26: 11 | D26: 2759 | E26: 22 | F26: 2768 | G26: 23 | H26: 2775 | I26: 24 | J26: 2782 | K26: 0 | L26: 21222 | N26: 21122 | O26: =COUNTIF($L$7:$L$500,N26) -> 7 | P26: =O26/$Q$4 -> 0.0421686747 | Q26: =IF(P26=0,0,(P26*((LOG(P26))/LOG(2)))) -> -0.1926132022 | T26: =N26 -> 21122 | U26: =COUNTIF(L7:L34,T26) -> 1 | V26: =U26/(W4-U25) -> 0.03703703704 | W26: =IF(V26=0,0,(V26*((LOG(V26))/LOG(2)))) -> -0.1761069445 | Y26: =N26 -> 21122 | Z26: =COUNTIF(L35:L61,Y26) -> 3 | AA26: =Z26/(AB4-Z25) -> 0.1111111111 | AB26: =IF(AA26=0,0,(AA26*((LOG(AA26))/LOG(2)))) -> -0.352213889 | AD26: =N26 -> 21122 | AE26: =COUNTIF(L62:L89,AD26) -> 1 | AF26: =AE26/(AG4-AE25) -> 0.03703703704 | AG26: =IF(AF26=0,0,(AF26*((LOG(AF26))/LOG(2)))) -> -0.1761069445 | AI26: =N26 -> 21122 | AJ26: =COUNTIF(L90:L117,AI26) -> 0 | AK26: =AJ26/(AL4-AJ25) -> 0 | AL26: =IF(AK26=0,0,(AK26*((LOG(AK26))/LOG(2)))) -> 0 | AN26: =N26 -> 21122 | AO26: =COUNTIF(L118:L144,AN26) -> 2 | AP26: =AO26/(AQ4-AO25) -> 0.07692307692 | AQ26: =IF(AP26=0,0,(AP26*((LOG(AP26))/LOG(2)))) -> -0.2846492091 | AS26: =N26 -> 21122 | AT26: =COUNTIF(L145:L172,AS26) -> 0 | AU26: =AT26/(AV4-AT25) -> 0 | AV26: =IF(AU26=0,0,(AU26*((LOG(AU26))/LOG(2)))) -> 0
A27: 21 | B27: 2894 | C27: 11 | D27: 2905 | E27: 11 | F27: 2910 | G27: 12 | H27: 2913 | I27: 24 | J27: 2922 | K27: 1 | L27: 21112 | N27: 21211 | O27: =COUNTIF($L$7:$L$500,N27) -> 3 | P27: =O27/$Q$4 -> 0.01807228916 | Q27: =IF(P27=0,0,(P27*((LOG(P27))/LOG(2)))) -> -0.1046399445 | T27: =N27 -> 21211 | U27: =COUNTIF(L7:L34,T27) -> 2 | V27: =U27/(W4-U25) -> 0.07407407407 | W27: =IF(V27=0,0,(V27*((LOG(V27))/LOG(2)))) -> -0.278139815 | Y27: =N27 -> 21211 | Z27: =COUNTIF(L35:L61,Y27) -> 1 | AA27: =Z27/(AB4-Z25) -> 0.03703703704 | AB27: =IF(AA27=0,0,(AA27*((LOG(AA27))/LOG(2)))) -> -0.1761069445 | AD27: =N27 -> 21211 | AE27: =COUNTIF(L62:L89,AD27) -> 0 | AF27: =AE27/(AG4-AE25) -> 0 | AG27: =IF(AF27=0,0,(AF27*((LOG(AF27))/LOG(2)))) -> 0 | AI27: =N27 -> 21211 | AJ27: =COUNTIF(L90:L117,AI27) -> 0 | AK27: =AJ27/(AL4-AJ25) -> 0 | AL27: =IF(AK27=0,0,(AK27*((LOG(AK27))/LOG(2)))) -> 0 | AN27: =N27 -> 21211 | AO27: =COUNTIF(L118:L144,AN27) -> 0 | AP27: =AO27/(AQ4-AO25) -> 0 | AQ27: =IF(AP27=0,0,(AP27*((LOG(AP27))/LOG(2)))) -> 0 | AS27: =N27 -> 21211 | AT27: =COUNTIF(L145:L172,AS27) -> 0 | AU27: =AT27/(AV4-AT25) -> 0 | AV27: =IF(AU27=0,0,(AU27*((LOG(AU27))/LOG(2)))) -> 0
A28: 12 | B28: 3058 | C28: 24 | D28: 3080 | E28: 24 | F28: 3095 | G28: 14 | H28: 3115 | I28: 24 | J28: 3132 | K28: 0 | L28: 12212 | N28: 21212 | O28: =COUNTIF($L$7:$L$500,N28) -> 6 | P28: =O28/$Q$4 -> 0.03614457831 | Q28: =IF(P28=0,0,(P28*((LOG(P28))/LOG(2)))) -> -0.1731353107 | T28: =N28 -> 21212 | U28: =COUNTIF(L7:L34,T28) -> 0 | V28: =U28/(W4-U25) -> 0 | W28: =IF(V28=0,0,(V28*((LOG(V28))/LOG(2)))) -> 0 | Y28: =N28 -> 21212 | Z28: =COUNTIF(L35:L61,Y28) -> 2 | AA28: =Z28/(AB4-Z25) -> 0.07407407407 | AB28: =IF(AA28=0,0,(AA28*((LOG(AA28))/LOG(2)))) -> -0.278139815 | AD28: =N28 -> 21212 | AE28: =COUNTIF(L62:L89,AD28) -> 3 | AF28: =AE28/(AG4-AE25) -> 0.1111111111 | AG28: =IF(AF28=0,0,(AF28*((LOG(AF28))/LOG(2)))) -> -0.352213889 | AI28: =N28 -> 21212 | AJ28: =COUNTIF(L90:L117,AI28) -> 1 | AK28: =AJ28/(AL4-AJ25) -> 0.03703703704 | AL28: =IF(AK28=0,0,(AK28*((LOG(AK28))/LOG(2)))) -> -0.1761069445 | AN28: =N28 -> 21212 | AO28: =COUNTIF(L118:L144,AN28) -> 0 | AP28: =AO28/(AQ4-AO25) -> 0 | AQ28: =IF(AP28=0,0,(AP28*((LOG(AP28))/LOG(2)))) -> 0 | AS28: =N28 -> 21212 | AT28: =COUNTIF(L145:L172,AS28) -> 0 | AU28: =AT28/(AV4-AT25) -> 0 | AV28: =IF(AU28=0,0,(AU28*((LOG(AU28))/LOG(2)))) -> 0
A29: 21 | B29: 3251 | C29: 11 | D29: 3264 | E29: 11 | F29: 3307 | G29: 21 | H29: 3324 | I29: 22 | J29: 3342 | K29: 0 | L29: 21122 | N29: 21221 | O29: =COUNTIF($L$7:$L$500,N29) -> 3 | P29: =O29/$Q$4 -> 0.01807228916 | Q29: =IF(P29=0,0,(P29*((LOG(P29))/LOG(2)))) -> -0.1046399445 | T29: =N29 -> 21221 | U29: =COUNTIF(L7:L34,T29) -> 1 | V29: =U29/(W4-U25) -> 0.03703703704 | W29: =IF(V29=0,0,(V29*((LOG(V29))/LOG(2)))) -> -0.1761069445 | Y29: =N29 -> 21221 | Z29: =COUNTIF(L35:L61,Y29) -> 1 | AA29: =Z29/(AB4-Z25) -> 0.03703703704 | AB29: =IF(AA29=0,0,(AA29*((LOG(AA29))/LOG(2)))) -> -0.1761069445 | AD29: =N29 -> 21221 | AE29: =COUNTIF(L62:L89,AD29) -> 0 | AF29: =AE29/(AG4-AE25) -> 0 | AG29: =IF(AF29=0,0,(AF29*((LOG(AF29))/LOG(2)))) -> 0 | AI29: =N29 -> 21221 | AJ29: =COUNTIF(L90:L117,AI29) -> 0 | AK29: =AJ29/(AL4-AJ25) -> 0 | AL29: =IF(AK29=0,0,(AK29*((LOG(AK29))/LOG(2)))) -> 0 | AN29: =N29 -> 21221 | AO29: =COUNTIF(L118:L144,AN29) -> 1 | AP29: =AO29/(AQ4-AO25) -> 0.03846153846 | AQ29: =IF(AP29=0,0,(AP29*((LOG(AP29))/LOG(2)))) -> -0.180786143 | AS29: =N29 -> 21221 | AT29: =COUNTIF(L145:L172,AS29) -> 0 | AU29: =AT29/(AV4-AT25) -> 0 | AV29: =IF(AU29=0,0,(AU29*((LOG(AU29))/LOG(2)))) -> 0
A30: 21 | B30: 3440 | C30: 11 | D30: 3471 | E30: 11 | F30: 3496 | G30: 21 | H30: 3521 | I30: 11 | J30: 3537 | K30: 1 | L30: 21121 | N30: 21222 | O30: =COUNTIF($L$7:$L$500,N30) -> 5 | P30: =O30/$Q$4 -> 0.03012048193 | Q30: =IF(P30=0,0,(P30*((LOG(P30))/LOG(2)))) -> -0.1522021487 | T30: =N30 -> 21222 | U30: =COUNTIF(L7:L34,T30) -> 1 | V30: =U30/(W4-U25) -> 0.03703703704 | W30: =IF(V30=0,0,(V30*((LOG(V30))/LOG(2)))) -> -0.1761069445 | Y30: =N30 -> 21222 | Z30: =COUNTIF(L35:L61,Y30) -> 1 | AA30: =Z30/(AB4-Z25) -> 0.03703703704 | AB30: =IF(AA30=0,0,(AA30*((LOG(AA30))/LOG(2)))) -> -0.1761069445 | AD30: =N30 -> 21222 | AE30: =COUNTIF(L62:L89,AD30) -> 0 | AF30: =AE30/(AG4-AE25) -> 0 | AG30: =IF(AF30=0,0,(AF30*((LOG(AF30))/LOG(2)))) -> 0 | AI30: =N30 -> 21222 | AJ30: =COUNTIF(L90:L117,AI30) -> 1 | AK30: =AJ30/(AL4-AJ25) -> 0.03703703704 | AL30: =IF(AK30=0,0,(AK30*((LOG(AK30))/LOG(2)))) -> -0.1761069445 | AN30: =N30 -> 21222 | AO30: =COUNTIF(L118:L144,AN30) -> 2 | AP30: =AO30/(AQ4-AO25) -> 0.07692307692 | AQ30: =IF(AP30=0,0,(AP30*((LOG(AP30))/LOG(2)))) -> -0.2846492091 | AS30: =N30 -> 21222 | AT30: =COUNTIF(L145:L172,AS30) -> 0 | AU30: =AT30/(AV4-AT25) -> 0 | AV30: =IF(AU30=0,0,(AU30*((LOG(AU30))/LOG(2)))) -> 0
A31: 21 | B31: 3648 | C31: 11 | D31: 3658 | E31: 11 | F31: 3662 | G31: 12 | H31: 3666 | I31: 24 | J31: 3679 | K31: 0 | L31: 21112 | N31: 22111 | O31: =COUNTIF($L$7:$L$500,N31) -> 13 | P31: =O31/$Q$4 -> 0.07831325301 | Q31: =IF(P31=0,0,(P31*((LOG(P31))/LOG(2)))) -> -0.2877698571 | T31: =N31 -> 22111 | U31: =COUNTIF(L7:L34,T31) -> 3 | V31: =U31/(W4-U25) -> 0.1111111111 | W31: =IF(V31=0,0,(V31*((LOG(V31))/LOG(2)))) -> -0.352213889 | Y31: =N31 -> 22111 | Z31: =COUNTIF(L35:L61,Y31) -> 1 | AA31: =Z31/(AB4-Z25) -> 0.03703703704 | AB31: =IF(AA31=0,0,(AA31*((LOG(AA31))/LOG(2)))) -> -0.1761069445 | AD31: =N31 -> 22111 | AE31: =COUNTIF(L62:L89,AD31) -> 0 | AF31: =AE31/(AG4-AE25) -> 0 | AG31: =IF(AF31=0,0,(AF31*((LOG(AF31))/LOG(2)))) -> 0 | AI31: =N31 -> 22111 | AJ31: =COUNTIF(L90:L117,AI31) -> 4 | AK31: =AJ31/(AL4-AJ25) -> 0.1481481481 | AL31: =IF(AK31=0,0,(AK31*((LOG(AK31))/LOG(2)))) -> -0.4081314818 | AN31: =N31 -> 22111 | AO31: =COUNTIF(L118:L144,AN31) -> 1 | AP31: =AO31/(AQ4-AO25) -> 0.03846153846 | AQ31: =IF(AP31=0,0,(AP31*((LOG(AP31))/LOG(2)))) -> -0.180786143 | AS31: =N31 -> 22111 | AT31: =COUNTIF(L145:L172,AS31) -> 4 | AU31: =AT31/(AV4-AT25) -> 0.1481481481 | AV31: =IF(AU31=0,0,(AU31*((LOG(AU31))/LOG(2)))) -> -0.4081314818
A32: 21 | B32: 3781 | C32: 22 | D32: 3800 | E32: 24 | F32: 3808 | G32: 14 | H32: 3817 | I32: 24 | J32: 3846 | K32: 0 | L32: 22212 | N32: 22112 | O32: =COUNTIF($L$7:$L$500,N32) -> 7 | P32: =O32/$Q$4 -> 0.0421686747 | Q32: =IF(P32=0,0,(P32*((LOG(P32))/LOG(2)))) -> -0.1926132022 | T32: =N32 -> 22112 | U32: =COUNTIF(L7:L34,T32) -> 2 | V32: =U32/(W4-U25) -> 0.07407407407 | W32: =IF(V32=0,0,(V32*((LOG(V32))/LOG(2)))) -> -0.278139815 | Y32: =N32 -> 22112 | Z32: =COUNTIF(L35:L61,Y32) -> 1 | AA32: =Z32/(AB4-Z25) -> 0.03703703704 | AB32: =IF(AA32=0,0,(AA32*((LOG(AA32))/LOG(2)))) -> -0.1761069445 | AD32: =N32 -> 22112 | AE32: =COUNTIF(L62:L89,AD32) -> 2 | AF32: =AE32/(AG4-AE25) -> 0.07407407407 | AG32: =IF(AF32=0,0,(AF32*((LOG(AF32))/LOG(2)))) -> -0.278139815 | AI32: =N32 -> 22112 | AJ32: =COUNTIF(L90:L117,AI32) -> 2 | AK32: =AJ32/(AL4-AJ25) -> 0.07407407407 | AL32: =IF(AK32=0,0,(AK32*((LOG(AK32))/LOG(2)))) -> -0.278139815 | AN32: =N32 -> 22112 | AO32: =COUNTIF(L118:L144,AN32) -> 0 | AP32: =AO32/(AQ4-AO25) -> 0 | AQ32: =IF(AP32=0,0,(AP32*((LOG(AP32))/LOG(2)))) -> 0 | AS32: =N32 -> 22112 | AT32: =COUNTIF(L145:L172,AS32) -> 0 | AU32: =AT32/(AV4-AT25) -> 0 | AV32: =IF(AU32=0,0,(AU32*((LOG(AU32))/LOG(2)))) -> 0
A33: 21 | B33: 3957 | C33: 11 | D33: 3965 | E33: 22 | F33: 3972 | G33: 14 | H33: 3987 | I33: 13 | J33: 4009 | K33: 0 | L33: 21211 | N33: 22121 | O33: =COUNTIF($L$7:$L$500,N33) -> 6 | P33: =O33/$Q$4 -> 0.03614457831 | Q33: =IF(P33=0,0,(P33*((LOG(P33))/LOG(2)))) -> -0.1731353107 | T33: =N33 -> 22121 | U33: =COUNTIF(L7:L34,T33) -> 0 | V33: =U33/(W4-U25) -> 0 | W33: =IF(V33=0,0,(V33*((LOG(V33))/LOG(2)))) -> 0 | Y33: =N33 -> 22121 | Z33: =COUNTIF(L35:L61,Y33) -> 5 | AA33: =Z33/(AB4-Z25) -> 0.1851851852 | AB33: =IF(AA33=0,0,(AA33*((LOG(AA33))/LOG(2)))) -> -0.4505480384 | AD33: =N33 -> 22121 | AE33: =COUNTIF(L62:L89,AD33) -> 1 | AF33: =AE33/(AG4-AE25) -> 0.03703703704 | AG33: =IF(AF33=0,0,(AF33*((LOG(AF33))/LOG(2)))) -> -0.1761069445 | AI33: =N33 -> 22121 | AJ33: =COUNTIF(L90:L117,AI33) -> 0 | AK33: =AJ33/(AL4-AJ25) -> 0 | AL33: =IF(AK33=0,0,(AK33*((LOG(AK33))/LOG(2)))) -> 0 | AN33: =N33 -> 22121 | AO33: =COUNTIF(L118:L144,AN33) -> 0 | AP33: =AO33/(AQ4-AO25) -> 0 | AQ33: =IF(AP33=0,0,(AP33*((LOG(AP33))/LOG(2)))) -> 0 | AS33: =N33 -> 22121 | AT33: =COUNTIF(L145:L172,AS33) -> 0 | AU33: =AT33/(AV4-AT25) -> 0 | AV33: =IF(AU33=0,0,(AU33*((LOG(AU33))/LOG(2)))) -> 0
A34: 21 | B34: 4127 | C34: 11 | D34: 4141 | E34: 22 | F34: 4165 | G34: 14 | H34: 4176 | I34: 13 | J34: 4187 | K34: 0 | L34: 21211 | N34: 22122 | O34: =COUNTIF($L$7:$L$500,N34) -> 5 | P34: =O34/$Q$4 -> 0.03012048193 | Q34: =IF(P34=0,0,(P34*((LOG(P34))/LOG(2)))) -> -0.1522021487 | T34: =N34 -> 22122 | U34: =COUNTIF(L7:L34,T34) -> 1 | V34: =U34/(W4-U25) -> 0.03703703704 | W34: =IF(V34=0,0,(V34*((LOG(V34))/LOG(2)))) -> -0.1761069445 | Y34: =N34 -> 22122 | Z34: =COUNTIF(L35:L61,Y34) -> 3 | AA34: =Z34/(AB4-Z25) -> 0.1111111111 | AB34: =IF(AA34=0,0,(AA34*((LOG(AA34))/LOG(2)))) -> -0.352213889 | AD34: =N34 -> 22122 | AE34: =COUNTIF(L62:L89,AD34) -> 0 | AF34: =AE34/(AG4-AE25) -> 0 | AG34: =IF(AF34=0,0,(AF34*((LOG(AF34))/LOG(2)))) -> 0 | AI34: =N34 -> 22122 | AJ34: =COUNTIF(L90:L117,AI34) -> 1 | AK34: =AJ34/(AL4-AJ25) -> 0.03703703704 | AL34: =IF(AK34=0,0,(AK34*((LOG(AK34))/LOG(2)))) -> -0.1761069445 | AN34: =N34 -> 22122 | AO34: =COUNTIF(L118:L144,AN34) -> 0 | AP34: =AO34/(AQ4-AO25) -> 0 | AQ34: =IF(AP34=0,0,(AP34*((LOG(AP34))/LOG(2)))) -> 0 | AS34: =N34 -> 22122 | AT34: =COUNTIF(L145:L172,AS34) -> 0 | AU34: =AT34/(AV4-AT25) -> 0 | AV34: =IF(AU34=0,0,(AU34*((LOG(AU34))/LOG(2)))) -> 0
A35: 21 | B35: 4305 | C35: 22 | D35: 4310 | E35: 13 | F35: 4320 | G35: 23 | H35: 4354 | I35: 24 | J35: 4369 | K35: 1 | L35: 22122 | N35: 22211 | O35: =COUNTIF($L$7:$L$500,N35) -> 9 | P35: =O35/$Q$4 -> 0.05421686747 | Q35: =IF(P35=0,0,(P35*((LOG(P35))/LOG(2)))) -> -0.2279881317 | T35: =N35 -> 22211 | U35: =COUNTIF(L7:L34,T35) -> 1 | V35: =U35/(W4-U25) -> 0.03703703704 | W35: =IF(V35=0,0,(V35*((LOG(V35))/LOG(2)))) -> -0.1761069445 | Y35: =N35 -> 22211 | Z35: =COUNTIF(L35:L61,Y35) -> 2 | AA35: =Z35/(AB4-Z25) -> 0.07407407407 | AB35: =IF(AA35=0,0,(AA35*((LOG(AA35))/LOG(2)))) -> -0.278139815 | AD35: =N35 -> 22211 | AE35: =COUNTIF(L62:L89,AD35) -> 2 | AF35: =AE35/(AG4-AE25) -> 0.07407407407 | AG35: =IF(AF35=0,0,(AF35*((LOG(AF35))/LOG(2)))) -> -0.278139815 | AI35: =N35 -> 22211 | AJ35: =COUNTIF(L90:L117,AI35) -> 1 | AK35: =AJ35/(AL4-AJ25) -> 0.03703703704 | AL35: =IF(AK35=0,0,(AK35*((LOG(AK35))/LOG(2)))) -> -0.1761069445 | AN35: =N35 -> 22211 | AO35: =COUNTIF(L118:L144,AN35) -> 1 | AP35: =AO35/(AQ4-AO25) -> 0.03846153846 | AQ35: =IF(AP35=0,0,(AP35*((LOG(AP35))/LOG(2)))) -> -0.180786143 | AS35: =N35 -> 22211 | AT35: =COUNTIF(L145:L172,AS35) -> 2 | AU35: =AT35/(AV4-AT25) -> 0.07407407407 | AV35: =IF(AU35=0,0,(AU35*((LOG(AU35))/LOG(2)))) -> -0.278139815
A36: 21 | B36: 4467 | C36: 22 | D36: 4489 | E36: 13 | F36: 4498 | G36: 23 | H36: 4513 | I36: 13 | J36: 4549 | K36: 1 | L36: 22121 | N36: 22212 | O36: =COUNTIF($L$7:$L$500,N36) -> 3 | P36: =O36/$Q$4 -> 0.01807228916 | Q36: =IF(P36=0,0,(P36*((LOG(P36))/LOG(2)))) -> -0.1046399445 | T36: =N36 -> 22212 | U36: =COUNTIF(L7:L34,T36) -> 1 | V36: =U36/(W4-U25) -> 0.03703703704 | W36: =IF(V36=0,0,(V36*((LOG(V36))/LOG(2)))) -> -0.1761069445 | Y36: =N36 -> 22212 | Z36: =COUNTIF(L35:L61,Y36) -> 0 | AA36: =Z36/(AB4-Z25) -> 0 | AB36: =IF(AA36=0,0,(AA36*((LOG(AA36))/LOG(2)))) -> 0 | AD36: =N36 -> 22212 | AE36: =COUNTIF(L62:L89,AD36) -> 0 | AF36: =AE36/(AG4-AE25) -> 0 | AG36: =IF(AF36=0,0,(AF36*((LOG(AF36))/LOG(2)))) -> 0 | AI36: =N36 -> 22212 | AJ36: =COUNTIF(L90:L117,AI36) -> 1 | AK36: =AJ36/(AL4-AJ25) -> 0.03703703704 | AL36: =IF(AK36=0,0,(AK36*((LOG(AK36))/LOG(2)))) -> -0.1761069445 | AN36: =N36 -> 22212 | AO36: =COUNTIF(L118:L144,AN36) -> 1 | AP36: =AO36/(AQ4-AO25) -> 0.03846153846 | AQ36: =IF(AP36=0,0,(AP36*((LOG(AP36))/LOG(2)))) -> -0.180786143 | AS36: =N36 -> 22212 | AT36: =COUNTIF(L145:L172,AS36) -> 0 | AU36: =AT36/(AV4-AT25) -> 0 | AV36: =IF(AU36=0,0,(AU36*((LOG(AU36))/LOG(2)))) -> 0
A37: 21 | B37: 4662 | C37: 11 | D37: 4674 | E37: 22 | F37: 4682 | G37: 14 | H37: 4693 | I37: 13 | J37: 4706 | K37: 0 | L37: 21211 | N37: 22221 | O37: =COUNTIF($L$7:$L$500,N37) -> 5 | P37: =O37/$Q$4 -> 0.03012048193 | Q37: =IF(P37=0,0,(P37*((LOG(P37))/LOG(2)))) -> -0.1522021487 | T37: =N37 -> 22221 | U37: =COUNTIF(L7:L34,T37) -> 0 | V37: =U37/(W4-U25) -> 0 | W37: =IF(V37=0,0,(V37*((LOG(V37))/LOG(2)))) -> 0 | Y37: =N37 -> 22221 | Z37: =COUNTIF(L35:L61,Y37) -> 1 | AA37: =Z37/(AB4-Z25) -> 0.03703703704 | AB37: =IF(AA37=0,0,(AA37*((LOG(AA37))/LOG(2)))) -> -0.1761069445 | AD37: =N37 -> 22221 | AE37: =COUNTIF(L62:L89,AD37) -> 0 | AF37: =AE37/(AG4-AE25) -> 0 | AG37: =IF(AF37=0,0,(AF37*((LOG(AF37))/LOG(2)))) -> 0 | AI37: =N37 -> 22221 | AJ37: =COUNTIF(L90:L117,AI37) -> 3 | AK37: =AJ37/(AL4-AJ25) -> 0.1111111111 | AL37: =IF(AK37=0,0,(AK37*((LOG(AK37))/LOG(2)))) -> -0.352213889 | AN37: =N37 -> 22221 | AO37: =COUNTIF(L118:L144,AN37) -> 1 | AP37: =AO37/(AQ4-AO25) -> 0.03846153846 | AQ37: =IF(AP37=0,0,(AP37*((LOG(AP37))/LOG(2)))) -> -0.180786143 | AS37: =N37 -> 22221 | AT37: =COUNTIF(L145:L172,AS37) -> 0 | AU37: =AT37/(AV4-AT25) -> 0 | AV37: =IF(AU37=0,0,(AU37*((LOG(AU37))/LOG(2)))) -> 0
A38: 21 | B38: 4805 | C38: 22 | D38: 4810 | E38: 13 | F38: 4819 | G38: 14 | H38: 4823 | I38: 13 | J38: 4832 | K38: 0 | L38: 22111 | N38: 22222 | O38: =COUNTIF($L$7:$L$500,N38) -> 4 | P38: =O38/$Q$4 -> 0.02409638554 | Q38: =IF(P38=0,0,(P38*((LOG(P38))/LOG(2)))) -> -0.1295190224 | T38: =N38 -> 22222 | U38: =COUNTIF(L7:L34,T38) -> 0 | V38: =U38/(W4-U25) -> 0 | W38: =IF(V38=0,0,(V38*((LOG(V38))/LOG(2)))) -> 0 | Y38: =N38 -> 22222 | Z38: =COUNTIF(L35:L61,Y38) -> 1 | AA38: =Z38/(AB4-Z25) -> 0.03703703704 | AB38: =IF(AA38=0,0,(AA38*((LOG(AA38))/LOG(2)))) -> -0.1761069445 | AD38: =N38 -> 22222 | AE38: =COUNTIF(L62:L89,AD38) -> 0 | AF38: =AE38/(AG4-AE25) -> 0 | AG38: =IF(AF38=0,0,(AF38*((LOG(AF38))/LOG(2)))) -> 0 | AI38: =N38 -> 22222 | AJ38: =COUNTIF(L90:L117,AI38) -> 0 | AK38: =AJ38/(AL4-AJ25) -> 0 | AL38: =IF(AK38=0,0,(AK38*((LOG(AK38))/LOG(2)))) -> 0 | AN38: =N38 -> 22222 | AO38: =COUNTIF(L118:L144,AN38) -> 2 | AP38: =AO38/(AQ4-AO25) -> 0.07692307692 | AQ38: =IF(AP38=0,0,(AP38*((LOG(AP38))/LOG(2)))) -> -0.2846492091 | AS38: =N38 -> 22222 | AT38: =COUNTIF(L145:L172,AS38) -> 1 | AU38: =AT38/(AV4-AT25) -> 0.03703703704 | AV38: =IF(AU38=0,0,(AU38*((LOG(AU38))/LOG(2)))) -> -0.1761069445
A39: 21 | B39: 4928 | C39: 22 | D39: 4944 | E39: 24 | F39: 4948 | G39: 14 | H39: 4957 | I39: 13 | J39: 4979 | K39: 1 | L39: 22211 | P39: =SUM(P7:P38) -> 1 | Q39: =-SUM(Q7:Q38) -> 4.132035667 | V39: =SUM(V7:V38) -> 1 | W39: =-SUM(W7:W38) -> 3.689891669 | AA39: =SUM(AA7:AA38) -> 1 | AB39: =-SUM(AB7:AB38) -> 3.824538781 | AF39: =SUM(AF7:AF38) -> 1 | AG39: =-SUM(AG7:AG38) -> 3.380094336 | AK39: =SUM(AK7:AK38) -> 1 | AL39: =-SUM(AL7:AL38) -> 3.33767778 | AP39: =SUM(AP7:AP38) -> 1 | AQ39: =-SUM(AQ7:AQ38) -> 3.064696448 | AU39: =SUM(AU7:AU38) -> 1 | AV39: =-SUM(AV7:AV38) -> 2.545132381
A40: 12 | B40: 5075 | C40: 13 | D40: 5084 | E40: 13 | F40: 5099 | G40: 23 | H40: 5107 | I40: 13 | J40: 5117 | K40: 0 | L40: 11121 | P40: U= | Q40: =Q39/(LOG(Q4)/LOG(2)) -> 0.560273027 | V40: U1= | W40: =W39/(LOG(W4)/LOG(2)) -> 0.7675513309 | AA40: U2= | AB40: =AB39/(LOG(AB4)/LOG(2)) -> 0.8043384368 | AF40: U3= | AG40: =AG39/(LOG(AG4)/LOG(2)) -> 0.7031089635 | AK40: U4= | AL40: =AL39/(LOG(AL4)/LOG(2)) -> 0.6942857005 | AP40: U5= | AQ40: =AQ39/(LOG(AQ4)/LOG(2)) -> 0.6445360583 | AU40: U6= | AV40: =AV39/(LOG(AV4)/LOG(2)) -> 0.5294246882
A41: 21 | B41: 5214 | C41: 22 | D41: 5227 | E41: 13 | F41: 5235 | G41: 23 | H41: 5243 | I41: 13 | J41: 5265 | K41: 0 | L41: 22121
A42: 21 | B42: 5378 | C42: 11 | D42: 5388 | E42: 22 | F42: 5396 | G42: 14 | H42: 5415 | I42: 24 | J42: 5423 | K42: 0 | L42: 21212
A43: 21 | B43: 5528 | C43: 11 | D43: 5538 | E43: 11 | F43: 5568 | G43: 21 | H43: 5591 | I43: 22 | J43: 5597 | K43: 0 | L43: 21122 | N43: Total Target Seq
A44: 21 | B44: 5698 | C44: 22 | D44: 5703 | E44: 24 | F44: 5710 | G44: 14 | H44: 5718 | I44: 13 | J44: 5729 | K44: 0 | L44: 22211 | N44: =COUNTIF(L7:L172,G3) -> 5 | P44: 28 | Q44: 27 | R44: 28 | S44: 28 | T44: 27 | U44: 28
A45: 21 | B45: 5828 | C45: 22 | D45: 5854 | E45: 13 | F45: 5863 | G45: 23 | H45: 5894 | I45: 24 | J45: 5901 | K45: 1 | L45: 22122 | P45: % of reinforcement given in 6 equal intervals based on number of trials
A46: 21 | B46: 6003 | C46: 11 | D46: 6012 | E46: 11 | F46: 6030 | G46: 12 | H46: 6054 | I46: 24 | J46: 6070 | K46: 0 | L46: 21112 | P46: %_1 | Q46: %_2 | R46: %_3 | S46: %_4 | T46: %_5 | U46: %_6
A47: 21 | B47: 6175 | C47: 22 | D47: 6179 | E47: 13 | F47: 6187 | G47: 23 | H47: 6194 | I47: 24 | J47: 6204 | K47: 0 | L47: 22122 | O47: target sequence | P47: =$G$3 -> 21121 | Q47: =$G$3 -> 21121 | R47: =$G$3 -> 21121 | S47: =$G$3 -> 21121 | T47: =$G$3 -> 21121 | U47: =$G$3 -> 21121
A48: 12 | B48: 6323 | C48: 13 | D48: 6329 | E48: 13 | F48: 6336 | G48: 14 | H48: 6342 | I48: 13 | J48: 6351 | K48: 0 | L48: 11111 | O48: total reinforcement | P48: =U25 -> 1 | Q48: =Z25 -> 0 | R48: =AE25 -> 1 | S48: =AJ25 -> 1 | T48: =AO25 -> 1 | U48: =AT25 -> 1
A49: 12 | B49: 6465 | C49: 24 | D49: 6472 | E49: 13 | F49: 6487 | G49: 23 | H49: 6498 | I49: 13 | J49: 6520 | K49: 0 | L49: 12121 | O49: % target
A50: 21 | B50: 6618 | C50: 22 | D50: 6634 | E50: 24 | F50: 6641 | G50: 23 | H50: 6648 | I50: 24 | J50: 6655 | K50: 0 | L50: 22222 | O50: CCRF
A51: 21 | B51: 6753 | C51: 22 | D51: 6758 | E51: 13 | F51: 6769 | G51: 23 | H51: 6776 | I51: 13 | J51: 6787 | K51: 0 | L51: 22121 | O51: % CCRf
A52: 21 | B52: 6884 | C52: 22 | D52: 6918 | E52: 13 | F52: 6934 | G52: 14 | H52: 6964 | I52: 24 | J52: 6972 | K52: 1 | L52: 22112 | O52: average response rate | P52: =J34/P44 -> 149.5357143 | Q52: =(J61-J34)/Q44 -> 152.7777778 | R52: =(J89-J61)/R44 -> 141.75 | S52: =(J117-J89)/S44 -> 141.4642857 | T52: =(J144-J117)/T44 -> 141.5185185 | U52: =(J172-J144)/U44 -> 139.0714286
A53: 21 | B53: 7072 | C53: 11 | D53: 7081 | E53: 22 | F53: 7089 | G53: 23 | H53: 7098 | I53: 13 | J53: 7112 | K53: 0 | L53: 21221
A54: 21 | B54: 7223 | C54: 11 | D54: 7232 | E54: 11 | F54: 7250 | G54: 21 | H54: 7259 | I54: 22 | J54: 7295 | K54: 0 | L54: 21122
A55: 21 | B55: 7395 | C55: 11 | D55: 7405 | E55: 11 | F55: 7422 | G55: 21 | H55: 7430 | I55: 22 | J55: 7437 | K55: 0 | L55: 21122
A56: 21 | B56: 7543 | C56: 22 | D56: 7554 | E56: 13 | F56: 7563 | G56: 23 | H56: 7576 | I56: 13 | J56: 7587 | K56: 0 | L56: 22121
A57: 21 | B57: 7684 | C57: 22 | D57: 7688 | E57: 13 | F57: 7698 | G57: 23 | H57: 7705 | I57: 13 | J57: 7715 | K57: 0 | L57: 22121
A58: 21 | B58: 7817 | C58: 11 | D58: 7828 | E58: 22 | F58: 7835 | G58: 23 | H58: 7846 | I58: 24 | J58: 7852 | K58: 0 | L58: 21222
A59: 21 | B59: 7955 | C59: 11 | D59: 7966 | E59: 22 | F59: 7974 | G59: 14 | H59: 8002 | I59: 24 | J59: 8010 | K59: 0 | L59: 21212
A60: 21 | B60: 8114 | C60: 22 | D60: 8129 | E60: 24 | F60: 8139 | G60: 23 | H60: 8158 | I60: 13 | J60: 8168 | K60: 0 | L60: 22221
A61: 12 | B61: 8283 | C61: 24 | D61: 8291 | E61: 24 | F61: 8298 | G61: 23 | H61: 8304 | I61: 13 | J61: 8312 | K61: 0 | L61: 12221
A62: 12 | B62: 8430 | C62: 24 | D62: 8438 | E62: 24 | F62: 8443 | G62: 23 | H62: 8448 | I62: 13 | J62: 8469 | K62: 1 | L62: 12221
A63: 21 | B63: 8561 | C63: 11 | D63: 8580 | E63: 22 | F63: 8597 | G63: 14 | H63: 8606 | I63: 24 | J63: 8619 | K63: 0 | L63: 21212
A64: 21 | B64: 8719 | C64: 22 | D64: 8724 | E64: 13 | F64: 8732 | G64: 14 | H64: 8741 | I64: 24 | J64: 8764 | K64: 0 | L64: 22112
A65: 21 | B65: 8863 | C65: 22 | D65: 8867 | E65: 13 | F65: 8874 | G65: 14 | H65: 8883 | I65: 24 | J65: 8891 | K65: 0 | L65: 22112
A66: 21 | B66: 8997 | C66: 11 | D66: 9005 | E66: 11 | F66: 9021 | G66: 12 | H66: 9039 | I66: 13 | J66: 9060 | K66: 0 | L66: 21111
A67: 21 | B67: 9166 | C67: 22 | D67: 9177 | E67: 24 | F67: 9182 | G67: 14 | H67: 9191 | I67: 13 | J67: 9199 | K67: 0 | L67: 22211
A68: 21 | B68: 9307 | C68: 22 | D68: 9312 | E68: 24 | F68: 9319 | G68: 14 | H68: 9330 | I68: 13 | J68: 9338 | K68: 0 | L68: 22211
A69: 21 | B69: 9455 | C69: 11 | D69: 9463 | E69: 22 | F69: 9471 | G69: 14 | H69: 9483 | I69: 24 | J69: 9495 | K69: 1 | L69: 21212
A70: 21 | B70: 9589 | C70: 11 | D70: 9601 | E70: 22 | F70: 9610 | G70: 14 | H70: 9626 | I70: 24 | J70: 9637 | K70: 0 | L70: 21212
A71: 12 | B71: 9764 | C71: 24 | D71: 9772 | E71: 24 | F71: 9782 | G71: 23 | H71: 9792 | I71: 13 | J71: 9800 | K71: 0 | L71: 12221
A72: 21 | B72: 9898 | C72: 11 | D72: 9910 | E72: 11 | F72: 9922 | G72: 12 | H72: 9938 | I72: 24 | J72: 9945 | K72: 0 | L72: 21112
A73: 21 | B73: 10051 | C73: 11 | D73: 10063 | E73: 11 | F73: 10073 | G73: 21 | H73: 10080 | I73: 11 | J73: 10095 | K73: 1 | L73: 21121
A74: 21 | B74: 10200 | C74: 11 | D74: 10209 | E74: 11 | F74: 10218 | G74: 12 | H74: 10226 | I74: 13 | J74: 10232 | K74: 1 | L74: 21111
A75: 12 | B75: 10349 | C75: 13 | D75: 10353 | E75: 13 | F75: 10359 | G75: 14 | H75: 10367 | I75: 13 | J75: 10374 | K75: 1 | L75: 11111
A76: 12 | B76: 10466 | C76: 13 | D76: 10470 | E76: 13 | F76: 10473 | G76: 14 | H76: 10477 | I76: 24 | J76: 10492 | K76: 0 | L76: 11112
A77: 21 | B77: 10589 | C77: 11 | D77: 10601 | E77: 11 | F77: 10608 | G77: 12 | H77: 10612 | I77: 13 | J77: 10617 | K77: 0 | L77: 21111
A78: 12 | B78: 10714 | C78: 13 | D78: 10724 | E78: 13 | F78: 10733 | G78: 14 | H78: 10737 | I78: 13 | J78: 10741 | K78: 1 | L78: 11111
A79: 21 | B79: 10837 | C79: 22 | D79: 10843 | E79: 13 | F79: 10852 | G79: 23 | H79: 10860 | I79: 13 | J79: 10877 | K79: 0 | L79: 22121
A80: 12 | B80: 10976 | C80: 13 | D80: 10979 | E80: 13 | F80: 10983 | G80: 14 | H80: 10987 | I80: 13 | J80: 10991 | K80: 0 | L80: 11111
A81: 12 | B81: 11088 | C81: 13 | D81: 11093 | E81: 13 | F81: 11096 | G81: 14 | H81: 11100 | I81: 13 | J81: 11103 | K81: 0 | L81: 11111
A82: 12 | B82: 11213 | C82: 24 | D82: 11221 | E82: 13 | F82: 11228 | G82: 14 | H82: 11290 | I82: 24 | J82: 11298 | K82: 1 | L82: 12112
A83: 21 | B83: 11401 | C83: 11 | D83: 11410 | E83: 11 | F83: 11418 | G83: 12 | H83: 11424 | I83: 13 | J83: 11430 | K83: 0 | L83: 21111
A84: 12 | B84: 11541 | C84: 13 | D84: 11548 | E84: 13 | F84: 11554 | G84: 14 | H84: 11559 | I84: 24 | J84: 11574 | K84: 0 | L84: 11112
A85: 21 | B85: 11679 | C85: 11 | D85: 11686 | E85: 11 | F85: 11694 | G85: 12 | H85: 11701 | I85: 13 | J85: 11719 | K85: 0 | L85: 21111
A86: 21 | B86: 11818 | C86: 11 | D86: 11828 | E86: 11 | F86: 11849 | G86: 21 | H86: 11858 | I86: 22 | J86: 11866 | K86: 0 | L86: 21122
A87: 21 | B87: 11965 | C87: 11 | D87: 11974 | E87: 11 | F87: 11981 | G87: 12 | H87: 11986 | I87: 24 | J87: 11999 | K87: 0 | L87: 21112
A88: 21 | B88: 12100 | C88: 11 | D88: 12113 | E88: 11 | F88: 12120 | G88: 12 | H88: 12131 | I88: 24 | J88: 12139 | K88: 0 | L88: 21112
A89: 12 | B89: 12252 | C89: 13 | D89: 12256 | E89: 24 | F89: 12264 | G89: 23 | H89: 12274 | I89: 24 | J89: 12281 | K89: 0 | L89: 11222
A90: 21 | B90: 12381 | C90: 11 | D90: 12391 | E90: 11 | F90: 12398 | G90: 12 | H90: 12402 | I90: 13 | J90: 12407 | K90: 0 | L90: 21111
A91: 12 | B91: 12516 | C91: 13 | D91: 12521 | E91: 13 | F91: 12525 | G91: 14 | H91: 12529 | I91: 24 | J91: 12541 | K91: 0 | L91: 11112
A92: 21 | B92: 12640 | C92: 11 | D92: 12652 | E92: 11 | F92: 12658 | G92: 12 | H92: 12666 | I92: 24 | J92: 12684 | K92: 0 | L92: 21112
A93: 12 | B93: 12799 | C93: 13 | D93: 12804 | E93: 13 | F93: 12809 | G93: 23 | H93: 12819 | I93: 24 | J93: 12827 | K93: 1 | L93: 11122
A94: 21 | B94: 12923 | C94: 11 | D94: 12936 | E94: 11 | F94: 12949 | G94: 12 | H94: 12954 | I94: 13 | J94: 12977 | K94: 0 | L94: 21111
A95: 21 | B95: 13076 | C95: 11 | D95: 13091 | E95: 11 | F95: 13096 | G95: 21 | H95: 13109 | I95: 11 | J95: 13117 | K95: 1 | L95: 21121
A96: 21 | B96: 13221 | C96: 22 | D96: 13226 | E96: 13 | F96: 13233 | G96: 14 | H96: 13241 | I96: 13 | J96: 13245 | K96: 0 | L96: 22111
A97: 21 | B97: 13345 | C97: 11 | D97: 13352 | E97: 11 | F97: 13376 | G97: 12 | H97: 13381 | I97: 13 | J97: 13385 | K97: 0 | L97: 21111
A98: 21 | B98: 13484 | C98: 22 | D98: 13492 | E98: 24 | F98: 13497 | G98: 14 | H98: 13504 | I98: 13 | J98: 13511 | K98: 0 | L98: 22211
A99: 21 | B99: 13611 | C99: 11 | D99: 13624 | E99: 11 | F99: 13631 | G99: 12 | H99: 13635 | I99: 13 | J99: 13639 | K99: 0 | L99: 21111
A100: 21 | B100: 13750 | C100: 11 | D100: 13758 | E100: 11 | F100: 13765 | G100: 12 | H100: 13769 | I100: 13 | J100: 13773 | K100: 0 | L100: 21111
A101: 21 | B101: 13886 | C101: 22 | D101: 13894 | E101: 13 | F101: 13901 | G101: 14 | H101: 13909 | I101: 24 | J101: 13931 | K101: 1 | L101: 22112
A102: 21 | B102: 14029 | C102: 22 | D102: 14034 | E102: 13 | F102: 14050 | G102: 14 | H102: 14055 | I102: 13 | J102: 14059 | K102: 0 | L102: 22111
A103: 21 | B103: 14159 | C103: 22 | D103: 14167 | E103: 13 | F103: 14174 | G103: 14 | H103: 14181 | I103: 13 | J103: 14185 | K103: 0 | L103: 22111
A104: 21 | B104: 14303 | C104: 22 | D104: 14307 | E104: 24 | F104: 14313 | G104: 23 | H104: 14320 | I104: 13 | J104: 14334 | K104: 0 | L104: 22221
A105: 21 | B105: 14437 | C105: 11 | D105: 14448 | E105: 11 | F105: 14456 | G105: 12 | H105: 14461 | I105: 24 | J105: 14483 | K105: 0 | L105: 21112
A106: 12 | B106: 14594 | C106: 13 | D106: 14599 | E106: 24 | F106: 14617 | G106: 23 | H106: 14624 | I106: 24 | J106: 14630 | K106: 1 | L106: 11222
A107: 21 | B107: 14742 | C107: 11 | D107: 14750 | E107: 22 | F107: 14758 | G107: 14 | H107: 14770 | I107: 24 | J107: 14804 | K107: 0 | L107: 21212
A108: 21 | B108: 14904 | C108: 11 | D108: 14922 | E108: 11 | F108: 14930 | G108: 12 | H108: 14937 | I108: 13 | J108: 14942 | K108: 1 | L108: 21111
A109: 21 | B109: 15035 | C109: 11 | D109: 15045 | E109: 22 | F109: 15062 | G109: 23 | H109: 15070 | I109: 24 | J109: 15078 | K109: 0 | L109: 21222
A110: 21 | B110: 15184 | C110: 22 | D110: 15197 | E110: 24 | F110: 15204 | G110: 14 | H110: 15218 | I110: 24 | J110: 15252 | K110: 0 | L110: 22212
A111: 21 | B111: 15375 | C111: 11 | D111: 15382 | E111: 11 | F111: 15389 | G111: 12 | H111: 15393 | I111: 24 | J111: 15409 | K111: 0 | L111: 21112
A112: 21 | B112: 15510 | C112: 22 | D112: 15526 | E112: 24 | F112: 15531 | G112: 23 | H112: 15538 | I112: 13 | J112: 15549 | K112: 0 | L112: 22221
A113: 21 | B113: 15649 | C113: 22 | D113: 15664 | E113: 24 | F113: 15671 | G113: 23 | H113: 15680 | I113: 13 | J113: 15696 | K113: 1 | L113: 22221
A114: 21 | B114: 15796 | C114: 22 | D114: 15801 | E114: 13 | F114: 15809 | G114: 14 | H114: 15814 | I114: 24 | J114: 15829 | K114: 1 | L114: 22112
A115: 21 | B115: 15927 | C115: 11 | D115: 15939 | E115: 11 | F115: 15943 | G115: 12 | H115: 15947 | I115: 24 | J115: 15961 | K115: 0 | L115: 21112
A116: 21 | B116: 16072 | C116: 22 | D116: 16077 | E116: 13 | F116: 16089 | G116: 23 | H116: 16111 | I116: 24 | J116: 16117 | K116: 0 | L116: 22122
A117: 21 | B117: 16215 | C117: 22 | D117: 16219 | E117: 13 | F117: 16232 | G117: 14 | H117: 16239 | I117: 13 | J117: 16242 | K117: 0 | L117: 22111
A118: 21 | B118: 16346 | C118: 11 | D118: 16360 | E118: 11 | F118: 16367 | G118: 12 | H118: 16371 | I118: 13 | J118: 16375 | K118: 1 | L118: 21111
A119: 21 | B119: 16467 | C119: 22 | D119: 16477 | E119: 24 | F119: 16483 | G119: 23 | H119: 16495 | I119: 24 | J119: 16511 | K119: 1 | L119: 22222
A120: 12 | B120: 16607 | C120: 13 | D120: 16611 | E120: 24 | F120: 16621 | G120: 23 | H120: 16628 | I120: 24 | J120: 16635 | K120: 0 | L120: 11222
A121: 21 | B121: 16746 | C121: 11 | D121: 16756 | E121: 11 | F121: 16764 | G121: 12 | H121: 16768 | I121: 13 | J121: 16779 | K121: 0 | L121: 21111
A122: 21 | B122: 16881 | C122: 11 | D122: 16890 | E122: 11 | F122: 16894 | G122: 12 | H122: 16901 | I122: 13 | J122: 16905 | K122: 0 | L122: 21111
A123: 21 | B123: 17027 | C123: 11 | D123: 17035 | E123: 11 | F123: 17040 | G123: 12 | H123: 17045 | I123: 13 | J123: 17051 | K123: 0 | L123: 21111
A124: 21 | B124: 17153 | C124: 22 | D124: 17168 | E124: 24 | F124: 17172 | G124: 23 | H124: 17179 | I124: 24 | J124: 17187 | K124: 0 | L124: 22222
A125: 21 | B125: 17324 | C125: 22 | D125: 17335 | E125: 24 | F125: 17345 | G125: 14 | H125: 17357 | I125: 24 | J125: 17392 | K125: 0 | L125: 22212
A126: 21 | B126: 17496 | C126: 11 | D126: 17507 | E126: 22 | F126: 17519 | G126: 23 | H126: 17527 | I126: 24 | J126: 17537 | K126: 1 | L126: 21222
A127: 21 | B127: 17634 | C127: 11 | D127: 17644 | E127: 11 | F127: 17651 | G127: 12 | H127: 17655 | I127: 24 | J127: 17677 | K127: 0 | L127: 21112
A128: 21 | B128: 17781 | C128: 11 | D128: 17796 | E128: 11 | F128: 17802 | G128: 12 | H128: 17807 | I128: 24 | J128: 17841 | K128: 0 | L128: 21112
A129: 21 | B129: 17943 | C129: 11 | D129: 17952 | E129: 11 | F129: 17967 | G129: 12 | H129: 17972 | I129: 13 | J129: 17975 | K129: 0 | L129: 21111
A130: 21 | B130: 18075 | C130: 22 | D130: 18092 | E130: 24 | F130: 18096 | G130: 14 | H130: 18108 | I130: 13 | J130: 18115 | K130: 0 | L130: 22211
A131: 21 | B131: 18217 | C131: 11 | D131: 18227 | E131: 22 | F131: 18245 | G131: 23 | H131: 18253 | I131: 13 | J131: 18263 | K131: 0 | L131: 21221
A132: 21 | B132: 18368 | C132: 11 | D132: 18377 | E132: 11 | F132: 18385 | G132: 12 | H132: 18389 | I132: 13 | J132: 18397 | K132: 0 | L132: 21111
A133: 21 | B133: 18494 | C133: 11 | D133: 18506 | E133: 11 | F133: 18513 | G133: 12 | H133: 18517 | I133: 13 | J133: 18521 | K133: 0 | L133: 21111
